Workbook

Sheet AAAADonnées
C1: SI(V6<200;"";SI(V6<500;1;2)) | K1: ALGER | L1: BLIDA | M1: BOUFARIK | N1: CHERCHELL | O1: TIPAZA | P1: HADJOUT | Q1: MILIANA | R1: SI-MUSTAPHA | S1: BOUMERDES | T1: BOUDOUAOU | U1: TIZI-OUZOU | V1: CHLEF | W1: ORAN | X1: SIDI-BEL-ABBES | Y1: TEMOUCHENT | Z1: BENI-SAF | AA1: BBA | AB1: CONSTANTINE | AC1: SETIF | AD1: JIJEL | AE1: MSILA | AF1: BATNA | AG1: BISKRA | AH1: SKIKDA | AI1: ANNABA | AJ1: O-E-BOUAGHI | AK1: OUARGLA | AL1: SAIDA | AM1: RELIZANE | AN1: MASCARA | AO1: EULMA | AP1: DJELFA | AQ1: LAGHOUAT | AR1: AIN-LARBAA | AS1: BEJAIA | AT1: TLEMCEN | AU1: ISSERS | AV1: AIN-EL-KEBIRA | AW1: MAATKAS | AX1: AIT-ZMENZER
A2: Fonction et Grade | B2: Indemnité | C2: Heb | D2: DA / Km | E2: Rest | J2: ALGER | K2: 0 | L2: 50 | N2: 100 | O2: 70 | P2: 80 | Q2: 120 | R2: 60 | S2: 49 | T2: 30 | U2: 103 | V2: 203 | W2: 432 | X2: 452 | Y2: 502 | Z2: 532 | AA2: 235 | AB2: 431 | AC2: 300 | AD2: 359 | AE2: 248 | AF2: 435 | AG2: 425 | AH2: 510 | AI2: 600 | AJ2: 500 | AK2: 800 | AL2: 455 | AM2: 302 | AN2: 380 | AO2: 330 | AP2: 300 | AQ2: 410 | AR2: 464 | AS2: 250 | AT2: 520 | AU2: 63 | AW2: 128 | AX2: 120
A3: SM Arbitre National | B3: 3500 | C3: 2500 | D3: 7 | E3: 1000 | J3: BLIDA | K3: 50 | L3: 0 | N3: 70 | O3: 60 | P3: 50 | Q3: 70 | R3: 105 | S3: 88 | T3: 70 | U3: 168 | V3: 159 | W3: 382 | X3: 407 | Y3: 460 | Z3: 492 | AA3: 258 | AB3: 461 | AC3: 330 | AD3: 389 | AE3: 302 | AF3: 490 | AG3: 395 | AH3: 540 | AI3: 630 | AJ3: 530 | AK3: 714 | AL3: 410 | AM3: 255 | AN3: 337 | AO3: 360 | AP3: 260 | AQ3: 370 | AW3: 193
A4: SM Arbitre Federal | B4: 3000 | J4: BOUFARIK | M4: 0 | N4: 85 | O4: 65 | P4: 65 | Q4: 85 | R4: 80 | S4: 76 | T4: 65 | U4: 153 | V4: 174 | W4: 397 | X4: 405 | Y4: 467 | AA4: 244 | AB4: 451 | AC4: 307 | AF4: 476 | AK4: 728 | AO4: 337 | AR4: 420 | AT4: 489 | AW4: 178
A5: SM Arbitre Regional | B5: 2500 | J5: CHERCHELL | K5: 100 | L5: 70 | M5: 85 | N5: 0 | S5: 141
A6: JG Arbitre National | B6: 1500 | J6: TIPAZA | K6: 70 | L6: 60 | M6: 65 | O6: 0 | Q6: 75 | S6: 110 | X6: 476 | AA6: 364 | AB6: 459 | AD6: 428 | AF6: 504
A7: JG Arbitre Federal | B7: 1500 | J7: HADJOUT | K7: 80 | L7: 50 | M7: 65 | P7: 0 | Q7: 70 | R7: 140 | U7: 187
A8: JG Arbitre Regional | B8: 1500 | J8: MILIANA | K8: 120 | L8: 70 | M8: 85 | O8: 75 | P8: 70 | Q8: 0 | S8: 161 | U8: 223 | V8: 100 | W8: 335 | X8: 335 | Y8: 393 | AA8: 328 | AC8: 374 | AE8: 305 | AF8: 552 | AH8: 630 | AO8: 404 | AW8: 248
A9: CG Arbitre National | B9: 1200 | J9: SI-MUSTAPHA | K9: 60 | L9: 105 | M9: 80 | P9: 140 | R9: 0 | U9: 48 | V9: 259 | W9: 482 | X9: 498 | AF9: 382 | AH9: 461 | AK9: 920 | AO9: 290 | AX9: 66
A10: CG Arbitre Federal | B10: 1200 | J10: BOUMERDES | K10: 49 | L10: =1232/7/2 -> 88 | M10: 76 | N10: 141 | O10: 110 | Q10: 161 | S10: 0 | U10: 65 | W10: 470 | X10: 495 | Y10: 542 | AA10: 188 | AB10: 390 | AC10: 250 | AE10: 266 | AF10: 400 | AO10: 280 | AQ10: 441
A11: CG Arbitre Regional | B11: 1200 | J11: BOUDOUAOU | K11: 30 | L11: 70 | M11: 65 | T11: 0
A12: MG Arbitre National | B12: 1200 | J12: TIZI-OUZOU | K12: 103 | L12: 168 | M12: 153 | P12: 187 | Q12: 223 | R12: 48 | S12: 65 | U12: 0 | V12: 327 | AA12: 220 | AB12: 390 | AC12: 290 | AE12: 260 | AF12: 428 | AO12: 320 | AU12: 46 | AW12: 25
A13: MG Arbitre Federal | B13: 1200 | J13: CHLEF | K13: 203 | L13: 159 | M13: 174 | Q13: 100 | R13: 259 | U13: 327 | V13: 0 | W13: 223 | X13: 242 | Y13: 293 | AA13: 411 | AC13: 480 | AD13: 490 | AE13: 319 | AF13: 599 | AG13: 586 | AL13: 236 | AM13: 89 | AN13: 153 | AP13: 344 | AR13: 283 | AT13: 325
A14: MG Arbitre Regional | B14: 1200 | J14: ORAN | K14: 432 | L14: 382 | M14: 397 | Q14: 325 | R14: 482 | S14: 470 | V14: 223 | W14: 0 | X14: 83 | Y14: 71 | AA14: 638 | AC14: 703 | AE14: 542 | AF14: 770 | AK14: 905 | AL14: 182 | AM14: 132 | AN14: 102 | AO14: 736 | AR14: 60 | AT14: 176
A15: SD Arbitre National | B15: 1500 | J15: SIDI-BEL-ABBES | K15: 452 | L15: 407 | M15: 405 | O15: 476 | Q15: 335 | R15: 498 | S15: 495 | V15: 242 | W15: 83 | X15: 0 | Y15: 65 | AA15: 657 | AB15: 853 | AC15: 722 | AE15: 569 | AI15: 1009 | AK15: 949 | AL15: 99 | AM15: 137 | AN15: 89 | AO15: 819 | AR15: 45 | AT15: 93
A16: SD Arbitre Federal | B16: 1500 | J16: TEMOUCHENT | K16: 502 | L16: 460 | M16: 467 | S16: 542 | V16: 293 | W16: 71 | X16: 65 | Y16: 0 | AA16: 671 | AK16: 977 | AL16: 185 | AR16: 70 | AT16: 76
A17: SD Arbitre Regional | B17: 1500 | J17: BENI-SAF | K17: 532 | L17: 492 | Z17: 0 | AM17: 203
A18: JF Arbitre National | B18: 1200 | J18: BBA | K18: 235 | L18: 258 | M18: 244 | O18: 364 | Q18: 328 | S18: 188 | U18: 220 | V18: 411 | W18: 638 | X18: 657 | Y18: 671 | AA18: 0 | AB18: 202 | AC18: 65 | AD18: 202 | AE18: 60 | AF18: 230 | AG18: 259 | AH18: 285 | AI18: 352 | AO18: 95 | AS18: 170 | AV18: 100 | AW18: 245
A19: JF Arbitre Federal | B19: 1200 | J19: CONSTANTINE | K19: 431 | L19: 461 | M19: 451 | O19: 459 | S19: 390 | U19: 390 | X19: 853 | AA19: 202 | AB19: 0 | AC19: 137 | AD19: 146 | AE19: 256 | AF19: 120 | AG19: 242 | AH19: 89 | AI19: 156 | AJ19: 85 | AK19: 630 | AO19: 105 | AS19: 100 | AW19: 415
A20: JF Arbitre Regional | B20: 1200 | J20: SETIF | K20: 300 | L20: 330 | M20: 307 | Q20: 374 | U20: 290 | V20: 480 | W20: 703 | X20: 722 | AA20: 65 | AB20: 137 | AC20: 0 | AD20: 137 | AE20: 126 | AF20: 165 | AG20: 194 | AH20: 220 | AI20: 287 | AJ20: 205 | AK20: 582 | AR20: 760 | AS20: 120 | AT20: 772 | AV20: 30 | AW20: 315
A21: CF Arbitre National | B21: 1200 | J21: JIJEL | K21: 359 | L21: 389 | O21: 428 | V21: 490 | AA21: 202 | AB21: 146 | AC21: 137 | AD21: 0 | AE21: 266 | AF21: 265 | AH21: 153 | AI21: 255 | AS21: 110
A22: CF Arbitre Federal | B22: 1200 | J22: MSILA | K22: 248 | L22: 302 | Q22: 305 | S22: 266 | U22: 260 | V22: 319 | W22: 542 | X22: 569 | AA22: 60 | AB22: 256 | AC22: 126 | AD22: 266 | AE22: 0 | AF22: 158 | AH22: 345 | AI22: 412 | AV22: 169 | AW22: 285
A23: CF Arbitre Regional | B23: 1200 | J23: BATNA | K23: 435 | L23: 490 | M23: 476 | O23: 504 | Q23: 552 | R23: 382 | S23: 400 | U23: 428 | V23: 599 | W23: 770 | AA23: 230 | AB23: 120 | AC23: 165 | AD23: 265 | AE23: 158 | AF23: 0 | AG23: 123 | AH23: 208 | AI23: 254 | AJ23: 140 | AK23: 511 | AO23: 120 | AW23: 453
A24: MF Arbitre National | B24: 1200 | J24: BISKRA | K24: 425 | L24: 395 | V24: 586 | AA24: 259 | AB24: 242 | AC24: 194 | AF24: 123 | AG24: 0 | AH24: 331
A25: MF Arbitre Federal | B25: 1200 | J25: SKIKDA | K25: 510 | L25: 540 | Q25: 630 | R25: 461 | AA25: 285 | AB25: 89 | AC25: 220 | AD25: 153 | AE25: 345 | AF25: 208 | AG25: 331 | AH25: 0 | AI25: 104 | AJ25: 177 | AK25: 730 | AO25: 190 | AS25: 250
A26: MF Arbitre Regional | B26: 1200 | J26: ANNABA | K26: 600 | L26: 630 | AA26: 352 | AB26: 156 | AC26: 287 | AD26: 255 | AE26: 412 | AF26: 254 | AH26: 104 | AI26: 0 | AO26: 285
A27: SM Assistant National | B27: 1500 | J27: O-E-BOUAGHI | K27: 500 | L27: 530 | AB27: 85 | AC27: 205 | AF27: 140 | AH27: 177 | AJ27: 0
A28: SM Assistant Federal | B28: 1500 | J28: OUARGLA | K28: 800 | L28: 714 | M28: 728 | R28: 920 | W28: 905 | X28: 949 | Y28: 977 | AB28: 630 | AC28: 582 | AF28: 511 | AH28: 730 | AK28: 0 | AQ28: 390 | AR28: 936
A29: SM Assistant Regional | B29: 1500 | J29: SAIDA | K29: 455 | L29: 410 | V29: 236 | W29: 182 | X29: 99 | Y29: 185 | AL29: 0 | AN29: 80 | AR29: 143
A30: JG Assistant National | B30: 1000 | J30: RELIZANE | K30: 302 | L30: 255 | U30: 416 | V30: 89 | W30: 132 | X30: 137 | Z30: 203 | AD30: 581 | AF30: 609 | AL30: 139 | AM30: 0 | AN30: 65
A31: JG Assistant Federal | B31: 1000 | J31: MASCARA | K31: 380 | L31: 337 | V31: 153 | W31: 102 | X31: 89 | AL31: 80 | AM31: 65 | AN31: 0 | AT31: 204
A32: JG Assistant Regional | B32: 1000 | J32: EULMA | K32: 330 | L32: 360 | M32: 337 | Q32: 404 | R32: 290 | S32: 280 | U32: 320 | W32: 736 | X32: 819 | AA32: 95 | AB32: 105 | AF32: 120 | AH32: 190 | AI32: 285 | AO32: 0 | AR32: 793 | AV32: 50 | AW32: 345
A33: CG Assistant National | B33: 1000 | J33: DJELFA | K33: 300 | L33: 260 | V33: 344 | AQ33: 110
A34: CG Assistant Federal | B34: 1000 | J34: LAGHOUAT | K34: 410 | L34: 370 | S34: 441 | AK34: 390 | AP34: 110
A35: CG Assistant Regional | B35: 1000 | J35: AIN-LARBAA | K35: 464 | M35: 420 | V35: 283 | W35: 60 | X35: 45 | Y35: 70 | AC35: 760 | AK35: 936 | AL35: 143 | AO35: 793 | AT35: 105
A36: MG Assistant National | B36: 1000 | J36: BEJAIA | K36: 250 | AA36: 170 | AB36: 100 | AC36: 120 | AD36: 110 | AH36: 250
A37: MG Assistant Federal | B37: 1000 | J37: TLEMCEN | K37: 520 | M37: 489 | V37: 325 | W37: 176 | X37: 96 | Y37: 76 | AC37: 772 | AN37: 204 | AR37: 105
A38: MG Assistant Regional | B38: 1000 | J38: ISSERS | K38: 63 | U38: 46 | AW38: 71 | AX38: 64
A39: SD Assistant National | B39: 1000 | J39: AIN-EL-KEBIRA | AA39: 100 | AC39: 30 | AE39: 169 | AO39: 50
A40: SD Assistant Federal | B40: 1000 | J40: MAATKAS | K40: 128 | L40: 193 | M40: 178 | Q40: 248 | U40: 25 | AA40: 245 | AB40: 415 | AC40: 315 | AE40: 285 | AF40: 453 | AO40: 345 | AU40: 71
A41: SD Assistant Regional | B41: 1000 | J41: AIT-ZMENZER | K41: 120 | R41: 66 | AU41: 64
A42: JF Assistant National | B42: 1000
A43: JF Assistant Federal | B43: 1000
A44: JF Assistant Regional | B44: 1000
A45: CF Assistant National | B45: 1000
A46: CF Assistant Federal | B46: 1000
A47: CF Assistant Regional | B47: 1000
A48: MF Assistant National | B48: 1000
A49: MF Assistant Federal | B49: 1000
A50: MF Assistant Regional | B50: 1000
A51: SM Commissaire Technique | B51: 1800
A52: SD Commissaire Technique | B52: 1200
A53: JG Commissaire Technique | B53: 1200
A54: JF Commissaire Technique | B54: 1200
A55: CG Commissaire Technique | B55: 1200
A56: CF Commissaire Technique | B56: 1200
A57: MG Commissaire Technique | B57: 1200
A58: MF Commissaire Technique | B58: 1200
A59: SM Président Comité Organisation Technique | B59: 2000
A60: SM Président Jury d'Appel | B60: 2000
A61: SM Membre Comité Organisation Technique | B61: 2000
A62: SM Membre Jury d'Appel | B62: 2000
A63: SD Président Comité Organisation Technique | B63: 2000
A64: SD Président Jury d'Appel | B64: 2000
A65: SD Membre Comité Organisation Technique | B65: 2000
A66: SD Membre Jury d'Appel | B66: 2000
H75: Total Dépense | J75: =SUM(BELKHAM!T105) -> 12290

Sheet AAAARésumé
A1: Nom | B1: Montant | C1: Nom | D1: Nbr Match | F1: Rang | H1: Montant | J1: Nom | K1: Nbr Match
C3: =A3 -> 0 | F3: 1 | H3: =LARGE(B3:B179,1) ->  | J3: =VLOOKUP(H3,$B$3:$C$179,2,0) ->  | K3: =VLOOKUP(J3,$C$3:$D$179,2,0) -> 
C4: =A4 -> 0 | F4: 2 | H4: =LARGE($B$3:$B$179,2) ->  | J4: =VLOOKUP(H4,$B$3:$C$179,2,0) ->  | K4: =VLOOKUP(J4,$C$3:$D$179,2,0) -> 
C5: =A5 -> 0 | F5: 3 | H5: =LARGE($B$3:$B$179,3) -> 
C6: 0 | F6: 4 | H6: =LARGE($B$3:$B$179,4) -> 
C7: 0 | F7: 5 | H7: =LARGE($B$3:$B$179,5) -> 
C8: 0 | F8: 6 | H8: =LARGE($B$3:$B$179,6) -> 
C9: 0 | F9: 7 | H9: =LARGE($B$3:$B$179,7) -> 
C10: 0 | F10: 8 | H10: =LARGE($B$3:$B$179,8) -> 
C11: 0 | F11: 9 | H11: =LARGE($B$3:$B$179,9) -> 
C12: 0 | F12: 10 | H12: =LARGE($B$3:$B$179,10) -> 
C13: 0 | F13: 11 | H13: =LARGE($B$3:$B$179,11) -> 
C14: 0 | F14: 12 | H14: =LARGE($B$3:$B$179,12) -> 
C15: 0 | F15: 13 | H15: =LARGE($B$3:$B$179,13) -> 
C16: 0 | F16: 14 | H16: =LARGE($B$3:$B$179,14) -> 
C17: 0 | F17: 15 | H17: =LARGE($B$3:$B$179,15) -> 
C18: 0 | F18: 16 | H18: =LARGE($B$3:$B$179,16) -> 
C19: 0 | F19: 17 | H19: =LARGE($B$3:$B$179,17) -> 
C20: 0 | F20: 18 | H20: =LARGE($B$3:$B$179,18) -> 
C21: 0 | F21: 19 | H21: =LARGE($B$3:$B$179,19) -> 
C22: 0 | F22: 20 | H22: =LARGE($B$3:$B$179,20) -> 
C23: 0 | F23: 21 | H23: =LARGE($B$3:$B$179,21) -> 
C24: 0 | F24: 22 | H24: =LARGE($B$3:$B$179,22) -> 
C25: 0 | F25: 23 | H25: =LARGE($B$3:$B$179,23) -> 
C26: 0 | F26: 24 | H26: =LARGE($B$3:$B$179,24) -> 
C27: 0 | F27: 25 | H27: =LARGE($B$3:$B$179,25) -> 
C28: 0 | F28: 26 | H28: =LARGE($B$3:$B$179,26) -> 
C29: 0 | F29: 27 | H29: =LARGE($B$3:$B$179,27) -> 
C30: 0 | F30: 28 | H30: =LARGE($B$3:$B$179,28) -> 
C31: 0 | F31: 29 | H31: =LARGE($B$3:$B$179,29) -> 
C32: 0 | F32: 30 | H32: =LARGE($B$3:$B$179,30) -> 
C33: 0 | F33: 31 | H33: =LARGE($B$3:$B$179,31) -> 
C34: 0 | F34: 32 | H34: =LARGE($B$3:$B$179,32) -> 
C35: 0 | F35: 33 | H35: =LARGE($B$3:$B$179,33) -> 
C36: 0 | F36: 34 | H36: =LARGE($B$3:$B$179,34) -> 
C37: 0 | F37: 35 | H37: =LARGE($B$3:$B$179,35) -> 
C38: 0 | F38: 36 | H38: =LARGE($B$3:$B$179,36) -> 
C39: 0 | F39: 37 | H39: =LARGE($B$3:$B$179,37) -> 
C40: 0 | F40: 38 | H40: =LARGE($B$3:$B$179,38) -> 
C41: 0 | F41: 39 | H41: =LARGE($B$3:$B$179,39) -> 
C42: 0 | F42: 40 | H42: =LARGE($B$3:$B$179,40) -> 
C43: 0 | F43: 41 | H43: =LARGE($B$3:$B$179,41) -> 
C44: 0 | F44: 42 | H44: =LARGE($B$3:$B$179,42) -> 
C45: 0 | F45: 43 | H45: =LARGE($B$3:$B$179,43) -> 
C46: 0 | F46: 44 | H46: =LARGE($B$3:$B$179,44) -> 
C47: 0 | F47: 45 | H47: =LARGE($B$3:$B$179,45) -> 
C48: 0 | F48: 46 | H48: =LARGE($B$3:$B$179,46) -> 
C49: 0 | F49: 47 | H49: =LARGE($B$3:$B$179,47) -> 
C50: 0 | F50: 48 | H50: =LARGE($B$3:$B$179,48) -> 
C51: 0 | F51: 49 | H51: =LARGE($B$3:$B$179,49) -> 
C52: 0 | F52: 50 | H52: =LARGE($B$3:$B$179,50) -> 
C53: 0 | F53: 51 | H53: =LARGE($B$3:$B$179,51) -> 
C54: 0 | F54: 52 | H54: =LARGE($B$3:$B$179,52) -> 
C55: 0 | F55: 53 | H55: =LARGE($B$3:$B$179,53) -> 
C56: 0 | F56: 54 | H56: =LARGE($B$3:$B$179,54) -> 
C57: 0 | F57: 55 | H57: =LARGE($B$3:$B$179,55) -> 
C58: 0 | F58: 56 | H58: =LARGE($B$3:$B$179,56) -> 
C59: 0 | F59: 57 | H59: =LARGE($B$3:$B$179,57) -> 
C60: 0 | F60: 58 | H60: =LARGE($B$3:$B$179,58) -> 
C61: 0 | F61: 59 | H61: =LARGE($B$3:$B$179,59) -> 
C62: 0 | F62: 60 | H62: =LARGE($B$3:$B$179,60) -> 
C63: 0 | F63: 61 | H63: =LARGE($B$3:$B$179,61) -> 
C64: 0 | F64: 62 | H64: =LARGE($B$3:$B$179,62) -> 
C65: 0 | F65: 63 | H65: =LARGE($B$3:$B$179,63) -> 
C66: 0 | F66: 64 | H66: =LARGE($B$3:$B$179,64) -> 
C67: 0 | F67: 65 | H67: =LARGE($B$3:$B$179,65) -> 
C68: 0 | F68: 66 | H68: =LARGE($B$3:$B$179,66) ->  | J68: =VLOOKUP(H68,$B$3:$C$179,2,0) ->  | K68: =VLOOKUP(J68,$C$3:$D$179,2,0) -> 
C69: =A69 -> 0 | F69: 67 | H69: =LARGE($B$3:$B$179,67) -> 
C70: 0 | F70: 68 | H70: =LARGE($B$3:$B$179,68) -> 
C71: 0 | F71: 69 | H71: =LARGE($B$3:$B$179,69) -> 
C72: 0 | F72: 70 | H72: =LARGE($B$3:$B$179,70) -> 
C73: 0 | F73: 71 | H73: =LARGE($B$3:$B$179,71) -> 
C74: 0 | F74: 72 | H74: =LARGE($B$3:$B$179,72) -> 
C75: 0 | F75: 73 | H75: =LARGE($B$3:$B$179,73) -> 
C76: 0 | F76: 74 | H76: =LARGE($B$3:$B$179,74) -> 
C77: 0 | F77: 75 | H77: =LARGE($B$3:$B$179,75) -> 
C78: 0 | F78: 76 | H78: =LARGE($B$3:$B$179,76) -> 
C79: 0 | F79: 77 | H79: =LARGE($B$3:$B$179,77) -> 
C80: 0 | F80: 78 | H80: =LARGE($B$3:$B$179,78) -> 
C81: 0 | F81: 79 | H81: =LARGE($B$3:$B$179,79) -> 
C82: 0 | F82: 80 | H82: =LARGE($B$3:$B$179,80) -> 
C83: 0 | F83: 81 | H83: =LARGE($B$3:$B$179,81) -> 
C84: 0 | F84: 82 | H84: =LARGE($B$3:$B$179,82) -> 
C85: 0 | F85: 83 | H85: =LARGE($B$3:$B$179,83) -> 
C86: 0 | F86: 84 | H86: =LARGE($B$3:$B$179,84) -> 
C87: 0 | F87: 85 | H87: =LARGE($B$3:$B$179,85) -> 
C88: 0 | F88: 86 | H88: =LARGE($B$3:$B$179,86) -> 
C89: 0 | F89: 87 | H89: =LARGE($B$3:$B$179,87) -> 
C90: 0 | F90: 88 | H90: =LARGE($B$3:$B$179,88) -> 
C91: 0 | F91: 89 | H91: =LARGE($B$3:$B$179,89) -> 
C92: 0 | F92: 90 | H92: =LARGE($B$3:$B$179,90) -> 
C93: 0 | F93: 91 | H93: =LARGE($B$3:$B$179,91) -> 
C94: 0 | F94: 92 | H94: =LARGE($B$3:$B$179,92) -> 
C95: 0 | F95: 93 | H95: =LARGE($B$3:$B$179,93) -> 
C96: 0 | F96: 94 | H96: =LARGE($B$3:$B$179,94) -> 
C97: 0 | F97: 95 | H97: =LARGE($B$3:$B$179,95) -> 
C98: 0 | F98: 96 | H98: =LARGE($B$3:$B$179,96) -> 
C99: 0 | F99: 97 | H99: =LARGE($B$3:$B$179,97) -> 
C100: 0 | F100: 98 | H100: =LARGE($B$3:$B$179,98) -> 
C101: 0 | F101: 99 | H101: =LARGE($B$3:$B$179,99) -> 
C102: 0 | F102: 100 | H102: =LARGE($B$3:$B$179,100) -> 
C103: 0 | F103: 101 | H103: =LARGE($B$3:$B$179,101) -> 
C104: 0 | F104: 102 | H104: =LARGE($B$3:$B$179,102) -> 
C105: 0 | F105: 103 | H105: =LARGE($B$3:$B$179,103) -> 
C106: 0 | F106: 104 | H106: =LARGE($B$3:$B$179,104) -> 
C107: 0 | F107: 105 | H107: =LARGE($B$3:$B$179,105) -> 
C108: 0 | F108: 106 | H108: =LARGE($B$3:$B$179,106) -> 
C109: 0 | F109: 107 | H109: =LARGE($B$3:$B$179,107) -> 
C110: 0 | F110: 108 | H110: =LARGE($B$3:$B$179,108) -> 
C111: 0 | F111: 109 | H111: =LARGE($B$3:$B$179,109) -> 
C112: 0 | F112: 110 | H112: =LARGE($B$3:$B$179,110) -> 
C113: 0 | F113: 111 | H113: =LARGE($B$3:$B$179,111) -> 
C114: 0 | F114: 112 | H114: =LARGE($B$3:$B$179,112) -> 
C115: 0 | F115: 113 | H115: =LARGE($B$3:$B$179,113) -> 
C116: 0 | F116: 114 | H116: =LARGE($B$3:$B$179,114) -> 
C117: 0 | F117: 115 | H117: =LARGE($B$3:$B$179,115) -> 
C118: 0 | F118: 116 | H118: =LARGE($B$3:$B$179,116) -> 
C119: 0 | F119: 117 | H119: =LARGE($B$3:$B$179,117) -> 
C120: 0 | F120: 118 | H120: =LARGE($B$3:$B$179,118) -> 
C121: 0 | F121: 119 | H121: =LARGE($B$3:$B$179,119) -> 
C122: 0 | F122: 120 | H122: =LARGE($B$3:$B$179,120) -> 
C123: 0 | F123: 121 | H123: =LARGE($B$3:$B$179,121) -> 
C124: 0 | F124: 122 | H124: =LARGE($B$3:$B$179,122) -> 
C125: 0 | F125: 123 | H125: =LARGE($B$3:$B$179,123) -> 
C126: 0 | F126: 124 | H126: =LARGE($B$3:$B$179,124) -> 
C127: 0 | F127: 125 | H127: =LARGE($B$3:$B$179,125) -> 
C128: 0 | F128: 126 | H128: =LARGE($B$3:$B$179,126) -> 
C129: 0 | F129: 127 | H129: =LARGE($B$3:$B$179,127) -> 
C130: 0 | F130: 128 | H130: =LARGE($B$3:$B$179,128) -> 
C131: 0 | F131: 129 | H131: =LARGE($B$3:$B$179,129) -> 
C132: 0 | F132: 130 | H132: =LARGE($B$3:$B$179,130) ->  | J132: =VLOOKUP(H132,$B$3:$C$179,2,0) ->  | K132: =VLOOKUP(J132,$C$3:$D$179,2,0) -> 
C133: =A133 -> 0 | F133: 131 | H133: =LARGE($B$3:$B$179,131) -> 
C134: 0 | F134: 132 | H134: =LARGE($B$3:$B$179,132) -> 
C135: 0 | F135: 133 | H135: =LARGE($B$3:$B$179,133) -> 
C136: 0 | F136: 134 | H136: =LARGE($B$3:$B$179,134) -> 
C137: 0 | F137: 135 | H137: =LARGE($B$3:$B$179,135) -> 
C138: 0 | F138: 136 | H138: =LARGE($B$3:$B$179,136) -> 
C139: 0 | F139: 137 | H139: =LARGE($B$3:$B$179,137) -> 
C140: 0 | F140: 138 | H140: =LARGE($B$3:$B$179,138) -> 
C141: 0 | F141: 139 | H141: =LARGE($B$3:$B$179,139) -> 
C142: 0 | F142: 140 | H142: =LARGE($B$3:$B$179,140) -> 
C143: 0 | F143: 141 | H143: =LARGE($B$3:$B$179,141) -> 
C144: 0 | F144: 142 | H144: =LARGE($B$3:$B$179,142) -> 
C145: 0 | F145: 143 | H145: =LARGE($B$3:$B$179,143) -> 
C146: 0 | F146: 144 | H146: =LARGE($B$3:$B$179,144) -> 
C147: 0 | F147: 145 | H147: =LARGE($B$3:$B$179,145) -> 
C148: 0 | F148: 146 | H148: =LARGE($B$3:$B$179,146) -> 
C149: 0 | F149: 147 | H149: =LARGE($B$3:$B$179,147) -> 
C150: 0 | F150: 148 | H150: =LARGE($B$3:$B$179,148) -> 
C151: 0 | F151: 149 | H151: =LARGE($B$3:$B$179,149) -> 
C152: 0 | F152: 150 | H152: =LARGE($B$3:$B$179,150) -> 
C153: 0 | F153: 151 | H153: =LARGE($B$3:$B$179,151) -> 
C154: 0 | F154: 152 | H154: =LARGE($B$3:$B$179,152) -> 
C155: 0 | F155: 153 | H155: =LARGE($B$3:$B$179,153) -> 
C156: 0 | F156: 154 | H156: =LARGE($B$3:$B$179,154) -> 
C157: 0 | F157: 155 | H157: =LARGE($B$3:$B$179,155) -> 
C158: 0 | F158: 156 | H158: =LARGE($B$3:$B$179,156) -> 
C159: 0 | F159: 157 | H159: =LARGE($B$3:$B$179,157) -> 
C160: 0 | F160: 158 | H160: =LARGE($B$3:$B$179,158) -> 
C161: 0 | F161: 159 | H161: =LARGE($B$3:$B$179,159) -> 
C162: 0 | F162: 160 | H162: =LARGE($B$3:$B$179,160) -> 
C163: 0 | F163: 161 | H163: =LARGE($B$3:$B$179,161) -> 
C164: 0 | F164: 162 | H164: =LARGE($B$3:$B$179,162) -> 
C165: 0 | F165: 163 | H165: =LARGE($B$3:$B$179,163) -> 
C166: 0 | F166: 164 | H166: =LARGE($B$3:$B$179,164) -> 
C167: 0 | F167: 165 | H167: =LARGE($B$3:$B$179,165) -> 
C168: 0 | F168: 166 | H168: =LARGE($B$3:$B$179,166) -> 
C169: 0 | F169: 167 | H169: =LARGE($B$3:$B$179,167) -> 
C170: 0 | F170: 168 | H170: =LARGE($B$3:$B$179,168) -> 
C171: 0 | F171: 169 | H171: =LARGE($B$3:$B$179,169) -> 
C172: 0 | F172: 170 | H172: =LARGE($B$3:$B$179,170) -> 
C173: 0 | F173: 171 | H173: =LARGE($B$3:$B$179,171) -> 
C174: 0 | F174: 172 | H174: =LARGE($B$3:$B$179,172) -> 
C175: 0 | F175: 173 | H175: =LARGE($B$3:$B$179,173) -> 
C176: 0 | F176: 174 | H176: =LARGE($B$3:$B$179,174) -> 
C177: 0 | F177: 175 | H177: =LARGE($B$3:$B$179,175) -> 
C178: 0 | F178: 176 | H178: =LARGE($B$3:$B$179,176) -> 
C179: 0 | F179: 177 | H179: =LARGE($B$3:$B$179,177) ->  | K179: =VLOOKUP(J179,$C$3:$D$179,2,0) -> 
A188: Total de la feuille | B188: =SUM(B3:B180) -> 0
A189: Total des feuilles | B189: =AAAADonnées!J75 -> 12290
A190: CONTROL | B190: =B188-AAAADonnées!J75 -> -12290 | C190: Compte est bon

Sheet BELKHAM
C1: BELKHAM | T1: FABB
A2: Nbr Match | C2: ALGER | T2: TRÉSORERIE
A3: =COUNTA(D6:D30,D43:D67) -> 1 | B3: Centre | H3: Arbitre | J3: National | S3: SAISON 2017/2018
A5: Journée | B5: Date | C5: Jour | D5: Rencontres | F5: Catégories | G5: Domiciliation | H5: Horaire | I5: Match | J5: Forfait | K5: Aéroport | L5: Transport | M5: par route 7 DA-Km | N5: Hébergement | O5: 2500 DA nuitée | P5: Restauration | Q5: 1000 DA | R5: Forfait suivant | S5: domiciliation | T5: Total | V5: Dist-Km | Y5: Heb. | Z5: Nbr. Repas | AA5: Repas
B6: 2018-10-12 | C6: =IF(B6<>"",LEFT(PROPER(TEXT(B6,"jjjj")),3),"") -> Ven | D6: IRBBA | E6: OSBBA | F6: SM | G6: BBA | H6: 16:00:00 | I6: =IF(F6<>"",VLOOKUP(X6,AAAADonnées!$A$3:$B$100,2,0),"") -> 3500 | L6: =IF(G6<>"",IF(V6<>0,AAAADonnées!$D$3*V6*2,""),"") -> 3290 | N6: =IF(Y6<>"",Y6*AAAADonnées!$C$3,"") -> 2500 | P6: =IF(Z6<>"",Z6*AAAADonnées!$E$3,AA6) -> 3000 | R6: =IF(AND(G6<>"",V6=0),500,"") ->  | T6: =SUM(I6:S6) -> 12290 | V6: =IFERROR(INDEX(TABLEDist,MATCH($C$2,Depart,0),MATCH(G6,Arrivee,0)),0) -> 235 | W6: =IF(H6<>"",H6/24,"") -> 0.02777777778 | X6: =CONCATENATE(F6," ",$H$3," ",$J$3) -> SM Arbitre National | Y6: =IF(V6<200,"",IF(V6<500,1,2)) -> 1 | Z6: =IF(Y6=1,3,IF(Y6=2,5,"")) -> 3 | AA6: =IF(AND(AND(Y6="",V6<>0,W6<0.0261)),1000,"") ->  | AB6: =IF(B6>0,B6,"") -> 2018-10-12 | AC6: =IF(AND(AB6<>"",AB6=Recap!B4),SUMPRODUCT(($B$6:$B$30=AB6)*($T$6:$T$30)),"") -> 12290
C7: =IF(B7<>"",LEFT(PROPER(TEXT(B7,"jjjj")),3),"") ->  | I7: =IF(F7<>"",VLOOKUP(X7,AAAADonnées!$A$3:$B$100,2,0),"") ->  | L7: =IF(G7<>"",IF(V7<>0,AAAADonnées!$D$3*V7*2,""),"") ->  | N7: =IF(Y7<>"",Y7*AAAADonnées!$C$3,"") ->  | P7: =IF(Z7<>"",Z7*AAAADonnées!$E$3,AA7) ->  | R7: =IF(AND(G7<>"",V7=0),500,"") ->  | T7: =SUM(I7:S7) -> 0 | V7: 0 | W7: =IF(H7<>"",H7/24,"") ->  | X7: Arbitre National | Y7: =IF(V7<200,"",IF(V7<500,1,2)) ->  | Z7: =IF(Y7=1,3,IF(Y7=2,5,"")) ->  | AA7: =IF(AND(AND(Y7="",V7<>0,W7<0.0261)),1000,"") ->  | AB7: =IF(B7>0,B7,"") ->  | AC7: =IF(AND(AB7<>"",AB7=Recap!B5),SUMPRODUCT(($B$6:$B$30=AB7)*($T$6:$T$30)),"") -> 
I8: =IF(F8<>"",VLOOKUP(X8,AAAADonnées!$A$3:$B$100,2,0),"") ->  | L8: =IF(G8<>"",IF(V8<>0,AAAADonnées!$D$3*V8*2,""),"") ->  | N8: =IF(Y8<>"",Y8*AAAADonnées!$C$3,"") ->  | P8: =IF(Z8<>"",Z8*AAAADonnées!$E$3,AA8) ->  | T8: =SUM(I8:S8) -> 0 | V8: 0 | X8: Arbitre National | AC8: =IF(AND(AB8<>"",AB8=Recap!B6),SUMPRODUCT(($B$6:$B$30=AB8)*($T$6:$T$30)),"") -> 
I9: =IF(F9<>"",VLOOKUP(X9,AAAADonnées!$A$3:$B$100,2,0),"") ->  | L9: =IF(G9<>"",IF(V9<>0,AAAADonnées!$D$3*V9*2,""),"") ->  | N9: =IF(Y9<>"",Y9*AAAADonnées!$C$3,"") ->  | P9: =IF(Z9<>"",Z9*AAAADonnées!$E$3,AA9) ->  | T9: 0 | V9: 0 | X9: Arbitre National | AC9: =IF(AND(AB9<>"",AB9=Recap!B7),SUMPRODUCT(($B$6:$B$30=AB9)*($T$6:$T$30)),"") -> 
I10: =IF(F10<>"",VLOOKUP(X10,AAAADonnées!$A$3:$B$100,2,0),"") ->  | L10: =IF(G10<>"",IF(V10<>0,AAAADonnées!$D$3*V10*2,""),"") ->  | N10: =IF(Y10<>"",Y10*AAAADonnées!$C$3,"") ->  | P10: =IF(Z10<>"",Z10*AAAADonnées!$E$3,AA10) ->  | T10: 0 | V10: 0 | X10: Arbitre National | AC10: =IF(AND(AB10<>"",AB10=Recap!B8),SUMPRODUCT(($B$6:$B$30=AB10)*($T$6:$T$30)),"") -> 
I11: =IF(F11<>"",VLOOKUP(X11,AAAADonnées!$A$3:$B$100,2,0),"") ->  | L11: =IF(G11<>"",IF(V11<>0,AAAADonnées!$D$3*V11*2,""),"") ->  | N11: =IF(Y11<>"",Y11*AAAADonnées!$C$3,"") ->  | P11: =IF(Z11<>"",Z11*AAAADonnées!$E$3,AA11) ->  | T11: 0 | V11: 0 | X11: Arbitre National | AC11: =IF(AND(AB11<>"",AB11=Recap!B9),SUMPRODUCT(($B$6:$B$30=AB11)*($T$6:$T$30)),"") -> 
I12: =IF(F12<>"",VLOOKUP(X12,AAAADonnées!$A$3:$B$100,2,0),"") ->  | L12: =IF(G12<>"",IF(V12<>0,AAAADonnées!$D$3*V12*2,""),"") ->  | N12: =IF(Y12<>"",Y12*AAAADonnées!$C$3,"") ->  | P12: =IF(Z12<>"",Z12*AAAADonnées!$E$3,AA12) ->  | T12: 0 | V12: 0 | X12: Arbitre National | AC12: =IF(AND(AB12<>"",AB12=Recap!B10),SUMPRODUCT(($B$6:$B$30=AB12)*($T$6:$T$30)),"") -> 
I13: =IF(F13<>"",VLOOKUP(X13,AAAADonnées!$A$3:$B$100,2,0),"") ->  | L13: =IF(G13<>"",IF(V13<>0,AAAADonnées!$D$3*V13*2,""),"") ->  | N13: =IF(Y13<>"",Y13*AAAADonnées!$C$3,"") ->  | P13: =IF(Z13<>"",Z13*AAAADonnées!$E$3,AA13) ->  | T13: 0 | V13: 0 | X13: Arbitre National | AC13: =IF(AND(AB13<>"",AB13=Recap!B11),SUMPRODUCT(($B$6:$B$30=AB13)*($T$6:$T$30)),"") -> 
I14: =IF(F14<>"",VLOOKUP(X14,AAAADonnées!$A$3:$B$100,2,0),"") ->  | L14: =IF(G14<>"",IF(V14<>0,AAAADonnées!$D$3*V14*2,""),"") ->  | N14: =IF(Y14<>"",Y14*AAAADonnées!$C$3,"") ->  | P14: =IF(Z14<>"",Z14*AAAADonnées!$E$3,AA14) ->  | T14: 0 | V14: 0 | X14: Arbitre National | Y14: =IF(V14<200,"",IF(V14<500,1,2)) ->  | Z14: =IF(Y14=1,3,IF(Y14=2,5,"")) ->  | AA14: =IF(AND(AND(Y14="",V14<>0,W14<0.0261)),1000,"") ->  | AC14: =IF(AND(AB14<>"",AB14=Recap!B12),SUMPRODUCT(($B$6:$B$30=AB14)*($T$6:$T$30)),"") -> 
I15: =IF(F15<>"",VLOOKUP(X15,AAAADonnées!$A$3:$B$100,2,0),"") ->  | L15: =IF(G15<>"",IF(V15<>0,AAAADonnées!$D$3*V15*2,""),"") ->  | N15: =IF(Y15<>"",Y15*AAAADonnées!$C$3,"") ->  | P15: =IF(Z15<>"",Z15*AAAADonnées!$E$3,AA15) ->  | T15: 0 | V15: 0 | X15: Arbitre National | AC15: =IF(AND(AB15<>"",AB15=Recap!B13),SUMPRODUCT(($B$6:$B$30=AB15)*($T$6:$T$30)),"") -> 
I16: =IF(F16<>"",VLOOKUP(X16,AAAADonnées!$A$3:$B$100,2,0),"") ->  | L16: =IF(G16<>"",IF(V16<>0,AAAADonnées!$D$3*V16*2,""),"") ->  | N16: =IF(Y16<>"",Y16*AAAADonnées!$C$3,"") ->  | P16: =IF(Z16<>"",Z16*AAAADonnées!$E$3,AA16) ->  | T16: 0 | V16: 0 | X16: Arbitre National | AC16: =IF(AND(AB16<>"",AB16=Recap!B14),SUMPRODUCT(($B$6:$B$30=AB16)*($T$6:$T$30)),"") -> 
I17: =IF(F17<>"",VLOOKUP(X17,AAAADonnées!$A$3:$B$100,2,0),"") ->  | L17: =IF(G17<>"",IF(V17<>0,AAAADonnées!$D$3*V17*2,""),"") ->  | N17: =IF(Y17<>"",Y17*AAAADonnées!$C$3,"") ->  | P17: =IF(Z17<>"",Z17*AAAADonnées!$E$3,AA17) ->  | T17: 0 | V17: 0 | X17: Arbitre National | AC17: =IF(AND(AB17<>"",AB17=Recap!B15),SUMPRODUCT(($B$6:$B$30=AB17)*($T$6:$T$30)),"") -> 
I18: =IF(F18<>"",VLOOKUP(X18,AAAADonnées!$A$3:$B$100,2,0),"") ->  | L18: =IF(G18<>"",IF(V18<>0,AAAADonnées!$D$3*V18*2,""),"") ->  | N18: =IF(Y18<>"",Y18*AAAADonnées!$C$3,"") ->  | P18: =IF(Z18<>"",Z18*AAAADonnées!$E$3,AA18) ->  | T18: 0 | V18: 0 | X18: Arbitre National | AC18: =IF(AND(AB18<>"",AB18=Recap!B16),SUMPRODUCT(($B$6:$B$30=AB18)*($T$6:$T$30)),"") -> 
I19: =IF(F19<>"",VLOOKUP(X19,AAAADonnées!$A$3:$B$100,2,0),"") ->  | L19: =IF(G19<>"",IF(V19<>0,AAAADonnées!$D$3*V19*2,""),"") ->  | N19: =IF(Y19<>"",Y19*AAAADonnées!$C$3,"") ->  | P19: =IF(Z19<>"",Z19*AAAADonnées!$E$3,AA19) ->  | T19: 0 | V19: 0 | X19: Arbitre National | AC19: =IF(AND(AB19<>"",AB19=Recap!B17),SUMPRODUCT(($B$6:$B$30=AB19)*($T$6:$T$30)),"") -> 
I20: =IF(F20<>"",VLOOKUP(X20,AAAADonnées!$A$3:$B$100,2,0),"") ->  | N20: =IF(Y20<>"",Y20*AAAADonnées!$C$3,"") ->  | P20: =IF(Z20<>"",Z20*AAAADonnées!$E$3,AA20) ->  | T20: 0 | V20: 0 | X20: Arbitre National | AC20: =IF(AND(AB20<>"",AB20=Recap!B18),SUMPRODUCT(($B$6:$B$30=AB20)*($T$6:$T$30)),"") -> 
I21: =IF(F21<>"",VLOOKUP(X21,AAAADonnées!$A$3:$B$100,2,0),"") ->  | L21: =IF(G21<>"",IF(V21<>0,AAAADonnées!$D$3*V21*2,""),"") ->  | N21: =IF(Y21<>"",Y21*AAAADonnées!$C$3,"") ->  | P21: =IF(Z21<>"",Z21*AAAADonnées!$E$3,AA21) ->  | T21: 0 | V21: 0 | X21: Arbitre National | AC21: =IF(AND(AB21<>"",AB21=Recap!B19),SUMPRODUCT(($B$6:$B$30=AB21)*($T$6:$T$30)),"") -> 
I22: =IF(F22<>"",VLOOKUP(X22,AAAADonnées!$A$3:$B$100,2,0),"") ->  | L22: =IF(G22<>"",IF(V22<>0,AAAADonnées!$D$3*V22*2,""),"") ->  | N22: =IF(Y22<>"",Y22*AAAADonnées!$C$3,"") ->  | P22: =IF(Z22<>"",Z22*AAAADonnées!$E$3,AA22) ->  | T22: 0 | V22: 0 | X22: Arbitre National | AC22: =IF(AND(AB22<>"",AB22=Recap!B20),SUMPRODUCT(($B$6:$B$30=AB22)*($T$6:$T$30)),"") -> 
I23: =IF(F23<>"",VLOOKUP(X23,AAAADonnées!$A$3:$B$100,2,0),"") ->  | L23: =IF(G23<>"",IF(V23<>0,AAAADonnées!$D$3*V23*2,""),"") ->  | N23: =IF(Y23<>"",Y23*AAAADonnées!$C$3,"") ->  | P23: =IF(Z23<>"",Z23*AAAADonnées!$E$3,AA23) ->  | T23: 0 | V23: 0 | X23: Arbitre National | AC23: =IF(AND(AB23<>"",AB23=Recap!B21),SUMPRODUCT(($B$6:$B$30=AB23)*($T$6:$T$30)),"") -> 
I24: =IF(F24<>"",VLOOKUP(X24,AAAADonnées!$A$3:$B$100,2,0),"") ->  | L24: =IF(G24<>"",IF(V24<>0,AAAADonnées!$D$3*V24*2,""),"") ->  | N24: =IF(Y24<>"",Y24*AAAADonnées!$C$3,"") ->  | P24: =IF(Z24<>"",Z24*AAAADonnées!$E$3,AA24) ->  | T24: 0 | V24: 0 | X24: Arbitre National | AC24: =IF(AND(AB24<>"",AB24=Recap!B22),SUMPRODUCT(($B$6:$B$30=AB24)*($T$6:$T$30)),"") -> 
I25: =IF(F25<>"",VLOOKUP(X25,AAAADonnées!$A$3:$B$100,2,0),"") ->  | L25: =IF(G25<>"",IF(V25<>0,AAAADonnées!$D$3*V25*2,""),"") ->  | N25: =IF(Y25<>"",Y25*AAAADonnées!$C$3,"") ->  | P25: =IF(Z25<>"",Z25*AAAADonnées!$E$3,AA25) ->  | T25: 0 | V25: 0 | X25: Arbitre National | AC25: =IF(AND(AB25<>"",AB25=Recap!B23),SUMPRODUCT(($B$6:$B$30=AB25)*($T$6:$T$30)),"") -> 
I26: =IF(F26<>"",VLOOKUP(X26,AAAADonnées!$A$3:$B$100,2,0),"") ->  | L26: =IF(G26<>"",IF(V26<>0,AAAADonnées!$D$3*V26*2,""),"") ->  | N26: =IF(Y26<>"",Y26*AAAADonnées!$C$3,"") ->  | P26: =IF(Z26<>"",Z26*AAAADonnées!$E$3,AA26) ->  | T26: 0 | V26: 0 | X26: Arbitre National | AC26: =IF(AND(AB26<>"",AB26=Recap!B24),SUMPRODUCT(($B$6:$B$30=AB26)*($T$6:$T$30)),"") -> 
I27: =IF(F27<>"",VLOOKUP(X27,AAAADonnées!$A$3:$B$100,2,0),"") ->  | L27: =IF(G27<>"",IF(V27<>0,AAAADonnées!$D$3*V27*2,""),"") ->  | N27: =IF(Y27<>"",Y27*AAAADonnées!$C$3,"") ->  | P27: =IF(Z27<>"",Z27*AAAADonnées!$E$3,AA27) ->  | T27: 0 | V27: 0 | X27: Arbitre National | AC27: =IF(AND(AB27<>"",AB27=Recap!B25),SUMPRODUCT(($B$6:$B$30=AB27)*($T$6:$T$30)),"") -> 
I28: =IF(F28<>"",VLOOKUP(X28,AAAADonnées!$A$3:$B$100,2,0),"") ->  | L28: =IF(G28<>"",IF(V28<>0,AAAADonnées!$D$3*V28*2,""),"") ->  | N28: =IF(Y28<>"",Y28*AAAADonnées!$C$3,"") ->  | P28: =IF(Z28<>"",Z28*AAAADonnées!$E$3,AA28) ->  | T28: 0 | V28: 0 | X28: Arbitre National | AC28: =IF(AND(AB28<>"",AB28=Recap!B26),SUMPRODUCT(($B$6:$B$30=AB28)*($T$6:$T$30)),"") -> 
C29: =IF(B29<>"",LEFT(PROPER(TEXT(B29,"jjjj")),3),"") ->  | I29: =IF(F29<>"",VLOOKUP(X29,AAAADonnées!$A$3:$B$100,2,0),"") ->  | L29: =IF(G29<>"",IF(V29<>0,AAAADonnées!$D$3*V29*2,""),"") ->  | N29: =IF(Y29<>"",Y29*AAAADonnées!$C$3,"") ->  | P29: =IF(Z29<>"",Z29*AAAADonnées!$E$3,AA29) ->  | T29: 0 | V29: 0 | X29: Arbitre National | AC29: =IF(AND(AB29<>"",AB29=Recap!B27),SUMPRODUCT(($B$6:$B$30=AB29)*($T$6:$T$30)),"") -> 
I30: =IF(F30<>"",VLOOKUP(X30,AAAADonnées!$A$3:$B$100,2,0),"") ->  | L30: =IF(G30<>"",IF(V30<>0,AAAADonnées!$D$3*V30*2,""),"") ->  | N30: =IF(Y30<>"",Y30*AAAADonnées!$C$3,"") ->  | P30: =IF(Z30<>"",Z30*AAAADonnées!$E$3,AA30) ->  | T30: =SUM(I30:S30) -> 0 | V30: 0 | X30: Arbitre National | AC30: =IF(AND(AB30<>"",AB30=Recap!B28),SUMPRODUCT(($B$6:$B$30=AB30)*($T$6:$T$30)),"") -> 
I31: =SUM(I6:I30) -> 3500 | J31: =SUM(J6:K30) -> 0 | L31: =SUM(L6:M30) -> 3290 | N31: =SUM(N6:O30) -> 2500 | P31: =SUM(P6:Q30) -> 3000 | R31: =SUM(R6:S30) -> 0 | T31: =SUM(T6:T30) -> 12290
A33: Mode de règlement: | F33: Arrêté à la somme de: | H33: =IF(F43="",IF(T31<>0,PROPER(CONCATENATE(ConvNumberLetter(T31)," Dinars")),""),"") -> Douze Mille Deux Cent Quatre-Vingt-Dix Dinars
H35: Le Président | M35: Le Trésorier | S35: l'Intéressé
C38: =C1 -> BELKHAM | T38: FABB
C39: =C2 -> ALGER | T39: TRÉSORERIE
H40: =H3 -> Arbitre | J40: =J3 -> National | S40: SAISON 2017/2018
A41: Report | I41: =I31 -> 3500 | J41: =J31 -> 0 | L41: =L31 -> 3290 | N41: =N31 -> 2500 | P41: =P31 -> 3000 | R41: =R31 -> 0 | T41: =T31 -> 12290
A42: Journée | B42: Date | C42: Jour | D42: Rencontres | F42: Catégories | G42: Domiciliation | H42: Horaire | I42: Match | J42: Forfait | K42: Aéroport | L42: Transport | M42: par route 7 DA-Km | N42: Hébergement | O42: 2500 DA nuitée | P42: Restauration | Q42: 1000 DA | R42: Forfait suivant | S42: domiciliation | T42: Total | V42: Dist - KM | Y42: Heb. | Z42: Nbr. Repas | AA42: Repas
C43: =IF(B43<>"",LEFT(PROPER(TEXT(B43,"jjjj")),3),"") ->  | I43: =IF(F43<>"",VLOOKUP(X43,AAAADonnées!$A$3:$B$100,2,0),"") ->  | L43: =IF(G43<>"",IF(V43<>0,AAAADonnées!$D$3*V43*2,""),"") ->  | N43: =IF(Y43<>"",Y43*AAAADonnées!$C$3,"") ->  | P43: =IF(Z43<>"",Z43*AAAADonnées!$E$3,AA43) ->  | R43: =IF(AND(G43<>"",V43=0),500,"") ->  | T43: =SUM(I43:S43) -> 0 | V43: =IFERROR(INDEX(TABLEDist,MATCH($C$2,Depart,0),MATCH(G43,Arrivee,0)),0) -> 0 | X43: =CONCATENATE(F43," ",$H$3," ",$J$3) -> Arbitre National | Y43: =IF(V43<200,"",IF(V43<500,1,2)) ->  | Z43: =IF(Y43=1,3,IF(Y43=2,5,"")) ->  | AA43: =IF(AND(AND(Y43="",V43<>0,W43<0.0261)),1000,"") -> 
C44: =IF(B44<>"",LEFT(PROPER(TEXT(B44,"jjjj")),3),"") ->  | I44: =IF(F44<>"",VLOOKUP(X44,AAAADonnées!$A$3:$B$100,2,0),"") ->  | L44: =IF(G44<>"",IF(V44<>0,AAAADonnées!$D$3*V44*2,""),"") ->  | N44: =IF(Y44<>"",Y44*AAAADonnées!$C$3,"") ->  | P44: =IF(Z44<>"",Z44*AAAADonnées!$E$3,AA44) ->  | R44: =IF(AND(G44<>"",V44=0),500,"") ->  | T44: =SUM(I44:S44) -> 0 | V44: 0 | X44: Arbitre National
I45: =IF(F45<>"",VLOOKUP(X45,AAAADonnées!$A$3:$B$100,2,0),"") ->  | L45: =IF(G45<>"",IF(V45<>0,AAAADonnées!$D$3*V45*2,""),"") ->  | N45: =IF(Y45<>"",Y45*AAAADonnées!$C$3,"") ->  | P45: =IF(Z45<>"",Z45*AAAADonnées!$E$3,AA45) ->  | T45: =SUM(I45:S45) -> 0 | V45: 0 | X45: Arbitre National
I46: =IF(F46<>"",VLOOKUP(X46,AAAADonnées!$A$3:$B$100,2,0),"") ->  | L46: =IF(G46<>"",IF(V46<>0,AAAADonnées!$D$3*V46*2,""),"") ->  | N46: =IF(Y46<>"",Y46*AAAADonnées!$C$3,"") ->  | P46: =IF(Z46<>"",Z46*AAAADonnées!$E$3,AA46) ->  | T46: 0 | V46: 0 | X46: Arbitre National | Y46: =IF(V46<200,"",IF(V46<500,1,2)) -> 
I47: =IF(F47<>"",VLOOKUP(X47,AAAADonnées!$A$3:$B$100,2,0),"") ->  | L47: =IF(G47<>"",IF(V47<>0,AAAADonnées!$D$3*V47*2,""),"") ->  | N47: =IF(Y47<>"",Y47*AAAADonnées!$C$3,"") ->  | P47: =IF(Z47<>"",Z47*AAAADonnées!$E$3,AA47) ->  | T47: 0 | V47: 0 | X47: Arbitre National
I48: =IF(F48<>"",VLOOKUP(X48,AAAADonnées!$A$3:$B$100,2,0),"") ->  | L48: =IF(G48<>"",IF(V48<>0,AAAADonnées!$D$3*V48*2,""),"") ->  | N48: =IF(Y48<>"",Y48*AAAADonnées!$C$3,"") ->  | P48: =IF(Z48<>"",Z48*AAAADonnées!$E$3,AA48) ->  | T48: 0 | V48: 0 | X48: Arbitre National
I49: =IF(F49<>"",VLOOKUP(X49,AAAADonnées!$A$3:$B$100,2,0),"") ->  | L49: =IF(G49<>"",IF(V49<>0,AAAADonnées!$D$3*V49*2,""),"") ->  | N49: =IF(Y49<>"",Y49*AAAADonnées!$C$3,"") ->  | P49: =IF(Z49<>"",Z49*AAAADonnées!$E$3,AA49) ->  | T49: 0 | V49: 0 | X49: Arbitre National
I50: =IF(F50<>"",VLOOKUP(X50,AAAADonnées!$A$3:$B$100,2,0),"") ->  | L50: =IF(G50<>"",IF(V50<>0,AAAADonnées!$D$3*V50*2,""),"") ->  | N50: =IF(Y50<>"",Y50*AAAADonnées!$C$3,"") ->  | P50: =IF(Z50<>"",Z50*AAAADonnées!$E$3,AA50) ->  | T50: 0 | V50: 0 | X50: Arbitre National
I51: =IF(F51<>"",VLOOKUP(X51,AAAADonnées!$A$3:$B$100,2,0),"") ->  | L51: =IF(G51<>"",IF(V51<>0,AAAADonnées!$D$3*V51*2,""),"") ->  | N51: =IF(Y51<>"",Y51*AAAADonnées!$C$3,"") ->  | P51: =IF(Z51<>"",Z51*AAAADonnées!$E$3,AA51) ->  | T51: 0 | V51: 0 | X51: Arbitre National
I52: =IF(F52<>"",VLOOKUP(X52,AAAADonnées!$A$3:$B$100,2,0),"") ->  | L52: =IF(G52<>"",IF(V52<>0,AAAADonnées!$D$3*V52*2,""),"") ->  | N52: =IF(Y52<>"",Y52*AAAADonnées!$C$3,"") ->  | P52: =IF(Z52<>"",Z52*AAAADonnées!$E$3,AA52) ->  | T52: 0 | V52: 0 | X52: Arbitre National
I53: =IF(F53<>"",VLOOKUP(X53,AAAADonnées!$A$3:$B$100,2,0),"") ->  | L53: =IF(G53<>"",IF(V53<>0,AAAADonnées!$D$3*V53*2,""),"") ->  | N53: =IF(Y53<>"",Y53*AAAADonnées!$C$3,"") ->  | P53: =IF(Z53<>"",Z53*AAAADonnées!$E$3,AA53) ->  | T53: 0 | V53: 0 | X53: Arbitre National
I54: =IF(F54<>"",VLOOKUP(X54,AAAADonnées!$A$3:$B$100,2,0),"") ->  | L54: =IF(G54<>"",IF(V54<>0,AAAADonnées!$D$3*V54*2,""),"") ->  | N54: =IF(Y54<>"",Y54*AAAADonnées!$C$3,"") ->  | P54: =IF(Z54<>"",Z54*AAAADonnées!$E$3,AA54) ->  | T54: 0 | V54: 0 | X54: Arbitre National
I55: =IF(F55<>"",VLOOKUP(X55,AAAADonnées!$A$3:$B$100,2,0),"") ->  | L55: =IF(G55<>"",IF(V55<>0,AAAADonnées!$D$3*V55*2,""),"") ->  | N55: =IF(Y55<>"",Y55*AAAADonnées!$C$3,"") ->  | P55: =IF(Z55<>"",Z55*AAAADonnées!$E$3,AA55) ->  | T55: 0 | V55: 0 | X55: Arbitre National
I56: =IF(F56<>"",VLOOKUP(X56,AAAADonnées!$A$3:$B$100,2,0),"") ->  | L56: =IF(G56<>"",IF(V56<>0,AAAADonnées!$D$3*V56*2,""),"") ->  | N56: =IF(Y56<>"",Y56*AAAADonnées!$C$3,"") ->  | P56: =IF(Z56<>"",Z56*AAAADonnées!$E$3,AA56) ->  | T56: 0 | V56: 0 | X56: Arbitre National
I57: =IF(F57<>"",VLOOKUP(X57,AAAADonnées!$A$3:$B$100,2,0),"") ->  | L57: =IF(G57<>"",IF(V57<>0,AAAADonnées!$D$3*V57*2,""),"") ->  | N57: =IF(Y57<>"",Y57*AAAADonnées!$C$3,"") ->  | P57: =IF(Z57<>"",Z57*AAAADonnées!$E$3,AA57) ->  | T57: 0 | V57: 0 | X57: Arbitre National
I58: =IF(F58<>"",VLOOKUP(X58,AAAADonnées!$A$3:$B$100,2,0),"") ->  | L58: =IF(G58<>"",IF(V58<>0,AAAADonnées!$D$3*V58*2,""),"") ->  | N58: =IF(Y58<>"",Y58*AAAADonnées!$C$3,"") ->  | P58: =IF(Z58<>"",Z58*AAAADonnées!$E$3,AA58) ->  | T58: 0 | V58: 0 | X58: Arbitre National
I59: =IF(F59<>"",VLOOKUP(X59,AAAADonnées!$A$3:$B$100,2,0),"") ->  | L59: =IF(G59<>"",IF(V59<>0,AAAADonnées!$D$3*V59*2,""),"") ->  | N59: =IF(Y59<>"",Y59*AAAADonnées!$C$3,"") ->  | P59: =IF(Z59<>"",Z59*AAAADonnées!$E$3,AA59) ->  | T59: 0 | V59: 0 | X59: Arbitre National
I60: =IF(F60<>"",VLOOKUP(X60,AAAADonnées!$A$3:$B$100,2,0),"") ->  | L60: =IF(G60<>"",IF(V60<>0,AAAADonnées!$D$3*V60*2,""),"") ->  | N60: =IF(Y60<>"",Y60*AAAADonnées!$C$3,"") ->  | P60: =IF(Z60<>"",Z60*AAAADonnées!$E$3,AA60) ->  | T60: 0 | V60: 0 | X60: Arbitre National
I61: =IF(F61<>"",VLOOKUP(X61,AAAADonnées!$A$3:$B$100,2,0),"") ->  | L61: =IF(G61<>"",IF(V61<>0,AAAADonnées!$D$3*V61*2,""),"") ->  | N61: =IF(Y61<>"",Y61*AAAADonnées!$C$3,"") ->  | P61: =IF(Z61<>"",Z61*AAAADonnées!$E$3,AA61) ->  | T61: 0 | V61: 0 | X61: Arbitre National
I62: =IF(F62<>"",VLOOKUP(X62,AAAADonnées!$A$3:$B$100,2,0),"") ->  | L62: =IF(G62<>"",IF(V62<>0,AAAADonnées!$D$3*V62*2,""),"") ->  | N62: =IF(Y62<>"",Y62*AAAADonnées!$C$3,"") ->  | P62: =IF(Z62<>"",Z62*AAAADonnées!$E$3,AA62) ->  | T62: 0 | V62: 0 | X62: Arbitre National
I63: =IF(F63<>"",VLOOKUP(X63,AAAADonnées!$A$3:$B$100,2,0),"") ->  | L63: =IF(G63<>"",IF(V63<>0,AAAADonnées!$D$3*V63*2,""),"") ->  | N63: =IF(Y63<>"",Y63*AAAADonnées!$C$3,"") ->  | P63: =IF(Z63<>"",Z63*AAAADonnées!$E$3,AA63) ->  | T63: 0 | V63: 0 | X63: Arbitre National
I64: =IF(F64<>"",VLOOKUP(X64,AAAADonnées!$A$3:$B$100,2,0),"") ->  | L64: =IF(G64<>"",IF(V64<>0,AAAADonnées!$D$3*V64*2,""),"") ->  | N64: =IF(Y64<>"",Y64*AAAADonnées!$C$3,"") ->  | P64: =IF(Z64<>"",Z64*AAAADonnées!$E$3,AA64) ->  | T64: 0 | V64: 0 | X64: Arbitre National
I65: =IF(F65<>"",VLOOKUP(X65,AAAADonnées!$A$3:$B$100,2,0),"") ->  | L65: =IF(G65<>"",IF(V65<>0,AAAADonnées!$D$3*V65*2,""),"") ->  | N65: =IF(Y65<>"",Y65*AAAADonnées!$C$3,"") ->  | P65: =IF(Z65<>"",Z65*AAAADonnées!$E$3,AA65) ->  | T65: 0 | V65: 0 | X65: Arbitre National
I66: =IF(F66<>"",VLOOKUP(X66,AAAADonnées!$A$3:$B$100,2,0),"") ->  | L66: =IF(G66<>"",IF(V66<>0,AAAADonnées!$D$3*V66*2,""),"") ->  | N66: =IF(Y66<>"",Y66*AAAADonnées!$C$3,"") ->  | P66: =IF(Z66<>"",Z66*AAAADonnées!$E$3,AA66) ->  | T66: 0 | V66: 0 | X66: Arbitre National
I67: =IF(F67<>"",VLOOKUP(X67,AAAADonnées!$A$3:$B$100,2,0),"") ->  | L67: =IF(G67<>"",IF(V67<>0,AAAADonnées!$D$3*V67*2,""),"") ->  | N67: =IF(Y67<>"",Y67*AAAADonnées!$C$3,"") ->  | P67: =IF(Z67<>"",Z67*AAAADonnées!$E$3,AA67) ->  | T67: =SUM(I67:S67) -> 0 | V67: 0 | X67: Arbitre National
I68: =SUM(I43:I67)+I31 -> 3500 | J68: =SUM(J43:K67)+J31 -> 0 | L68: =SUM(L43:M67)+L31 -> 3290 | N68: =SUM(N43:O67)+N31 -> 2500 | P68: =SUM(P43:Q67)+P31 -> 3000 | R68: =SUM(R43:S67)+R31 -> 0 | T68: =T31+SUM(T43:T67) -> 12290
A70: Mode de règlement: | G70: Arrêté à la somme de: | I70: =IF(F43<>"",PROPER(CONCATENATE(ConvNumberLetter(T68)," Dinars")),"") -> 
H72: Le Président | M72: Le Trésorier | S72: l'Intéressé
C75: =C38 -> BELKHAM | T75: FABB
C76: =C39 -> ALGER | T76: TRÉSORERIE
H77: =H40 -> Arbitre | J77: =J40 -> National | S77: SAISON 2017/2018
A78: Report | I78: =I68 -> 3500 | J78: =J68 -> 0 | L78: =L68 -> 3290 | N78: =N68 -> 2500 | P78: =P68 -> 3000 | R78: =R68 -> 0 | T78: =T68 -> 12290
A79: Journée | B79: Date | C79: Jour | D79: Rencontres | F79: Catégories | G79: Domiciliation | H79: Horaire | I79: Match | J79: Forfait | K79: Aéroport | L79: Transport | M79: par route 7 DA-Km | N79: Hébergement | O79: 2500 DA nuitée | P79: Restauration | Q79: 1000 DA | R79: Forfait suivant | S79: domiciliation | T79: Total | V79: Dist - KM | Y79: Heb. | Z79: Nbr. Repas | AA79: Repas
I80: =IF(F80<>"",VLOOKUP(X80,AAAADonnées!$A$3:$B$100,2,0),"") ->  | L80: =IF(G80<>"",IF(V80<>0,AAAADonnées!$D$3*V80*2,""),"") ->  | N80: =IF(Y80<>"",Y80*AAAADonnées!$C$3,"") ->  | P80: =IF(Z80<>"",Z80*AAAADonnées!$E$3,AA80) ->  | R80: =IF(AND(G80<>"",V80=0),500,"") ->  | T80: =SUM(I80:S80) -> 0 | V80: =IFERROR(INDEX(TABLEDist,MATCH($C$2,Depart,0),MATCH(G80,Arrivee,0)),0) -> 0 | W80: =IF(H80<>"",H80/24,"") ->  | X80: =CONCATENATE(F80," ",$H$3," ",$J$3) -> Arbitre National | Y80: =IF(V80<200,"",IF(V80<500,1,2)) ->  | Z80: =IF(Y80=1,3,IF(Y80=2,5,"")) ->  | AA80: =IF(AND(AND(Y80="",V80<>0,W80<0.0261)),1000,"") -> 
I81: =IF(F81<>"",VLOOKUP(X81,AAAADonnées!$A$3:$B$100,2,0),"") ->  | L81: =IF(G81<>"",IF(V81<>0,AAAADonnées!$D$3*V81*2,""),"") ->  | N81: =IF(Y81<>"",Y81*AAAADonnées!$C$3,"") ->  | P81: =IF(Z81<>"",Z81*AAAADonnées!$E$3,AA81) ->  | R81: =IF(AND(G81<>"",V81=0),500,"") ->  | T81: =SUM(I81:S81) -> 0 | V81: 0 | X81: Arbitre National | AA81: =IF(AND(AND(Y81="",V81<>0,W81<0.0261)),1000,"") -> 
I82: =IF(F82<>"",VLOOKUP(X82,AAAADonnées!$A$3:$B$100,2,0),"") ->  | L82: =IF(G82<>"",IF(V82<>0,AAAADonnées!$D$3*V82*2,""),"") ->  | N82: =IF(Y82<>"",Y82*AAAADonnées!$C$3,"") ->  | P82: =IF(Z82<>"",Z82*AAAADonnées!$E$3,AA82) ->  | T82: =SUM(I82:S82) -> 0 | V82: 0 | X82: Arbitre National
I83: =IF(F83<>"",VLOOKUP(X83,AAAADonnées!$A$3:$B$100,2,0),"") ->  | L83: =IF(G83<>"",IF(V83<>0,AAAADonnées!$D$3*V83*2,""),"") ->  | N83: =IF(Y83<>"",Y83*AAAADonnées!$C$3,"") ->  | P83: =IF(Z83<>"",Z83*AAAADonnées!$E$3,AA83) ->  | T83: 0 | V83: 0 | X83: Arbitre National
I84: =IF(F84<>"",VLOOKUP(X84,AAAADonnées!$A$3:$B$100,2,0),"") ->  | L84: =IF(G84<>"",IF(V84<>0,AAAADonnées!$D$3*V84*2,""),"") ->  | N84: =IF(Y84<>"",Y84*AAAADonnées!$C$3,"") ->  | P84: =IF(Z84<>"",Z84*AAAADonnées!$E$3,AA84) ->  | T84: 0 | V84: 0 | X84: Arbitre National
I85: =IF(F85<>"",VLOOKUP(X85,AAAADonnées!$A$3:$B$100,2,0),"") ->  | L85: =IF(G85<>"",IF(V85<>0,AAAADonnées!$D$3*V85*2,""),"") ->  | N85: =IF(Y85<>"",Y85*AAAADonnées!$C$3,"") ->  | P85: =IF(Z85<>"",Z85*AAAADonnées!$E$3,AA85) ->  | T85: 0 | V85: 0 | X85: Arbitre National
I86: =IF(F86<>"",VLOOKUP(X86,AAAADonnées!$A$3:$B$100,2,0),"") ->  | L86: =IF(G86<>"",IF(V86<>0,AAAADonnées!$D$3*V86*2,""),"") ->  | N86: =IF(Y86<>"",Y86*AAAADonnées!$C$3,"") ->  | P86: =IF(Z86<>"",Z86*AAAADonnées!$E$3,AA86) ->  | T86: 0 | V86: 0 | X86: Arbitre National
I87: =IF(F87<>"",VLOOKUP(X87,AAAADonnées!$A$3:$B$100,2,0),"") ->  | L87: =IF(G87<>"",IF(V87<>0,AAAADonnées!$D$3*V87*2,""),"") ->  | N87: =IF(Y87<>"",Y87*AAAADonnées!$C$3,"") ->  | P87: =IF(Z87<>"",Z87*AAAADonnées!$E$3,AA87) ->  | T87: 0 | V87: 0 | X87: Arbitre National
I88: =IF(F88<>"",VLOOKUP(X88,AAAADonnées!$A$3:$B$100,2,0),"") ->  | L88: =IF(G88<>"",IF(V88<>0,AAAADonnées!$D$3*V88*2,""),"") ->  | N88: =IF(Y88<>"",Y88*AAAADonnées!$C$3,"") ->  | P88: =IF(Z88<>"",Z88*AAAADonnées!$E$3,AA88) ->  | T88: 0 | V88: 0 | X88: Arbitre National
I89: =IF(F89<>"",VLOOKUP(X89,AAAADonnées!$A$3:$B$100,2,0),"") ->  | L89: =IF(G89<>"",IF(V89<>0,AAAADonnées!$D$3*V89*2,""),"") ->  | N89: =IF(Y89<>"",Y89*AAAADonnées!$C$3,"") ->  | P89: =IF(Z89<>"",Z89*AAAADonnées!$E$3,AA89) ->  | T89: 0 | V89: 0 | X89: Arbitre National
I90: =IF(F90<>"",VLOOKUP(X90,AAAADonnées!$A$3:$B$100,2,0),"") ->  | L90: =IF(G90<>"",IF(V90<>0,AAAADonnées!$D$3*V90*2,""),"") ->  | N90: =IF(Y90<>"",Y90*AAAADonnées!$C$3,"") ->  | P90: =IF(Z90<>"",Z90*AAAADonnées!$E$3,AA90) ->  | T90: 0 | V90: 0 | X90: Arbitre National
I91: =IF(F91<>"",VLOOKUP(X91,AAAADonnées!$A$3:$B$100,2,0),"") ->  | L91: =IF(G91<>"",IF(V91<>0,AAAADonnées!$D$3*V91*2,""),"") ->  | N91: =IF(Y91<>"",Y91*AAAADonnées!$C$3,"") ->  | P91: =IF(Z91<>"",Z91*AAAADonnées!$E$3,AA91) ->  | T91: 0 | V91: 0 | X91: Arbitre National
I92: =IF(F92<>"",VLOOKUP(X92,AAAADonnées!$A$3:$B$100,2,0),"") ->  | L92: =IF(G92<>"",IF(V92<>0,AAAADonnées!$D$3*V92*2,""),"") ->  | N92: =IF(Y92<>"",Y92*AAAADonnées!$C$3,"") ->  | P92: =IF(Z92<>"",Z92*AAAADonnées!$E$3,AA92) ->  | T92: 0 | V92: 0 | X92: Arbitre National
I93: =IF(F93<>"",VLOOKUP(X93,AAAADonnées!$A$3:$B$100,2,0),"") ->  | L93: =IF(G93<>"",IF(V93<>0,AAAADonnées!$D$3*V93*2,""),"") ->  | N93: =IF(Y93<>"",Y93*AAAADonnées!$C$3,"") ->  | P93: =IF(Z93<>"",Z93*AAAADonnées!$E$3,AA93) ->  | T93: 0 | V93: 0 | X93: Arbitre National
I94: =IF(F94<>"",VLOOKUP(X94,AAAADonnées!$A$3:$B$100,2,0),"") ->  | L94: =IF(G94<>"",IF(V94<>0,AAAADonnées!$D$3*V94*2,""),"") ->  | N94: =IF(Y94<>"",Y94*AAAADonnées!$C$3,"") ->  | P94: =IF(Z94<>"",Z94*AAAADonnées!$E$3,AA94) ->  | T94: 0 | V94: 0 | X94: Arbitre National
I95: =IF(F95<>"",VLOOKUP(X95,AAAADonnées!$A$3:$B$100,2,0),"") ->  | L95: =IF(G95<>"",IF(V95<>0,AAAADonnées!$D$3*V95*2,""),"") ->  | N95: =IF(Y95<>"",Y95*AAAADonnées!$C$3,"") ->  | P95: =IF(Z95<>"",Z95*AAAADonnées!$E$3,AA95) ->  | T95: 0 | V95: 0 | X95: Arbitre National
I96: =IF(F96<>"",VLOOKUP(X96,AAAADonnées!$A$3:$B$100,2,0),"") ->  | L96: =IF(G96<>"",IF(V96<>0,AAAADonnées!$D$3*V96*2,""),"") ->  | N96: =IF(Y96<>"",Y96*AAAADonnées!$C$3,"") ->  | P96: =IF(Z96<>"",Z96*AAAADonnées!$E$3,AA96) ->  | T96: 0 | V96: 0 | X96: Arbitre National
I97: =IF(F97<>"",VLOOKUP(X97,AAAADonnées!$A$3:$B$100,2,0),"") ->  | L97: =IF(G97<>"",IF(V97<>0,AAAADonnées!$D$3*V97*2,""),"") ->  | N97: =IF(Y97<>"",Y97*AAAADonnées!$C$3,"") ->  | P97: =IF(Z97<>"",Z97*AAAADonnées!$E$3,AA97) ->  | T97: 0 | V97: 0 | X97: Arbitre National
I98: =IF(F98<>"",VLOOKUP(X98,AAAADonnées!$A$3:$B$100,2,0),"") ->  | L98: =IF(G98<>"",IF(V98<>0,AAAADonnées!$D$3*V98*2,""),"") ->  | N98: =IF(Y98<>"",Y98*AAAADonnées!$C$3,"") ->  | P98: =IF(Z98<>"",Z98*AAAADonnées!$E$3,AA98) ->  | T98: 0 | V98: 0 | X98: Arbitre National
I99: =IF(F99<>"",VLOOKUP(X99,AAAADonnées!$A$3:$B$100,2,0),"") ->  | L99: =IF(G99<>"",IF(V99<>0,AAAADonnées!$D$3*V99*2,""),"") ->  | N99: =IF(Y99<>"",Y99*AAAADonnées!$C$3,"") ->  | P99: =IF(Z99<>"",Z99*AAAADonnées!$E$3,AA99) ->  | T99: 0 | V99: 0 | X99: Arbitre National
I100: =IF(F100<>"",VLOOKUP(X100,AAAADonnées!$A$3:$B$100,2,0),"") ->  | L100: =IF(G100<>"",IF(V100<>0,AAAADonnées!$D$3*V100*2,""),"") ->  | N100: =IF(Y100<>"",Y100*AAAADonnées!$C$3,"") ->  | P100: =IF(Z100<>"",Z100*AAAADonnées!$E$3,AA100) ->  | T100: 0 | V100: 0 | X100: Arbitre National
I101: =IF(F101<>"",VLOOKUP(X101,AAAADonnées!$A$3:$B$100,2,0),"") ->  | L101: =IF(G101<>"",IF(V101<>0,AAAADonnées!$D$3*V101*2,""),"") ->  | N101: =IF(Y101<>"",Y101*AAAADonnées!$C$3,"") ->  | P101: =IF(Z101<>"",Z101*AAAADonnées!$E$3,AA101) ->  | T101: 0 | V101: 0 | X101: Arbitre National
I102: =IF(F102<>"",VLOOKUP(X102,AAAADonnées!$A$3:$B$100,2,0),"") ->  | L102: =IF(G102<>"",IF(V102<>0,AAAADonnées!$D$3*V102*2,""),"") ->  | N102: =IF(Y102<>"",Y102*AAAADonnées!$C$3,"") ->  | P102: =IF(Z102<>"",Z102*AAAADonnées!$E$3,AA102) ->  | T102: 0 | V102: 0 | X102: Arbitre National
I103: =IF(F103<>"",VLOOKUP(X103,AAAADonnées!$A$3:$B$100,2,0),"") ->  | L103: =IF(G103<>"",IF(V103<>0,AAAADonnées!$D$3*V103*2,""),"") ->  | N103: =IF(Y103<>"",Y103*AAAADonnées!$C$3,"") ->  | P103: =IF(Z103<>"",Z103*AAAADonnées!$E$3,AA103) ->  | T103: 0 | V103: 0 | X103: Arbitre National
I104: =IF(F104<>"",VLOOKUP(X104,AAAADonnées!$A$3:$B$100,2,0),"") ->  | L104: =IF(G104<>"",IF(V104<>0,AAAADonnées!$D$3*V104*2,""),"") ->  | N104: =IF(Y104<>"",Y104*AAAADonnées!$C$3,"") ->  | P104: =IF(Z104<>"",Z104*AAAADonnées!$E$3,AA104) ->  | T104: =SUM(I104:S104) -> 0 | V104: 0 | X104: Arbitre National | Y104: =IF(V104<200,"",IF(V104<500,1,2)) ->  | Z104: =IF(Y104=1,3,IF(Y104=2,5,"")) -> 
I105: =SUM(I80:I104)+I68 -> 3500 | J105: =SUM(J80:K104)+J68 -> 0 | L105: =SUM(L80:M104)+L68 -> 3290 | N105: =SUM(N80:O104)+N68 -> 2500 | P105: =SUM(P80:Q104)+P68 -> 3000 | R105: =SUM(R80:S104)+R68 -> 0 | T105: =T68+SUM(T80:T104) -> 12290
A107: Mode de règlement: | G107: Arrêté à la somme de: | I107: =IF(F80<>"",PROPER(CONCATENATE(ConvNumberLetter(T105)," Dinars")),"") -> 
H109: Le Président | M109: Le Trésorier | S109: l'Intéressé

Sheet HAMMADA
C1: HAMMADA | T1: FABB
A2: Nbr Match | C2: CONSTANTINE | T2: TRÉSORERIE
A3: =COUNTA(D6:D30,D43:D67) -> 1 | B3: Est | H3: Arbitre | J3: National | S3: SAISON 2017/2018
A5: Journée | B5: Date | C5: Jour | D5: Rencontres | F5: Catégories | G5: Domiciliation | H5: Horaire | I5: Match | J5: Forfait | K5: Aéroport | L5: Transport | M5: par route 7 DA-Km | N5: Hébergement | O5: 2500 DA nuitée | P5: Restauration | Q5: 1000 DA | R5: Forfait suivant | S5: domiciliation | T5: Total | V5: Dist-Km | Y5: Heb. | Z5: Nbr. Repas | AA5: Repas
B6: 2018-10-12 | C6: =IF(B6<>"",LEFT(PROPER(TEXT(B6,"jjjj")),3),"") -> Ven | D6: IRBBA | E6: OSBBA | F6: SM | G6: BBA | H6: 16:00:00 | I6: =IF(F6<>"",VLOOKUP(X6,AAAADonnées!$A$3:$B$100,2,0),"") -> 3500 | L6: =IF(G6<>"",IF(V6<>0,AAAADonnées!$D$3*V6*2,""),"") -> 2828 | N6: =IF(Y6<>"",Y6*AAAADonnées!$C$3,"") -> 2500 | P6: =IF(Z6<>"",Z6*AAAADonnées!$E$3,AA6) -> 3000 | R6: =IF(AND(G6<>"",V6=0),500,"") ->  | T6: =SUM(I6:S6) -> 11828 | V6: =IFERROR(INDEX(TABLEDist,MATCH($C$2,Depart,0),MATCH(G6,Arrivee,0)),0) -> 202 | W6: =IF(H6<>"",H6/24,"") -> 0.02777777778 | X6: =CONCATENATE(F6," ",$H$3," ",$J$3) -> SM Arbitre National | Y6: =IF(V6<200,"",IF(V6<500,1,2)) -> 1 | Z6: =IF(Y6=1,3,IF(Y6=2,5,"")) -> 3 | AA6: =IF(AND(AND(Y6="",V6<>0,W6<0.0261)),1000,"") ->  | AB6: =IF(B6>0,B6,"") -> 2018-10-12 | AC6: =IF(AND(AB6<>"",AB6=Recap!B4),SUMPRODUCT(($B$6:$B$30=AB6)*($T$6:$T$30)),"") -> 11828
C7: =IF(B7<>"",LEFT(PROPER(TEXT(B7,"jjjj")),3),"") ->  | I7: =IF(F7<>"",VLOOKUP(X7,AAAADonnées!$A$3:$B$100,2,0),"") ->  | L7: =IF(G7<>"",IF(V7<>0,AAAADonnées!$D$3*V7*2,""),"") ->  | N7: =IF(Y7<>"",Y7*AAAADonnées!$C$3,"") ->  | P7: =IF(Z7<>"",Z7*AAAADonnées!$E$3,AA7) ->  | R7: =IF(AND(G7<>"",V7=0),500,"") ->  | T7: =SUM(I7:S7) -> 0 | V7: 0 | W7: =IF(H7<>"",H7/24,"") ->  | X7: Arbitre National | Y7: =IF(V7<200,"",IF(V7<500,1,2)) ->  | Z7: =IF(Y7=1,3,IF(Y7=2,5,"")) ->  | AA7: =IF(AND(AND(Y7="",V7<>0,W7<0.0261)),1000,"") ->  | AB7: =IF(B7>0,B7,"") ->  | AC7: =IF(AND(AB7<>"",AB7=Recap!B5),SUMPRODUCT(($B$6:$B$30=AB7)*($T$6:$T$30)),"") -> 
I8: =IF(F8<>"",VLOOKUP(X8,AAAADonnées!$A$3:$B$100,2,0),"") ->  | L8: =IF(G8<>"",IF(V8<>0,AAAADonnées!$D$3*V8*2,""),"") ->  | N8: =IF(Y8<>"",Y8*AAAADonnées!$C$3,"") ->  | P8: =IF(Z8<>"",Z8*AAAADonnées!$E$3,AA8) ->  | T8: =SUM(I8:S8) -> 0 | V8: 0 | X8: Arbitre National | AC8: =IF(AND(AB8<>"",AB8=Recap!B6),SUMPRODUCT(($B$6:$B$30=AB8)*($T$6:$T$30)),"") -> 
I9: =IF(F9<>"",VLOOKUP(X9,AAAADonnées!$A$3:$B$100,2,0),"") ->  | L9: =IF(G9<>"",IF(V9<>0,AAAADonnées!$D$3*V9*2,""),"") ->  | N9: =IF(Y9<>"",Y9*AAAADonnées!$C$3,"") ->  | P9: =IF(Z9<>"",Z9*AAAADonnées!$E$3,AA9) ->  | T9: 0 | V9: 0 | X9: Arbitre National | AC9: =IF(AND(AB9<>"",AB9=Recap!B7),SUMPRODUCT(($B$6:$B$30=AB9)*($T$6:$T$30)),"") -> 
I10: =IF(F10<>"",VLOOKUP(X10,AAAADonnées!$A$3:$B$100,2,0),"") ->  | L10: =IF(G10<>"",IF(V10<>0,AAAADonnées!$D$3*V10*2,""),"") ->  | N10: =IF(Y10<>"",Y10*AAAADonnées!$C$3,"") ->  | P10: =IF(Z10<>"",Z10*AAAADonnées!$E$3,AA10) ->  | T10: 0 | V10: 0 | X10: Arbitre National | AC10: =IF(AND(AB10<>"",AB10=Recap!B8),SUMPRODUCT(($B$6:$B$30=AB10)*($T$6:$T$30)),"") -> 
I11: =IF(F11<>"",VLOOKUP(X11,AAAADonnées!$A$3:$B$100,2,0),"") ->  | L11: =IF(G11<>"",IF(V11<>0,AAAADonnées!$D$3*V11*2,""),"") ->  | N11: =IF(Y11<>"",Y11*AAAADonnées!$C$3,"") ->  | P11: =IF(Z11<>"",Z11*AAAADonnées!$E$3,AA11) ->  | T11: 0 | V11: 0 | X11: Arbitre National | AC11: =IF(AND(AB11<>"",AB11=Recap!B9),SUMPRODUCT(($B$6:$B$30=AB11)*($T$6:$T$30)),"") -> 
I12: =IF(F12<>"",VLOOKUP(X12,AAAADonnées!$A$3:$B$100,2,0),"") ->  | L12: =IF(G12<>"",IF(V12<>0,AAAADonnées!$D$3*V12*2,""),"") ->  | N12: =IF(Y12<>"",Y12*AAAADonnées!$C$3,"") ->  | P12: =IF(Z12<>"",Z12*AAAADonnées!$E$3,AA12) ->  | T12: 0 | V12: 0 | X12: Arbitre National | AC12: =IF(AND(AB12<>"",AB12=Recap!B10),SUMPRODUCT(($B$6:$B$30=AB12)*($T$6:$T$30)),"") -> 
I13: =IF(F13<>"",VLOOKUP(X13,AAAADonnées!$A$3:$B$100,2,0),"") ->  | L13: =IF(G13<>"",IF(V13<>0,AAAADonnées!$D$3*V13*2,""),"") ->  | N13: =IF(Y13<>"",Y13*AAAADonnées!$C$3,"") ->  | P13: =IF(Z13<>"",Z13*AAAADonnées!$E$3,AA13) ->  | T13: 0 | V13: 0 | X13: Arbitre National | AC13: =IF(AND(AB13<>"",AB13=Recap!B11),SUMPRODUCT(($B$6:$B$30=AB13)*($T$6:$T$30)),"") -> 
I14: =IF(F14<>"",VLOOKUP(X14,AAAADonnées!$A$3:$B$100,2,0),"") ->  | L14: =IF(G14<>"",IF(V14<>0,AAAADonnées!$D$3*V14*2,""),"") ->  | N14: =IF(Y14<>"",Y14*AAAADonnées!$C$3,"") ->  | P14: =IF(Z14<>"",Z14*AAAADonnées!$E$3,AA14) ->  | T14: 0 | V14: 0 | X14: Arbitre National | AC14: =IF(AND(AB14<>"",AB14=Recap!B12),SUMPRODUCT(($B$6:$B$30=AB14)*($T$6:$T$30)),"") -> 
I15: =IF(F15<>"",VLOOKUP(X15,AAAADonnées!$A$3:$B$100,2,0),"") ->  | L15: =IF(G15<>"",IF(V15<>0,AAAADonnées!$D$3*V15*2,""),"") ->  | N15: =IF(Y15<>"",Y15*AAAADonnées!$C$3,"") ->  | P15: =IF(Z15<>"",Z15*AAAADonnées!$E$3,AA15) ->  | T15: 0 | V15: 0 | X15: Arbitre National | AC15: =IF(AND(AB15<>"",AB15=Recap!B13),SUMPRODUCT(($B$6:$B$30=AB15)*($T$6:$T$30)),"") -> 
I16: =IF(F16<>"",VLOOKUP(X16,AAAADonnées!$A$3:$B$100,2,0),"") ->  | L16: =IF(G16<>"",IF(V16<>0,AAAADonnées!$D$3*V16*2,""),"") ->  | N16: =IF(Y16<>"",Y16*AAAADonnées!$C$3,"") ->  | P16: =IF(Z16<>"",Z16*AAAADonnées!$E$3,AA16) ->  | T16: 0 | V16: 0 | X16: Arbitre National | AC16: =IF(AND(AB16<>"",AB16=Recap!B14),SUMPRODUCT(($B$6:$B$30=AB16)*($T$6:$T$30)),"") -> 
I17: =IF(F17<>"",VLOOKUP(X17,AAAADonnées!$A$3:$B$100,2,0),"") ->  | L17: =IF(G17<>"",IF(V17<>0,AAAADonnées!$D$3*V17*2,""),"") ->  | N17: =IF(Y17<>"",Y17*AAAADonnées!$C$3,"") ->  | P17: =IF(Z17<>"",Z17*AAAADonnées!$E$3,AA17) ->  | T17: 0 | V17: 0 | X17: Arbitre National | AC17: =IF(AND(AB17<>"",AB17=Recap!B15),SUMPRODUCT(($B$6:$B$30=AB17)*($T$6:$T$30)),"") -> 
I18: =IF(F18<>"",VLOOKUP(X18,AAAADonnées!$A$3:$B$100,2,0),"") ->  | L18: =IF(G18<>"",IF(V18<>0,AAAADonnées!$D$3*V18*2,""),"") ->  | N18: =IF(Y18<>"",Y18*AAAADonnées!$C$3,"") ->  | P18: =IF(Z18<>"",Z18*AAAADonnées!$E$3,AA18) ->  | T18: 0 | V18: 0 | X18: Arbitre National | AC18: =IF(AND(AB18<>"",AB18=Recap!B16),SUMPRODUCT(($B$6:$B$30=AB18)*($T$6:$T$30)),"") -> 
I19: =IF(F19<>"",VLOOKUP(X19,AAAADonnées!$A$3:$B$100,2,0),"") ->  | L19: =IF(G19<>"",IF(V19<>0,AAAADonnées!$D$3*V19*2,""),"") ->  | N19: =IF(Y19<>"",Y19*AAAADonnées!$C$3,"") ->  | P19: =IF(Z19<>"",Z19*AAAADonnées!$E$3,AA19) ->  | T19: 0 | V19: 0 | X19: Arbitre National | AC19: =IF(AND(AB19<>"",AB19=Recap!B17),SUMPRODUCT(($B$6:$B$30=AB19)*($T$6:$T$30)),"") -> 
I20: =IF(F20<>"",VLOOKUP(X20,AAAADonnées!$A$3:$B$100,2,0),"") ->  | N20: =IF(Y20<>"",Y20*AAAADonnées!$C$3,"") ->  | P20: =IF(Z20<>"",Z20*AAAADonnées!$E$3,AA20) ->  | T20: 0 | V20: 0 | X20: Arbitre National | AC20: =IF(AND(AB20<>"",AB20=Recap!B18),SUMPRODUCT(($B$6:$B$30=AB20)*($T$6:$T$30)),"") -> 
I21: =IF(F21<>"",VLOOKUP(X21,AAAADonnées!$A$3:$B$100,2,0),"") ->  | L21: =IF(G21<>"",IF(V21<>0,AAAADonnées!$D$3*V21*2,""),"") ->  | N21: =IF(Y21<>"",Y21*AAAADonnées!$C$3,"") ->  | P21: =IF(Z21<>"",Z21*AAAADonnées!$E$3,AA21) ->  | T21: 0 | V21: 0 | X21: Arbitre National | AC21: =IF(AND(AB21<>"",AB21=Recap!B19),SUMPRODUCT(($B$6:$B$30=AB21)*($T$6:$T$30)),"") -> 
I22: =IF(F22<>"",VLOOKUP(X22,AAAADonnées!$A$3:$B$100,2,0),"") ->  | L22: =IF(G22<>"",IF(V22<>0,AAAADonnées!$D$3*V22*2,""),"") ->  | N22: =IF(Y22<>"",Y22*AAAADonnées!$C$3,"") ->  | P22: =IF(Z22<>"",Z22*AAAADonnées!$E$3,AA22) ->  | T22: 0 | V22: 0 | X22: Arbitre National | AC22: =IF(AND(AB22<>"",AB22=Recap!B20),SUMPRODUCT(($B$6:$B$30=AB22)*($T$6:$T$30)),"") -> 
I23: =IF(F23<>"",VLOOKUP(X23,AAAADonnées!$A$3:$B$100,2,0),"") ->  | L23: =IF(G23<>"",IF(V23<>0,AAAADonnées!$D$3*V23*2,""),"") ->  | N23: =IF(Y23<>"",Y23*AAAADonnées!$C$3,"") ->  | P23: =IF(Z23<>"",Z23*AAAADonnées!$E$3,AA23) ->  | T23: 0 | V23: 0 | X23: Arbitre National | AC23: =IF(AND(AB23<>"",AB23=Recap!B21),SUMPRODUCT(($B$6:$B$30=AB23)*($T$6:$T$30)),"") -> 
I24: =IF(F24<>"",VLOOKUP(X24,AAAADonnées!$A$3:$B$100,2,0),"") ->  | L24: =IF(G24<>"",IF(V24<>0,AAAADonnées!$D$3*V24*2,""),"") ->  | N24: =IF(Y24<>"",Y24*AAAADonnées!$C$3,"") ->  | P24: =IF(Z24<>"",Z24*AAAADonnées!$E$3,AA24) ->  | T24: 0 | V24: 0 | X24: Arbitre National | AC24: =IF(AND(AB24<>"",AB24=Recap!B22),SUMPRODUCT(($B$6:$B$30=AB24)*($T$6:$T$30)),"") -> 
I25: =IF(F25<>"",VLOOKUP(X25,AAAADonnées!$A$3:$B$100,2,0),"") ->  | L25: =IF(G25<>"",IF(V25<>0,AAAADonnées!$D$3*V25*2,""),"") ->  | N25: =IF(Y25<>"",Y25*AAAADonnées!$C$3,"") ->  | P25: =IF(Z25<>"",Z25*AAAADonnées!$E$3,AA25) ->  | T25: 0 | V25: 0 | X25: Arbitre National | AC25: =IF(AND(AB25<>"",AB25=Recap!B23),SUMPRODUCT(($B$6:$B$30=AB25)*($T$6:$T$30)),"") -> 
I26: =IF(F26<>"",VLOOKUP(X26,AAAADonnées!$A$3:$B$100,2,0),"") ->  | L26: =IF(G26<>"",IF(V26<>0,AAAADonnées!$D$3*V26*2,""),"") ->  | N26: =IF(Y26<>"",Y26*AAAADonnées!$C$3,"") ->  | P26: =IF(Z26<>"",Z26*AAAADonnées!$E$3,AA26) ->  | T26: 0 | V26: 0 | X26: Arbitre National | AC26: =IF(AND(AB26<>"",AB26=Recap!B24),SUMPRODUCT(($B$6:$B$30=AB26)*($T$6:$T$30)),"") -> 
I27: =IF(F27<>"",VLOOKUP(X27,AAAADonnées!$A$3:$B$100,2,0),"") ->  | L27: =IF(G27<>"",IF(V27<>0,AAAADonnées!$D$3*V27*2,""),"") ->  | N27: =IF(Y27<>"",Y27*AAAADonnées!$C$3,"") ->  | P27: =IF(Z27<>"",Z27*AAAADonnées!$E$3,AA27) ->  | T27: 0 | V27: 0 | X27: Arbitre National | AC27: =IF(AND(AB27<>"",AB27=Recap!B25),SUMPRODUCT(($B$6:$B$30=AB27)*($T$6:$T$30)),"") -> 
I28: =IF(F28<>"",VLOOKUP(X28,AAAADonnées!$A$3:$B$100,2,0),"") ->  | L28: =IF(G28<>"",IF(V28<>0,AAAADonnées!$D$3*V28*2,""),"") ->  | N28: =IF(Y28<>"",Y28*AAAADonnées!$C$3,"") ->  | P28: =IF(Z28<>"",Z28*AAAADonnées!$E$3,AA28) ->  | T28: 0 | V28: 0 | X28: Arbitre National | AC28: =IF(AND(AB28<>"",AB28=Recap!B26),SUMPRODUCT(($B$6:$B$30=AB28)*($T$6:$T$30)),"") -> 
C29: =IF(B29<>"",LEFT(PROPER(TEXT(B29,"jjjj")),3),"") ->  | I29: =IF(F29<>"",VLOOKUP(X29,AAAADonnées!$A$3:$B$100,2,0),"") ->  | L29: =IF(G29<>"",IF(V29<>0,AAAADonnées!$D$3*V29*2,""),"") ->  | N29: =IF(Y29<>"",Y29*AAAADonnées!$C$3,"") ->  | P29: =IF(Z29<>"",Z29*AAAADonnées!$E$3,AA29) ->  | T29: 0 | V29: 0 | X29: Arbitre National | AC29: =IF(AND(AB29<>"",AB29=Recap!B27),SUMPRODUCT(($B$6:$B$30=AB29)*($T$6:$T$30)),"") -> 
I30: =IF(F30<>"",VLOOKUP(X30,AAAADonnées!$A$3:$B$100,2,0),"") ->  | L30: =IF(G30<>"",IF(V30<>0,AAAADonnées!$D$3*V30*2,""),"") ->  | N30: =IF(Y30<>"",Y30*AAAADonnées!$C$3,"") ->  | P30: =IF(Z30<>"",Z30*AAAADonnées!$E$3,AA30) ->  | T30: =SUM(I30:S30) -> 0 | V30: 0 | X30: Arbitre National | AC30: =IF(AND(AB30<>"",AB30=Recap!B28),SUMPRODUCT(($B$6:$B$30=AB30)*($T$6:$T$30)),"") -> 
I31: =SUM(I6:I30) -> 3500 | J31: =SUM(J6:K30) -> 0 | L31: =SUM(L6:M30) -> 2828 | N31: =SUM(N6:O30) -> 2500 | P31: =SUM(P6:Q30) -> 3000 | R31: =SUM(R6:S30) -> 0 | T31: =SUM(T6:T30) -> 11828
A33: Mode de règlement: | F33: Arrêté à la somme de: | H33: =IF(F43="",IF(T31<>0,PROPER(CONCATENATE(ConvNumberLetter(T31)," Dinars")),""),"") -> Onze Mille Huit Cent Vingt-Huit Dinars
H35: Le Président | M35: Le Trésorier | S35: l'Intéressé
C38: =C1 -> HAMMADA | T38: FABB
C39: =C2 -> CONSTANTINE | T39: TRÉSORERIE
H40: =H3 -> Arbitre | J40: =J3 -> National | S40: SAISON 2017/2018
A41: Report | I41: =I31 -> 3500 | J41: =J31 -> 0 | L41: =L31 -> 2828 | N41: =N31 -> 2500 | P41: =P31 -> 3000 | R41: =R31 -> 0 | T41: =T31 -> 11828
A42: Journée | B42: Date | C42: Jour | D42: Rencontres | F42: Catégories | G42: Domiciliation | H42: Horaire | I42: Match | J42: Forfait | K42: Aéroport | L42: Transport | M42: par route 7 DA-Km | N42: Hébergement | O42: 2500 DA nuitée | P42: Restauration | Q42: 1000 DA | R42: Forfait suivant | S42: domiciliation | T42: Total | V42: Dist - KM | Y42: Heb. | Z42: Nbr. Repas | AA42: Repas
C43: =IF(B43<>"",LEFT(PROPER(TEXT(B43,"jjjj")),3),"") ->  | I43: =IF(F43<>"",VLOOKUP(X43,AAAADonnées!$A$3:$B$100,2,0),"") ->  | L43: =IF(G43<>"",IF(V43<>0,AAAADonnées!$D$3*V43*2,""),"") ->  | N43: =IF(Y43<>"",Y43*AAAADonnées!$C$3,"") ->  | P43: =IF(Z43<>"",Z43*AAAADonnées!$E$3,AA43) ->  | R43: =IF(AND(G43<>"",V43=0),500,"") ->  | T43: =SUM(I43:S43) -> 0 | V43: =IFERROR(INDEX(TABLEDist,MATCH($C$2,Depart,0),MATCH(G43,Arrivee,0)),0) -> 0 | X43: =CONCATENATE(F43," ",$H$3," ",$J$3) -> Arbitre National | Y43: =IF(V43<200,"",IF(V43<500,1,2)) ->  | Z43: =IF(Y43=1,3,IF(Y43=2,5,"")) ->  | AA43: =IF(AND(AND(Y43="",V43<>0,W43<0.0261)),1000,"") -> 
C44: =IF(B44<>"",LEFT(PROPER(TEXT(B44,"jjjj")),3),"") ->  | I44: =IF(F44<>"",VLOOKUP(X44,AAAADonnées!$A$3:$B$100,2,0),"") ->  | L44: =IF(G44<>"",IF(V44<>0,AAAADonnées!$D$3*V44*2,""),"") ->  | N44: =IF(Y44<>"",Y44*AAAADonnées!$C$3,"") ->  | P44: =IF(Z44<>"",Z44*AAAADonnées!$E$3,AA44) ->  | R44: =IF(AND(G44<>"",V44=0),500,"") ->  | T44: =SUM(I44:S44) -> 0 | V44: 0 | X44: Arbitre National
I45: =IF(F45<>"",VLOOKUP(X45,AAAADonnées!$A$3:$B$100,2,0),"") ->  | L45: =IF(G45<>"",IF(V45<>0,AAAADonnées!$D$3*V45*2,""),"") ->  | N45: =IF(Y45<>"",Y45*AAAADonnées!$C$3,"") ->  | P45: =IF(Z45<>"",Z45*AAAADonnées!$E$3,AA45) ->  | T45: =SUM(I45:S45) -> 0 | V45: 0 | X45: Arbitre National
I46: =IF(F46<>"",VLOOKUP(X46,AAAADonnées!$A$3:$B$100,2,0),"") ->  | L46: =IF(G46<>"",IF(V46<>0,AAAADonnées!$D$3*V46*2,""),"") ->  | N46: =IF(Y46<>"",Y46*AAAADonnées!$C$3,"") ->  | P46: =IF(Z46<>"",Z46*AAAADonnées!$E$3,AA46) ->  | T46: 0 | V46: 0 | X46: Arbitre National
I47: =IF(F47<>"",VLOOKUP(X47,AAAADonnées!$A$3:$B$100,2,0),"") ->  | L47: =IF(G47<>"",IF(V47<>0,AAAADonnées!$D$3*V47*2,""),"") ->  | N47: =IF(Y47<>"",Y47*AAAADonnées!$C$3,"") ->  | P47: =IF(Z47<>"",Z47*AAAADonnées!$E$3,AA47) ->  | T47: 0 | V47: 0 | X47: Arbitre National
I48: =IF(F48<>"",VLOOKUP(X48,AAAADonnées!$A$3:$B$100,2,0),"") ->  | L48: =IF(G48<>"",IF(V48<>0,AAAADonnées!$D$3*V48*2,""),"") ->  | N48: =IF(Y48<>"",Y48*AAAADonnées!$C$3,"") ->  | P48: =IF(Z48<>"",Z48*AAAADonnées!$E$3,AA48) ->  | T48: 0 | V48: 0 | X48: Arbitre National
I49: =IF(F49<>"",VLOOKUP(X49,AAAADonnées!$A$3:$B$100,2,0),"") ->  | L49: =IF(G49<>"",IF(V49<>0,AAAADonnées!$D$3*V49*2,""),"") ->  | N49: =IF(Y49<>"",Y49*AAAADonnées!$C$3,"") ->  | P49: =IF(Z49<>"",Z49*AAAADonnées!$E$3,AA49) ->  | T49: 0 | V49: 0 | X49: Arbitre National
I50: =IF(F50<>"",VLOOKUP(X50,AAAADonnées!$A$3:$B$100,2,0),"") ->  | L50: =IF(G50<>"",IF(V50<>0,AAAADonnées!$D$3*V50*2,""),"") ->  | N50: =IF(Y50<>"",Y50*AAAADonnées!$C$3,"") ->  | P50: =IF(Z50<>"",Z50*AAAADonnées!$E$3,AA50) ->  | T50: 0 | V50: 0 | X50: Arbitre National
I51: =IF(F51<>"",VLOOKUP(X51,AAAADonnées!$A$3:$B$100,2,0),"") ->  | L51: =IF(G51<>"",IF(V51<>0,AAAADonnées!$D$3*V51*2,""),"") ->  | N51: =IF(Y51<>"",Y51*AAAADonnées!$C$3,"") ->  | P51: =IF(Z51<>"",Z51*AAAADonnées!$E$3,AA51) ->  | T51: 0 | V51: 0 | X51: Arbitre National
I52: =IF(F52<>"",VLOOKUP(X52,AAAADonnées!$A$3:$B$100,2,0),"") ->  | L52: =IF(G52<>"",IF(V52<>0,AAAADonnées!$D$3*V52*2,""),"") ->  | N52: =IF(Y52<>"",Y52*AAAADonnées!$C$3,"") ->  | P52: =IF(Z52<>"",Z52*AAAADonnées!$E$3,AA52) ->  | T52: 0 | V52: 0 | X52: Arbitre National
I53: =IF(F53<>"",VLOOKUP(X53,AAAADonnées!$A$3:$B$100,2,0),"") ->  | L53: =IF(G53<>"",IF(V53<>0,AAAADonnées!$D$3*V53*2,""),"") ->  | N53: =IF(Y53<>"",Y53*AAAADonnées!$C$3,"") ->  | P53: =IF(Z53<>"",Z53*AAAADonnées!$E$3,AA53) ->  | T53: 0 | V53: 0 | X53: Arbitre National
I54: =IF(F54<>"",VLOOKUP(X54,AAAADonnées!$A$3:$B$100,2,0),"") ->  | L54: =IF(G54<>"",IF(V54<>0,AAAADonnées!$D$3*V54*2,""),"") ->  | N54: =IF(Y54<>"",Y54*AAAADonnées!$C$3,"") ->  | P54: =IF(Z54<>"",Z54*AAAADonnées!$E$3,AA54) ->  | T54: 0 | V54: 0 | X54: Arbitre National
I55: =IF(F55<>"",VLOOKUP(X55,AAAADonnées!$A$3:$B$100,2,0),"") ->  | L55: =IF(G55<>"",IF(V55<>0,AAAADonnées!$D$3*V55*2,""),"") ->  | N55: =IF(Y55<>"",Y55*AAAADonnées!$C$3,"") ->  | P55: =IF(Z55<>"",Z55*AAAADonnées!$E$3,AA55) ->  | T55: 0 | V55: 0 | X55: Arbitre National
I56: =IF(F56<>"",VLOOKUP(X56,AAAADonnées!$A$3:$B$100,2,0),"") ->  | L56: =IF(G56<>"",IF(V56<>0,AAAADonnées!$D$3*V56*2,""),"") ->  | N56: =IF(Y56<>"",Y56*AAAADonnées!$C$3,"") ->  | P56: =IF(Z56<>"",Z56*AAAADonnées!$E$3,AA56) ->  | T56: 0 | V56: 0 | X56: Arbitre National
I57: =IF(F57<>"",VLOOKUP(X57,AAAADonnées!$A$3:$B$100,2,0),"") ->  | L57: =IF(G57<>"",IF(V57<>0,AAAADonnées!$D$3*V57*2,""),"") ->  | N57: =IF(Y57<>"",Y57*AAAADonnées!$C$3,"") ->  | P57: =IF(Z57<>"",Z57*AAAADonnées!$E$3,AA57) ->  | T57: 0 | V57: 0 | X57: Arbitre National
I58: =IF(F58<>"",VLOOKUP(X58,AAAADonnées!$A$3:$B$100,2,0),"") ->  | L58: =IF(G58<>"",IF(V58<>0,AAAADonnées!$D$3*V58*2,""),"") ->  | N58: =IF(Y58<>"",Y58*AAAADonnées!$C$3,"") ->  | P58: =IF(Z58<>"",Z58*AAAADonnées!$E$3,AA58) ->  | T58: 0 | V58: 0 | X58: Arbitre National
I59: =IF(F59<>"",VLOOKUP(X59,AAAADonnées!$A$3:$B$100,2,0),"") ->  | L59: =IF(G59<>"",IF(V59<>0,AAAADonnées!$D$3*V59*2,""),"") ->  | N59: =IF(Y59<>"",Y59*AAAADonnées!$C$3,"") ->  | P59: =IF(Z59<>"",Z59*AAAADonnées!$E$3,AA59) ->  | T59: 0 | V59: 0 | X59: Arbitre National
I60: =IF(F60<>"",VLOOKUP(X60,AAAADonnées!$A$3:$B$100,2,0),"") ->  | L60: =IF(G60<>"",IF(V60<>0,AAAADonnées!$D$3*V60*2,""),"") ->  | N60: =IF(Y60<>"",Y60*AAAADonnées!$C$3,"") ->  | P60: =IF(Z60<>"",Z60*AAAADonnées!$E$3,AA60) ->  | T60: 0 | V60: 0 | X60: Arbitre National
I61: =IF(F61<>"",VLOOKUP(X61,AAAADonnées!$A$3:$B$100,2,0),"") ->  | L61: =IF(G61<>"",IF(V61<>0,AAAADonnées!$D$3*V61*2,""),"") ->  | N61: =IF(Y61<>"",Y61*AAAADonnées!$C$3,"") ->  | P61: =IF(Z61<>"",Z61*AAAADonnées!$E$3,AA61) ->  | T61: 0 | V61: 0 | X61: Arbitre National
I62: =IF(F62<>"",VLOOKUP(X62,AAAADonnées!$A$3:$B$100,2,0),"") ->  | L62: =IF(G62<>"",IF(V62<>0,AAAADonnées!$D$3*V62*2,""),"") ->  | N62: =IF(Y62<>"",Y62*AAAADonnées!$C$3,"") ->  | P62: =IF(Z62<>"",Z62*AAAADonnées!$E$3,AA62) ->  | T62: 0 | V62: 0 | X62: Arbitre National
I63: =IF(F63<>"",VLOOKUP(X63,AAAADonnées!$A$3:$B$100,2,0),"") ->  | L63: =IF(G63<>"",IF(V63<>0,AAAADonnées!$D$3*V63*2,""),"") ->  | N63: =IF(Y63<>"",Y63*AAAADonnées!$C$3,"") ->  | P63: =IF(Z63<>"",Z63*AAAADonnées!$E$3,AA63) ->  | T63: 0 | V63: 0 | X63: Arbitre National
I64: =IF(F64<>"",VLOOKUP(X64,AAAADonnées!$A$3:$B$100,2,0),"") ->  | L64: =IF(G64<>"",IF(V64<>0,AAAADonnées!$D$3*V64*2,""),"") ->  | N64: =IF(Y64<>"",Y64*AAAADonnées!$C$3,"") ->  | P64: =IF(Z64<>"",Z64*AAAADonnées!$E$3,AA64) ->  | T64: 0 | V64: 0 | X64: Arbitre National
I65: =IF(F65<>"",VLOOKUP(X65,AAAADonnées!$A$3:$B$100,2,0),"") ->  | L65: =IF(G65<>"",IF(V65<>0,AAAADonnées!$D$3*V65*2,""),"") ->  | N65: =IF(Y65<>"",Y65*AAAADonnées!$C$3,"") ->  | P65: =IF(Z65<>"",Z65*AAAADonnées!$E$3,AA65) ->  | T65: 0 | V65: 0 | X65: Arbitre National
I66: =IF(F66<>"",VLOOKUP(X66,AAAADonnées!$A$3:$B$100,2,0),"") ->  | L66: =IF(G66<>"",IF(V66<>0,AAAADonnées!$D$3*V66*2,""),"") ->  | N66: =IF(Y66<>"",Y66*AAAADonnées!$C$3,"") ->  | P66: =IF(Z66<>"",Z66*AAAADonnées!$E$3,AA66) ->  | T66: 0 | V66: 0 | X66: Arbitre National
I67: =IF(F67<>"",VLOOKUP(X67,AAAADonnées!$A$3:$B$100,2,0),"") ->  | L67: =IF(G67<>"",IF(V67<>0,AAAADonnées!$D$3*V67*2,""),"") ->  | N67: =IF(Y67<>"",Y67*AAAADonnées!$C$3,"") ->  | P67: =IF(Z67<>"",Z67*AAAADonnées!$E$3,AA67) ->  | T67: =SUM(I67:S67) -> 0 | V67: 0 | X67: Arbitre National
I68: =SUM(I43:I67)+I31 -> 3500 | J68: =SUM(J43:K67)+J31 -> 0 | L68: =SUM(L43:M67)+L31 -> 2828 | N68: =SUM(N43:O67)+N31 -> 2500 | P68: =SUM(P43:Q67)+P31 -> 3000 | R68: =SUM(R43:S67)+R31 -> 0 | T68: =T31+SUM(T43:T67) -> 11828
A70: Mode de règlement: | G70: Arrêté à la somme de: | I70: =IF(F43<>"",PROPER(CONCATENATE(ConvNumberLetter(T68)," Dinars")),"") -> 
H72: Le Président | M72: Le Trésorier | S72: l'Intéressé
C75: =C38 -> HAMMADA | T75: FABB
C76: =C39 -> CONSTANTINE | T76: TRÉSORERIE
H77: =H40 -> Arbitre | J77: =J40 -> National | S77: SAISON 2017/2018
A78: Report | I78: =I68 -> 3500 | J78: =J68 -> 0 | L78: =L68 -> 2828 | N78: =N68 -> 2500 | P78: =P68 -> 3000 | R78: =R68 -> 0 | T78: =T68 -> 11828
A79: Journée | B79: Date | C79: Jour | D79: Rencontres | F79: Catégories | G79: Domiciliation | H79: Horaire | I79: Match | J79: Forfait | K79: Aéroport | L79: Transport | M79: par route 7 DA-Km | N79: Hébergement | O79: 2500 DA nuitée | P79: Restauration | Q79: 1000 DA | R79: Forfait suivant | S79: domiciliation | T79: Total | V79: Dist - KM | Y79: Heb. | Z79: Nbr. Repas | AA79: Repas
I80: =IF(F80<>"",VLOOKUP(X80,AAAADonnées!$A$3:$B$100,2,0),"") ->  | L80: =IF(G80<>"",IF(V80<>0,AAAADonnées!$D$3*V80*2,""),"") ->  | N80: =IF(Y80<>"",Y80*AAAADonnées!$C$3,"") ->  | P80: =IF(Z80<>"",Z80*AAAADonnées!$E$3,AA80) ->  | R80: =IF(AND(G80<>"",V80=0),500,"") ->  | T80: =SUM(I80:S80) -> 0 | V80: =IFERROR(INDEX(TABLEDist,MATCH($C$2,Depart,0),MATCH(G80,Arrivee,0)),0) -> 0 | W80: =IF(H80<>"",H80/24,"") ->  | X80: =CONCATENATE(F80," ",$H$3," ",$J$3) -> Arbitre National | Y80: =IF(V80<200,"",IF(V80<500,1,2)) ->  | Z80: =IF(Y80=1,3,IF(Y80=2,5,"")) ->  | AA80: =IF(AND(AND(Y80="",V80<>0,W80<0.0261)),1000,"") -> 
I81: =IF(F81<>"",VLOOKUP(X81,AAAADonnées!$A$3:$B$100,2,0),"") ->  | L81: =IF(G81<>"",IF(V81<>0,AAAADonnées!$D$3*V81*2,""),"") ->  | N81: =IF(Y81<>"",Y81*AAAADonnées!$C$3,"") ->  | P81: =IF(Z81<>"",Z81*AAAADonnées!$E$3,AA81) ->  | R81: =IF(AND(G81<>"",V81=0),500,"") ->  | T81: =SUM(I81:S81) -> 0 | V81: 0 | X81: Arbitre National | AA81: =IF(AND(AND(Y81="",V81<>0,W81<0.0261)),1000,"") -> 
I82: =IF(F82<>"",VLOOKUP(X82,AAAADonnées!$A$3:$B$100,2,0),"") ->  | L82: =IF(G82<>"",IF(V82<>0,AAAADonnées!$D$3*V82*2,""),"") ->  | N82: =IF(Y82<>"",Y82*AAAADonnées!$C$3,"") ->  | P82: =IF(Z82<>"",Z82*AAAADonnées!$E$3,AA82) ->  | T82: =SUM(I82:S82) -> 0 | V82: 0 | X82: Arbitre National
I83: =IF(F83<>"",VLOOKUP(X83,AAAADonnées!$A$3:$B$100,2,0),"") ->  | L83: =IF(G83<>"",IF(V83<>0,AAAADonnées!$D$3*V83*2,""),"") ->  | N83: =IF(Y83<>"",Y83*AAAADonnées!$C$3,"") ->  | P83: =IF(Z83<>"",Z83*AAAADonnées!$E$3,AA83) ->  | T83: 0 | V83: 0 | X83: Arbitre National
I84: =IF(F84<>"",VLOOKUP(X84,AAAADonnées!$A$3:$B$100,2,0),"") ->  | L84: =IF(G84<>"",IF(V84<>0,AAAADonnées!$D$3*V84*2,""),"") ->  | N84: =IF(Y84<>"",Y84*AAAADonnées!$C$3,"") ->  | P84: =IF(Z84<>"",Z84*AAAADonnées!$E$3,AA84) ->  | T84: 0 | V84: 0 | X84: Arbitre National
I85: =IF(F85<>"",VLOOKUP(X85,AAAADonnées!$A$3:$B$100,2,0),"") ->  | L85: =IF(G85<>"",IF(V85<>0,AAAADonnées!$D$3*V85*2,""),"") ->  | N85: =IF(Y85<>"",Y85*AAAADonnées!$C$3,"") ->  | P85: =IF(Z85<>"",Z85*AAAADonnées!$E$3,AA85) ->  | T85: 0 | V85: 0 | X85: Arbitre National
I86: =IF(F86<>"",VLOOKUP(X86,AAAADonnées!$A$3:$B$100,2,0),"") ->  | L86: =IF(G86<>"",IF(V86<>0,AAAADonnées!$D$3*V86*2,""),"") ->  | N86: =IF(Y86<>"",Y86*AAAADonnées!$C$3,"") ->  | P86: =IF(Z86<>"",Z86*AAAADonnées!$E$3,AA86) ->  | T86: 0 | V86: 0 | X86: Arbitre National
I87: =IF(F87<>"",VLOOKUP(X87,AAAADonnées!$A$3:$B$100,2,0),"") ->  | L87: =IF(G87<>"",IF(V87<>0,AAAADonnées!$D$3*V87*2,""),"") ->  | N87: =IF(Y87<>"",Y87*AAAADonnées!$C$3,"") ->  | P87: =IF(Z87<>"",Z87*AAAADonnées!$E$3,AA87) ->  | T87: 0 | V87: 0 | X87: Arbitre National
I88: =IF(F88<>"",VLOOKUP(X88,AAAADonnées!$A$3:$B$100,2,0),"") ->  | L88: =IF(G88<>"",IF(V88<>0,AAAADonnées!$D$3*V88*2,""),"") ->  | N88: =IF(Y88<>"",Y88*AAAADonnées!$C$3,"") ->  | P88: =IF(Z88<>"",Z88*AAAADonnées!$E$3,AA88) ->  | T88: 0 | V88: 0 | X88: Arbitre National
I89: =IF(F89<>"",VLOOKUP(X89,AAAADonnées!$A$3:$B$100,2,0),"") ->  | L89: =IF(G89<>"",IF(V89<>0,AAAADonnées!$D$3*V89*2,""),"") ->  | N89: =IF(Y89<>"",Y89*AAAADonnées!$C$3,"") ->  | P89: =IF(Z89<>"",Z89*AAAADonnées!$E$3,AA89) ->  | T89: 0 | V89: 0 | X89: Arbitre National
I90: =IF(F90<>"",VLOOKUP(X90,AAAADonnées!$A$3:$B$100,2,0),"") ->  | L90: =IF(G90<>"",IF(V90<>0,AAAADonnées!$D$3*V90*2,""),"") ->  | N90: =IF(Y90<>"",Y90*AAAADonnées!$C$3,"") ->  | P90: =IF(Z90<>"",Z90*AAAADonnées!$E$3,AA90) ->  | T90: 0 | V90: 0 | X90: Arbitre National
I91: =IF(F91<>"",VLOOKUP(X91,AAAADonnées!$A$3:$B$100,2,0),"") ->  | L91: =IF(G91<>"",IF(V91<>0,AAAADonnées!$D$3*V91*2,""),"") ->  | N91: =IF(Y91<>"",Y91*AAAADonnées!$C$3,"") ->  | P91: =IF(Z91<>"",Z91*AAAADonnées!$E$3,AA91) ->  | T91: 0 | V91: 0 | X91: Arbitre National
I92: =IF(F92<>"",VLOOKUP(X92,AAAADonnées!$A$3:$B$100,2,0),"") ->  | L92: =IF(G92<>"",IF(V92<>0,AAAADonnées!$D$3*V92*2,""),"") ->  | N92: =IF(Y92<>"",Y92*AAAADonnées!$C$3,"") ->  | P92: =IF(Z92<>"",Z92*AAAADonnées!$E$3,AA92) ->  | T92: 0 | V92: 0 | X92: Arbitre National
I93: =IF(F93<>"",VLOOKUP(X93,AAAADonnées!$A$3:$B$100,2,0),"") ->  | L93: =IF(G93<>"",IF(V93<>0,AAAADonnées!$D$3*V93*2,""),"") ->  | N93: =IF(Y93<>"",Y93*AAAADonnées!$C$3,"") ->  | P93: =IF(Z93<>"",Z93*AAAADonnées!$E$3,AA93) ->  | T93: 0 | V93: 0 | X93: Arbitre National
I94: =IF(F94<>"",VLOOKUP(X94,AAAADonnées!$A$3:$B$100,2,0),"") ->  | L94: =IF(G94<>"",IF(V94<>0,AAAADonnées!$D$3*V94*2,""),"") ->  | N94: =IF(Y94<>"",Y94*AAAADonnées!$C$3,"") ->  | P94: =IF(Z94<>"",Z94*AAAADonnées!$E$3,AA94) ->  | T94: 0 | V94: 0 | X94: Arbitre National
I95: =IF(F95<>"",VLOOKUP(X95,AAAADonnées!$A$3:$B$100,2,0),"") ->  | L95: =IF(G95<>"",IF(V95<>0,AAAADonnées!$D$3*V95*2,""),"") ->  | N95: =IF(Y95<>"",Y95*AAAADonnées!$C$3,"") ->  | P95: =IF(Z95<>"",Z95*AAAADonnées!$E$3,AA95) ->  | T95: 0 | V95: 0 | X95: Arbitre National
I96: =IF(F96<>"",VLOOKUP(X96,AAAADonnées!$A$3:$B$100,2,0),"") ->  | L96: =IF(G96<>"",IF(V96<>0,AAAADonnées!$D$3*V96*2,""),"") ->  | N96: =IF(Y96<>"",Y96*AAAADonnées!$C$3,"") ->  | P96: =IF(Z96<>"",Z96*AAAADonnées!$E$3,AA96) ->  | T96: 0 | V96: 0 | X96: Arbitre National
I97: =IF(F97<>"",VLOOKUP(X97,AAAADonnées!$A$3:$B$100,2,0),"") ->  | L97: =IF(G97<>"",IF(V97<>0,AAAADonnées!$D$3*V97*2,""),"") ->  | N97: =IF(Y97<>"",Y97*AAAADonnées!$C$3,"") ->  | P97: =IF(Z97<>"",Z97*AAAADonnées!$E$3,AA97) ->  | T97: 0 | V97: 0 | X97: Arbitre National
I98: =IF(F98<>"",VLOOKUP(X98,AAAADonnées!$A$3:$B$100,2,0),"") ->  | L98: =IF(G98<>"",IF(V98<>0,AAAADonnées!$D$3*V98*2,""),"") ->  | N98: =IF(Y98<>"",Y98*AAAADonnées!$C$3,"") ->  | P98: =IF(Z98<>"",Z98*AAAADonnées!$E$3,AA98) ->  | T98: 0 | V98: 0 | X98: Arbitre National
I99: =IF(F99<>"",VLOOKUP(X99,AAAADonnées!$A$3:$B$100,2,0),"") ->  | L99: =IF(G99<>"",IF(V99<>0,AAAADonnées!$D$3*V99*2,""),"") ->  | N99: =IF(Y99<>"",Y99*AAAADonnées!$C$3,"") ->  | P99: =IF(Z99<>"",Z99*AAAADonnées!$E$3,AA99) ->  | T99: 0 | V99: 0 | X99: Arbitre National
I100: =IF(F100<>"",VLOOKUP(X100,AAAADonnées!$A$3:$B$100,2,0),"") ->  | L100: =IF(G100<>"",IF(V100<>0,AAAADonnées!$D$3*V100*2,""),"") ->  | N100: =IF(Y100<>"",Y100*AAAADonnées!$C$3,"") ->  | P100: =IF(Z100<>"",Z100*AAAADonnées!$E$3,AA100) ->  | T100: 0 | V100: 0 | X100: Arbitre National
I101: =IF(F101<>"",VLOOKUP(X101,AAAADonnées!$A$3:$B$100,2,0),"") ->  | L101: =IF(G101<>"",IF(V101<>0,AAAADonnées!$D$3*V101*2,""),"") ->  | N101: =IF(Y101<>"",Y101*AAAADonnées!$C$3,"") ->  | P101: =IF(Z101<>"",Z101*AAAADonnées!$E$3,AA101) ->  | T101: 0 | V101: 0 | X101: Arbitre National
I102: =IF(F102<>"",VLOOKUP(X102,AAAADonnées!$A$3:$B$100,2,0),"") ->  | L102: =IF(G102<>"",IF(V102<>0,AAAADonnées!$D$3*V102*2,""),"") ->  | N102: =IF(Y102<>"",Y102*AAAADonnées!$C$3,"") ->  | P102: =IF(Z102<>"",Z102*AAAADonnées!$E$3,AA102) ->  | T102: 0 | V102: 0 | X102: Arbitre National
I103: =IF(F103<>"",VLOOKUP(X103,AAAADonnées!$A$3:$B$100,2,0),"") ->  | L103: =IF(G103<>"",IF(V103<>0,AAAADonnées!$D$3*V103*2,""),"") ->  | N103: =IF(Y103<>"",Y103*AAAADonnées!$C$3,"") ->  | P103: =IF(Z103<>"",Z103*AAAADonnées!$E$3,AA103) ->  | T103: 0 | V103: 0 | X103: Arbitre National
I104: =IF(F104<>"",VLOOKUP(X104,AAAADonnées!$A$3:$B$100,2,0),"") ->  | L104: =IF(G104<>"",IF(V104<>0,AAAADonnées!$D$3*V104*2,""),"") ->  | N104: =IF(Y104<>"",Y104*AAAADonnées!$C$3,"") ->  | P104: =IF(Z104<>"",Z104*AAAADonnées!$E$3,AA104) ->  | T104: =SUM(I104:S104) -> 0 | V104: 0 | X104: Arbitre National | Y104: =IF(V104<200,"",IF(V104<500,1,2)) ->  | Z104: =IF(Y104=1,3,IF(Y104=2,5,"")) -> 
I105: =SUM(I80:I104)+I68 -> 3500 | J105: =SUM(J80:K104)+J68 -> 0 | L105: =SUM(L80:M104)+L68 -> 2828 | N105: =SUM(N80:O104)+N68 -> 2500 | P105: =SUM(P80:Q104)+P68 -> 3000 | R105: =SUM(R80:S104)+R68 -> 0 | T105: =T68+SUM(T80:T104) -> 11828
A107: Mode de règlement: | G107: Arrêté à la somme de: | I107: =IF(F80<>"",PROPER(CONCATENATE(ConvNumberLetter(T105)," Dinars")),"") -> 
H109: Le Président | M109: Le Trésorier | S109: l'Intéressé

Sheet MOHAMMEDI
C1: MOHAMMEDI | T1: FABB
A2: Nbr Match | C2: MAATKAS | T2: TRÉSORERIE
A3: =COUNTA(D6:D30,D43:D67) -> 1 | B3: Centre | H3: Arbitre | J3: National | S3: SAISON 2017/2018
A5: Journée | B5: Date | C5: Jour | D5: Rencontres | F5: Catégories | G5: Domiciliation | H5: Horaire | I5: Match | J5: Forfait | K5: Aéroport | L5: Transport | M5: par route 7 DA-Km | N5: Hébergement | O5: 2500 DA nuitée | P5: Restauration | Q5: 1000 DA | R5: Forfait suivant | S5: domiciliation | T5: Total | V5: Dist-Km | Y5: Heb. | Z5: Nbr. Repas | AA5: Repas
B6: 2018-10-12 | C6: =IF(B6<>"",LEFT(PROPER(TEXT(B6,"jjjj")),3),"") -> Ven | D6: IRBBA | E6: OSBBA | F6: SM | G6: BBA | H6: 16:00:00 | I6: =IF(F6<>"",VLOOKUP(X6,AAAADonnées!$A$3:$B$100,2,0),"") -> 3500 | L6: =IF(G6<>"",IF(V6<>0,AAAADonnées!$D$3*V6*2,""),"") -> 3430 | N6: =IF(Y6<>"",Y6*AAAADonnées!$C$3,"") -> 2500 | P6: =IF(Z6<>"",Z6*AAAADonnées!$E$3,AA6) -> 3000 | R6: =IF(AND(G6<>"",V6=0),500,"") ->  | T6: =SUM(I6:S6) -> 12430 | V6: =IFERROR(INDEX(TABLEDist,MATCH($C$2,Depart,0),MATCH(G6,Arrivee,0)),0) -> 245 | W6: =IF(H6<>"",H6/24,"") -> 0.02777777778 | X6: =CONCATENATE(F6," ",$H$3," ",$J$3) -> SM Arbitre National | Y6: =IF(V6<200,"",IF(V6<500,1,2)) -> 1 | Z6: =IF(Y6=1,3,IF(Y6=2,5,"")) -> 3 | AA6: =IF(AND(AND(Y6="",V6<>0,W6<0.0261)),1000,"") ->  | AB6: =IF(B6>0,B6,"") -> 2018-10-12 | AC6: =IF(AND(AB6<>"",AB6=Recap!B4),SUMPRODUCT(($B$6:$B$30=AB6)*($T$6:$T$30)),"") -> 12430
C7: =IF(B7<>"",LEFT(PROPER(TEXT(B7,"jjjj")),3),"") ->  | I7: =IF(F7<>"",VLOOKUP(X7,AAAADonnées!$A$3:$B$100,2,0),"") ->  | L7: =IF(G7<>"",IF(V7<>0,AAAADonnées!$D$3*V7*2,""),"") ->  | N7: =IF(Y7<>"",Y7*AAAADonnées!$C$3,"") ->  | P7: =IF(Z7<>"",Z7*AAAADonnées!$E$3,AA7) ->  | R7: =IF(AND(G7<>"",V7=0),500,"") ->  | T7: =SUM(I7:S7) -> 0 | V7: 0 | W7: =IF(H7<>"",H7/24,"") ->  | X7: Arbitre National | Y7: =IF(V7<200,"",IF(V7<500,1,2)) ->  | Z7: =IF(Y7=1,3,IF(Y7=2,5,"")) ->  | AA7: =IF(AND(AND(Y7="",V7<>0,W7<0.0261)),1000,"") ->  | AB7: =IF(B7>0,B7,"") ->  | AC7: =IF(AND(AB7<>"",AB7=Recap!B5),SUMPRODUCT(($B$6:$B$30=AB7)*($T$6:$T$30)),"") -> 
I8: =IF(F8<>"",VLOOKUP(X8,AAAADonnées!$A$3:$B$100,2,0),"") ->  | L8: =IF(G8<>"",IF(V8<>0,AAAADonnées!$D$3*V8*2,""),"") ->  | N8: =IF(Y8<>"",Y8*AAAADonnées!$C$3,"") ->  | P8: =IF(Z8<>"",Z8*AAAADonnées!$E$3,AA8) ->  | T8: =SUM(I8:S8) -> 0 | V8: 0 | X8: Arbitre National | AC8: =IF(AND(AB8<>"",AB8=Recap!B6),SUMPRODUCT(($B$6:$B$30=AB8)*($T$6:$T$30)),"") -> 
I9: =IF(F9<>"",VLOOKUP(X9,AAAADonnées!$A$3:$B$100,2,0),"") ->  | L9: =IF(G9<>"",IF(V9<>0,AAAADonnées!$D$3*V9*2,""),"") ->  | N9: =IF(Y9<>"",Y9*AAAADonnées!$C$3,"") ->  | P9: =IF(Z9<>"",Z9*AAAADonnées!$E$3,AA9) ->  | T9: 0 | V9: 0 | X9: Arbitre National | AC9: =IF(AND(AB9<>"",AB9=Recap!B7),SUMPRODUCT(($B$6:$B$30=AB9)*($T$6:$T$30)),"") -> 
I10: =IF(F10<>"",VLOOKUP(X10,AAAADonnées!$A$3:$B$100,2,0),"") ->  | L10: =IF(G10<>"",IF(V10<>0,AAAADonnées!$D$3*V10*2,""),"") ->  | N10: =IF(Y10<>"",Y10*AAAADonnées!$C$3,"") ->  | P10: =IF(Z10<>"",Z10*AAAADonnées!$E$3,AA10) ->  | T10: 0 | V10: 0 | X10: Arbitre National | AC10: =IF(AND(AB10<>"",AB10=Recap!B8),SUMPRODUCT(($B$6:$B$30=AB10)*($T$6:$T$30)),"") -> 
I11: =IF(F11<>"",VLOOKUP(X11,AAAADonnées!$A$3:$B$100,2,0),"") ->  | L11: =IF(G11<>"",IF(V11<>0,AAAADonnées!$D$3*V11*2,""),"") ->  | N11: =IF(Y11<>"",Y11*AAAADonnées!$C$3,"") ->  | P11: =IF(Z11<>"",Z11*AAAADonnées!$E$3,AA11) ->  | T11: 0 | V11: 0 | X11: Arbitre National | AC11: =IF(AND(AB11<>"",AB11=Recap!B9),SUMPRODUCT(($B$6:$B$30=AB11)*($T$6:$T$30)),"") -> 
I12: =IF(F12<>"",VLOOKUP(X12,AAAADonnées!$A$3:$B$100,2,0),"") ->  | L12: =IF(G12<>"",IF(V12<>0,AAAADonnées!$D$3*V12*2,""),"") ->  | N12: =IF(Y12<>"",Y12*AAAADonnées!$C$3,"") ->  | P12: =IF(Z12<>"",Z12*AAAADonnées!$E$3,AA12) ->  | T12: 0 | V12: 0 | X12: Arbitre National | AC12: =IF(AND(AB12<>"",AB12=Recap!B10),SUMPRODUCT(($B$6:$B$30=AB12)*($T$6:$T$30)),"") -> 
I13: =IF(F13<>"",VLOOKUP(X13,AAAADonnées!$A$3:$B$100,2,0),"") ->  | L13: =IF(G13<>"",IF(V13<>0,AAAADonnées!$D$3*V13*2,""),"") ->  | N13: =IF(Y13<>"",Y13*AAAADonnées!$C$3,"") ->  | P13: =IF(Z13<>"",Z13*AAAADonnées!$E$3,AA13) ->  | T13: 0 | V13: 0 | X13: Arbitre National | AC13: =IF(AND(AB13<>"",AB13=Recap!B11),SUMPRODUCT(($B$6:$B$30=AB13)*($T$6:$T$30)),"") -> 
I14: =IF(F14<>"",VLOOKUP(X14,AAAADonnées!$A$3:$B$100,2,0),"") ->  | L14: =IF(G14<>"",IF(V14<>0,AAAADonnées!$D$3*V14*2,""),"") ->  | N14: =IF(Y14<>"",Y14*AAAADonnées!$C$3,"") ->  | P14: =IF(Z14<>"",Z14*AAAADonnées!$E$3,AA14) ->  | T14: 0 | V14: 0 | X14: Arbitre National | AC14: =IF(AND(AB14<>"",AB14=Recap!B12),SUMPRODUCT(($B$6:$B$30=AB14)*($T$6:$T$30)),"") -> 
I15: =IF(F15<>"",VLOOKUP(X15,AAAADonnées!$A$3:$B$100,2,0),"") ->  | L15: =IF(G15<>"",IF(V15<>0,AAAADonnées!$D$3*V15*2,""),"") ->  | N15: =IF(Y15<>"",Y15*AAAADonnées!$C$3,"") ->  | P15: =IF(Z15<>"",Z15*AAAADonnées!$E$3,AA15) ->  | T15: 0 | V15: 0 | X15: Arbitre National | AC15: =IF(AND(AB15<>"",AB15=Recap!B13),SUMPRODUCT(($B$6:$B$30=AB15)*($T$6:$T$30)),"") -> 
I16: =IF(F16<>"",VLOOKUP(X16,AAAADonnées!$A$3:$B$100,2,0),"") ->  | L16: =IF(G16<>"",IF(V16<>0,AAAADonnées!$D$3*V16*2,""),"") ->  | N16: =IF(Y16<>"",Y16*AAAADonnées!$C$3,"") ->  | P16: =IF(Z16<>"",Z16*AAAADonnées!$E$3,AA16) ->  | T16: 0 | V16: 0 | X16: Arbitre National | AC16: =IF(AND(AB16<>"",AB16=Recap!B14),SUMPRODUCT(($B$6:$B$30=AB16)*($T$6:$T$30)),"") -> 
I17: =IF(F17<>"",VLOOKUP(X17,AAAADonnées!$A$3:$B$100,2,0),"") ->  | L17: =IF(G17<>"",IF(V17<>0,AAAADonnées!$D$3*V17*2,""),"") ->  | N17: =IF(Y17<>"",Y17*AAAADonnées!$C$3,"") ->  | P17: =IF(Z17<>"",Z17*AAAADonnées!$E$3,AA17) ->  | T17: 0 | V17: 0 | X17: Arbitre National | AC17: =IF(AND(AB17<>"",AB17=Recap!B15),SUMPRODUCT(($B$6:$B$30=AB17)*($T$6:$T$30)),"") -> 
I18: =IF(F18<>"",VLOOKUP(X18,AAAADonnées!$A$3:$B$100,2,0),"") ->  | L18: =IF(G18<>"",IF(V18<>0,AAAADonnées!$D$3*V18*2,""),"") ->  | N18: =IF(Y18<>"",Y18*AAAADonnées!$C$3,"") ->  | P18: =IF(Z18<>"",Z18*AAAADonnées!$E$3,AA18) ->  | T18: 0 | V18: 0 | X18: Arbitre National | AC18: =IF(AND(AB18<>"",AB18=Recap!B16),SUMPRODUCT(($B$6:$B$30=AB18)*($T$6:$T$30)),"") -> 
I19: =IF(F19<>"",VLOOKUP(X19,AAAADonnées!$A$3:$B$100,2,0),"") ->  | L19: =IF(G19<>"",IF(V19<>0,AAAADonnées!$D$3*V19*2,""),"") ->  | N19: =IF(Y19<>"",Y19*AAAADonnées!$C$3,"") ->  | P19: =IF(Z19<>"",Z19*AAAADonnées!$E$3,AA19) ->  | T19: 0 | V19: 0 | X19: Arbitre National | AC19: =IF(AND(AB19<>"",AB19=Recap!B17),SUMPRODUCT(($B$6:$B$30=AB19)*($T$6:$T$30)),"") -> 
I20: =IF(F20<>"",VLOOKUP(X20,AAAADonnées!$A$3:$B$100,2,0),"") ->  | N20: =IF(Y20<>"",Y20*AAAADonnées!$C$3,"") ->  | P20: =IF(Z20<>"",Z20*AAAADonnées!$E$3,AA20) ->  | T20: 0 | V20: 0 | X20: Arbitre National | AC20: =IF(AND(AB20<>"",AB20=Recap!B18),SUMPRODUCT(($B$6:$B$30=AB20)*($T$6:$T$30)),"") -> 
I21: =IF(F21<>"",VLOOKUP(X21,AAAADonnées!$A$3:$B$100,2,0),"") ->  | L21: =IF(G21<>"",IF(V21<>0,AAAADonnées!$D$3*V21*2,""),"") ->  | N21: =IF(Y21<>"",Y21*AAAADonnées!$C$3,"") ->  | P21: =IF(Z21<>"",Z21*AAAADonnées!$E$3,AA21) ->  | T21: 0 | V21: 0 | X21: Arbitre National | AC21: =IF(AND(AB21<>"",AB21=Recap!B19),SUMPRODUCT(($B$6:$B$30=AB21)*($T$6:$T$30)),"") -> 
I22: =IF(F22<>"",VLOOKUP(X22,AAAADonnées!$A$3:$B$100,2,0),"") ->  | L22: =IF(G22<>"",IF(V22<>0,AAAADonnées!$D$3*V22*2,""),"") ->  | N22: =IF(Y22<>"",Y22*AAAADonnées!$C$3,"") ->  | P22: =IF(Z22<>"",Z22*AAAADonnées!$E$3,AA22) ->  | T22: 0 | V22: 0 | X22: Arbitre National | AC22: =IF(AND(AB22<>"",AB22=Recap!B20),SUMPRODUCT(($B$6:$B$30=AB22)*($T$6:$T$30)),"") -> 
I23: =IF(F23<>"",VLOOKUP(X23,AAAADonnées!$A$3:$B$100,2,0),"") ->  | L23: =IF(G23<>"",IF(V23<>0,AAAADonnées!$D$3*V23*2,""),"") ->  | N23: =IF(Y23<>"",Y23*AAAADonnées!$C$3,"") ->  | P23: =IF(Z23<>"",Z23*AAAADonnées!$E$3,AA23) ->  | T23: 0 | V23: 0 | X23: Arbitre National | AC23: =IF(AND(AB23<>"",AB23=Recap!B21),SUMPRODUCT(($B$6:$B$30=AB23)*($T$6:$T$30)),"") -> 
I24: =IF(F24<>"",VLOOKUP(X24,AAAADonnées!$A$3:$B$100,2,0),"") ->  | L24: =IF(G24<>"",IF(V24<>0,AAAADonnées!$D$3*V24*2,""),"") ->  | N24: =IF(Y24<>"",Y24*AAAADonnées!$C$3,"") ->  | P24: =IF(Z24<>"",Z24*AAAADonnées!$E$3,AA24) ->  | T24: 0 | V24: 0 | X24: Arbitre National | AC24: =IF(AND(AB24<>"",AB24=Recap!B22),SUMPRODUCT(($B$6:$B$30=AB24)*($T$6:$T$30)),"") -> 
I25: =IF(F25<>"",VLOOKUP(X25,AAAADonnées!$A$3:$B$100,2,0),"") ->  | L25: =IF(G25<>"",IF(V25<>0,AAAADonnées!$D$3*V25*2,""),"") ->  | N25: =IF(Y25<>"",Y25*AAAADonnées!$C$3,"") ->  | P25: =IF(Z25<>"",Z25*AAAADonnées!$E$3,AA25) ->  | T25: 0 | V25: 0 | X25: Arbitre National | AC25: =IF(AND(AB25<>"",AB25=Recap!B23),SUMPRODUCT(($B$6:$B$30=AB25)*($T$6:$T$30)),"") -> 
I26: =IF(F26<>"",VLOOKUP(X26,AAAADonnées!$A$3:$B$100,2,0),"") ->  | L26: =IF(G26<>"",IF(V26<>0,AAAADonnées!$D$3*V26*2,""),"") ->  | N26: =IF(Y26<>"",Y26*AAAADonnées!$C$3,"") ->  | P26: =IF(Z26<>"",Z26*AAAADonnées!$E$3,AA26) ->  | T26: 0 | V26: 0 | X26: Arbitre National | AC26: =IF(AND(AB26<>"",AB26=Recap!B24),SUMPRODUCT(($B$6:$B$30=AB26)*($T$6:$T$30)),"") -> 
I27: =IF(F27<>"",VLOOKUP(X27,AAAADonnées!$A$3:$B$100,2,0),"") ->  | L27: =IF(G27<>"",IF(V27<>0,AAAADonnées!$D$3*V27*2,""),"") ->  | N27: =IF(Y27<>"",Y27*AAAADonnées!$C$3,"") ->  | P27: =IF(Z27<>"",Z27*AAAADonnées!$E$3,AA27) ->  | T27: 0 | V27: 0 | X27: Arbitre National | AC27: =IF(AND(AB27<>"",AB27=Recap!B25),SUMPRODUCT(($B$6:$B$30=AB27)*($T$6:$T$30)),"") -> 
I28: =IF(F28<>"",VLOOKUP(X28,AAAADonnées!$A$3:$B$100,2,0),"") ->  | L28: =IF(G28<>"",IF(V28<>0,AAAADonnées!$D$3*V28*2,""),"") ->  | N28: =IF(Y28<>"",Y28*AAAADonnées!$C$3,"") ->  | P28: =IF(Z28<>"",Z28*AAAADonnées!$E$3,AA28) ->  | T28: 0 | V28: 0 | X28: Arbitre National | AC28: =IF(AND(AB28<>"",AB28=Recap!B26),SUMPRODUCT(($B$6:$B$30=AB28)*($T$6:$T$30)),"") -> 
C29: =IF(B29<>"",LEFT(PROPER(TEXT(B29,"jjjj")),3),"") ->  | I29: =IF(F29<>"",VLOOKUP(X29,AAAADonnées!$A$3:$B$100,2,0),"") ->  | L29: =IF(G29<>"",IF(V29<>0,AAAADonnées!$D$3*V29*2,""),"") ->  | N29: =IF(Y29<>"",Y29*AAAADonnées!$C$3,"") ->  | P29: =IF(Z29<>"",Z29*AAAADonnées!$E$3,AA29) ->  | T29: 0 | V29: 0 | X29: Arbitre National | AC29: =IF(AND(AB29<>"",AB29=Recap!B27),SUMPRODUCT(($B$6:$B$30=AB29)*($T$6:$T$30)),"") -> 
I30: =IF(F30<>"",VLOOKUP(X30,AAAADonnées!$A$3:$B$100,2,0),"") ->  | L30: =IF(G30<>"",IF(V30<>0,AAAADonnées!$D$3*V30*2,""),"") ->  | N30: =IF(Y30<>"",Y30*AAAADonnées!$C$3,"") ->  | P30: =IF(Z30<>"",Z30*AAAADonnées!$E$3,AA30) ->  | T30: =SUM(I30:S30) -> 0 | V30: 0 | X30: Arbitre National | AC30: =IF(AND(AB30<>"",AB30=Recap!B28),SUMPRODUCT(($B$6:$B$30=AB30)*($T$6:$T$30)),"") -> 
I31: =SUM(I6:I30) -> 3500 | J31: =SUM(J6:K30) -> 0 | L31: =SUM(L6:M30) -> 3430 | N31: =SUM(N6:O30) -> 2500 | P31: =SUM(P6:Q30) -> 3000 | R31: =SUM(R6:S30) -> 0 | T31: =SUM(T6:T30) -> 12430
A33: Mode de règlement: | F33: Arrêté à la somme de: | H33: =IF(F43="",IF(T31<>0,PROPER(CONCATENATE(ConvNumberLetter(T31)," Dinars")),""),"") -> Douze Mille Quatre Cent Trente Dinars
H35: Le Président | M35: Le Trésorier | S35: l'Intéressé
C38: =C1 -> MOHAMMEDI | T38: FABB
C39: =C2 -> MAATKAS | T39: TRÉSORERIE
H40: =H3 -> Arbitre | J40: =J3 -> National | S40: SAISON 2017/2018
A41: Report | I41: =I31 -> 3500 | J41: =J31 -> 0 | L41: =L31 -> 3430 | N41: =N31 -> 2500 | P41: =P31 -> 3000 | R41: =R31 -> 0 | T41: =T31 -> 12430
A42: Journée | B42: Date | C42: Jour | D42: Rencontres | F42: Catégories | G42: Domiciliation | H42: Horaire | I42: Match | J42: Forfait | K42: Aéroport | L42: Transport | M42: par route 7 DA-Km | N42: Hébergement | O42: 2500 DA nuitée | P42: Restauration | Q42: 1000 DA | R42: Forfait suivant | S42: domiciliation | T42: Total | V42: Dist - KM | Y42: Heb. | Z42: Nbr. Repas | AA42: Repas
C43: =IF(B43<>"",LEFT(PROPER(TEXT(B43,"jjjj")),3),"") ->  | I43: =IF(F43<>"",VLOOKUP(X43,AAAADonnées!$A$3:$B$100,2,0),"") ->  | L43: =IF(G43<>"",IF(V43<>0,AAAADonnées!$D$3*V43*2,""),"") ->  | N43: =IF(Y43<>"",Y43*AAAADonnées!$C$3,"") ->  | P43: =IF(Z43<>"",Z43*AAAADonnées!$E$3,AA43) ->  | R43: =IF(AND(G43<>"",V43=0),500,"") ->  | T43: =SUM(I43:S43) -> 0 | V43: =IFERROR(INDEX(TABLEDist,MATCH($C$2,Depart,0),MATCH(G43,Arrivee,0)),0) -> 0 | X43: =CONCATENATE(F43," ",$H$3," ",$J$3) -> Arbitre National | Y43: =IF(V43<200,"",IF(V43<500,1,2)) ->  | Z43: =IF(Y43=1,3,IF(Y43=2,5,"")) ->  | AA43: =IF(AND(AND(Y43="",V43<>0,W43<0.0261)),1000,"") -> 
C44: =IF(B44<>"",LEFT(PROPER(TEXT(B44,"jjjj")),3),"") ->  | I44: =IF(F44<>"",VLOOKUP(X44,AAAADonnées!$A$3:$B$100,2,0),"") ->  | L44: =IF(G44<>"",IF(V44<>0,AAAADonnées!$D$3*V44*2,""),"") ->  | N44: =IF(Y44<>"",Y44*AAAADonnées!$C$3,"") ->  | P44: =IF(Z44<>"",Z44*AAAADonnées!$E$3,AA44) ->  | R44: =IF(AND(G44<>"",V44=0),500,"") ->  | T44: =SUM(I44:S44) -> 0 | V44: 0 | X44: Arbitre National
I45: =IF(F45<>"",VLOOKUP(X45,AAAADonnées!$A$3:$B$100,2,0),"") ->  | L45: =IF(G45<>"",IF(V45<>0,AAAADonnées!$D$3*V45*2,""),"") ->  | N45: =IF(Y45<>"",Y45*AAAADonnées!$C$3,"") ->  | P45: =IF(Z45<>"",Z45*AAAADonnées!$E$3,AA45) ->  | T45: =SUM(I45:S45) -> 0 | V45: 0 | X45: Arbitre National
I46: =IF(F46<>"",VLOOKUP(X46,AAAADonnées!$A$3:$B$100,2,0),"") ->  | L46: =IF(G46<>"",IF(V46<>0,AAAADonnées!$D$3*V46*2,""),"") ->  | N46: =IF(Y46<>"",Y46*AAAADonnées!$C$3,"") ->  | P46: =IF(Z46<>"",Z46*AAAADonnées!$E$3,AA46) ->  | T46: 0 | V46: 0 | X46: Arbitre National
I47: =IF(F47<>"",VLOOKUP(X47,AAAADonnées!$A$3:$B$100,2,0),"") ->  | L47: =IF(G47<>"",IF(V47<>0,AAAADonnées!$D$3*V47*2,""),"") ->  | N47: =IF(Y47<>"",Y47*AAAADonnées!$C$3,"") ->  | P47: =IF(Z47<>"",Z47*AAAADonnées!$E$3,AA47) ->  | T47: 0 | V47: 0 | X47: Arbitre National
I48: =IF(F48<>"",VLOOKUP(X48,AAAADonnées!$A$3:$B$100,2,0),"") ->  | L48: =IF(G48<>"",IF(V48<>0,AAAADonnées!$D$3*V48*2,""),"") ->  | N48: =IF(Y48<>"",Y48*AAAADonnées!$C$3,"") ->  | P48: =IF(Z48<>"",Z48*AAAADonnées!$E$3,AA48) ->  | T48: 0 | V48: 0 | X48: Arbitre National
I49: =IF(F49<>"",VLOOKUP(X49,AAAADonnées!$A$3:$B$100,2,0),"") ->  | L49: =IF(G49<>"",IF(V49<>0,AAAADonnées!$D$3*V49*2,""),"") ->  | N49: =IF(Y49<>"",Y49*AAAADonnées!$C$3,"") ->  | P49: =IF(Z49<>"",Z49*AAAADonnées!$E$3,AA49) ->  | T49: 0 | V49: 0 | X49: Arbitre National
I50: =IF(F50<>"",VLOOKUP(X50,AAAADonnées!$A$3:$B$100,2,0),"") ->  | L50: =IF(G50<>"",IF(V50<>0,AAAADonnées!$D$3*V50*2,""),"") ->  | N50: =IF(Y50<>"",Y50*AAAADonnées!$C$3,"") ->  | P50: =IF(Z50<>"",Z50*AAAADonnées!$E$3,AA50) ->  | T50: 0 | V50: 0 | X50: Arbitre National
I51: =IF(F51<>"",VLOOKUP(X51,AAAADonnées!$A$3:$B$100,2,0),"") ->  | L51: =IF(G51<>"",IF(V51<>0,AAAADonnées!$D$3*V51*2,""),"") ->  | N51: =IF(Y51<>"",Y51*AAAADonnées!$C$3,"") ->  | P51: =IF(Z51<>"",Z51*AAAADonnées!$E$3,AA51) ->  | T51: 0 | V51: 0 | X51: Arbitre National
I52: =IF(F52<>"",VLOOKUP(X52,AAAADonnées!$A$3:$B$100,2,0),"") ->  | L52: =IF(G52<>"",IF(V52<>0,AAAADonnées!$D$3*V52*2,""),"") ->  | N52: =IF(Y52<>"",Y52*AAAADonnées!$C$3,"") ->  | P52: =IF(Z52<>"",Z52*AAAADonnées!$E$3,AA52) ->  | T52: 0 | V52: 0 | X52: Arbitre National
I53: =IF(F53<>"",VLOOKUP(X53,AAAADonnées!$A$3:$B$100,2,0),"") ->  | L53: =IF(G53<>"",IF(V53<>0,AAAADonnées!$D$3*V53*2,""),"") ->  | N53: =IF(Y53<>"",Y53*AAAADonnées!$C$3,"") ->  | P53: =IF(Z53<>"",Z53*AAAADonnées!$E$3,AA53) ->  | T53: 0 | V53: 0 | X53: Arbitre National
I54: =IF(F54<>"",VLOOKUP(X54,AAAADonnées!$A$3:$B$100,2,0),"") ->  | L54: =IF(G54<>"",IF(V54<>0,AAAADonnées!$D$3*V54*2,""),"") ->  | N54: =IF(Y54<>"",Y54*AAAADonnées!$C$3,"") ->  | P54: =IF(Z54<>"",Z54*AAAADonnées!$E$3,AA54) ->  | T54: 0 | V54: 0 | X54: Arbitre National
I55: =IF(F55<>"",VLOOKUP(X55,AAAADonnées!$A$3:$B$100,2,0),"") ->  | L55: =IF(G55<>"",IF(V55<>0,AAAADonnées!$D$3*V55*2,""),"") ->  | N55: =IF(Y55<>"",Y55*AAAADonnées!$C$3,"") ->  | P55: =IF(Z55<>"",Z55*AAAADonnées!$E$3,AA55) ->  | T55: 0 | V55: 0 | X55: Arbitre National
I56: =IF(F56<>"",VLOOKUP(X56,AAAADonnées!$A$3:$B$100,2,0),"") ->  | L56: =IF(G56<>"",IF(V56<>0,AAAADonnées!$D$3*V56*2,""),"") ->  | N56: =IF(Y56<>"",Y56*AAAADonnées!$C$3,"") ->  | P56: =IF(Z56<>"",Z56*AAAADonnées!$E$3,AA56) ->  | T56: 0 | V56: 0 | X56: Arbitre National
I57: =IF(F57<>"",VLOOKUP(X57,AAAADonnées!$A$3:$B$100,2,0),"") ->  | L57: =IF(G57<>"",IF(V57<>0,AAAADonnées!$D$3*V57*2,""),"") ->  | N57: =IF(Y57<>"",Y57*AAAADonnées!$C$3,"") ->  | P57: =IF(Z57<>"",Z57*AAAADonnées!$E$3,AA57) ->  | T57: 0 | V57: 0 | X57: Arbitre National
I58: =IF(F58<>"",VLOOKUP(X58,AAAADonnées!$A$3:$B$100,2,0),"") ->  | L58: =IF(G58<>"",IF(V58<>0,AAAADonnées!$D$3*V58*2,""),"") ->  | N58: =IF(Y58<>"",Y58*AAAADonnées!$C$3,"") ->  | P58: =IF(Z58<>"",Z58*AAAADonnées!$E$3,AA58) ->  | T58: 0 | V58: 0 | X58: Arbitre National
I59: =IF(F59<>"",VLOOKUP(X59,AAAADonnées!$A$3:$B$100,2,0),"") ->  | L59: =IF(G59<>"",IF(V59<>0,AAAADonnées!$D$3*V59*2,""),"") ->  | N59: =IF(Y59<>"",Y59*AAAADonnées!$C$3,"") ->  | P59: =IF(Z59<>"",Z59*AAAADonnées!$E$3,AA59) ->  | T59: 0 | V59: 0 | X59: Arbitre National
I60: =IF(F60<>"",VLOOKUP(X60,AAAADonnées!$A$3:$B$100,2,0),"") ->  | L60: =IF(G60<>"",IF(V60<>0,AAAADonnées!$D$3*V60*2,""),"") ->  | N60: =IF(Y60<>"",Y60*AAAADonnées!$C$3,"") ->  | P60: =IF(Z60<>"",Z60*AAAADonnées!$E$3,AA60) ->  | T60: 0 | V60: 0 | X60: Arbitre National
I61: =IF(F61<>"",VLOOKUP(X61,AAAADonnées!$A$3:$B$100,2,0),"") ->  | L61: =IF(G61<>"",IF(V61<>0,AAAADonnées!$D$3*V61*2,""),"") ->  | N61: =IF(Y61<>"",Y61*AAAADonnées!$C$3,"") ->  | P61: =IF(Z61<>"",Z61*AAAADonnées!$E$3,AA61) ->  | T61: 0 | V61: 0 | X61: Arbitre National
I62: =IF(F62<>"",VLOOKUP(X62,AAAADonnées!$A$3:$B$100,2,0),"") ->  | L62: =IF(G62<>"",IF(V62<>0,AAAADonnées!$D$3*V62*2,""),"") ->  | N62: =IF(Y62<>"",Y62*AAAADonnées!$C$3,"") ->  | P62: =IF(Z62<>"",Z62*AAAADonnées!$E$3,AA62) ->  | T62: 0 | V62: 0 | X62: Arbitre National
I63: =IF(F63<>"",VLOOKUP(X63,AAAADonnées!$A$3:$B$100,2,0),"") ->  | L63: =IF(G63<>"",IF(V63<>0,AAAADonnées!$D$3*V63*2,""),"") ->  | N63: =IF(Y63<>"",Y63*AAAADonnées!$C$3,"") ->  | P63: =IF(Z63<>"",Z63*AAAADonnées!$E$3,AA63) ->  | T63: 0 | V63: 0 | X63: Arbitre National
I64: =IF(F64<>"",VLOOKUP(X64,AAAADonnées!$A$3:$B$100,2,0),"") ->  | L64: =IF(G64<>"",IF(V64<>0,AAAADonnées!$D$3*V64*2,""),"") ->  | N64: =IF(Y64<>"",Y64*AAAADonnées!$C$3,"") ->  | P64: =IF(Z64<>"",Z64*AAAADonnées!$E$3,AA64) ->  | T64: 0 | V64: 0 | X64: Arbitre National
I65: =IF(F65<>"",VLOOKUP(X65,AAAADonnées!$A$3:$B$100,2,0),"") ->  | L65: =IF(G65<>"",IF(V65<>0,AAAADonnées!$D$3*V65*2,""),"") ->  | N65: =IF(Y65<>"",Y65*AAAADonnées!$C$3,"") ->  | P65: =IF(Z65<>"",Z65*AAAADonnées!$E$3,AA65) ->  | T65: 0 | V65: 0 | X65: Arbitre National
I66: =IF(F66<>"",VLOOKUP(X66,AAAADonnées!$A$3:$B$100,2,0),"") ->  | L66: =IF(G66<>"",IF(V66<>0,AAAADonnées!$D$3*V66*2,""),"") ->  | N66: =IF(Y66<>"",Y66*AAAADonnées!$C$3,"") ->  | P66: =IF(Z66<>"",Z66*AAAADonnées!$E$3,AA66) ->  | T66: 0 | V66: 0 | X66: Arbitre National
I67: =IF(F67<>"",VLOOKUP(X67,AAAADonnées!$A$3:$B$100,2,0),"") ->  | L67: =IF(G67<>"",IF(V67<>0,AAAADonnées!$D$3*V67*2,""),"") ->  | N67: =IF(Y67<>"",Y67*AAAADonnées!$C$3,"") ->  | P67: =IF(Z67<>"",Z67*AAAADonnées!$E$3,AA67) ->  | T67: =SUM(I67:S67) -> 0 | V67: 0 | X67: Arbitre National
I68: =SUM(I43:I67)+I31 -> 3500 | J68: =SUM(J43:K67)+J31 -> 0 | L68: =SUM(L43:M67)+L31 -> 3430 | N68: =SUM(N43:O67)+N31 -> 2500 | P68: =SUM(P43:Q67)+P31 -> 3000 | R68: =SUM(R43:S67)+R31 -> 0 | T68: =T31+SUM(T43:T67) -> 12430
A70: Mode de règlement: | G70: Arrêté à la somme de: | I70: =IF(F43<>"",PROPER(CONCATENATE(ConvNumberLetter(T68)," Dinars")),"") -> 
H72: Le Président | M72: Le Trésorier | S72: l'Intéressé
C75: =C38 -> MOHAMMEDI | T75: FABB
C76: =C39 -> MAATKAS | T76: TRÉSORERIE
H77: =H40 -> Arbitre | J77: =J40 -> National | S77: SAISON 2017/2018
A78: Report | I78: =I68 -> 3500 | J78: =J68 -> 0 | L78: =L68 -> 3430 | N78: =N68 -> 2500 | P78: =P68 -> 3000 | R78: =R68 -> 0 | T78: =T68 -> 12430
A79: Journée | B79: Date | C79: Jour | D79: Rencontres | F79: Catégories | G79: Domiciliation | H79: Horaire | I79: Match | J79: Forfait | K79: Aéroport | L79: Transport | M79: par route 7 DA-Km | N79: Hébergement | O79: 2500 DA nuitée | P79: Restauration | Q79: 1000 DA | R79: Forfait suivant | S79: domiciliation | T79: Total | V79: Dist - KM | Y79: Heb. | Z79: Nbr. Repas | AA79: Repas
I80: =IF(F80<>"",VLOOKUP(X80,AAAADonnées!$A$3:$B$100,2,0),"") ->  | L80: =IF(G80<>"",IF(V80<>0,AAAADonnées!$D$3*V80*2,""),"") ->  | N80: =IF(Y80<>"",Y80*AAAADonnées!$C$3,"") ->  | P80: =IF(Z80<>"",Z80*AAAADonnées!$E$3,AA80) ->  | R80: =IF(AND(G80<>"",V80=0),500,"") ->  | T80: =SUM(I80:S80) -> 0 | V80: =IFERROR(INDEX(TABLEDist,MATCH($C$2,Depart,0),MATCH(G80,Arrivee,0)),0) -> 0 | W80: =IF(H80<>"",H80/24,"") ->  | X80: =CONCATENATE(F80," ",$H$3," ",$J$3) -> Arbitre National | Y80: =IF(V80<200,"",IF(V80<500,1,2)) ->  | Z80: =IF(Y80=1,3,IF(Y80=2,5,"")) ->  | AA80: =IF(AND(AND(Y80="",V80<>0,W80<0.0261)),1000,"") -> 
I81: =IF(F81<>"",VLOOKUP(X81,AAAADonnées!$A$3:$B$100,2,0),"") ->  | L81: =IF(G81<>"",IF(V81<>0,AAAADonnées!$D$3*V81*2,""),"") ->  | N81: =IF(Y81<>"",Y81*AAAADonnées!$C$3,"") ->  | P81: =IF(Z81<>"",Z81*AAAADonnées!$E$3,AA81) ->  | R81: =IF(AND(G81<>"",V81=0),500,"") ->  | T81: =SUM(I81:S81) -> 0 | V81: 0 | X81: Arbitre National | AA81: =IF(AND(AND(Y81="",V81<>0,W81<0.0261)),1000,"") -> 
I82: =IF(F82<>"",VLOOKUP(X82,AAAADonnées!$A$3:$B$100,2,0),"") ->  | L82: =IF(G82<>"",IF(V82<>0,AAAADonnées!$D$3*V82*2,""),"") ->  | N82: =IF(Y82<>"",Y82*AAAADonnées!$C$3,"") ->  | P82: =IF(Z82<>"",Z82*AAAADonnées!$E$3,AA82) ->  | T82: =SUM(I82:S82) -> 0 | V82: 0 | X82: Arbitre National
I83: =IF(F83<>"",VLOOKUP(X83,AAAADonnées!$A$3:$B$100,2,0),"") ->  | L83: =IF(G83<>"",IF(V83<>0,AAAADonnées!$D$3*V83*2,""),"") ->  | N83: =IF(Y83<>"",Y83*AAAADonnées!$C$3,"") ->  | P83: =IF(Z83<>"",Z83*AAAADonnées!$E$3,AA83) ->  | T83: 0 | V83: 0 | X83: Arbitre National
I84: =IF(F84<>"",VLOOKUP(X84,AAAADonnées!$A$3:$B$100,2,0),"") ->  | L84: =IF(G84<>"",IF(V84<>0,AAAADonnées!$D$3*V84*2,""),"") ->  | N84: =IF(Y84<>"",Y84*AAAADonnées!$C$3,"") ->  | P84: =IF(Z84<>"",Z84*AAAADonnées!$E$3,AA84) ->  | T84: 0 | V84: 0 | X84: Arbitre National
I85: =IF(F85<>"",VLOOKUP(X85,AAAADonnées!$A$3:$B$100,2,0),"") ->  | L85: =IF(G85<>"",IF(V85<>0,AAAADonnées!$D$3*V85*2,""),"") ->  | N85: =IF(Y85<>"",Y85*AAAADonnées!$C$3,"") ->  | P85: =IF(Z85<>"",Z85*AAAADonnées!$E$3,AA85) ->  | T85: 0 | V85: 0 | X85: Arbitre National
I86: =IF(F86<>"",VLOOKUP(X86,AAAADonnées!$A$3:$B$100,2,0),"") ->  | L86: =IF(G86<>"",IF(V86<>0,AAAADonnées!$D$3*V86*2,""),"") ->  | N86: =IF(Y86<>"",Y86*AAAADonnées!$C$3,"") ->  | P86: =IF(Z86<>"",Z86*AAAADonnées!$E$3,AA86) ->  | T86: 0 | V86: 0 | X86: Arbitre National
I87: =IF(F87<>"",VLOOKUP(X87,AAAADonnées!$A$3:$B$100,2,0),"") ->  | L87: =IF(G87<>"",IF(V87<>0,AAAADonnées!$D$3*V87*2,""),"") ->  | N87: =IF(Y87<>"",Y87*AAAADonnées!$C$3,"") ->  | P87: =IF(Z87<>"",Z87*AAAADonnées!$E$3,AA87) ->  | T87: 0 | V87: 0 | X87: Arbitre National
I88: =IF(F88<>"",VLOOKUP(X88,AAAADonnées!$A$3:$B$100,2,0),"") ->  | L88: =IF(G88<>"",IF(V88<>0,AAAADonnées!$D$3*V88*2,""),"") ->  | N88: =IF(Y88<>"",Y88*AAAADonnées!$C$3,"") ->  | P88: =IF(Z88<>"",Z88*AAAADonnées!$E$3,AA88) ->  | T88: 0 | V88: 0 | X88: Arbitre National
I89: =IF(F89<>"",VLOOKUP(X89,AAAADonnées!$A$3:$B$100,2,0),"") ->  | L89: =IF(G89<>"",IF(V89<>0,AAAADonnées!$D$3*V89*2,""),"") ->  | N89: =IF(Y89<>"",Y89*AAAADonnées!$C$3,"") ->  | P89: =IF(Z89<>"",Z89*AAAADonnées!$E$3,AA89) ->  | T89: 0 | V89: 0 | X89: Arbitre National
I90: =IF(F90<>"",VLOOKUP(X90,AAAADonnées!$A$3:$B$100,2,0),"") ->  | L90: =IF(G90<>"",IF(V90<>0,AAAADonnées!$D$3*V90*2,""),"") ->  | N90: =IF(Y90<>"",Y90*AAAADonnées!$C$3,"") ->  | P90: =IF(Z90<>"",Z90*AAAADonnées!$E$3,AA90) ->  | T90: 0 | V90: 0 | X90: Arbitre National
I91: =IF(F91<>"",VLOOKUP(X91,AAAADonnées!$A$3:$B$100,2,0),"") ->  | L91: =IF(G91<>"",IF(V91<>0,AAAADonnées!$D$3*V91*2,""),"") ->  | N91: =IF(Y91<>"",Y91*AAAADonnées!$C$3,"") ->  | P91: =IF(Z91<>"",Z91*AAAADonnées!$E$3,AA91) ->  | T91: 0 | V91: 0 | X91: Arbitre National
I92: =IF(F92<>"",VLOOKUP(X92,AAAADonnées!$A$3:$B$100,2,0),"") ->  | L92: =IF(G92<>"",IF(V92<>0,AAAADonnées!$D$3*V92*2,""),"") ->  | N92: =IF(Y92<>"",Y92*AAAADonnées!$C$3,"") ->  | P92: =IF(Z92<>"",Z92*AAAADonnées!$E$3,AA92) ->  | T92: 0 | V92: 0 | X92: Arbitre National
I93: =IF(F93<>"",VLOOKUP(X93,AAAADonnées!$A$3:$B$100,2,0),"") ->  | L93: =IF(G93<>"",IF(V93<>0,AAAADonnées!$D$3*V93*2,""),"") ->  | N93: =IF(Y93<>"",Y93*AAAADonnées!$C$3,"") ->  | P93: =IF(Z93<>"",Z93*AAAADonnées!$E$3,AA93) ->  | T93: 0 | V93: 0 | X93: Arbitre National
I94: =IF(F94<>"",VLOOKUP(X94,AAAADonnées!$A$3:$B$100,2,0),"") ->  | L94: =IF(G94<>"",IF(V94<>0,AAAADonnées!$D$3*V94*2,""),"") ->  | N94: =IF(Y94<>"",Y94*AAAADonnées!$C$3,"") ->  | P94: =IF(Z94<>"",Z94*AAAADonnées!$E$3,AA94) ->  | T94: 0 | V94: 0 | X94: Arbitre National
I95: =IF(F95<>"",VLOOKUP(X95,AAAADonnées!$A$3:$B$100,2,0),"") ->  | L95: =IF(G95<>"",IF(V95<>0,AAAADonnées!$D$3*V95*2,""),"") ->  | N95: =IF(Y95<>"",Y95*AAAADonnées!$C$3,"") ->  | P95: =IF(Z95<>"",Z95*AAAADonnées!$E$3,AA95) ->  | T95: 0 | V95: 0 | X95: Arbitre National
I96: =IF(F96<>"",VLOOKUP(X96,AAAADonnées!$A$3:$B$100,2,0),"") ->  | L96: =IF(G96<>"",IF(V96<>0,AAAADonnées!$D$3*V96*2,""),"") ->  | N96: =IF(Y96<>"",Y96*AAAADonnées!$C$3,"") ->  | P96: =IF(Z96<>"",Z96*AAAADonnées!$E$3,AA96) ->  | T96: 0 | V96: 0 | X96: Arbitre National
I97: =IF(F97<>"",VLOOKUP(X97,AAAADonnées!$A$3:$B$100,2,0),"") ->  | L97: =IF(G97<>"",IF(V97<>0,AAAADonnées!$D$3*V97*2,""),"") ->  | N97: =IF(Y97<>"",Y97*AAAADonnées!$C$3,"") ->  | P97: =IF(Z97<>"",Z97*AAAADonnées!$E$3,AA97) ->  | T97: 0 | V97: 0 | X97: Arbitre National
I98: =IF(F98<>"",VLOOKUP(X98,AAAADonnées!$A$3:$B$100,2,0),"") ->  | L98: =IF(G98<>"",IF(V98<>0,AAAADonnées!$D$3*V98*2,""),"") ->  | N98: =IF(Y98<>"",Y98*AAAADonnées!$C$3,"") ->  | P98: =IF(Z98<>"",Z98*AAAADonnées!$E$3,AA98) ->  | T98: 0 | V98: 0 | X98: Arbitre National
I99: =IF(F99<>"",VLOOKUP(X99,AAAADonnées!$A$3:$B$100,2,0),"") ->  | L99: =IF(G99<>"",IF(V99<>0,AAAADonnées!$D$3*V99*2,""),"") ->  | N99: =IF(Y99<>"",Y99*AAAADonnées!$C$3,"") ->  | P99: =IF(Z99<>"",Z99*AAAADonnées!$E$3,AA99) ->  | T99: 0 | V99: 0 | X99: Arbitre National
I100: =IF(F100<>"",VLOOKUP(X100,AAAADonnées!$A$3:$B$100,2,0),"") ->  | L100: =IF(G100<>"",IF(V100<>0,AAAADonnées!$D$3*V100*2,""),"") ->  | N100: =IF(Y100<>"",Y100*AAAADonnées!$C$3,"") ->  | P100: =IF(Z100<>"",Z100*AAAADonnées!$E$3,AA100) ->  | T100: 0 | V100: 0 | X100: Arbitre National
I101: =IF(F101<>"",VLOOKUP(X101,AAAADonnées!$A$3:$B$100,2,0),"") ->  | L101: =IF(G101<>"",IF(V101<>0,AAAADonnées!$D$3*V101*2,""),"") ->  | N101: =IF(Y101<>"",Y101*AAAADonnées!$C$3,"") ->  | P101: =IF(Z101<>"",Z101*AAAADonnées!$E$3,AA101) ->  | T101: 0 | V101: 0 | X101: Arbitre National
I102: =IF(F102<>"",VLOOKUP(X102,AAAADonnées!$A$3:$B$100,2,0),"") ->  | L102: =IF(G102<>"",IF(V102<>0,AAAADonnées!$D$3*V102*2,""),"") ->  | N102: =IF(Y102<>"",Y102*AAAADonnées!$C$3,"") ->  | P102: =IF(Z102<>"",Z102*AAAADonnées!$E$3,AA102) ->  | T102: 0 | V102: 0 | X102: Arbitre National
I103: =IF(F103<>"",VLOOKUP(X103,AAAADonnées!$A$3:$B$100,2,0),"") ->  | L103: =IF(G103<>"",IF(V103<>0,AAAADonnées!$D$3*V103*2,""),"") ->  | N103: =IF(Y103<>"",Y103*AAAADonnées!$C$3,"") ->  | P103: =IF(Z103<>"",Z103*AAAADonnées!$E$3,AA103) ->  | T103: 0 | V103: 0 | X103: Arbitre National
I104: =IF(F104<>"",VLOOKUP(X104,AAAADonnées!$A$3:$B$100,2,0),"") ->  | L104: =IF(G104<>"",IF(V104<>0,AAAADonnées!$D$3*V104*2,""),"") ->  | N104: =IF(Y104<>"",Y104*AAAADonnées!$C$3,"") ->  | P104: =IF(Z104<>"",Z104*AAAADonnées!$E$3,AA104) ->  | T104: =SUM(I104:S104) -> 0 | V104: 0 | X104: Arbitre National | Y104: =IF(V104<200,"",IF(V104<500,1,2)) ->  | Z104: =IF(Y104=1,3,IF(Y104=2,5,"")) -> 
I105: =SUM(I80:I104)+I68 -> 3500 | J105: =SUM(J80:K104)+J68 -> 0 | L105: =SUM(L80:M104)+L68 -> 3430 | N105: =SUM(N80:O104)+N68 -> 2500 | P105: =SUM(P80:Q104)+P68 -> 3000 | R105: =SUM(R80:S104)+R68 -> 0 | T105: =T68+SUM(T80:T104) -> 12430
A107: Mode de règlement: | G107: Arrêté à la somme de: | I107: =IF(F80<>"",PROPER(CONCATENATE(ConvNumberLetter(T105)," Dinars")),"") -> 
H109: Le Président | M109: Le Trésorier | S109: l'Intéressé

Sheet KETFI
C1: KETFI | T1: FABB
A2: Nbr Match | C2: SETIF | T2: TRÉSORERIE
A3: =COUNTA(D6:D30,D43:D67) -> 1 | B3: Est | H3: Commissaire | J3: Technique | S3: SAISON 2017/2018
A5: Journée | B5: Date | C5: Jour | D5: Rencontres | F5: Catégories | G5: Domiciliation | H5: Horaire | I5: Match | J5: Forfait | K5: Aéroport | L5: Transport | M5: par route 7 DA-Km | N5: Hébergement | O5: 2500 DA nuitée | P5: Restauration | Q5: 1000 DA | R5: Forfait suivant | S5: domiciliation | T5: Total | V5: Dist-Km | Y5: Heb. | Z5: Nbr. Repas | AA5: Repas
B6: 2018-10-12 | C6: =IF(B6<>"",LEFT(PROPER(TEXT(B6,"jjjj")),3),"") -> Ven | D6: IRBBA | E6: OSBBA | F6: SM | G6: BBA | H6: 16:00:00 | I6: =IF(F6<>"",VLOOKUP(X6,AAAADonnées!$A$3:$B$100,2,0),"") -> 1800 | L6: =IF(G6<>"",IF(V6<>0,AAAADonnées!$D$3*V6*2,""),"") -> 910 | N6: =IF(Y6<>"",Y6*AAAADonnées!$C$3,"") ->  | P6: =IF(Z6<>"",Z6*AAAADonnées!$E$3,AA6) ->  | R6: =IF(AND(G6<>"",V6=0),500,"") ->  | T6: =SUM(I6:S6) -> 2710 | V6: =IFERROR(INDEX(TABLEDist,MATCH($C$2,Depart,0),MATCH(G6,Arrivee,0)),0) -> 65 | W6: =IF(H6<>"",H6/24,"") -> 0.02777777778 | X6: =CONCATENATE(F6," ",$H$3," ",$J$3) -> SM Commissaire Technique | Y6: =IF(V6<200,"",IF(V6<500,1,2)) ->  | Z6: =IF(Y6=1,3,IF(Y6=2,5,"")) ->  | AA6: =IF(AND(AND(Y6="",V6<>0,W6<0.0261)),1000,"") ->  | AB6: =IF(B6>0,B6,"") -> 2018-10-12 | AC6: =IF(AND(AB6<>"",AB6=Recap!B4),SUMPRODUCT(($B$6:$B$30=AB6)*($T$6:$T$30)),"") -> 2710
C7: =IF(B7<>"",LEFT(PROPER(TEXT(B7,"jjjj")),3),"") ->  | I7: =IF(F7<>"",VLOOKUP(X7,AAAADonnées!$A$3:$B$100,2,0),"") ->  | L7: =IF(G7<>"",IF(V7<>0,AAAADonnées!$D$3*V7*2,""),"") ->  | N7: =IF(Y7<>"",Y7*AAAADonnées!$C$3,"") ->  | P7: =IF(Z7<>"",Z7*AAAADonnées!$E$3,AA7) ->  | R7: =IF(AND(G7<>"",V7=0),500,"") ->  | T7: =SUM(I7:S7) -> 0 | V7: 0 | W7: =IF(H7<>"",H7/24,"") ->  | X7: Commissaire Technique | Y7: =IF(V7<200,"",IF(V7<500,1,2)) ->  | Z7: =IF(Y7=1,3,IF(Y7=2,5,"")) ->  | AA7: =IF(AND(AND(Y7="",V7<>0,W7<0.0261)),1000,"") ->  | AB7: =IF(B7>0,B7,"") ->  | AC7: =IF(AND(AB7<>"",AB7=Recap!B5),SUMPRODUCT(($B$6:$B$30=AB7)*($T$6:$T$30)),"") -> 
I8: =IF(F8<>"",VLOOKUP(X8,AAAADonnées!$A$3:$B$100,2,0),"") ->  | L8: =IF(G8<>"",IF(V8<>0,AAAADonnées!$D$3*V8*2,""),"") ->  | N8: =IF(Y8<>"",Y8*AAAADonnées!$C$3,"") ->  | P8: =IF(Z8<>"",Z8*AAAADonnées!$E$3,AA8) ->  | T8: =SUM(I8:S8) -> 0 | V8: 0 | X8: Commissaire Technique | AC8: =IF(AND(AB8<>"",AB8=Recap!B6),SUMPRODUCT(($B$6:$B$30=AB8)*($T$6:$T$30)),"") -> 
I9: =IF(F9<>"",VLOOKUP(X9,AAAADonnées!$A$3:$B$100,2,0),"") ->  | L9: =IF(G9<>"",IF(V9<>0,AAAADonnées!$D$3*V9*2,""),"") ->  | N9: =IF(Y9<>"",Y9*AAAADonnées!$C$3,"") ->  | P9: =IF(Z9<>"",Z9*AAAADonnées!$E$3,AA9) ->  | T9: 0 | V9: 0 | X9: Commissaire Technique | AC9: =IF(AND(AB9<>"",AB9=Recap!B7),SUMPRODUCT(($B$6:$B$30=AB9)*($T$6:$T$30)),"") -> 
I10: =IF(F10<>"",VLOOKUP(X10,AAAADonnées!$A$3:$B$100,2,0),"") ->  | L10: =IF(G10<>"",IF(V10<>0,AAAADonnées!$D$3*V10*2,""),"") ->  | N10: =IF(Y10<>"",Y10*AAAADonnées!$C$3,"") ->  | P10: =IF(Z10<>"",Z10*AAAADonnées!$E$3,AA10) ->  | T10: 0 | V10: 0 | X10: Commissaire Technique | AC10: =IF(AND(AB10<>"",AB10=Recap!B8),SUMPRODUCT(($B$6:$B$30=AB10)*($T$6:$T$30)),"") -> 
I11: =IF(F11<>"",VLOOKUP(X11,AAAADonnées!$A$3:$B$100,2,0),"") ->  | L11: =IF(G11<>"",IF(V11<>0,AAAADonnées!$D$3*V11*2,""),"") ->  | N11: =IF(Y11<>"",Y11*AAAADonnées!$C$3,"") ->  | P11: =IF(Z11<>"",Z11*AAAADonnées!$E$3,AA11) ->  | T11: 0 | V11: 0 | X11: Commissaire Technique | AC11: =IF(AND(AB11<>"",AB11=Recap!B9),SUMPRODUCT(($B$6:$B$30=AB11)*($T$6:$T$30)),"") -> 
I12: =IF(F12<>"",VLOOKUP(X12,AAAADonnées!$A$3:$B$100,2,0),"") ->  | L12: =IF(G12<>"",IF(V12<>0,AAAADonnées!$D$3*V12*2,""),"") ->  | N12: =IF(Y12<>"",Y12*AAAADonnées!$C$3,"") ->  | P12: =IF(Z12<>"",Z12*AAAADonnées!$E$3,AA12) ->  | T12: 0 | V12: 0 | X12: Commissaire Technique | AC12: =IF(AND(AB12<>"",AB12=Recap!B10),SUMPRODUCT(($B$6:$B$30=AB12)*($T$6:$T$30)),"") -> 
I13: =IF(F13<>"",VLOOKUP(X13,AAAADonnées!$A$3:$B$100,2,0),"") ->  | L13: =IF(G13<>"",IF(V13<>0,AAAADonnées!$D$3*V13*2,""),"") ->  | N13: =IF(Y13<>"",Y13*AAAADonnées!$C$3,"") ->  | P13: =IF(Z13<>"",Z13*AAAADonnées!$E$3,AA13) ->  | T13: 0 | V13: 0 | X13: Commissaire Technique | AC13: =IF(AND(AB13<>"",AB13=Recap!B11),SUMPRODUCT(($B$6:$B$30=AB13)*($T$6:$T$30)),"") -> 
I14: =IF(F14<>"",VLOOKUP(X14,AAAADonnées!$A$3:$B$100,2,0),"") ->  | L14: =IF(G14<>"",IF(V14<>0,AAAADonnées!$D$3*V14*2,""),"") ->  | N14: =IF(Y14<>"",Y14*AAAADonnées!$C$3,"") ->  | P14: =IF(Z14<>"",Z14*AAAADonnées!$E$3,AA14) ->  | T14: 0 | V14: 0 | X14: Commissaire Technique | AC14: =IF(AND(AB14<>"",AB14=Recap!B12),SUMPRODUCT(($B$6:$B$30=AB14)*($T$6:$T$30)),"") -> 
I15: =IF(F15<>"",VLOOKUP(X15,AAAADonnées!$A$3:$B$100,2,0),"") ->  | L15: =IF(G15<>"",IF(V15<>0,AAAADonnées!$D$3*V15*2,""),"") ->  | N15: =IF(Y15<>"",Y15*AAAADonnées!$C$3,"") ->  | P15: =IF(Z15<>"",Z15*AAAADonnées!$E$3,AA15) ->  | T15: 0 | V15: 0 | X15: Commissaire Technique | AC15: =IF(AND(AB15<>"",AB15=Recap!B13),SUMPRODUCT(($B$6:$B$30=AB15)*($T$6:$T$30)),"") -> 
I16: =IF(F16<>"",VLOOKUP(X16,AAAADonnées!$A$3:$B$100,2,0),"") ->  | L16: =IF(G16<>"",IF(V16<>0,AAAADonnées!$D$3*V16*2,""),"") ->  | N16: =IF(Y16<>"",Y16*AAAADonnées!$C$3,"") ->  | P16: =IF(Z16<>"",Z16*AAAADonnées!$E$3,AA16) ->  | T16: 0 | V16: 0 | X16: Commissaire Technique | AC16: =IF(AND(AB16<>"",AB16=Recap!B14),SUMPRODUCT(($B$6:$B$30=AB16)*($T$6:$T$30)),"") -> 
I17: =IF(F17<>"",VLOOKUP(X17,AAAADonnées!$A$3:$B$100,2,0),"") ->  | L17: =IF(G17<>"",IF(V17<>0,AAAADonnées!$D$3*V17*2,""),"") ->  | N17: =IF(Y17<>"",Y17*AAAADonnées!$C$3,"") ->  | P17: =IF(Z17<>"",Z17*AAAADonnées!$E$3,AA17) ->  | T17: 0 | V17: 0 | X17: Commissaire Technique | AC17: =IF(AND(AB17<>"",AB17=Recap!B15),SUMPRODUCT(($B$6:$B$30=AB17)*($T$6:$T$30)),"") -> 
I18: =IF(F18<>"",VLOOKUP(X18,AAAADonnées!$A$3:$B$100,2,0),"") ->  | L18: =IF(G18<>"",IF(V18<>0,AAAADonnées!$D$3*V18*2,""),"") ->  | N18: =IF(Y18<>"",Y18*AAAADonnées!$C$3,"") ->  | P18: =IF(Z18<>"",Z18*AAAADonnées!$E$3,AA18) ->  | T18: 0 | V18: 0 | X18: Commissaire Technique | AC18: =IF(AND(AB18<>"",AB18=Recap!B16),SUMPRODUCT(($B$6:$B$30=AB18)*($T$6:$T$30)),"") -> 
I19: =IF(F19<>"",VLOOKUP(X19,AAAADonnées!$A$3:$B$100,2,0),"") ->  | L19: =IF(G19<>"",IF(V19<>0,AAAADonnées!$D$3*V19*2,""),"") ->  | N19: =IF(Y19<>"",Y19*AAAADonnées!$C$3,"") ->  | P19: =IF(Z19<>"",Z19*AAAADonnées!$E$3,AA19) ->  | T19: 0 | V19: 0 | X19: Commissaire Technique | AC19: =IF(AND(AB19<>"",AB19=Recap!B17),SUMPRODUCT(($B$6:$B$30=AB19)*($T$6:$T$30)),"") -> 
I20: =IF(F20<>"",VLOOKUP(X20,AAAADonnées!$A$3:$B$100,2,0),"") ->  | N20: =IF(Y20<>"",Y20*AAAADonnées!$C$3,"") ->  | P20: =IF(Z20<>"",Z20*AAAADonnées!$E$3,AA20) ->  | T20: 0 | V20: 0 | X20: Commissaire Technique | AC20: =IF(AND(AB20<>"",AB20=Recap!B18),SUMPRODUCT(($B$6:$B$30=AB20)*($T$6:$T$30)),"") -> 
I21: =IF(F21<>"",VLOOKUP(X21,AAAADonnées!$A$3:$B$100,2,0),"") ->  | L21: =IF(G21<>"",IF(V21<>0,AAAADonnées!$D$3*V21*2,""),"") ->  | N21: =IF(Y21<>"",Y21*AAAADonnées!$C$3,"") ->  | P21: =IF(Z21<>"",Z21*AAAADonnées!$E$3,AA21) ->  | T21: 0 | V21: 0 | X21: Commissaire Technique | AC21: =IF(AND(AB21<>"",AB21=Recap!B19),SUMPRODUCT(($B$6:$B$30=AB21)*($T$6:$T$30)),"") -> 
I22: =IF(F22<>"",VLOOKUP(X22,AAAADonnées!$A$3:$B$100,2,0),"") ->  | L22: =IF(G22<>"",IF(V22<>0,AAAADonnées!$D$3*V22*2,""),"") ->  | N22: =IF(Y22<>"",Y22*AAAADonnées!$C$3,"") ->  | P22: =IF(Z22<>"",Z22*AAAADonnées!$E$3,AA22) ->  | T22: 0 | V22: 0 | X22: Commissaire Technique | AC22: =IF(AND(AB22<>"",AB22=Recap!B20),SUMPRODUCT(($B$6:$B$30=AB22)*($T$6:$T$30)),"") -> 
I23: =IF(F23<>"",VLOOKUP(X23,AAAADonnées!$A$3:$B$100,2,0),"") ->  | L23: =IF(G23<>"",IF(V23<>0,AAAADonnées!$D$3*V23*2,""),"") ->  | N23: =IF(Y23<>"",Y23*AAAADonnées!$C$3,"") ->  | P23: =IF(Z23<>"",Z23*AAAADonnées!$E$3,AA23) ->  | T23: 0 | V23: 0 | X23: Commissaire Technique | AC23: =IF(AND(AB23<>"",AB23=Recap!B21),SUMPRODUCT(($B$6:$B$30=AB23)*($T$6:$T$30)),"") -> 
I24: =IF(F24<>"",VLOOKUP(X24,AAAADonnées!$A$3:$B$100,2,0),"") ->  | L24: =IF(G24<>"",IF(V24<>0,AAAADonnées!$D$3*V24*2,""),"") ->  | N24: =IF(Y24<>"",Y24*AAAADonnées!$C$3,"") ->  | P24: =IF(Z24<>"",Z24*AAAADonnées!$E$3,AA24) ->  | T24: 0 | V24: 0 | X24: Commissaire Technique | AC24: =IF(AND(AB24<>"",AB24=Recap!B22),SUMPRODUCT(($B$6:$B$30=AB24)*($T$6:$T$30)),"") -> 
I25: =IF(F25<>"",VLOOKUP(X25,AAAADonnées!$A$3:$B$100,2,0),"") ->  | L25: =IF(G25<>"",IF(V25<>0,AAAADonnées!$D$3*V25*2,""),"") ->  | N25: =IF(Y25<>"",Y25*AAAADonnées!$C$3,"") ->  | P25: =IF(Z25<>"",Z25*AAAADonnées!$E$3,AA25) ->  | T25: 0 | V25: 0 | X25: Commissaire Technique | AC25: =IF(AND(AB25<>"",AB25=Recap!B23),SUMPRODUCT(($B$6:$B$30=AB25)*($T$6:$T$30)),"") -> 
I26: =IF(F26<>"",VLOOKUP(X26,AAAADonnées!$A$3:$B$100,2,0),"") ->  | L26: =IF(G26<>"",IF(V26<>0,AAAADonnées!$D$3*V26*2,""),"") ->  | N26: =IF(Y26<>"",Y26*AAAADonnées!$C$3,"") ->  | P26: =IF(Z26<>"",Z26*AAAADonnées!$E$3,AA26) ->  | T26: 0 | V26: 0 | X26: Commissaire Technique | AC26: =IF(AND(AB26<>"",AB26=Recap!B24),SUMPRODUCT(($B$6:$B$30=AB26)*($T$6:$T$30)),"") -> 
I27: =IF(F27<>"",VLOOKUP(X27,AAAADonnées!$A$3:$B$100,2,0),"") ->  | L27: =IF(G27<>"",IF(V27<>0,AAAADonnées!$D$3*V27*2,""),"") ->  | N27: =IF(Y27<>"",Y27*AAAADonnées!$C$3,"") ->  | P27: =IF(Z27<>"",Z27*AAAADonnées!$E$3,AA27) ->  | T27: 0 | V27: 0 | X27: Commissaire Technique | AC27: =IF(AND(AB27<>"",AB27=Recap!B25),SUMPRODUCT(($B$6:$B$30=AB27)*($T$6:$T$30)),"") -> 
I28: =IF(F28<>"",VLOOKUP(X28,AAAADonnées!$A$3:$B$100,2,0),"") ->  | L28: =IF(G28<>"",IF(V28<>0,AAAADonnées!$D$3*V28*2,""),"") ->  | N28: =IF(Y28<>"",Y28*AAAADonnées!$C$3,"") ->  | P28: =IF(Z28<>"",Z28*AAAADonnées!$E$3,AA28) ->  | T28: 0 | V28: 0 | X28: Commissaire Technique | AC28: =IF(AND(AB28<>"",AB28=Recap!B26),SUMPRODUCT(($B$6:$B$30=AB28)*($T$6:$T$30)),"") -> 
C29: =IF(B29<>"",LEFT(PROPER(TEXT(B29,"jjjj")),3),"") ->  | I29: =IF(F29<>"",VLOOKUP(X29,AAAADonnées!$A$3:$B$100,2,0),"") ->  | L29: =IF(G29<>"",IF(V29<>0,AAAADonnées!$D$3*V29*2,""),"") ->  | N29: =IF(Y29<>"",Y29*AAAADonnées!$C$3,"") ->  | P29: =IF(Z29<>"",Z29*AAAADonnées!$E$3,AA29) ->  | T29: 0 | V29: 0 | X29: Commissaire Technique | AC29: =IF(AND(AB29<>"",AB29=Recap!B27),SUMPRODUCT(($B$6:$B$30=AB29)*($T$6:$T$30)),"") -> 
I30: =IF(F30<>"",VLOOKUP(X30,AAAADonnées!$A$3:$B$100,2,0),"") ->  | L30: =IF(G30<>"",IF(V30<>0,AAAADonnées!$D$3*V30*2,""),"") ->  | N30: =IF(Y30<>"",Y30*AAAADonnées!$C$3,"") ->  | P30: =IF(Z30<>"",Z30*AAAADonnées!$E$3,AA30) ->  | T30: =SUM(I30:S30) -> 0 | V30: 0 | X30: Commissaire Technique | AC30: =IF(AND(AB30<>"",AB30=Recap!B28),SUMPRODUCT(($B$6:$B$30=AB30)*($T$6:$T$30)),"") -> 
I31: =SUM(I6:I30) -> 1800 | J31: =SUM(J6:K30) -> 0 | L31: =SUM(L6:M30) -> 910 | N31: =SUM(N6:O30) -> 0 | P31: =SUM(P6:Q30) -> 0 | R31: =SUM(R6:S30) -> 0 | T31: =SUM(T6:T30) -> 2710
A33: Mode de règlement: | F33: Arrêté à la somme de: | H33: =IF(F43="",IF(T31<>0,PROPER(CONCATENATE(ConvNumberLetter(T31)," Dinars")),""),"") -> Deux Mille Sept Cent Dix Dinars
H35: Le Président | M35: Le Trésorier | S35: l'Intéressé
C38: =C1 -> KETFI | T38: FABB
C39: =C2 -> SETIF | T39: TRÉSORERIE
H40: =H3 -> Commissaire | J40: =J3 -> Technique | S40: SAISON 2017/2018
A41: Report | I41: =I31 -> 1800 | J41: =J31 -> 0 | L41: =L31 -> 910 | N41: =N31 -> 0 | P41: =P31 -> 0 | R41: =R31 -> 0 | T41: =T31 -> 2710
A42: Journée | B42: Date | C42: Jour | D42: Rencontres | F42: Catégories | G42: Domiciliation | H42: Horaire | I42: Match | J42: Forfait | K42: Aéroport | L42: Transport | M42: par route 7 DA-Km | N42: Hébergement | O42: 2500 DA nuitée | P42: Restauration | Q42: 1000 DA | R42: Forfait suivant | S42: domiciliation | T42: Total | V42: Dist - KM | Y42: Heb. | Z42: Nbr. Repas | AA42: Repas
C43: =IF(B43<>"",LEFT(PROPER(TEXT(B43,"jjjj")),3),"") ->  | I43: =IF(F43<>"",VLOOKUP(X43,AAAADonnées!$A$3:$B$100,2,0),"") ->  | L43: =IF(G43<>"",IF(V43<>0,AAAADonnées!$D$3*V43*2,""),"") ->  | N43: =IF(Y43<>"",Y43*AAAADonnées!$C$3,"") ->  | P43: =IF(Z43<>"",Z43*AAAADonnées!$E$3,AA43) ->  | R43: =IF(AND(G43<>"",V43=0),500,"") ->  | T43: =SUM(I43:S43) -> 0 | V43: =IFERROR(INDEX(TABLEDist,MATCH($C$2,Depart,0),MATCH(G43,Arrivee,0)),0) -> 0 | X43: =CONCATENATE(F43," ",$H$3," ",$J$3) -> Commissaire Technique | Y43: =IF(V43<200,"",IF(V43<500,1,2)) ->  | Z43: =IF(Y43=1,3,IF(Y43=2,5,"")) ->  | AA43: =IF(AND(AND(Y43="",V43<>0,W43<0.0261)),1000,"") -> 
C44: =IF(B44<>"",LEFT(PROPER(TEXT(B44,"jjjj")),3),"") ->  | I44: =IF(F44<>"",VLOOKUP(X44,AAAADonnées!$A$3:$B$100,2,0),"") ->  | L44: =IF(G44<>"",IF(V44<>0,AAAADonnées!$D$3*V44*2,""),"") ->  | N44: =IF(Y44<>"",Y44*AAAADonnées!$C$3,"") ->  | P44: =IF(Z44<>"",Z44*AAAADonnées!$E$3,AA44) ->  | R44: =IF(AND(G44<>"",V44=0),500,"") ->  | T44: =SUM(I44:S44) -> 0 | V44: 0 | X44: Commissaire Technique
I45: =IF(F45<>"",VLOOKUP(X45,AAAADonnées!$A$3:$B$100,2,0),"") ->  | L45: =IF(G45<>"",IF(V45<>0,AAAADonnées!$D$3*V45*2,""),"") ->  | N45: =IF(Y45<>"",Y45*AAAADonnées!$C$3,"") ->  | P45: =IF(Z45<>"",Z45*AAAADonnées!$E$3,AA45) ->  | T45: =SUM(I45:S45) -> 0 | V45: 0 | X45: Commissaire Technique
I46: =IF(F46<>"",VLOOKUP(X46,AAAADonnées!$A$3:$B$100,2,0),"") ->  | L46: =IF(G46<>"",IF(V46<>0,AAAADonnées!$D$3*V46*2,""),"") ->  | N46: =IF(Y46<>"",Y46*AAAADonnées!$C$3,"") ->  | P46: =IF(Z46<>"",Z46*AAAADonnées!$E$3,AA46) ->  | T46: 0 | V46: 0 | X46: Commissaire Technique
I47: =IF(F47<>"",VLOOKUP(X47,AAAADonnées!$A$3:$B$100,2,0),"") ->  | L47: =IF(G47<>"",IF(V47<>0,AAAADonnées!$D$3*V47*2,""),"") ->  | N47: =IF(Y47<>"",Y47*AAAADonnées!$C$3,"") ->  | P47: =IF(Z47<>"",Z47*AAAADonnées!$E$3,AA47) ->  | T47: 0 | V47: 0 | X47: Commissaire Technique
I48: =IF(F48<>"",VLOOKUP(X48,AAAADonnées!$A$3:$B$100,2,0),"") ->  | L48: =IF(G48<>"",IF(V48<>0,AAAADonnées!$D$3*V48*2,""),"") ->  | N48: =IF(Y48<>"",Y48*AAAADonnées!$C$3,"") ->  | P48: =IF(Z48<>"",Z48*AAAADonnées!$E$3,AA48) ->  | T48: 0 | V48: 0 | X48: Commissaire Technique
I49: =IF(F49<>"",VLOOKUP(X49,AAAADonnées!$A$3:$B$100,2,0),"") ->  | L49: =IF(G49<>"",IF(V49<>0,AAAADonnées!$D$3*V49*2,""),"") ->  | N49: =IF(Y49<>"",Y49*AAAADonnées!$C$3,"") ->  | P49: =IF(Z49<>"",Z49*AAAADonnées!$E$3,AA49) ->  | T49: 0 | V49: 0 | X49: Commissaire Technique
I50: =IF(F50<>"",VLOOKUP(X50,AAAADonnées!$A$3:$B$100,2,0),"") ->  | L50: =IF(G50<>"",IF(V50<>0,AAAADonnées!$D$3*V50*2,""),"") ->  | N50: =IF(Y50<>"",Y50*AAAADonnées!$C$3,"") ->  | P50: =IF(Z50<>"",Z50*AAAADonnées!$E$3,AA50) ->  | T50: 0 | V50: 0 | X50: Commissaire Technique
I51: =IF(F51<>"",VLOOKUP(X51,AAAADonnées!$A$3:$B$100,2,0),"") ->  | L51: =IF(G51<>"",IF(V51<>0,AAAADonnées!$D$3*V51*2,""),"") ->  | N51: =IF(Y51<>"",Y51*AAAADonnées!$C$3,"") ->  | P51: =IF(Z51<>"",Z51*AAAADonnées!$E$3,AA51) ->  | T51: 0 | V51: 0 | X51: Commissaire Technique
I52: =IF(F52<>"",VLOOKUP(X52,AAAADonnées!$A$3:$B$100,2,0),"") ->  | L52: =IF(G52<>"",IF(V52<>0,AAAADonnées!$D$3*V52*2,""),"") ->  | N52: =IF(Y52<>"",Y52*AAAADonnées!$C$3,"") ->  | P52: =IF(Z52<>"",Z52*AAAADonnées!$E$3,AA52) ->  | T52: 0 | V52: 0 | X52: Commissaire Technique
I53: =IF(F53<>"",VLOOKUP(X53,AAAADonnées!$A$3:$B$100,2,0),"") ->  | L53: =IF(G53<>"",IF(V53<>0,AAAADonnées!$D$3*V53*2,""),"") ->  | N53: =IF(Y53<>"",Y53*AAAADonnées!$C$3,"") ->  | P53: =IF(Z53<>"",Z53*AAAADonnées!$E$3,AA53) ->  | T53: 0 | V53: 0 | X53: Commissaire Technique
I54: =IF(F54<>"",VLOOKUP(X54,AAAADonnées!$A$3:$B$100,2,0),"") ->  | L54: =IF(G54<>"",IF(V54<>0,AAAADonnées!$D$3*V54*2,""),"") ->  | N54: =IF(Y54<>"",Y54*AAAADonnées!$C$3,"") ->  | P54: =IF(Z54<>"",Z54*AAAADonnées!$E$3,AA54) ->  | T54: 0 | V54: 0 | X54: Commissaire Technique
I55: =IF(F55<>"",VLOOKUP(X55,AAAADonnées!$A$3:$B$100,2,0),"") ->  | L55: =IF(G55<>"",IF(V55<>0,AAAADonnées!$D$3*V55*2,""),"") ->  | N55: =IF(Y55<>"",Y55*AAAADonnées!$C$3,"") ->  | P55: =IF(Z55<>"",Z55*AAAADonnées!$E$3,AA55) ->  | T55: 0 | V55: 0 | X55: Commissaire Technique
I56: =IF(F56<>"",VLOOKUP(X56,AAAADonnées!$A$3:$B$100,2,0),"") ->  | L56: =IF(G56<>"",IF(V56<>0,AAAADonnées!$D$3*V56*2,""),"") ->  | N56: =IF(Y56<>"",Y56*AAAADonnées!$C$3,"") ->  | P56: =IF(Z56<>"",Z56*AAAADonnées!$E$3,AA56) ->  | T56: 0 | V56: 0 | X56: Commissaire Technique
I57: =IF(F57<>"",VLOOKUP(X57,AAAADonnées!$A$3:$B$100,2,0),"") ->  | L57: =IF(G57<>"",IF(V57<>0,AAAADonnées!$D$3*V57*2,""),"") ->  | N57: =IF(Y57<>"",Y57*AAAADonnées!$C$3,"") ->  | P57: =IF(Z57<>"",Z57*AAAADonnées!$E$3,AA57) ->  | T57: 0 | V57: 0 | X57: Commissaire Technique
I58: =IF(F58<>"",VLOOKUP(X58,AAAADonnées!$A$3:$B$100,2,0),"") ->  | L58: =IF(G58<>"",IF(V58<>0,AAAADonnées!$D$3*V58*2,""),"") ->  | N58: =IF(Y58<>"",Y58*AAAADonnées!$C$3,"") ->  | P58: =IF(Z58<>"",Z58*AAAADonnées!$E$3,AA58) ->  | T58: 0 | V58: 0 | X58: Commissaire Technique
I59: =IF(F59<>"",VLOOKUP(X59,AAAADonnées!$A$3:$B$100,2,0),"") ->  | L59: =IF(G59<>"",IF(V59<>0,AAAADonnées!$D$3*V59*2,""),"") ->  | N59: =IF(Y59<>"",Y59*AAAADonnées!$C$3,"") ->  | P59: =IF(Z59<>"",Z59*AAAADonnées!$E$3,AA59) ->  | T59: 0 | V59: 0 | X59: Commissaire Technique
I60: =IF(F60<>"",VLOOKUP(X60,AAAADonnées!$A$3:$B$100,2,0),"") ->  | L60: =IF(G60<>"",IF(V60<>0,AAAADonnées!$D$3*V60*2,""),"") ->  | N60: =IF(Y60<>"",Y60*AAAADonnées!$C$3,"") ->  | P60: =IF(Z60<>"",Z60*AAAADonnées!$E$3,AA60) ->  | T60: 0 | V60: 0 | X60: Commissaire Technique
I61: =IF(F61<>"",VLOOKUP(X61,AAAADonnées!$A$3:$B$100,2,0),"") ->  | L61: =IF(G61<>"",IF(V61<>0,AAAADonnées!$D$3*V61*2,""),"") ->  | N61: =IF(Y61<>"",Y61*AAAADonnées!$C$3,"") ->  | P61: =IF(Z61<>"",Z61*AAAADonnées!$E$3,AA61) ->  | T61: 0 | V61: 0 | X61: Commissaire Technique
I62: =IF(F62<>"",VLOOKUP(X62,AAAADonnées!$A$3:$B$100,2,0),"") ->  | L62: =IF(G62<>"",IF(V62<>0,AAAADonnées!$D$3*V62*2,""),"") ->  | N62: =IF(Y62<>"",Y62*AAAADonnées!$C$3,"") ->  | P62: =IF(Z62<>"",Z62*AAAADonnées!$E$3,AA62) ->  | T62: 0 | V62: 0 | X62: Commissaire Technique
I63: =IF(F63<>"",VLOOKUP(X63,AAAADonnées!$A$3:$B$100,2,0),"") ->  | L63: =IF(G63<>"",IF(V63<>0,AAAADonnées!$D$3*V63*2,""),"") ->  | N63: =IF(Y63<>"",Y63*AAAADonnées!$C$3,"") ->  | P63: =IF(Z63<>"",Z63*AAAADonnées!$E$3,AA63) ->  | T63: 0 | V63: 0 | X63: Commissaire Technique
I64: =IF(F64<>"",VLOOKUP(X64,AAAADonnées!$A$3:$B$100,2,0),"") ->  | L64: =IF(G64<>"",IF(V64<>0,AAAADonnées!$D$3*V64*2,""),"") ->  | N64: =IF(Y64<>"",Y64*AAAADonnées!$C$3,"") ->  | P64: =IF(Z64<>"",Z64*AAAADonnées!$E$3,AA64) ->  | T64: 0 | V64: 0 | X64: Commissaire Technique
I65: =IF(F65<>"",VLOOKUP(X65,AAAADonnées!$A$3:$B$100,2,0),"") ->  | L65: =IF(G65<>"",IF(V65<>0,AAAADonnées!$D$3*V65*2,""),"") ->  | N65: =IF(Y65<>"",Y65*AAAADonnées!$C$3,"") ->  | P65: =IF(Z65<>"",Z65*AAAADonnées!$E$3,AA65) ->  | T65: 0 | V65: 0 | X65: Commissaire Technique
I66: =IF(F66<>"",VLOOKUP(X66,AAAADonnées!$A$3:$B$100,2,0),"") ->  | L66: =IF(G66<>"",IF(V66<>0,AAAADonnées!$D$3*V66*2,""),"") ->  | N66: =IF(Y66<>"",Y66*AAAADonnées!$C$3,"") ->  | P66: =IF(Z66<>"",Z66*AAAADonnées!$E$3,AA66) ->  | T66: 0 | V66: 0 | X66: Commissaire Technique
I67: =IF(F67<>"",VLOOKUP(X67,AAAADonnées!$A$3:$B$100,2,0),"") ->  | L67: =IF(G67<>"",IF(V67<>0,AAAADonnées!$D$3*V67*2,""),"") ->  | N67: =IF(Y67<>"",Y67*AAAADonnées!$C$3,"") ->  | P67: =IF(Z67<>"",Z67*AAAADonnées!$E$3,AA67) ->  | T67: =SUM(I67:S67) -> 0 | V67: 0 | X67: Commissaire Technique
I68: =SUM(I43:I67)+I31 -> 1800 | J68: =SUM(J43:K67)+J31 -> 0 | L68: =SUM(L43:M67)+L31 -> 910 | N68: =SUM(N43:O67)+N31 -> 0 | P68: =SUM(P43:Q67)+P31 -> 0 | R68: =SUM(R43:S67)+R31 -> 0 | T68: =T31+SUM(T43:T67) -> 2710
A70: Mode de règlement: | G70: Arrêté à la somme de: | I70: =IF(F43<>"",PROPER(CONCATENATE(ConvNumberLetter(T68)," Dinars")),"") -> 
H72: Le Président | M72: Le Trésorier | S72: l'Intéressé
C75: =C38 -> KETFI | T75: FABB
C76: =C39 -> SETIF | T76: TRÉSORERIE
H77: =H40 -> Commissaire | J77: =J40 -> Technique | S77: SAISON 2017/2018
A78: Report | I78: =I68 -> 1800 | J78: =J68 -> 0 | L78: =L68 -> 910 | N78: =N68 -> 0 | P78: =P68 -> 0 | R78: =R68 -> 0 | T78: =T68 -> 2710
A79: Journée | B79: Date | C79: Jour | D79: Rencontres | F79: Catégories | G79: Domiciliation | H79: Horaire | I79: Match | J79: Forfait | K79: Aéroport | L79: Transport | M79: par route 7 DA-Km | N79: Hébergement | O79: 2500 DA nuitée | P79: Restauration | Q79: 1000 DA | R79: Forfait suivant | S79: domiciliation | T79: Total | V79: Dist - KM | Y79: Heb. | Z79: Nbr. Repas | AA79: Repas
I80: =IF(F80<>"",VLOOKUP(X80,AAAADonnées!$A$3:$B$100,2,0),"") ->  | L80: =IF(G80<>"",IF(V80<>0,AAAADonnées!$D$3*V80*2,""),"") ->  | N80: =IF(Y80<>"",Y80*AAAADonnées!$C$3,"") ->  | P80: =IF(Z80<>"",Z80*AAAADonnées!$E$3,AA80) ->  | R80: =IF(AND(G80<>"",V80=0),500,"") ->  | T80: =SUM(I80:S80) -> 0 | V80: =IFERROR(INDEX(TABLEDist,MATCH($C$2,Depart,0),MATCH(G80,Arrivee,0)),0) -> 0 | W80: =IF(H80<>"",H80/24,"") ->  | X80: =CONCATENATE(F80," ",$H$3," ",$J$3) -> Commissaire Technique | Y80: =IF(V80<200,"",IF(V80<500,1,2)) ->  | Z80: =IF(Y80=1,3,IF(Y80=2,5,"")) ->  | AA80: =IF(AND(AND(Y80="",V80<>0,W80<0.0261)),1000,"") -> 
I81: =IF(F81<>"",VLOOKUP(X81,AAAADonnées!$A$3:$B$100,2,0),"") ->  | L81: =IF(G81<>"",IF(V81<>0,AAAADonnées!$D$3*V81*2,""),"") ->  | N81: =IF(Y81<>"",Y81*AAAADonnées!$C$3,"") ->  | P81: =IF(Z81<>"",Z81*AAAADonnées!$E$3,AA81) ->  | R81: =IF(AND(G81<>"",V81=0),500,"") ->  | T81: =SUM(I81:S81) -> 0 | V81: 0 | X81: Commissaire Technique | AA81: =IF(AND(AND(Y81="",V81<>0,W81<0.0261)),1000,"") -> 
I82: =IF(F82<>"",VLOOKUP(X82,AAAADonnées!$A$3:$B$100,2,0),"") ->  | L82: =IF(G82<>"",IF(V82<>0,AAAADonnées!$D$3*V82*2,""),"") ->  | N82: =IF(Y82<>"",Y82*AAAADonnées!$C$3,"") ->  | P82: =IF(Z82<>"",Z82*AAAADonnées!$E$3,AA82) ->  | T82: =SUM(I82:S82) -> 0 | V82: 0 | X82: Commissaire Technique
I83: =IF(F83<>"",VLOOKUP(X83,AAAADonnées!$A$3:$B$100,2,0),"") ->  | L83: =IF(G83<>"",IF(V83<>0,AAAADonnées!$D$3*V83*2,""),"") ->  | N83: =IF(Y83<>"",Y83*AAAADonnées!$C$3,"") ->  | P83: =IF(Z83<>"",Z83*AAAADonnées!$E$3,AA83) ->  | T83: 0 | V83: 0 | X83: Commissaire Technique
I84: =IF(F84<>"",VLOOKUP(X84,AAAADonnées!$A$3:$B$100,2,0),"") ->  | L84: =IF(G84<>"",IF(V84<>0,AAAADonnées!$D$3*V84*2,""),"") ->  | N84: =IF(Y84<>"",Y84*AAAADonnées!$C$3,"") ->  | P84: =IF(Z84<>"",Z84*AAAADonnées!$E$3,AA84) ->  | T84: 0 | V84: 0 | X84: Commissaire Technique
I85: =IF(F85<>"",VLOOKUP(X85,AAAADonnées!$A$3:$B$100,2,0),"") ->  | L85: =IF(G85<>"",IF(V85<>0,AAAADonnées!$D$3*V85*2,""),"") ->  | N85: =IF(Y85<>"",Y85*AAAADonnées!$C$3,"") ->  | P85: =IF(Z85<>"",Z85*AAAADonnées!$E$3,AA85) ->  | T85: 0 | V85: 0 | X85: Commissaire Technique
I86: =IF(F86<>"",VLOOKUP(X86,AAAADonnées!$A$3:$B$100,2,0),"") ->  | L86: =IF(G86<>"",IF(V86<>0,AAAADonnées!$D$3*V86*2,""),"") ->  | N86: =IF(Y86<>"",Y86*AAAADonnées!$C$3,"") ->  | P86: =IF(Z86<>"",Z86*AAAADonnées!$E$3,AA86) ->  | T86: 0 | V86: 0 | X86: Commissaire Technique
I87: =IF(F87<>"",VLOOKUP(X87,AAAADonnées!$A$3:$B$100,2,0),"") ->  | L87: =IF(G87<>"",IF(V87<>0,AAAADonnées!$D$3*V87*2,""),"") ->  | N87: =IF(Y87<>"",Y87*AAAADonnées!$C$3,"") ->  | P87: =IF(Z87<>"",Z87*AAAADonnées!$E$3,AA87) ->  | T87: 0 | V87: 0 | X87: Commissaire Technique
I88: =IF(F88<>"",VLOOKUP(X88,AAAADonnées!$A$3:$B$100,2,0),"") ->  | L88: =IF(G88<>"",IF(V88<>0,AAAADonnées!$D$3*V88*2,""),"") ->  | N88: =IF(Y88<>"",Y88*AAAADonnées!$C$3,"") ->  | P88: =IF(Z88<>"",Z88*AAAADonnées!$E$3,AA88) ->  | T88: 0 | V88: 0 | X88: Commissaire Technique
I89: =IF(F89<>"",VLOOKUP(X89,AAAADonnées!$A$3:$B$100,2,0),"") ->  | L89: =IF(G89<>"",IF(V89<>0,AAAADonnées!$D$3*V89*2,""),"") ->  | N89: =IF(Y89<>"",Y89*AAAADonnées!$C$3,"") ->  | P89: =IF(Z89<>"",Z89*AAAADonnées!$E$3,AA89) ->  | T89: 0 | V89: 0 | X89: Commissaire Technique
I90: =IF(F90<>"",VLOOKUP(X90,AAAADonnées!$A$3:$B$100,2,0),"") ->  | L90: =IF(G90<>"",IF(V90<>0,AAAADonnées!$D$3*V90*2,""),"") ->  | N90: =IF(Y90<>"",Y90*AAAADonnées!$C$3,"") ->  | P90: =IF(Z90<>"",Z90*AAAADonnées!$E$3,AA90) ->  | T90: 0 | V90: 0 | X90: Commissaire Technique
I91: =IF(F91<>"",VLOOKUP(X91,AAAADonnées!$A$3:$B$100,2,0),"") ->  | L91: =IF(G91<>"",IF(V91<>0,AAAADonnées!$D$3*V91*2,""),"") ->  | N91: =IF(Y91<>"",Y91*AAAADonnées!$C$3,"") ->  | P91: =IF(Z91<>"",Z91*AAAADonnées!$E$3,AA91) ->  | T91: 0 | V91: 0 | X91: Commissaire Technique
I92: =IF(F92<>"",VLOOKUP(X92,AAAADonnées!$A$3:$B$100,2,0),"") ->  | L92: =IF(G92<>"",IF(V92<>0,AAAADonnées!$D$3*V92*2,""),"") ->  | N92: =IF(Y92<>"",Y92*AAAADonnées!$C$3,"") ->  | P92: =IF(Z92<>"",Z92*AAAADonnées!$E$3,AA92) ->  | T92: 0 | V92: 0 | X92: Commissaire Technique
I93: =IF(F93<>"",VLOOKUP(X93,AAAADonnées!$A$3:$B$100,2,0),"") ->  | L93: =IF(G93<>"",IF(V93<>0,AAAADonnées!$D$3*V93*2,""),"") ->  | N93: =IF(Y93<>"",Y93*AAAADonnées!$C$3,"") ->  | P93: =IF(Z93<>"",Z93*AAAADonnées!$E$3,AA93) ->  | T93: 0 | V93: 0 | X93: Commissaire Technique
I94: =IF(F94<>"",VLOOKUP(X94,AAAADonnées!$A$3:$B$100,2,0),"") ->  | L94: =IF(G94<>"",IF(V94<>0,AAAADonnées!$D$3*V94*2,""),"") ->  | N94: =IF(Y94<>"",Y94*AAAADonnées!$C$3,"") ->  | P94: =IF(Z94<>"",Z94*AAAADonnées!$E$3,AA94) ->  | T94: 0 | V94: 0 | X94: Commissaire Technique
I95: =IF(F95<>"",VLOOKUP(X95,AAAADonnées!$A$3:$B$100,2,0),"") ->  | L95: =IF(G95<>"",IF(V95<>0,AAAADonnées!$D$3*V95*2,""),"") ->  | N95: =IF(Y95<>"",Y95*AAAADonnées!$C$3,"") ->  | P95: =IF(Z95<>"",Z95*AAAADonnées!$E$3,AA95) ->  | T95: 0 | V95: 0 | X95: Commissaire Technique
I96: =IF(F96<>"",VLOOKUP(X96,AAAADonnées!$A$3:$B$100,2,0),"") ->  | L96: =IF(G96<>"",IF(V96<>0,AAAADonnées!$D$3*V96*2,""),"") ->  | N96: =IF(Y96<>"",Y96*AAAADonnées!$C$3,"") ->  | P96: =IF(Z96<>"",Z96*AAAADonnées!$E$3,AA96) ->  | T96: 0 | V96: 0 | X96: Commissaire Technique
I97: =IF(F97<>"",VLOOKUP(X97,AAAADonnées!$A$3:$B$100,2,0),"") ->  | L97: =IF(G97<>"",IF(V97<>0,AAAADonnées!$D$3*V97*2,""),"") ->  | N97: =IF(Y97<>"",Y97*AAAADonnées!$C$3,"") ->  | P97: =IF(Z97<>"",Z97*AAAADonnées!$E$3,AA97) ->  | T97: 0 | V97: 0 | X97: Commissaire Technique
I98: =IF(F98<>"",VLOOKUP(X98,AAAADonnées!$A$3:$B$100,2,0),"") ->  | L98: =IF(G98<>"",IF(V98<>0,AAAADonnées!$D$3*V98*2,""),"") ->  | N98: =IF(Y98<>"",Y98*AAAADonnées!$C$3,"") ->  | P98: =IF(Z98<>"",Z98*AAAADonnées!$E$3,AA98) ->  | T98: 0 | V98: 0 | X98: Commissaire Technique
I99: =IF(F99<>"",VLOOKUP(X99,AAAADonnées!$A$3:$B$100,2,0),"") ->  | L99: =IF(G99<>"",IF(V99<>0,AAAADonnées!$D$3*V99*2,""),"") ->  | N99: =IF(Y99<>"",Y99*AAAADonnées!$C$3,"") ->  | P99: =IF(Z99<>"",Z99*AAAADonnées!$E$3,AA99) ->  | T99: 0 | V99: 0 | X99: Commissaire Technique
I100: =IF(F100<>"",VLOOKUP(X100,AAAADonnées!$A$3:$B$100,2,0),"") ->  | L100: =IF(G100<>"",IF(V100<>0,AAAADonnées!$D$3*V100*2,""),"") ->  | N100: =IF(Y100<>"",Y100*AAAADonnées!$C$3,"") ->  | P100: =IF(Z100<>"",Z100*AAAADonnées!$E$3,AA100) ->  | T100: 0 | V100: 0 | X100: Commissaire Technique
I101: =IF(F101<>"",VLOOKUP(X101,AAAADonnées!$A$3:$B$100,2,0),"") ->  | L101: =IF(G101<>"",IF(V101<>0,AAAADonnées!$D$3*V101*2,""),"") ->  | N101: =IF(Y101<>"",Y101*AAAADonnées!$C$3,"") ->  | P101: =IF(Z101<>"",Z101*AAAADonnées!$E$3,AA101) ->  | T101: 0 | V101: 0 | X101: Commissaire Technique
I102: =IF(F102<>"",VLOOKUP(X102,AAAADonnées!$A$3:$B$100,2,0),"") ->  | L102: =IF(G102<>"",IF(V102<>0,AAAADonnées!$D$3*V102*2,""),"") ->  | N102: =IF(Y102<>"",Y102*AAAADonnées!$C$3,"") ->  | P102: =IF(Z102<>"",Z102*AAAADonnées!$E$3,AA102) ->  | T102: 0 | V102: 0 | X102: Commissaire Technique
I103: =IF(F103<>"",VLOOKUP(X103,AAAADonnées!$A$3:$B$100,2,0),"") ->  | L103: =IF(G103<>"",IF(V103<>0,AAAADonnées!$D$3*V103*2,""),"") ->  | N103: =IF(Y103<>"",Y103*AAAADonnées!$C$3,"") ->  | P103: =IF(Z103<>"",Z103*AAAADonnées!$E$3,AA103) ->  | T103: 0 | V103: 0 | X103: Commissaire Technique
I104: =IF(F104<>"",VLOOKUP(X104,AAAADonnées!$A$3:$B$100,2,0),"") ->  | L104: =IF(G104<>"",IF(V104<>0,AAAADonnées!$D$3*V104*2,""),"") ->  | N104: =IF(Y104<>"",Y104*AAAADonnées!$C$3,"") ->  | P104: =IF(Z104<>"",Z104*AAAADonnées!$E$3,AA104) ->  | T104: =SUM(I104:S104) -> 0 | V104: 0 | X104: Commissaire Technique | Y104: =IF(V104<200,"",IF(V104<500,1,2)) ->  | Z104: =IF(Y104=1,3,IF(Y104=2,5,"")) -> 
I105: =SUM(I80:I104)+I68 -> 1800 | J105: =SUM(J80:K104)+J68 -> 0 | L105: =SUM(L80:M104)+L68 -> 910 | N105: =SUM(N80:O104)+N68 -> 0 | P105: =SUM(P80:Q104)+P68 -> 0 | R105: =SUM(R80:S104)+R68 -> 0 | T105: =T68+SUM(T80:T104) -> 2710
A107: Mode de règlement: | G107: Arrêté à la somme de: | I107: =IF(F80<>"",PROPER(CONCATENATE(ConvNumberLetter(T105)," Dinars")),"") -> 
H109: Le Président | M109: Le Trésorier | S109: l'Intéressé

Sheet ZAIM
C1: ZAIM | T1: FABB
A2: Nbr Match | C2: SETIF | T2: TRÉSORERIE
A3: =COUNTA(D6:D30,D43:D67) -> 1 | B3: Est | H3: Assistant | J3: Federal | S3: SAISON 2017/2018
A5: Journée | B5: Date | C5: Jour | D5: Rencontres | F5: Catégories | G5: Domiciliation | H5: Horaire | I5: Match | J5: Forfait | K5: Aéroport | L5: Transport | M5: par route 7 DA-Km | N5: Hébergement | O5: 2500 DA nuitée | P5: Restauration | Q5: 1000 DA | R5: Forfait suivant | S5: domiciliation | T5: Total | V5: Dist-Km | Y5: Heb. | Z5: Nbr. Repas | AA5: Repas
B6: 2018-10-12 | C6: =IF(B6<>"",LEFT(PROPER(TEXT(B6,"jjjj")),3),"") -> Ven | D6: IRBBA | E6: OSBBA | F6: SM | G6: BBA | H6: 16:00:00 | I6: =IF(F6<>"",VLOOKUP(X6,AAAADonnées!$A$3:$B$100,2,0),"") -> 1500 | L6: =IF(G6<>"",IF(V6<>0,AAAADonnées!$D$3*V6*2,""),"") -> 910 | N6: =IF(Y6<>"",Y6*AAAADonnées!$C$3,"") ->  | P6: =IF(Z6<>"",Z6*AAAADonnées!$E$3,AA6) ->  | R6: =IF(AND(G6<>"",V6=0),500,"") ->  | T6: =SUM(I6:S6) -> 2410 | V6: =IFERROR(INDEX(TABLEDist,MATCH($C$2,Depart,0),MATCH(G6,Arrivee,0)),0) -> 65 | W6: =IF(H6<>"",H6/24,"") -> 0.02777777778 | X6: =CONCATENATE(F6," ",$H$3," ",$J$3) -> SM Assistant Federal | Y6: =IF(V6<200,"",IF(V6<500,1,2)) ->  | Z6: =IF(Y6=1,3,IF(Y6=2,5,"")) ->  | AA6: =IF(AND(AND(Y6="",V6<>0,W6<0.0261)),1000,"") ->  | AB6: =IF(B6>0,B6,"") -> 2018-10-12 | AC6: =IF(AND(AB6<>"",AB6=Recap!B4),SUMPRODUCT(($B$6:$B$30=AB6)*($T$6:$T$30)),"") -> 2410
C7: =IF(B7<>"",LEFT(PROPER(TEXT(B7,"jjjj")),3),"") ->  | I7: =IF(F7<>"",VLOOKUP(X7,AAAADonnées!$A$3:$B$100,2,0),"") ->  | L7: =IF(G7<>"",IF(V7<>0,AAAADonnées!$D$3*V7*2,""),"") ->  | N7: =IF(Y7<>"",Y7*AAAADonnées!$C$3,"") ->  | P7: =IF(Z7<>"",Z7*AAAADonnées!$E$3,AA7) ->  | R7: =IF(AND(G7<>"",V7=0),500,"") ->  | T7: =SUM(I7:S7) -> 0 | V7: 0 | W7: =IF(H7<>"",H7/24,"") ->  | X7: Assistant Federal | Y7: =IF(V7<200,"",IF(V7<500,1,2)) ->  | Z7: =IF(Y7=1,3,IF(Y7=2,5,"")) ->  | AA7: =IF(AND(AND(Y7="",V7<>0,W7<0.0261)),1000,"") ->  | AB7: =IF(B7>0,B7,"") ->  | AC7: =IF(AND(AB7<>"",AB7=Recap!B5),SUMPRODUCT(($B$6:$B$30=AB7)*($T$6:$T$30)),"") -> 
I8: =IF(F8<>"",VLOOKUP(X8,AAAADonnées!$A$3:$B$100,2,0),"") ->  | L8: =IF(G8<>"",IF(V8<>0,AAAADonnées!$D$3*V8*2,""),"") ->  | N8: =IF(Y8<>"",Y8*AAAADonnées!$C$3,"") ->  | P8: =IF(Z8<>"",Z8*AAAADonnées!$E$3,AA8) ->  | T8: =SUM(I8:S8) -> 0 | V8: 0 | X8: Assistant Federal | AC8: =IF(AND(AB8<>"",AB8=Recap!B6),SUMPRODUCT(($B$6:$B$30=AB8)*($T$6:$T$30)),"") -> 
I9: =IF(F9<>"",VLOOKUP(X9,AAAADonnées!$A$3:$B$100,2,0),"") ->  | L9: =IF(G9<>"",IF(V9<>0,AAAADonnées!$D$3*V9*2,""),"") ->  | N9: =IF(Y9<>"",Y9*AAAADonnées!$C$3,"") ->  | P9: =IF(Z9<>"",Z9*AAAADonnées!$E$3,AA9) ->  | T9: 0 | V9: 0 | X9: Assistant Federal | AC9: =IF(AND(AB9<>"",AB9=Recap!B7),SUMPRODUCT(($B$6:$B$30=AB9)*($T$6:$T$30)),"") -> 
I10: =IF(F10<>"",VLOOKUP(X10,AAAADonnées!$A$3:$B$100,2,0),"") ->  | L10: =IF(G10<>"",IF(V10<>0,AAAADonnées!$D$3*V10*2,""),"") ->  | N10: =IF(Y10<>"",Y10*AAAADonnées!$C$3,"") ->  | P10: =IF(Z10<>"",Z10*AAAADonnées!$E$3,AA10) ->  | T10: 0 | V10: 0 | X10: Assistant Federal | AC10: =IF(AND(AB10<>"",AB10=Recap!B8),SUMPRODUCT(($B$6:$B$30=AB10)*($T$6:$T$30)),"") -> 
I11: =IF(F11<>"",VLOOKUP(X11,AAAADonnées!$A$3:$B$100,2,0),"") ->  | L11: =IF(G11<>"",IF(V11<>0,AAAADonnées!$D$3*V11*2,""),"") ->  | N11: =IF(Y11<>"",Y11*AAAADonnées!$C$3,"") ->  | P11: =IF(Z11<>"",Z11*AAAADonnées!$E$3,AA11) ->  | T11: 0 | V11: 0 | X11: Assistant Federal | AC11: =IF(AND(AB11<>"",AB11=Recap!B9),SUMPRODUCT(($B$6:$B$30=AB11)*($T$6:$T$30)),"") -> 
I12: =IF(F12<>"",VLOOKUP(X12,AAAADonnées!$A$3:$B$100,2,0),"") ->  | L12: =IF(G12<>"",IF(V12<>0,AAAADonnées!$D$3*V12*2,""),"") ->  | N12: =IF(Y12<>"",Y12*AAAADonnées!$C$3,"") ->  | P12: =IF(Z12<>"",Z12*AAAADonnées!$E$3,AA12) ->  | T12: 0 | V12: 0 | X12: Assistant Federal | AC12: =IF(AND(AB12<>"",AB12=Recap!B10),SUMPRODUCT(($B$6:$B$30=AB12)*($T$6:$T$30)),"") -> 
I13: =IF(F13<>"",VLOOKUP(X13,AAAADonnées!$A$3:$B$100,2,0),"") ->  | L13: =IF(G13<>"",IF(V13<>0,AAAADonnées!$D$3*V13*2,""),"") ->  | N13: =IF(Y13<>"",Y13*AAAADonnées!$C$3,"") ->  | P13: =IF(Z13<>"",Z13*AAAADonnées!$E$3,AA13) ->  | T13: 0 | V13: 0 | X13: Assistant Federal | AC13: =IF(AND(AB13<>"",AB13=Recap!B11),SUMPRODUCT(($B$6:$B$30=AB13)*($T$6:$T$30)),"") -> 
I14: =IF(F14<>"",VLOOKUP(X14,AAAADonnées!$A$3:$B$100,2,0),"") ->  | L14: =IF(G14<>"",IF(V14<>0,AAAADonnées!$D$3*V14*2,""),"") ->  | N14: =IF(Y14<>"",Y14*AAAADonnées!$C$3,"") ->  | P14: =IF(Z14<>"",Z14*AAAADonnées!$E$3,AA14) ->  | T14: 0 | V14: 0 | X14: Assistant Federal | AC14: =IF(AND(AB14<>"",AB14=Recap!B12),SUMPRODUCT(($B$6:$B$30=AB14)*($T$6:$T$30)),"") -> 
I15: =IF(F15<>"",VLOOKUP(X15,AAAADonnées!$A$3:$B$100,2,0),"") ->  | L15: =IF(G15<>"",IF(V15<>0,AAAADonnées!$D$3*V15*2,""),"") ->  | N15: =IF(Y15<>"",Y15*AAAADonnées!$C$3,"") ->  | P15: =IF(Z15<>"",Z15*AAAADonnées!$E$3,AA15) ->  | T15: 0 | V15: 0 | X15: Assistant Federal | AC15: =IF(AND(AB15<>"",AB15=Recap!B13),SUMPRODUCT(($B$6:$B$30=AB15)*($T$6:$T$30)),"") -> 
I16: =IF(F16<>"",VLOOKUP(X16,AAAADonnées!$A$3:$B$100,2,0),"") ->  | L16: =IF(G16<>"",IF(V16<>0,AAAADonnées!$D$3*V16*2,""),"") ->  | N16: =IF(Y16<>"",Y16*AAAADonnées!$C$3,"") ->  | P16: =IF(Z16<>"",Z16*AAAADonnées!$E$3,AA16) ->  | T16: 0 | V16: 0 | X16: Assistant Federal | AC16: =IF(AND(AB16<>"",AB16=Recap!B14),SUMPRODUCT(($B$6:$B$30=AB16)*($T$6:$T$30)),"") -> 
I17: =IF(F17<>"",VLOOKUP(X17,AAAADonnées!$A$3:$B$100,2,0),"") ->  | L17: =IF(G17<>"",IF(V17<>0,AAAADonnées!$D$3*V17*2,""),"") ->  | N17: =IF(Y17<>"",Y17*AAAADonnées!$C$3,"") ->  | P17: =IF(Z17<>"",Z17*AAAADonnées!$E$3,AA17) ->  | T17: 0 | V17: 0 | X17: Assistant Federal | AC17: =IF(AND(AB17<>"",AB17=Recap!B15),SUMPRODUCT(($B$6:$B$30=AB17)*($T$6:$T$30)),"") -> 
I18: =IF(F18<>"",VLOOKUP(X18,AAAADonnées!$A$3:$B$100,2,0),"") ->  | L18: =IF(G18<>"",IF(V18<>0,AAAADonnées!$D$3*V18*2,""),"") ->  | N18: =IF(Y18<>"",Y18*AAAADonnées!$C$3,"") ->  | P18: =IF(Z18<>"",Z18*AAAADonnées!$E$3,AA18) ->  | T18: 0 | V18: 0 | X18: Assistant Federal | AC18: =IF(AND(AB18<>"",AB18=Recap!B16),SUMPRODUCT(($B$6:$B$30=AB18)*($T$6:$T$30)),"") -> 
I19: =IF(F19<>"",VLOOKUP(X19,AAAADonnées!$A$3:$B$100,2,0),"") ->  | L19: =IF(G19<>"",IF(V19<>0,AAAADonnées!$D$3*V19*2,""),"") ->  | N19: =IF(Y19<>"",Y19*AAAADonnées!$C$3,"") ->  | P19: =IF(Z19<>"",Z19*AAAADonnées!$E$3,AA19) ->  | T19: 0 | V19: 0 | X19: Assistant Federal | AC19: =IF(AND(AB19<>"",AB19=Recap!B17),SUMPRODUCT(($B$6:$B$30=AB19)*($T$6:$T$30)),"") -> 
I20: =IF(F20<>"",VLOOKUP(X20,AAAADonnées!$A$3:$B$100,2,0),"") ->  | N20: =IF(Y20<>"",Y20*AAAADonnées!$C$3,"") ->  | P20: =IF(Z20<>"",Z20*AAAADonnées!$E$3,AA20) ->  | T20: 0 | V20: 0 | X20: Assistant Federal | AC20: =IF(AND(AB20<>"",AB20=Recap!B18),SUMPRODUCT(($B$6:$B$30=AB20)*($T$6:$T$30)),"") -> 
I21: =IF(F21<>"",VLOOKUP(X21,AAAADonnées!$A$3:$B$100,2,0),"") ->  | L21: =IF(G21<>"",IF(V21<>0,AAAADonnées!$D$3*V21*2,""),"") ->  | N21: =IF(Y21<>"",Y21*AAAADonnées!$C$3,"") ->  | P21: =IF(Z21<>"",Z21*AAAADonnées!$E$3,AA21) ->  | T21: 0 | V21: 0 | X21: Assistant Federal | AC21: =IF(AND(AB21<>"",AB21=Recap!B19),SUMPRODUCT(($B$6:$B$30=AB21)*($T$6:$T$30)),"") -> 
I22: =IF(F22<>"",VLOOKUP(X22,AAAADonnées!$A$3:$B$100,2,0),"") ->  | L22: =IF(G22<>"",IF(V22<>0,AAAADonnées!$D$3*V22*2,""),"") ->  | N22: =IF(Y22<>"",Y22*AAAADonnées!$C$3,"") ->  | P22: =IF(Z22<>"",Z22*AAAADonnées!$E$3,AA22) ->  | T22: 0 | V22: 0 | X22: Assistant Federal | AC22: =IF(AND(AB22<>"",AB22=Recap!B20),SUMPRODUCT(($B$6:$B$30=AB22)*($T$6:$T$30)),"") -> 
I23: =IF(F23<>"",VLOOKUP(X23,AAAADonnées!$A$3:$B$100,2,0),"") ->  | L23: =IF(G23<>"",IF(V23<>0,AAAADonnées!$D$3*V23*2,""),"") ->  | N23: =IF(Y23<>"",Y23*AAAADonnées!$C$3,"") ->  | P23: =IF(Z23<>"",Z23*AAAADonnées!$E$3,AA23) ->  | T23: 0 | V23: 0 | X23: Assistant Federal | AC23: =IF(AND(AB23<>"",AB23=Recap!B21),SUMPRODUCT(($B$6:$B$30=AB23)*($T$6:$T$30)),"") -> 
I24: =IF(F24<>"",VLOOKUP(X24,AAAADonnées!$A$3:$B$100,2,0),"") ->  | L24: =IF(G24<>"",IF(V24<>0,AAAADonnées!$D$3*V24*2,""),"") ->  | N24: =IF(Y24<>"",Y24*AAAADonnées!$C$3,"") ->  | P24: =IF(Z24<>"",Z24*AAAADonnées!$E$3,AA24) ->  | T24: 0 | V24: 0 | X24: Assistant Federal | AC24: =IF(AND(AB24<>"",AB24=Recap!B22),SUMPRODUCT(($B$6:$B$30=AB24)*($T$6:$T$30)),"") -> 
I25: =IF(F25<>"",VLOOKUP(X25,AAAADonnées!$A$3:$B$100,2,0),"") ->  | L25: =IF(G25<>"",IF(V25<>0,AAAADonnées!$D$3*V25*2,""),"") ->  | N25: =IF(Y25<>"",Y25*AAAADonnées!$C$3,"") ->  | P25: =IF(Z25<>"",Z25*AAAADonnées!$E$3,AA25) ->  | T25: 0 | V25: 0 | X25: Assistant Federal | AC25: =IF(AND(AB25<>"",AB25=Recap!B23),SUMPRODUCT(($B$6:$B$30=AB25)*($T$6:$T$30)),"") -> 
I26: =IF(F26<>"",VLOOKUP(X26,AAAADonnées!$A$3:$B$100,2,0),"") ->  | L26: =IF(G26<>"",IF(V26<>0,AAAADonnées!$D$3*V26*2,""),"") ->  | N26: =IF(Y26<>"",Y26*AAAADonnées!$C$3,"") ->  | P26: =IF(Z26<>"",Z26*AAAADonnées!$E$3,AA26) ->  | T26: 0 | V26: 0 | X26: Assistant Federal | AC26: =IF(AND(AB26<>"",AB26=Recap!B24),SUMPRODUCT(($B$6:$B$30=AB26)*($T$6:$T$30)),"") -> 
I27: =IF(F27<>"",VLOOKUP(X27,AAAADonnées!$A$3:$B$100,2,0),"") ->  | L27: =IF(G27<>"",IF(V27<>0,AAAADonnées!$D$3*V27*2,""),"") ->  | N27: =IF(Y27<>"",Y27*AAAADonnées!$C$3,"") ->  | P27: =IF(Z27<>"",Z27*AAAADonnées!$E$3,AA27) ->  | T27: 0 | V27: 0 | X27: Assistant Federal | AC27: =IF(AND(AB27<>"",AB27=Recap!B25),SUMPRODUCT(($B$6:$B$30=AB27)*($T$6:$T$30)),"") -> 
I28: =IF(F28<>"",VLOOKUP(X28,AAAADonnées!$A$3:$B$100,2,0),"") ->  | L28: =IF(G28<>"",IF(V28<>0,AAAADonnées!$D$3*V28*2,""),"") ->  | N28: =IF(Y28<>"",Y28*AAAADonnées!$C$3,"") ->  | P28: =IF(Z28<>"",Z28*AAAADonnées!$E$3,AA28) ->  | T28: 0 | V28: 0 | X28: Assistant Federal | AC28: =IF(AND(AB28<>"",AB28=Recap!B26),SUMPRODUCT(($B$6:$B$30=AB28)*($T$6:$T$30)),"") -> 
C29: =IF(B29<>"",LEFT(PROPER(TEXT(B29,"jjjj")),3),"") ->  | I29: =IF(F29<>"",VLOOKUP(X29,AAAADonnées!$A$3:$B$100,2,0),"") ->  | L29: =IF(G29<>"",IF(V29<>0,AAAADonnées!$D$3*V29*2,""),"") ->  | N29: =IF(Y29<>"",Y29*AAAADonnées!$C$3,"") ->  | P29: =IF(Z29<>"",Z29*AAAADonnées!$E$3,AA29) ->  | T29: 0 | V29: 0 | X29: Assistant Federal | AC29: =IF(AND(AB29<>"",AB29=Recap!B27),SUMPRODUCT(($B$6:$B$30=AB29)*($T$6:$T$30)),"") -> 
I30: =IF(F30<>"",VLOOKUP(X30,AAAADonnées!$A$3:$B$100,2,0),"") ->  | L30: =IF(G30<>"",IF(V30<>0,AAAADonnées!$D$3*V30*2,""),"") ->  | N30: =IF(Y30<>"",Y30*AAAADonnées!$C$3,"") ->  | P30: =IF(Z30<>"",Z30*AAAADonnées!$E$3,AA30) ->  | T30: =SUM(I30:S30) -> 0 | V30: 0 | X30: Assistant Federal | AC30: =IF(AND(AB30<>"",AB30=Recap!B28),SUMPRODUCT(($B$6:$B$30=AB30)*($T$6:$T$30)),"") -> 
I31: =SUM(I6:I30) -> 1500 | J31: =SUM(J6:K30) -> 0 | L31: =SUM(L6:M30) -> 910 | N31: =SUM(N6:O30) -> 0 | P31: =SUM(P6:Q30) -> 0 | R31: =SUM(R6:S30) -> 0 | T31: =SUM(T6:T30) -> 2410
A33: Mode de règlement: | F33: Arrêté à la somme de: | H33: =IF(F43="",IF(T31<>0,PROPER(CONCATENATE(ConvNumberLetter(T31)," Dinars")),""),"") -> Deux Mille Quatre Cent Dix Dinars
H35: Le Président | M35: Le Trésorier | S35: l'Intéressé
C38: =C1 -> ZAIM | T38: FABB
C39: =C2 -> SETIF | T39: TRÉSORERIE
H40: =H3 -> Assistant | J40: =J3 -> Federal | S40: SAISON 2017/2018
A41: Report | I41: =I31 -> 1500 | J41: =J31 -> 0 | L41: =L31 -> 910 | N41: =N31 -> 0 | P41: =P31 -> 0 | R41: =R31 -> 0 | T41: =T31 -> 2410
A42: Journée | B42: Date | C42: Jour | D42: Rencontres | F42: Catégories | G42: Domiciliation | H42: Horaire | I42: Match | J42: Forfait | K42: Aéroport | L42: Transport | M42: par route 7 DA-Km | N42: Hébergement | O42: 2500 DA nuitée | P42: Restauration | Q42: 1000 DA | R42: Forfait suivant | S42: domiciliation | T42: Total | V42: Dist - KM | Y42: Heb. | Z42: Nbr. Repas | AA42: Repas
C43: =IF(B43<>"",LEFT(PROPER(TEXT(B43,"jjjj")),3),"") ->  | I43: =IF(F43<>"",VLOOKUP(X43,AAAADonnées!$A$3:$B$100,2,0),"") ->  | L43: =IF(G43<>"",IF(V43<>0,AAAADonnées!$D$3*V43*2,""),"") ->  | N43: =IF(Y43<>"",Y43*AAAADonnées!$C$3,"") ->  | P43: =IF(Z43<>"",Z43*AAAADonnées!$E$3,AA43) ->  | R43: =IF(AND(G43<>"",V43=0),500,"") ->  | T43: =SUM(I43:S43) -> 0 | V43: =IFERROR(INDEX(TABLEDist,MATCH($C$2,Depart,0),MATCH(G43,Arrivee,0)),0) -> 0 | X43: =CONCATENATE(F43," ",$H$3," ",$J$3) -> Assistant Federal | Y43: =IF(V43<200,"",IF(V43<500,1,2)) ->  | Z43: =IF(Y43=1,3,IF(Y43=2,5,"")) ->  | AA43: =IF(AND(AND(Y43="",V43<>0,W43<0.0261)),1000,"") -> 
C44: =IF(B44<>"",LEFT(PROPER(TEXT(B44,"jjjj")),3),"") ->  | I44: =IF(F44<>"",VLOOKUP(X44,AAAADonnées!$A$3:$B$100,2,0),"") ->  | L44: =IF(G44<>"",IF(V44<>0,AAAADonnées!$D$3*V44*2,""),"") ->  | N44: =IF(Y44<>"",Y44*AAAADonnées!$C$3,"") ->  | P44: =IF(Z44<>"",Z44*AAAADonnées!$E$3,AA44) ->  | R44: =IF(AND(G44<>"",V44=0),500,"") ->  | T44: =SUM(I44:S44) -> 0 | V44: 0 | X44: Assistant Federal
I45: =IF(F45<>"",VLOOKUP(X45,AAAADonnées!$A$3:$B$100,2,0),"") ->  | L45: =IF(G45<>"",IF(V45<>0,AAAADonnées!$D$3*V45*2,""),"") ->  | N45: =IF(Y45<>"",Y45*AAAADonnées!$C$3,"") ->  | P45: =IF(Z45<>"",Z45*AAAADonnées!$E$3,AA45) ->  | T45: =SUM(I45:S45) -> 0 | V45: 0 | X45: Assistant Federal
I46: =IF(F46<>"",VLOOKUP(X46,AAAADonnées!$A$3:$B$100,2,0),"") ->  | L46: =IF(G46<>"",IF(V46<>0,AAAADonnées!$D$3*V46*2,""),"") ->  | N46: =IF(Y46<>"",Y46*AAAADonnées!$C$3,"") ->  | P46: =IF(Z46<>"",Z46*AAAADonnées!$E$3,AA46) ->  | T46: 0 | V46: 0 | X46: Assistant Federal
I47: =IF(F47<>"",VLOOKUP(X47,AAAADonnées!$A$3:$B$100,2,0),"") ->  | L47: =IF(G47<>"",IF(V47<>0,AAAADonnées!$D$3*V47*2,""),"") ->  | N47: =IF(Y47<>"",Y47*AAAADonnées!$C$3,"") ->  | P47: =IF(Z47<>"",Z47*AAAADonnées!$E$3,AA47) ->  | T47: 0 | V47: 0 | X47: Assistant Federal
I48: =IF(F48<>"",VLOOKUP(X48,AAAADonnées!$A$3:$B$100,2,0),"") ->  | L48: =IF(G48<>"",IF(V48<>0,AAAADonnées!$D$3*V48*2,""),"") ->  | N48: =IF(Y48<>"",Y48*AAAADonnées!$C$3,"") ->  | P48: =IF(Z48<>"",Z48*AAAADonnées!$E$3,AA48) ->  | T48: 0 | V48: 0 | X48: Assistant Federal
I49: =IF(F49<>"",VLOOKUP(X49,AAAADonnées!$A$3:$B$100,2,0),"") ->  | L49: =IF(G49<>"",IF(V49<>0,AAAADonnées!$D$3*V49*2,""),"") ->  | N49: =IF(Y49<>"",Y49*AAAADonnées!$C$3,"") ->  | P49: =IF(Z49<>"",Z49*AAAADonnées!$E$3,AA49) ->  | T49: 0 | V49: 0 | X49: Assistant Federal
I50: =IF(F50<>"",VLOOKUP(X50,AAAADonnées!$A$3:$B$100,2,0),"") ->  | L50: =IF(G50<>"",IF(V50<>0,AAAADonnées!$D$3*V50*2,""),"") ->  | N50: =IF(Y50<>"",Y50*AAAADonnées!$C$3,"") ->  | P50: =IF(Z50<>"",Z50*AAAADonnées!$E$3,AA50) ->  | T50: 0 | V50: 0 | X50: Assistant Federal
I51: =IF(F51<>"",VLOOKUP(X51,AAAADonnées!$A$3:$B$100,2,0),"") ->  | L51: =IF(G51<>"",IF(V51<>0,AAAADonnées!$D$3*V51*2,""),"") ->  | N51: =IF(Y51<>"",Y51*AAAADonnées!$C$3,"") ->  | P51: =IF(Z51<>"",Z51*AAAADonnées!$E$3,AA51) ->  | T51: 0 | V51: 0 | X51: Assistant Federal
I52: =IF(F52<>"",VLOOKUP(X52,AAAADonnées!$A$3:$B$100,2,0),"") ->  | L52: =IF(G52<>"",IF(V52<>0,AAAADonnées!$D$3*V52*2,""),"") ->  | N52: =IF(Y52<>"",Y52*AAAADonnées!$C$3,"") ->  | P52: =IF(Z52<>"",Z52*AAAADonnées!$E$3,AA52) ->  | T52: 0 | V52: 0 | X52: Assistant Federal
I53: =IF(F53<>"",VLOOKUP(X53,AAAADonnées!$A$3:$B$100,2,0),"") ->  | L53: =IF(G53<>"",IF(V53<>0,AAAADonnées!$D$3*V53*2,""),"") ->  | N53: =IF(Y53<>"",Y53*AAAADonnées!$C$3,"") ->  | P53: =IF(Z53<>"",Z53*AAAADonnées!$E$3,AA53) ->  | T53: 0 | V53: 0 | X53: Assistant Federal
I54: =IF(F54<>"",VLOOKUP(X54,AAAADonnées!$A$3:$B$100,2,0),"") ->  | L54: =IF(G54<>"",IF(V54<>0,AAAADonnées!$D$3*V54*2,""),"") ->  | N54: =IF(Y54<>"",Y54*AAAADonnées!$C$3,"") ->  | P54: =IF(Z54<>"",Z54*AAAADonnées!$E$3,AA54) ->  | T54: 0 | V54: 0 | X54: Assistant Federal
I55: =IF(F55<>"",VLOOKUP(X55,AAAADonnées!$A$3:$B$100,2,0),"") ->  | L55: =IF(G55<>"",IF(V55<>0,AAAADonnées!$D$3*V55*2,""),"") ->  | N55: =IF(Y55<>"",Y55*AAAADonnées!$C$3,"") ->  | P55: =IF(Z55<>"",Z55*AAAADonnées!$E$3,AA55) ->  | T55: 0 | V55: 0 | X55: Assistant Federal
I56: =IF(F56<>"",VLOOKUP(X56,AAAADonnées!$A$3:$B$100,2,0),"") ->  | L56: =IF(G56<>"",IF(V56<>0,AAAADonnées!$D$3*V56*2,""),"") ->  | N56: =IF(Y56<>"",Y56*AAAADonnées!$C$3,"") ->  | P56: =IF(Z56<>"",Z56*AAAADonnées!$E$3,AA56) ->  | T56: 0 | V56: 0 | X56: Assistant Federal
I57: =IF(F57<>"",VLOOKUP(X57,AAAADonnées!$A$3:$B$100,2,0),"") ->  | L57: =IF(G57<>"",IF(V57<>0,AAAADonnées!$D$3*V57*2,""),"") ->  | N57: =IF(Y57<>"",Y57*AAAADonnées!$C$3,"") ->  | P57: =IF(Z57<>"",Z57*AAAADonnées!$E$3,AA57) ->  | T57: 0 | V57: 0 | X57: Assistant Federal
I58: =IF(F58<>"",VLOOKUP(X58,AAAADonnées!$A$3:$B$100,2,0),"") ->  | L58: =IF(G58<>"",IF(V58<>0,AAAADonnées!$D$3*V58*2,""),"") ->  | N58: =IF(Y58<>"",Y58*AAAADonnées!$C$3,"") ->  | P58: =IF(Z58<>"",Z58*AAAADonnées!$E$3,AA58) ->  | T58: 0 | V58: 0 | X58: Assistant Federal
I59: =IF(F59<>"",VLOOKUP(X59,AAAADonnées!$A$3:$B$100,2,0),"") ->  | L59: =IF(G59<>"",IF(V59<>0,AAAADonnées!$D$3*V59*2,""),"") ->  | N59: =IF(Y59<>"",Y59*AAAADonnées!$C$3,"") ->  | P59: =IF(Z59<>"",Z59*AAAADonnées!$E$3,AA59) ->  | T59: 0 | V59: 0 | X59: Assistant Federal
I60: =IF(F60<>"",VLOOKUP(X60,AAAADonnées!$A$3:$B$100,2,0),"") ->  | L60: =IF(G60<>"",IF(V60<>0,AAAADonnées!$D$3*V60*2,""),"") ->  | N60: =IF(Y60<>"",Y60*AAAADonnées!$C$3,"") ->  | P60: =IF(Z60<>"",Z60*AAAADonnées!$E$3,AA60) ->  | T60: 0 | V60: 0 | X60: Assistant Federal
I61: =IF(F61<>"",VLOOKUP(X61,AAAADonnées!$A$3:$B$100,2,0),"") ->  | L61: =IF(G61<>"",IF(V61<>0,AAAADonnées!$D$3*V61*2,""),"") ->  | N61: =IF(Y61<>"",Y61*AAAADonnées!$C$3,"") ->  | P61: =IF(Z61<>"",Z61*AAAADonnées!$E$3,AA61) ->  | T61: 0 | V61: 0 | X61: Assistant Federal
I62: =IF(F62<>"",VLOOKUP(X62,AAAADonnées!$A$3:$B$100,2,0),"") ->  | L62: =IF(G62<>"",IF(V62<>0,AAAADonnées!$D$3*V62*2,""),"") ->  | N62: =IF(Y62<>"",Y62*AAAADonnées!$C$3,"") ->  | P62: =IF(Z62<>"",Z62*AAAADonnées!$E$3,AA62) ->  | T62: 0 | V62: 0 | X62: Assistant Federal
I63: =IF(F63<>"",VLOOKUP(X63,AAAADonnées!$A$3:$B$100,2,0),"") ->  | L63: =IF(G63<>"",IF(V63<>0,AAAADonnées!$D$3*V63*2,""),"") ->  | N63: =IF(Y63<>"",Y63*AAAADonnées!$C$3,"") ->  | P63: =IF(Z63<>"",Z63*AAAADonnées!$E$3,AA63) ->  | T63: 0 | V63: 0 | X63: Assistant Federal
I64: =IF(F64<>"",VLOOKUP(X64,AAAADonnées!$A$3:$B$100,2,0),"") ->  | L64: =IF(G64<>"",IF(V64<>0,AAAADonnées!$D$3*V64*2,""),"") ->  | N64: =IF(Y64<>"",Y64*AAAADonnées!$C$3,"") ->  | P64: =IF(Z64<>"",Z64*AAAADonnées!$E$3,AA64) ->  | T64: 0 | V64: 0 | X64: Assistant Federal
I65: =IF(F65<>"",VLOOKUP(X65,AAAADonnées!$A$3:$B$100,2,0),"") ->  | L65: =IF(G65<>"",IF(V65<>0,AAAADonnées!$D$3*V65*2,""),"") ->  | N65: =IF(Y65<>"",Y65*AAAADonnées!$C$3,"") ->  | P65: =IF(Z65<>"",Z65*AAAADonnées!$E$3,AA65) ->  | T65: 0 | V65: 0 | X65: Assistant Federal
I66: =IF(F66<>"",VLOOKUP(X66,AAAADonnées!$A$3:$B$100,2,0),"") ->  | L66: =IF(G66<>"",IF(V66<>0,AAAADonnées!$D$3*V66*2,""),"") ->  | N66: =IF(Y66<>"",Y66*AAAADonnées!$C$3,"") ->  | P66: =IF(Z66<>"",Z66*AAAADonnées!$E$3,AA66) ->  | T66: 0 | V66: 0 | X66: Assistant Federal
I67: =IF(F67<>"",VLOOKUP(X67,AAAADonnées!$A$3:$B$100,2,0),"") ->  | L67: =IF(G67<>"",IF(V67<>0,AAAADonnées!$D$3*V67*2,""),"") ->  | N67: =IF(Y67<>"",Y67*AAAADonnées!$C$3,"") ->  | P67: =IF(Z67<>"",Z67*AAAADonnées!$E$3,AA67) ->  | T67: =SUM(I67:S67) -> 0 | V67: 0 | X67: Assistant Federal
I68: =SUM(I43:I67)+I31 -> 1500 | J68: =SUM(J43:K67)+J31 -> 0 | L68: =SUM(L43:M67)+L31 -> 910 | N68: =SUM(N43:O67)+N31 -> 0 | P68: =SUM(P43:Q67)+P31 -> 0 | R68: =SUM(R43:S67)+R31 -> 0 | T68: =T31+SUM(T43:T67) -> 2410
A70: Mode de règlement: | G70: Arrêté à la somme de: | I70: =IF(F43<>"",PROPER(CONCATENATE(ConvNumberLetter(T68)," Dinars")),"") -> 
H72: Le Président | M72: Le Trésorier | S72: l'Intéressé
C75: =C38 -> ZAIM | T75: FABB
C76: =C39 -> SETIF | T76: TRÉSORERIE
H77: =H40 -> Assistant | J77: =J40 -> Federal | S77: SAISON 2017/2018
A78: Report | I78: =I68 -> 1500 | J78: =J68 -> 0 | L78: =L68 -> 910 | N78: =N68 -> 0 | P78: =P68 -> 0 | R78: =R68 -> 0 | T78: =T68 -> 2410
A79: Journée | B79: Date | C79: Jour | D79: Rencontres | F79: Catégories | G79: Domiciliation | H79: Horaire | I79: Match | J79: Forfait | K79: Aéroport | L79: Transport | M79: par route 7 DA-Km | N79: Hébergement | O79: 2500 DA nuitée | P79: Restauration | Q79: 1000 DA | R79: Forfait suivant | S79: domiciliation | T79: Total | V79: Dist - KM | Y79: Heb. | Z79: Nbr. Repas | AA79: Repas
I80: =IF(F80<>"",VLOOKUP(X80,AAAADonnées!$A$3:$B$100,2,0),"") ->  | L80: =IF(G80<>"",IF(V80<>0,AAAADonnées!$D$3*V80*2,""),"") ->  | N80: =IF(Y80<>"",Y80*AAAADonnées!$C$3,"") ->  | P80: =IF(Z80<>"",Z80*AAAADonnées!$E$3,AA80) ->  | R80: =IF(AND(G80<>"",V80=0),500,"") ->  | T80: =SUM(I80:S80) -> 0 | V80: =IFERROR(INDEX(TABLEDist,MATCH($C$2,Depart,0),MATCH(G80,Arrivee,0)),0) -> 0 | W80: =IF(H80<>"",H80/24,"") ->  | X80: =CONCATENATE(F80," ",$H$3," ",$J$3) -> Assistant Federal | Y80: =IF(V80<200,"",IF(V80<500,1,2)) ->  | Z80: =IF(Y80=1,3,IF(Y80=2,5,"")) ->  | AA80: =IF(AND(AND(Y80="",V80<>0,W80<0.0261)),1000,"") -> 
I81: =IF(F81<>"",VLOOKUP(X81,AAAADonnées!$A$3:$B$100,2,0),"") ->  | L81: =IF(G81<>"",IF(V81<>0,AAAADonnées!$D$3*V81*2,""),"") ->  | N81: =IF(Y81<>"",Y81*AAAADonnées!$C$3,"") ->  | P81: =IF(Z81<>"",Z81*AAAADonnées!$E$3,AA81) ->  | R81: =IF(AND(G81<>"",V81=0),500,"") ->  | T81: =SUM(I81:S81) -> 0 | V81: 0 | X81: Assistant Federal | AA81: =IF(AND(AND(Y81="",V81<>0,W81<0.0261)),1000,"") -> 
I82: =IF(F82<>"",VLOOKUP(X82,AAAADonnées!$A$3:$B$100,2,0),"") ->  | L82: =IF(G82<>"",IF(V82<>0,AAAADonnées!$D$3*V82*2,""),"") ->  | N82: =IF(Y82<>"",Y82*AAAADonnées!$C$3,"") ->  | P82: =IF(Z82<>"",Z82*AAAADonnées!$E$3,AA82) ->  | T82: =SUM(I82:S82) -> 0 | V82: 0 | X82: Assistant Federal
I83: =IF(F83<>"",VLOOKUP(X83,AAAADonnées!$A$3:$B$100,2,0),"") ->  | L83: =IF(G83<>"",IF(V83<>0,AAAADonnées!$D$3*V83*2,""),"") ->  | N83: =IF(Y83<>"",Y83*AAAADonnées!$C$3,"") ->  | P83: =IF(Z83<>"",Z83*AAAADonnées!$E$3,AA83) ->  | T83: 0 | V83: 0 | X83: Assistant Federal
I84: =IF(F84<>"",VLOOKUP(X84,AAAADonnées!$A$3:$B$100,2,0),"") ->  | L84: =IF(G84<>"",IF(V84<>0,AAAADonnées!$D$3*V84*2,""),"") ->  | N84: =IF(Y84<>"",Y84*AAAADonnées!$C$3,"") ->  | P84: =IF(Z84<>"",Z84*AAAADonnées!$E$3,AA84) ->  | T84: 0 | V84: 0 | X84: Assistant Federal
I85: =IF(F85<>"",VLOOKUP(X85,AAAADonnées!$A$3:$B$100,2,0),"") ->  | L85: =IF(G85<>"",IF(V85<>0,AAAADonnées!$D$3*V85*2,""),"") ->  | N85: =IF(Y85<>"",Y85*AAAADonnées!$C$3,"") ->  | P85: =IF(Z85<>"",Z85*AAAADonnées!$E$3,AA85) ->  | T85: 0 | V85: 0 | X85: Assistant Federal
I86: =IF(F86<>"",VLOOKUP(X86,AAAADonnées!$A$3:$B$100,2,0),"") ->  | L86: =IF(G86<>"",IF(V86<>0,AAAADonnées!$D$3*V86*2,""),"") ->  | N86: =IF(Y86<>"",Y86*AAAADonnées!$C$3,"") ->  | P86: =IF(Z86<>"",Z86*AAAADonnées!$E$3,AA86) ->  | T86: 0 | V86: 0 | X86: Assistant Federal
I87: =IF(F87<>"",VLOOKUP(X87,AAAADonnées!$A$3:$B$100,2,0),"") ->  | L87: =IF(G87<>"",IF(V87<>0,AAAADonnées!$D$3*V87*2,""),"") ->  | N87: =IF(Y87<>"",Y87*AAAADonnées!$C$3,"") ->  | P87: =IF(Z87<>"",Z87*AAAADonnées!$E$3,AA87) ->  | T87: 0 | V87: 0 | X87: Assistant Federal
I88: =IF(F88<>"",VLOOKUP(X88,AAAADonnées!$A$3:$B$100,2,0),"") ->  | L88: =IF(G88<>"",IF(V88<>0,AAAADonnées!$D$3*V88*2,""),"") ->  | N88: =IF(Y88<>"",Y88*AAAADonnées!$C$3,"") ->  | P88: =IF(Z88<>"",Z88*AAAADonnées!$E$3,AA88) ->  | T88: 0 | V88: 0 | X88: Assistant Federal
I89: =IF(F89<>"",VLOOKUP(X89,AAAADonnées!$A$3:$B$100,2,0),"") ->  | L89: =IF(G89<>"",IF(V89<>0,AAAADonnées!$D$3*V89*2,""),"") ->  | N89: =IF(Y89<>"",Y89*AAAADonnées!$C$3,"") ->  | P89: =IF(Z89<>"",Z89*AAAADonnées!$E$3,AA89) ->  | T89: 0 | V89: 0 | X89: Assistant Federal
I90: =IF(F90<>"",VLOOKUP(X90,AAAADonnées!$A$3:$B$100,2,0),"") ->  | L90: =IF(G90<>"",IF(V90<>0,AAAADonnées!$D$3*V90*2,""),"") ->  | N90: =IF(Y90<>"",Y90*AAAADonnées!$C$3,"") ->  | P90: =IF(Z90<>"",Z90*AAAADonnées!$E$3,AA90) ->  | T90: 0 | V90: 0 | X90: Assistant Federal
I91: =IF(F91<>"",VLOOKUP(X91,AAAADonnées!$A$3:$B$100,2,0),"") ->  | L91: =IF(G91<>"",IF(V91<>0,AAAADonnées!$D$3*V91*2,""),"") ->  | N91: =IF(Y91<>"",Y91*AAAADonnées!$C$3,"") ->  | P91: =IF(Z91<>"",Z91*AAAADonnées!$E$3,AA91) ->  | T91: 0 | V91: 0 | X91: Assistant Federal
I92: =IF(F92<>"",VLOOKUP(X92,AAAADonnées!$A$3:$B$100,2,0),"") ->  | L92: =IF(G92<>"",IF(V92<>0,AAAADonnées!$D$3*V92*2,""),"") ->  | N92: =IF(Y92<>"",Y92*AAAADonnées!$C$3,"") ->  | P92: =IF(Z92<>"",Z92*AAAADonnées!$E$3,AA92) ->  | T92: 0 | V92: 0 | X92: Assistant Federal
I93: =IF(F93<>"",VLOOKUP(X93,AAAADonnées!$A$3:$B$100,2,0),"") ->  | L93: =IF(G93<>"",IF(V93<>0,AAAADonnées!$D$3*V93*2,""),"") ->  | N93: =IF(Y93<>"",Y93*AAAADonnées!$C$3,"") ->  | P93: =IF(Z93<>"",Z93*AAAADonnées!$E$3,AA93) ->  | T93: 0 | V93: 0 | X93: Assistant Federal
I94: =IF(F94<>"",VLOOKUP(X94,AAAADonnées!$A$3:$B$100,2,0),"") ->  | L94: =IF(G94<>"",IF(V94<>0,AAAADonnées!$D$3*V94*2,""),"") ->  | N94: =IF(Y94<>"",Y94*AAAADonnées!$C$3,"") ->  | P94: =IF(Z94<>"",Z94*AAAADonnées!$E$3,AA94) ->  | T94: 0 | V94: 0 | X94: Assistant Federal
I95: =IF(F95<>"",VLOOKUP(X95,AAAADonnées!$A$3:$B$100,2,0),"") ->  | L95: =IF(G95<>"",IF(V95<>0,AAAADonnées!$D$3*V95*2,""),"") ->  | N95: =IF(Y95<>"",Y95*AAAADonnées!$C$3,"") ->  | P95: =IF(Z95<>"",Z95*AAAADonnées!$E$3,AA95) ->  | T95: 0 | V95: 0 | X95: Assistant Federal
I96: =IF(F96<>"",VLOOKUP(X96,AAAADonnées!$A$3:$B$100,2,0),"") ->  | L96: =IF(G96<>"",IF(V96<>0,AAAADonnées!$D$3*V96*2,""),"") ->  | N96: =IF(Y96<>"",Y96*AAAADonnées!$C$3,"") ->  | P96: =IF(Z96<>"",Z96*AAAADonnées!$E$3,AA96) ->  | T96: 0 | V96: 0 | X96: Assistant Federal
I97: =IF(F97<>"",VLOOKUP(X97,AAAADonnées!$A$3:$B$100,2,0),"") ->  | L97: =IF(G97<>"",IF(V97<>0,AAAADonnées!$D$3*V97*2,""),"") ->  | N97: =IF(Y97<>"",Y97*AAAADonnées!$C$3,"") ->  | P97: =IF(Z97<>"",Z97*AAAADonnées!$E$3,AA97) ->  | T97: 0 | V97: 0 | X97: Assistant Federal
I98: =IF(F98<>"",VLOOKUP(X98,AAAADonnées!$A$3:$B$100,2,0),"") ->  | L98: =IF(G98<>"",IF(V98<>0,AAAADonnées!$D$3*V98*2,""),"") ->  | N98: =IF(Y98<>"",Y98*AAAADonnées!$C$3,"") ->  | P98: =IF(Z98<>"",Z98*AAAADonnées!$E$3,AA98) ->  | T98: 0 | V98: 0 | X98: Assistant Federal
I99: =IF(F99<>"",VLOOKUP(X99,AAAADonnées!$A$3:$B$100,2,0),"") ->  | L99: =IF(G99<>"",IF(V99<>0,AAAADonnées!$D$3*V99*2,""),"") ->  | N99: =IF(Y99<>"",Y99*AAAADonnées!$C$3,"") ->  | P99: =IF(Z99<>"",Z99*AAAADonnées!$E$3,AA99) ->  | T99: 0 | V99: 0 | X99: Assistant Federal
I100: =IF(F100<>"",VLOOKUP(X100,AAAADonnées!$A$3:$B$100,2,0),"") ->  | L100: =IF(G100<>"",IF(V100<>0,AAAADonnées!$D$3*V100*2,""),"") ->  | N100: =IF(Y100<>"",Y100*AAAADonnées!$C$3,"") ->  | P100: =IF(Z100<>"",Z100*AAAADonnées!$E$3,AA100) ->  | T100: 0 | V100: 0 | X100: Assistant Federal
I101: =IF(F101<>"",VLOOKUP(X101,AAAADonnées!$A$3:$B$100,2,0),"") ->  | L101: =IF(G101<>"",IF(V101<>0,AAAADonnées!$D$3*V101*2,""),"") ->  | N101: =IF(Y101<>"",Y101*AAAADonnées!$C$3,"") ->  | P101: =IF(Z101<>"",Z101*AAAADonnées!$E$3,AA101) ->  | T101: 0 | V101: 0 | X101: Assistant Federal
I102: =IF(F102<>"",VLOOKUP(X102,AAAADonnées!$A$3:$B$100,2,0),"") ->  | L102: =IF(G102<>"",IF(V102<>0,AAAADonnées!$D$3*V102*2,""),"") ->  | N102: =IF(Y102<>"",Y102*AAAADonnées!$C$3,"") ->  | P102: =IF(Z102<>"",Z102*AAAADonnées!$E$3,AA102) ->  | T102: 0 | V102: 0 | X102: Assistant Federal
I103: =IF(F103<>"",VLOOKUP(X103,AAAADonnées!$A$3:$B$100,2,0),"") ->  | L103: =IF(G103<>"",IF(V103<>0,AAAADonnées!$D$3*V103*2,""),"") ->  | N103: =IF(Y103<>"",Y103*AAAADonnées!$C$3,"") ->  | P103: =IF(Z103<>"",Z103*AAAADonnées!$E$3,AA103) ->  | T103: 0 | V103: 0 | X103: Assistant Federal
I104: =IF(F104<>"",VLOOKUP(X104,AAAADonnées!$A$3:$B$100,2,0),"") ->  | L104: =IF(G104<>"",IF(V104<>0,AAAADonnées!$D$3*V104*2,""),"") ->  | N104: =IF(Y104<>"",Y104*AAAADonnées!$C$3,"") ->  | P104: =IF(Z104<>"",Z104*AAAADonnées!$E$3,AA104) ->  | T104: =SUM(I104:S104) -> 0 | V104: 0 | X104: Assistant Federal | Y104: =IF(V104<200,"",IF(V104<500,1,2)) ->  | Z104: =IF(Y104=1,3,IF(Y104=2,5,"")) -> 
I105: =SUM(I80:I104)+I68 -> 1500 | J105: =SUM(J80:K104)+J68 -> 0 | L105: =SUM(L80:M104)+L68 -> 910 | N105: =SUM(N80:O104)+N68 -> 0 | P105: =SUM(P80:Q104)+P68 -> 0 | R105: =SUM(R80:S104)+R68 -> 0 | T105: =T68+SUM(T80:T104) -> 2410
A107: Mode de règlement: | G107: Arrêté à la somme de: | I107: =IF(F80<>"",PROPER(CONCATENATE(ConvNumberLetter(T105)," Dinars")),"") -> 
H109: Le Président | M109: Le Trésorier | S109: l'Intéressé

Sheet ZOUAID
C1: ZOUAID | T1: FABB
A2: Nbr Match | C2: SETIF | T2: TRÉSORERIE
A3: =COUNTA(D6:D30,D43:D67) -> 1 | B3: Est | H3: Assistant | J3: Federal | S3: SAISON 2017/2018
A5: Journée | B5: Date | C5: Jour | D5: Rencontres | F5: Catégories | G5: Domiciliation | H5: Horaire | I5: Match | J5: Forfait | K5: Aéroport | L5: Transport | M5: par route 7 DA-Km | N5: Hébergement | O5: 2500 DA nuitée | P5: Restauration | Q5: 1000 DA | R5: Forfait suivant | S5: domiciliation | T5: Total | V5: Dist-Km | Y5: Heb. | Z5: Nbr. Repas | AA5: Repas
B6: 2018-10-12 | C6: =IF(B6<>"",LEFT(PROPER(TEXT(B6,"jjjj")),3),"") -> Ven | D6: IRBBA | E6: OSBBA | F6: SM | G6: BBA | H6: 16:00:00 | I6: =IF(F6<>"",VLOOKUP(X6,AAAADonnées!$A$3:$B$100,2,0),"") -> 1500 | L6: =IF(G6<>"",IF(V6<>0,AAAADonnées!$D$3*V6*2,""),"") -> 910 | N6: =IF(Y6<>"",Y6*AAAADonnées!$C$3,"") ->  | P6: =IF(Z6<>"",Z6*AAAADonnées!$E$3,AA6) ->  | R6: =IF(AND(G6<>"",V6=0),500,"") ->  | T6: =SUM(I6:S6) -> 2410 | V6: =IFERROR(INDEX(TABLEDist,MATCH($C$2,Depart,0),MATCH(G6,Arrivee,0)),0) -> 65 | W6: =IF(H6<>"",H6/24,"") -> 0.02777777778 | X6: =CONCATENATE(F6," ",$H$3," ",$J$3) -> SM Assistant Federal | Y6: =IF(V6<200,"",IF(V6<500,1,2)) ->  | Z6: =IF(Y6=1,3,IF(Y6=2,5,"")) ->  | AA6: =IF(AND(AND(Y6="",V6<>0,W6<0.0261)),1000,"") ->  | AB6: =IF(B6>0,B6,"") -> 2018-10-12 | AC6: =IF(AND(AB6<>"",AB6=Recap!B4),SUMPRODUCT(($B$6:$B$30=AB6)*($T$6:$T$30)),"") -> 2410
C7: =IF(B7<>"",LEFT(PROPER(TEXT(B7,"jjjj")),3),"") ->  | I7: =IF(F7<>"",VLOOKUP(X7,AAAADonnées!$A$3:$B$100,2,0),"") ->  | L7: =IF(G7<>"",IF(V7<>0,AAAADonnées!$D$3*V7*2,""),"") ->  | N7: =IF(Y7<>"",Y7*AAAADonnées!$C$3,"") ->  | P7: =IF(Z7<>"",Z7*AAAADonnées!$E$3,AA7) ->  | R7: =IF(AND(G7<>"",V7=0),500,"") ->  | T7: =SUM(I7:S7) -> 0 | V7: 0 | W7: =IF(H7<>"",H7/24,"") ->  | X7: Assistant Federal | Y7: =IF(V7<200,"",IF(V7<500,1,2)) ->  | Z7: =IF(Y7=1,3,IF(Y7=2,5,"")) ->  | AA7: =IF(AND(AND(Y7="",V7<>0,W7<0.0261)),1000,"") ->  | AB7: =IF(B7>0,B7,"") ->  | AC7: =IF(AND(AB7<>"",AB7=Recap!B5),SUMPRODUCT(($B$6:$B$30=AB7)*($T$6:$T$30)),"") -> 
I8: =IF(F8<>"",VLOOKUP(X8,AAAADonnées!$A$3:$B$100,2,0),"") ->  | L8: =IF(G8<>"",IF(V8<>0,AAAADonnées!$D$3*V8*2,""),"") ->  | N8: =IF(Y8<>"",Y8*AAAADonnées!$C$3,"") ->  | P8: =IF(Z8<>"",Z8*AAAADonnées!$E$3,AA8) ->  | T8: =SUM(I8:S8) -> 0 | V8: 0 | X8: Assistant Federal | AC8: =IF(AND(AB8<>"",AB8=Recap!B6),SUMPRODUCT(($B$6:$B$30=AB8)*($T$6:$T$30)),"") -> 
I9: =IF(F9<>"",VLOOKUP(X9,AAAADonnées!$A$3:$B$100,2,0),"") ->  | L9: =IF(G9<>"",IF(V9<>0,AAAADonnées!$D$3*V9*2,""),"") ->  | N9: =IF(Y9<>"",Y9*AAAADonnées!$C$3,"") ->  | P9: =IF(Z9<>"",Z9*AAAADonnées!$E$3,AA9) ->  | T9: 0 | V9: 0 | X9: Assistant Federal | AC9: =IF(AND(AB9<>"",AB9=Recap!B7),SUMPRODUCT(($B$6:$B$30=AB9)*($T$6:$T$30)),"") -> 
I10: =IF(F10<>"",VLOOKUP(X10,AAAADonnées!$A$3:$B$100,2,0),"") ->  | L10: =IF(G10<>"",IF(V10<>0,AAAADonnées!$D$3*V10*2,""),"") ->  | N10: =IF(Y10<>"",Y10*AAAADonnées!$C$3,"") ->  | P10: =IF(Z10<>"",Z10*AAAADonnées!$E$3,AA10) ->  | T10: 0 | V10: 0 | X10: Assistant Federal | AC10: =IF(AND(AB10<>"",AB10=Recap!B8),SUMPRODUCT(($B$6:$B$30=AB10)*($T$6:$T$30)),"") -> 
I11: =IF(F11<>"",VLOOKUP(X11,AAAADonnées!$A$3:$B$100,2,0),"") ->  | L11: =IF(G11<>"",IF(V11<>0,AAAADonnées!$D$3*V11*2,""),"") ->  | N11: =IF(Y11<>"",Y11*AAAADonnées!$C$3,"") ->  | P11: =IF(Z11<>"",Z11*AAAADonnées!$E$3,AA11) ->  | T11: 0 | V11: 0 | X11: Assistant Federal | AC11: =IF(AND(AB11<>"",AB11=Recap!B9),SUMPRODUCT(($B$6:$B$30=AB11)*($T$6:$T$30)),"") -> 
I12: =IF(F12<>"",VLOOKUP(X12,AAAADonnées!$A$3:$B$100,2,0),"") ->  | L12: =IF(G12<>"",IF(V12<>0,AAAADonnées!$D$3*V12*2,""),"") ->  | N12: =IF(Y12<>"",Y12*AAAADonnées!$C$3,"") ->  | P12: =IF(Z12<>"",Z12*AAAADonnées!$E$3,AA12) ->  | T12: 0 | V12: 0 | X12: Assistant Federal | AC12: =IF(AND(AB12<>"",AB12=Recap!B10),SUMPRODUCT(($B$6:$B$30=AB12)*($T$6:$T$30)),"") -> 
I13: =IF(F13<>"",VLOOKUP(X13,AAAADonnées!$A$3:$B$100,2,0),"") ->  | L13: =IF(G13<>"",IF(V13<>0,AAAADonnées!$D$3*V13*2,""),"") ->  | N13: =IF(Y13<>"",Y13*AAAADonnées!$C$3,"") ->  | P13: =IF(Z13<>"",Z13*AAAADonnées!$E$3,AA13) ->  | T13: 0 | V13: 0 | X13: Assistant Federal | AC13: =IF(AND(AB13<>"",AB13=Recap!B11),SUMPRODUCT(($B$6:$B$30=AB13)*($T$6:$T$30)),"") -> 
I14: =IF(F14<>"",VLOOKUP(X14,AAAADonnées!$A$3:$B$100,2,0),"") ->  | L14: =IF(G14<>"",IF(V14<>0,AAAADonnées!$D$3*V14*2,""),"") ->  | N14: =IF(Y14<>"",Y14*AAAADonnées!$C$3,"") ->  | P14: =IF(Z14<>"",Z14*AAAADonnées!$E$3,AA14) ->  | T14: 0 | V14: 0 | X14: Assistant Federal | AC14: =IF(AND(AB14<>"",AB14=Recap!B12),SUMPRODUCT(($B$6:$B$30=AB14)*($T$6:$T$30)),"") -> 
I15: =IF(F15<>"",VLOOKUP(X15,AAAADonnées!$A$3:$B$100,2,0),"") ->  | L15: =IF(G15<>"",IF(V15<>0,AAAADonnées!$D$3*V15*2,""),"") ->  | N15: =IF(Y15<>"",Y15*AAAADonnées!$C$3,"") ->  | P15: =IF(Z15<>"",Z15*AAAADonnées!$E$3,AA15) ->  | T15: 0 | V15: 0 | X15: Assistant Federal | AC15: =IF(AND(AB15<>"",AB15=Recap!B13),SUMPRODUCT(($B$6:$B$30=AB15)*($T$6:$T$30)),"") -> 
I16: =IF(F16<>"",VLOOKUP(X16,AAAADonnées!$A$3:$B$100,2,0),"") ->  | L16: =IF(G16<>"",IF(V16<>0,AAAADonnées!$D$3*V16*2,""),"") ->  | N16: =IF(Y16<>"",Y16*AAAADonnées!$C$3,"") ->  | P16: =IF(Z16<>"",Z16*AAAADonnées!$E$3,AA16) ->  | T16: 0 | V16: 0 | X16: Assistant Federal | AC16: =IF(AND(AB16<>"",AB16=Recap!B14),SUMPRODUCT(($B$6:$B$30=AB16)*($T$6:$T$30)),"") -> 
I17: =IF(F17<>"",VLOOKUP(X17,AAAADonnées!$A$3:$B$100,2,0),"") ->  | L17: =IF(G17<>"",IF(V17<>0,AAAADonnées!$D$3*V17*2,""),"") ->  | N17: =IF(Y17<>"",Y17*AAAADonnées!$C$3,"") ->  | P17: =IF(Z17<>"",Z17*AAAADonnées!$E$3,AA17) ->  | T17: 0 | V17: 0 | X17: Assistant Federal | AC17: =IF(AND(AB17<>"",AB17=Recap!B15),SUMPRODUCT(($B$6:$B$30=AB17)*($T$6:$T$30)),"") -> 
I18: =IF(F18<>"",VLOOKUP(X18,AAAADonnées!$A$3:$B$100,2,0),"") ->  | L18: =IF(G18<>"",IF(V18<>0,AAAADonnées!$D$3*V18*2,""),"") ->  | N18: =IF(Y18<>"",Y18*AAAADonnées!$C$3,"") ->  | P18: =IF(Z18<>"",Z18*AAAADonnées!$E$3,AA18) ->  | T18: 0 | V18: 0 | X18: Assistant Federal | AC18: =IF(AND(AB18<>"",AB18=Recap!B16),SUMPRODUCT(($B$6:$B$30=AB18)*($T$6:$T$30)),"") -> 
I19: =IF(F19<>"",VLOOKUP(X19,AAAADonnées!$A$3:$B$100,2,0),"") ->  | L19: =IF(G19<>"",IF(V19<>0,AAAADonnées!$D$3*V19*2,""),"") ->  | N19: =IF(Y19<>"",Y19*AAAADonnées!$C$3,"") ->  | P19: =IF(Z19<>"",Z19*AAAADonnées!$E$3,AA19) ->  | T19: 0 | V19: 0 | X19: Assistant Federal | AC19: =IF(AND(AB19<>"",AB19=Recap!B17),SUMPRODUCT(($B$6:$B$30=AB19)*($T$6:$T$30)),"") -> 
I20: =IF(F20<>"",VLOOKUP(X20,AAAADonnées!$A$3:$B$100,2,0),"") ->  | N20: =IF(Y20<>"",Y20*AAAADonnées!$C$3,"") ->  | P20: =IF(Z20<>"",Z20*AAAADonnées!$E$3,AA20) ->  | T20: 0 | V20: 0 | X20: Assistant Federal | AC20: =IF(AND(AB20<>"",AB20=Recap!B18),SUMPRODUCT(($B$6:$B$30=AB20)*($T$6:$T$30)),"") -> 
I21: =IF(F21<>"",VLOOKUP(X21,AAAADonnées!$A$3:$B$100,2,0),"") ->  | L21: =IF(G21<>"",IF(V21<>0,AAAADonnées!$D$3*V21*2,""),"") ->  | N21: =IF(Y21<>"",Y21*AAAADonnées!$C$3,"") ->  | P21: =IF(Z21<>"",Z21*AAAADonnées!$E$3,AA21) ->  | T21: 0 | V21: 0 | X21: Assistant Federal | AC21: =IF(AND(AB21<>"",AB21=Recap!B19),SUMPRODUCT(($B$6:$B$30=AB21)*($T$6:$T$30)),"") -> 
I22: =IF(F22<>"",VLOOKUP(X22,AAAADonnées!$A$3:$B$100,2,0),"") ->  | L22: =IF(G22<>"",IF(V22<>0,AAAADonnées!$D$3*V22*2,""),"") ->  | N22: =IF(Y22<>"",Y22*AAAADonnées!$C$3,"") ->  | P22: =IF(Z22<>"",Z22*AAAADonnées!$E$3,AA22) ->  | T22: 0 | V22: 0 | X22: Assistant Federal | AC22: =IF(AND(AB22<>"",AB22=Recap!B20),SUMPRODUCT(($B$6:$B$30=AB22)*($T$6:$T$30)),"") -> 
I23: =IF(F23<>"",VLOOKUP(X23,AAAADonnées!$A$3:$B$100,2,0),"") ->  | L23: =IF(G23<>"",IF(V23<>0,AAAADonnées!$D$3*V23*2,""),"") ->  | N23: =IF(Y23<>"",Y23*AAAADonnées!$C$3,"") ->  | P23: =IF(Z23<>"",Z23*AAAADonnées!$E$3,AA23) ->  | T23: 0 | V23: 0 | X23: Assistant Federal | AC23: =IF(AND(AB23<>"",AB23=Recap!B21),SUMPRODUCT(($B$6:$B$30=AB23)*($T$6:$T$30)),"") -> 
I24: =IF(F24<>"",VLOOKUP(X24,AAAADonnées!$A$3:$B$100,2,0),"") ->  | L24: =IF(G24<>"",IF(V24<>0,AAAADonnées!$D$3*V24*2,""),"") ->  | N24: =IF(Y24<>"",Y24*AAAADonnées!$C$3,"") ->  | P24: =IF(Z24<>"",Z24*AAAADonnées!$E$3,AA24) ->  | T24: 0 | V24: 0 | X24: Assistant Federal | AC24: =IF(AND(AB24<>"",AB24=Recap!B22),SUMPRODUCT(($B$6:$B$30=AB24)*($T$6:$T$30)),"") -> 
I25: =IF(F25<>"",VLOOKUP(X25,AAAADonnées!$A$3:$B$100,2,0),"") ->  | L25: =IF(G25<>"",IF(V25<>0,AAAADonnées!$D$3*V25*2,""),"") ->  | N25: =IF(Y25<>"",Y25*AAAADonnées!$C$3,"") ->  | P25: =IF(Z25<>"",Z25*AAAADonnées!$E$3,AA25) ->  | T25: 0 | V25: 0 | X25: Assistant Federal | AC25: =IF(AND(AB25<>"",AB25=Recap!B23),SUMPRODUCT(($B$6:$B$30=AB25)*($T$6:$T$30)),"") -> 
I26: =IF(F26<>"",VLOOKUP(X26,AAAADonnées!$A$3:$B$100,2,0),"") ->  | L26: =IF(G26<>"",IF(V26<>0,AAAADonnées!$D$3*V26*2,""),"") ->  | N26: =IF(Y26<>"",Y26*AAAADonnées!$C$3,"") ->  | P26: =IF(Z26<>"",Z26*AAAADonnées!$E$3,AA26) ->  | T26: 0 | V26: 0 | X26: Assistant Federal | AC26: =IF(AND(AB26<>"",AB26=Recap!B24),SUMPRODUCT(($B$6:$B$30=AB26)*($T$6:$T$30)),"") -> 
I27: =IF(F27<>"",VLOOKUP(X27,AAAADonnées!$A$3:$B$100,2,0),"") ->  | L27: =IF(G27<>"",IF(V27<>0,AAAADonnées!$D$3*V27*2,""),"") ->  | N27: =IF(Y27<>"",Y27*AAAADonnées!$C$3,"") ->  | P27: =IF(Z27<>"",Z27*AAAADonnées!$E$3,AA27) ->  | T27: 0 | V27: 0 | X27: Assistant Federal | AC27: =IF(AND(AB27<>"",AB27=Recap!B25),SUMPRODUCT(($B$6:$B$30=AB27)*($T$6:$T$30)),"") -> 
I28: =IF(F28<>"",VLOOKUP(X28,AAAADonnées!$A$3:$B$100,2,0),"") ->  | L28: =IF(G28<>"",IF(V28<>0,AAAADonnées!$D$3*V28*2,""),"") ->  | N28: =IF(Y28<>"",Y28*AAAADonnées!$C$3,"") ->  | P28: =IF(Z28<>"",Z28*AAAADonnées!$E$3,AA28) ->  | T28: 0 | V28: 0 | X28: Assistant Federal | AC28: =IF(AND(AB28<>"",AB28=Recap!B26),SUMPRODUCT(($B$6:$B$30=AB28)*($T$6:$T$30)),"") -> 
C29: =IF(B29<>"",LEFT(PROPER(TEXT(B29,"jjjj")),3),"") ->  | I29: =IF(F29<>"",VLOOKUP(X29,AAAADonnées!$A$3:$B$100,2,0),"") ->  | L29: =IF(G29<>"",IF(V29<>0,AAAADonnées!$D$3*V29*2,""),"") ->  | N29: =IF(Y29<>"",Y29*AAAADonnées!$C$3,"") ->  | P29: =IF(Z29<>"",Z29*AAAADonnées!$E$3,AA29) ->  | T29: 0 | V29: 0 | X29: Assistant Federal | AC29: =IF(AND(AB29<>"",AB29=Recap!B27),SUMPRODUCT(($B$6:$B$30=AB29)*($T$6:$T$30)),"") -> 
I30: =IF(F30<>"",VLOOKUP(X30,AAAADonnées!$A$3:$B$100,2,0),"") ->  | L30: =IF(G30<>"",IF(V30<>0,AAAADonnées!$D$3*V30*2,""),"") ->  | N30: =IF(Y30<>"",Y30*AAAADonnées!$C$3,"") ->  | P30: =IF(Z30<>"",Z30*AAAADonnées!$E$3,AA30) ->  | T30: =SUM(I30:S30) -> 0 | V30: 0 | X30: Assistant Federal | AC30: =IF(AND(AB30<>"",AB30=Recap!B28),SUMPRODUCT(($B$6:$B$30=AB30)*($T$6:$T$30)),"") -> 
I31: =SUM(I6:I30) -> 1500 | J31: =SUM(J6:K30) -> 0 | L31: =SUM(L6:M30) -> 910 | N31: =SUM(N6:O30) -> 0 | P31: =SUM(P6:Q30) -> 0 | R31: =SUM(R6:S30) -> 0 | T31: =SUM(T6:T30) -> 2410
A33: Mode de règlement: | F33: Arrêté à la somme de: | H33: =IF(F43="",IF(T31<>0,PROPER(CONCATENATE(ConvNumberLetter(T31)," Dinars")),""),"") -> Deux Mille Quatre Cent Dix Dinars
H35: Le Président | M35: Le Trésorier | S35: l'Intéressé
C38: =C1 -> ZOUAID | T38: FABB
C39: =C2 -> SETIF | T39: TRÉSORERIE
H40: =H3 -> Assistant | J40: =J3 -> Federal | S40: SAISON 2017/2018
A41: Report | I41: =I31 -> 1500 | J41: =J31 -> 0 | L41: =L31 -> 910 | N41: =N31 -> 0 | P41: =P31 -> 0 | R41: =R31 -> 0 | T41: =T31 -> 2410
A42: Journée | B42: Date | C42: Jour | D42: Rencontres | F42: Catégories | G42: Domiciliation | H42: Horaire | I42: Match | J42: Forfait | K42: Aéroport | L42: Transport | M42: par route 7 DA-Km | N42: Hébergement | O42: 2500 DA nuitée | P42: Restauration | Q42: 1000 DA | R42: Forfait suivant | S42: domiciliation | T42: Total | V42: Dist - KM | Y42: Heb. | Z42: Nbr. Repas | AA42: Repas
C43: =IF(B43<>"",LEFT(PROPER(TEXT(B43,"jjjj")),3),"") ->  | I43: =IF(F43<>"",VLOOKUP(X43,AAAADonnées!$A$3:$B$100,2,0),"") ->  | L43: =IF(G43<>"",IF(V43<>0,AAAADonnées!$D$3*V43*2,""),"") ->  | N43: =IF(Y43<>"",Y43*AAAADonnées!$C$3,"") ->  | P43: =IF(Z43<>"",Z43*AAAADonnées!$E$3,AA43) ->  | R43: =IF(AND(G43<>"",V43=0),500,"") ->  | T43: =SUM(I43:S43) -> 0 | V43: =IFERROR(INDEX(TABLEDist,MATCH($C$2,Depart,0),MATCH(G43,Arrivee,0)),0) -> 0 | X43: =CONCATENATE(F43," ",$H$3," ",$J$3) -> Assistant Federal | Y43: =IF(V43<200,"",IF(V43<500,1,2)) ->  | Z43: =IF(Y43=1,3,IF(Y43=2,5,"")) ->  | AA43: =IF(AND(AND(Y43="",V43<>0,W43<0.0261)),1000,"") -> 
C44: =IF(B44<>"",LEFT(PROPER(TEXT(B44,"jjjj")),3),"") ->  | I44: =IF(F44<>"",VLOOKUP(X44,AAAADonnées!$A$3:$B$100,2,0),"") ->  | L44: =IF(G44<>"",IF(V44<>0,AAAADonnées!$D$3*V44*2,""),"") ->  | N44: =IF(Y44<>"",Y44*AAAADonnées!$C$3,"") ->  | P44: =IF(Z44<>"",Z44*AAAADonnées!$E$3,AA44) ->  | R44: =IF(AND(G44<>"",V44=0),500,"") ->  | T44: =SUM(I44:S44) -> 0 | V44: 0 | X44: Assistant Federal
I45: =IF(F45<>"",VLOOKUP(X45,AAAADonnées!$A$3:$B$100,2,0),"") ->  | L45: =IF(G45<>"",IF(V45<>0,AAAADonnées!$D$3*V45*2,""),"") ->  | N45: =IF(Y45<>"",Y45*AAAADonnées!$C$3,"") ->  | P45: =IF(Z45<>"",Z45*AAAADonnées!$E$3,AA45) ->  | T45: =SUM(I45:S45) -> 0 | V45: 0 | X45: Assistant Federal
I46: =IF(F46<>"",VLOOKUP(X46,AAAADonnées!$A$3:$B$100,2,0),"") ->  | L46: =IF(G46<>"",IF(V46<>0,AAAADonnées!$D$3*V46*2,""),"") ->  | N46: =IF(Y46<>"",Y46*AAAADonnées!$C$3,"") ->  | P46: =IF(Z46<>"",Z46*AAAADonnées!$E$3,AA46) ->  | T46: 0 | V46: 0 | X46: Assistant Federal
I47: =IF(F47<>"",VLOOKUP(X47,AAAADonnées!$A$3:$B$100,2,0),"") ->  | L47: =IF(G47<>"",IF(V47<>0,AAAADonnées!$D$3*V47*2,""),"") ->  | N47: =IF(Y47<>"",Y47*AAAADonnées!$C$3,"") ->  | P47: =IF(Z47<>"",Z47*AAAADonnées!$E$3,AA47) ->  | T47: 0 | V47: 0 | X47: Assistant Federal
I48: =IF(F48<>"",VLOOKUP(X48,AAAADonnées!$A$3:$B$100,2,0),"") ->  | L48: =IF(G48<>"",IF(V48<>0,AAAADonnées!$D$3*V48*2,""),"") ->  | N48: =IF(Y48<>"",Y48*AAAADonnées!$C$3,"") ->  | P48: =IF(Z48<>"",Z48*AAAADonnées!$E$3,AA48) ->  | T48: 0 | V48: 0 | X48: Assistant Federal
I49: =IF(F49<>"",VLOOKUP(X49,AAAADonnées!$A$3:$B$100,2,0),"") ->  | L49: =IF(G49<>"",IF(V49<>0,AAAADonnées!$D$3*V49*2,""),"") ->  | N49: =IF(Y49<>"",Y49*AAAADonnées!$C$3,"") ->  | P49: =IF(Z49<>"",Z49*AAAADonnées!$E$3,AA49) ->  | T49: 0 | V49: 0 | X49: Assistant Federal
I50: =IF(F50<>"",VLOOKUP(X50,AAAADonnées!$A$3:$B$100,2,0),"") ->  | L50: =IF(G50<>"",IF(V50<>0,AAAADonnées!$D$3*V50*2,""),"") ->  | N50: =IF(Y50<>"",Y50*AAAADonnées!$C$3,"") ->  | P50: =IF(Z50<>"",Z50*AAAADonnées!$E$3,AA50) ->  | T50: 0 | V50: 0 | X50: Assistant Federal
I51: =IF(F51<>"",VLOOKUP(X51,AAAADonnées!$A$3:$B$100,2,0),"") ->  | L51: =IF(G51<>"",IF(V51<>0,AAAADonnées!$D$3*V51*2,""),"") ->  | N51: =IF(Y51<>"",Y51*AAAADonnées!$C$3,"") ->  | P51: =IF(Z51<>"",Z51*AAAADonnées!$E$3,AA51) ->  | T51: 0 | V51: 0 | X51: Assistant Federal
I52: =IF(F52<>"",VLOOKUP(X52,AAAADonnées!$A$3:$B$100,2,0),"") ->  | L52: =IF(G52<>"",IF(V52<>0,AAAADonnées!$D$3*V52*2,""),"") ->  | N52: =IF(Y52<>"",Y52*AAAADonnées!$C$3,"") ->  | P52: =IF(Z52<>"",Z52*AAAADonnées!$E$3,AA52) ->  | T52: 0 | V52: 0 | X52: Assistant Federal
I53: =IF(F53<>"",VLOOKUP(X53,AAAADonnées!$A$3:$B$100,2,0),"") ->  | L53: =IF(G53<>"",IF(V53<>0,AAAADonnées!$D$3*V53*2,""),"") ->  | N53: =IF(Y53<>"",Y53*AAAADonnées!$C$3,"") ->  | P53: =IF(Z53<>"",Z53*AAAADonnées!$E$3,AA53) ->  | T53: 0 | V53: 0 | X53: Assistant Federal
I54: =IF(F54<>"",VLOOKUP(X54,AAAADonnées!$A$3:$B$100,2,0),"") ->  | L54: =IF(G54<>"",IF(V54<>0,AAAADonnées!$D$3*V54*2,""),"") ->  | N54: =IF(Y54<>"",Y54*AAAADonnées!$C$3,"") ->  | P54: =IF(Z54<>"",Z54*AAAADonnées!$E$3,AA54) ->  | T54: 0 | V54: 0 | X54: Assistant Federal
I55: =IF(F55<>"",VLOOKUP(X55,AAAADonnées!$A$3:$B$100,2,0),"") ->  | L55: =IF(G55<>"",IF(V55<>0,AAAADonnées!$D$3*V55*2,""),"") ->  | N55: =IF(Y55<>"",Y55*AAAADonnées!$C$3,"") ->  | P55: =IF(Z55<>"",Z55*AAAADonnées!$E$3,AA55) ->  | T55: 0 | V55: 0 | X55: Assistant Federal
I56: =IF(F56<>"",VLOOKUP(X56,AAAADonnées!$A$3:$B$100,2,0),"") ->  | L56: =IF(G56<>"",IF(V56<>0,AAAADonnées!$D$3*V56*2,""),"") ->  | N56: =IF(Y56<>"",Y56*AAAADonnées!$C$3,"") ->  | P56: =IF(Z56<>"",Z56*AAAADonnées!$E$3,AA56) ->  | T56: 0 | V56: 0 | X56: Assistant Federal
I57: =IF(F57<>"",VLOOKUP(X57,AAAADonnées!$A$3:$B$100,2,0),"") ->  | L57: =IF(G57<>"",IF(V57<>0,AAAADonnées!$D$3*V57*2,""),"") ->  | N57: =IF(Y57<>"",Y57*AAAADonnées!$C$3,"") ->  | P57: =IF(Z57<>"",Z57*AAAADonnées!$E$3,AA57) ->  | T57: 0 | V57: 0 | X57: Assistant Federal
I58: =IF(F58<>"",VLOOKUP(X58,AAAADonnées!$A$3:$B$100,2,0),"") ->  | L58: =IF(G58<>"",IF(V58<>0,AAAADonnées!$D$3*V58*2,""),"") ->  | N58: =IF(Y58<>"",Y58*AAAADonnées!$C$3,"") ->  | P58: =IF(Z58<>"",Z58*AAAADonnées!$E$3,AA58) ->  | T58: 0 | V58: 0 | X58: Assistant Federal
I59: =IF(F59<>"",VLOOKUP(X59,AAAADonnées!$A$3:$B$100,2,0),"") ->  | L59: =IF(G59<>"",IF(V59<>0,AAAADonnées!$D$3*V59*2,""),"") ->  | N59: =IF(Y59<>"",Y59*AAAADonnées!$C$3,"") ->  | P59: =IF(Z59<>"",Z59*AAAADonnées!$E$3,AA59) ->  | T59: 0 | V59: 0 | X59: Assistant Federal
I60: =IF(F60<>"",VLOOKUP(X60,AAAADonnées!$A$3:$B$100,2,0),"") ->  | L60: =IF(G60<>"",IF(V60<>0,AAAADonnées!$D$3*V60*2,""),"") ->  | N60: =IF(Y60<>"",Y60*AAAADonnées!$C$3,"") ->  | P60: =IF(Z60<>"",Z60*AAAADonnées!$E$3,AA60) ->  | T60: 0 | V60: 0 | X60: Assistant Federal
I61: =IF(F61<>"",VLOOKUP(X61,AAAADonnées!$A$3:$B$100,2,0),"") ->  | L61: =IF(G61<>"",IF(V61<>0,AAAADonnées!$D$3*V61*2,""),"") ->  | N61: =IF(Y61<>"",Y61*AAAADonnées!$C$3,"") ->  | P61: =IF(Z61<>"",Z61*AAAADonnées!$E$3,AA61) ->  | T61: 0 | V61: 0 | X61: Assistant Federal
I62: =IF(F62<>"",VLOOKUP(X62,AAAADonnées!$A$3:$B$100,2,0),"") ->  | L62: =IF(G62<>"",IF(V62<>0,AAAADonnées!$D$3*V62*2,""),"") ->  | N62: =IF(Y62<>"",Y62*AAAADonnées!$C$3,"") ->  | P62: =IF(Z62<>"",Z62*AAAADonnées!$E$3,AA62) ->  | T62: 0 | V62: 0 | X62: Assistant Federal
I63: =IF(F63<>"",VLOOKUP(X63,AAAADonnées!$A$3:$B$100,2,0),"") ->  | L63: =IF(G63<>"",IF(V63<>0,AAAADonnées!$D$3*V63*2,""),"") ->  | N63: =IF(Y63<>"",Y63*AAAADonnées!$C$3,"") ->  | P63: =IF(Z63<>"",Z63*AAAADonnées!$E$3,AA63) ->  | T63: 0 | V63: 0 | X63: Assistant Federal
I64: =IF(F64<>"",VLOOKUP(X64,AAAADonnées!$A$3:$B$100,2,0),"") ->  | L64: =IF(G64<>"",IF(V64<>0,AAAADonnées!$D$3*V64*2,""),"") ->  | N64: =IF(Y64<>"",Y64*AAAADonnées!$C$3,"") ->  | P64: =IF(Z64<>"",Z64*AAAADonnées!$E$3,AA64) ->  | T64: 0 | V64: 0 | X64: Assistant Federal
I65: =IF(F65<>"",VLOOKUP(X65,AAAADonnées!$A$3:$B$100,2,0),"") ->  | L65: =IF(G65<>"",IF(V65<>0,AAAADonnées!$D$3*V65*2,""),"") ->  | N65: =IF(Y65<>"",Y65*AAAADonnées!$C$3,"") ->  | P65: =IF(Z65<>"",Z65*AAAADonnées!$E$3,AA65) ->  | T65: 0 | V65: 0 | X65: Assistant Federal
I66: =IF(F66<>"",VLOOKUP(X66,AAAADonnées!$A$3:$B$100,2,0),"") ->  | L66: =IF(G66<>"",IF(V66<>0,AAAADonnées!$D$3*V66*2,""),"") ->  | N66: =IF(Y66<>"",Y66*AAAADonnées!$C$3,"") ->  | P66: =IF(Z66<>"",Z66*AAAADonnées!$E$3,AA66) ->  | T66: 0 | V66: 0 | X66: Assistant Federal
I67: =IF(F67<>"",VLOOKUP(X67,AAAADonnées!$A$3:$B$100,2,0),"") ->  | L67: =IF(G67<>"",IF(V67<>0,AAAADonnées!$D$3*V67*2,""),"") ->  | N67: =IF(Y67<>"",Y67*AAAADonnées!$C$3,"") ->  | P67: =IF(Z67<>"",Z67*AAAADonnées!$E$3,AA67) ->  | T67: =SUM(I67:S67) -> 0 | V67: 0 | X67: Assistant Federal
I68: =SUM(I43:I67)+I31 -> 1500 | J68: =SUM(J43:K67)+J31 -> 0 | L68: =SUM(L43:M67)+L31 -> 910 | N68: =SUM(N43:O67)+N31 -> 0 | P68: =SUM(P43:Q67)+P31 -> 0 | R68: =SUM(R43:S67)+R31 -> 0 | T68: =T31+SUM(T43:T67) -> 2410
A70: Mode de règlement: | G70: Arrêté à la somme de: | I70: =IF(F43<>"",PROPER(CONCATENATE(ConvNumberLetter(T68)," Dinars")),"") -> 
H72: Le Président | M72: Le Trésorier | S72: l'Intéressé
C75: =C38 -> ZOUAID | T75: FABB
C76: =C39 -> SETIF | T76: TRÉSORERIE
H77: =H40 -> Assistant | J77: =J40 -> Federal | S77: SAISON 2017/2018
A78: Report | I78: =I68 -> 1500 | J78: =J68 -> 0 | L78: =L68 -> 910 | N78: =N68 -> 0 | P78: =P68 -> 0 | R78: =R68 -> 0 | T78: =T68 -> 2410
A79: Journée | B79: Date | C79: Jour | D79: Rencontres | F79: Catégories | G79: Domiciliation | H79: Horaire | I79: Match | J79: Forfait | K79: Aéroport | L79: Transport | M79: par route 7 DA-Km | N79: Hébergement | O79: 2500 DA nuitée | P79: Restauration | Q79: 1000 DA | R79: Forfait suivant | S79: domiciliation | T79: Total | V79: Dist - KM | Y79: Heb. | Z79: Nbr. Repas | AA79: Repas
I80: =IF(F80<>"",VLOOKUP(X80,AAAADonnées!$A$3:$B$100,2,0),"") ->  | L80: =IF(G80<>"",IF(V80<>0,AAAADonnées!$D$3*V80*2,""),"") ->  | N80: =IF(Y80<>"",Y80*AAAADonnées!$C$3,"") ->  | P80: =IF(Z80<>"",Z80*AAAADonnées!$E$3,AA80) ->  | R80: =IF(AND(G80<>"",V80=0),500,"") ->  | T80: =SUM(I80:S80) -> 0 | V80: =IFERROR(INDEX(TABLEDist,MATCH($C$2,Depart,0),MATCH(G80,Arrivee,0)),0) -> 0 | W80: =IF(H80<>"",H80/24,"") ->  | X80: =CONCATENATE(F80," ",$H$3," ",$J$3) -> Assistant Federal | Y80: =IF(V80<200,"",IF(V80<500,1,2)) ->  | Z80: =IF(Y80=1,3,IF(Y80=2,5,"")) ->  | AA80: =IF(AND(AND(Y80="",V80<>0,W80<0.0261)),1000,"") -> 
I81: =IF(F81<>"",VLOOKUP(X81,AAAADonnées!$A$3:$B$100,2,0),"") ->  | L81: =IF(G81<>"",IF(V81<>0,AAAADonnées!$D$3*V81*2,""),"") ->  | N81: =IF(Y81<>"",Y81*AAAADonnées!$C$3,"") ->  | P81: =IF(Z81<>"",Z81*AAAADonnées!$E$3,AA81) ->  | R81: =IF(AND(G81<>"",V81=0),500,"") ->  | T81: =SUM(I81:S81) -> 0 | V81: 0 | X81: Assistant Federal | AA81: =IF(AND(AND(Y81="",V81<>0,W81<0.0261)),1000,"") -> 
I82: =IF(F82<>"",VLOOKUP(X82,AAAADonnées!$A$3:$B$100,2,0),"") ->  | L82: =IF(G82<>"",IF(V82<>0,AAAADonnées!$D$3*V82*2,""),"") ->  | N82: =IF(Y82<>"",Y82*AAAADonnées!$C$3,"") ->  | P82: =IF(Z82<>"",Z82*AAAADonnées!$E$3,AA82) ->  | T82: =SUM(I82:S82) -> 0 | V82: 0 | X82: Assistant Federal
I83: =IF(F83<>"",VLOOKUP(X83,AAAADonnées!$A$3:$B$100,2,0),"") ->  | L83: =IF(G83<>"",IF(V83<>0,AAAADonnées!$D$3*V83*2,""),"") ->  | N83: =IF(Y83<>"",Y83*AAAADonnées!$C$3,"") ->  | P83: =IF(Z83<>"",Z83*AAAADonnées!$E$3,AA83) ->  | T83: 0 | V83: 0 | X83: Assistant Federal
I84: =IF(F84<>"",VLOOKUP(X84,AAAADonnées!$A$3:$B$100,2,0),"") ->  | L84: =IF(G84<>"",IF(V84<>0,AAAADonnées!$D$3*V84*2,""),"") ->  | N84: =IF(Y84<>"",Y84*AAAADonnées!$C$3,"") ->  | P84: =IF(Z84<>"",Z84*AAAADonnées!$E$3,AA84) ->  | T84: 0 | V84: 0 | X84: Assistant Federal
I85: =IF(F85<>"",VLOOKUP(X85,AAAADonnées!$A$3:$B$100,2,0),"") ->  | L85: =IF(G85<>"",IF(V85<>0,AAAADonnées!$D$3*V85*2,""),"") ->  | N85: =IF(Y85<>"",Y85*AAAADonnées!$C$3,"") ->  | P85: =IF(Z85<>"",Z85*AAAADonnées!$E$3,AA85) ->  | T85: 0 | V85: 0 | X85: Assistant Federal
I86: =IF(F86<>"",VLOOKUP(X86,AAAADonnées!$A$3:$B$100,2,0),"") ->  | L86: =IF(G86<>"",IF(V86<>0,AAAADonnées!$D$3*V86*2,""),"") ->  | N86: =IF(Y86<>"",Y86*AAAADonnées!$C$3,"") ->  | P86: =IF(Z86<>"",Z86*AAAADonnées!$E$3,AA86) ->  | T86: 0 | V86: 0 | X86: Assistant Federal
I87: =IF(F87<>"",VLOOKUP(X87,AAAADonnées!$A$3:$B$100,2,0),"") ->  | L87: =IF(G87<>"",IF(V87<>0,AAAADonnées!$D$3*V87*2,""),"") ->  | N87: =IF(Y87<>"",Y87*AAAADonnées!$C$3,"") ->  | P87: =IF(Z87<>"",Z87*AAAADonnées!$E$3,AA87) ->  | T87: 0 | V87: 0 | X87: Assistant Federal
I88: =IF(F88<>"",VLOOKUP(X88,AAAADonnées!$A$3:$B$100,2,0),"") ->  | L88: =IF(G88<>"",IF(V88<>0,AAAADonnées!$D$3*V88*2,""),"") ->  | N88: =IF(Y88<>"",Y88*AAAADonnées!$C$3,"") ->  | P88: =IF(Z88<>"",Z88*AAAADonnées!$E$3,AA88) ->  | T88: 0 | V88: 0 | X88: Assistant Federal
I89: =IF(F89<>"",VLOOKUP(X89,AAAADonnées!$A$3:$B$100,2,0),"") ->  | L89: =IF(G89<>"",IF(V89<>0,AAAADonnées!$D$3*V89*2,""),"") ->  | N89: =IF(Y89<>"",Y89*AAAADonnées!$C$3,"") ->  | P89: =IF(Z89<>"",Z89*AAAADonnées!$E$3,AA89) ->  | T89: 0 | V89: 0 | X89: Assistant Federal
I90: =IF(F90<>"",VLOOKUP(X90,AAAADonnées!$A$3:$B$100,2,0),"") ->  | L90: =IF(G90<>"",IF(V90<>0,AAAADonnées!$D$3*V90*2,""),"") ->  | N90: =IF(Y90<>"",Y90*AAAADonnées!$C$3,"") ->  | P90: =IF(Z90<>"",Z90*AAAADonnées!$E$3,AA90) ->  | T90: 0 | V90: 0 | X90: Assistant Federal
I91: =IF(F91<>"",VLOOKUP(X91,AAAADonnées!$A$3:$B$100,2,0),"") ->  | L91: =IF(G91<>"",IF(V91<>0,AAAADonnées!$D$3*V91*2,""),"") ->  | N91: =IF(Y91<>"",Y91*AAAADonnées!$C$3,"") ->  | P91: =IF(Z91<>"",Z91*AAAADonnées!$E$3,AA91) ->  | T91: 0 | V91: 0 | X91: Assistant Federal
I92: =IF(F92<>"",VLOOKUP(X92,AAAADonnées!$A$3:$B$100,2,0),"") ->  | L92: =IF(G92<>"",IF(V92<>0,AAAADonnées!$D$3*V92*2,""),"") ->  | N92: =IF(Y92<>"",Y92*AAAADonnées!$C$3,"") ->  | P92: =IF(Z92<>"",Z92*AAAADonnées!$E$3,AA92) ->  | T92: 0 | V92: 0 | X92: Assistant Federal
I93: =IF(F93<>"",VLOOKUP(X93,AAAADonnées!$A$3:$B$100,2,0),"") ->  | L93: =IF(G93<>"",IF(V93<>0,AAAADonnées!$D$3*V93*2,""),"") ->  | N93: =IF(Y93<>"",Y93*AAAADonnées!$C$3,"") ->  | P93: =IF(Z93<>"",Z93*AAAADonnées!$E$3,AA93) ->  | T93: 0 | V93: 0 | X93: Assistant Federal
I94: =IF(F94<>"",VLOOKUP(X94,AAAADonnées!$A$3:$B$100,2,0),"") ->  | L94: =IF(G94<>"",IF(V94<>0,AAAADonnées!$D$3*V94*2,""),"") ->  | N94: =IF(Y94<>"",Y94*AAAADonnées!$C$3,"") ->  | P94: =IF(Z94<>"",Z94*AAAADonnées!$E$3,AA94) ->  | T94: 0 | V94: 0 | X94: Assistant Federal
I95: =IF(F95<>"",VLOOKUP(X95,AAAADonnées!$A$3:$B$100,2,0),"") ->  | L95: =IF(G95<>"",IF(V95<>0,AAAADonnées!$D$3*V95*2,""),"") ->  | N95: =IF(Y95<>"",Y95*AAAADonnées!$C$3,"") ->  | P95: =IF(Z95<>"",Z95*AAAADonnées!$E$3,AA95) ->  | T95: 0 | V95: 0 | X95: Assistant Federal
I96: =IF(F96<>"",VLOOKUP(X96,AAAADonnées!$A$3:$B$100,2,0),"") ->  | L96: =IF(G96<>"",IF(V96<>0,AAAADonnées!$D$3*V96*2,""),"") ->  | N96: =IF(Y96<>"",Y96*AAAADonnées!$C$3,"") ->  | P96: =IF(Z96<>"",Z96*AAAADonnées!$E$3,AA96) ->  | T96: 0 | V96: 0 | X96: Assistant Federal
I97: =IF(F97<>"",VLOOKUP(X97,AAAADonnées!$A$3:$B$100,2,0),"") ->  | L97: =IF(G97<>"",IF(V97<>0,AAAADonnées!$D$3*V97*2,""),"") ->  | N97: =IF(Y97<>"",Y97*AAAADonnées!$C$3,"") ->  | P97: =IF(Z97<>"",Z97*AAAADonnées!$E$3,AA97) ->  | T97: 0 | V97: 0 | X97: Assistant Federal
I98: =IF(F98<>"",VLOOKUP(X98,AAAADonnées!$A$3:$B$100,2,0),"") ->  | L98: =IF(G98<>"",IF(V98<>0,AAAADonnées!$D$3*V98*2,""),"") ->  | N98: =IF(Y98<>"",Y98*AAAADonnées!$C$3,"") ->  | P98: =IF(Z98<>"",Z98*AAAADonnées!$E$3,AA98) ->  | T98: 0 | V98: 0 | X98: Assistant Federal
I99: =IF(F99<>"",VLOOKUP(X99,AAAADonnées!$A$3:$B$100,2,0),"") ->  | L99: =IF(G99<>"",IF(V99<>0,AAAADonnées!$D$3*V99*2,""),"") ->  | N99: =IF(Y99<>"",Y99*AAAADonnées!$C$3,"") ->  | P99: =IF(Z99<>"",Z99*AAAADonnées!$E$3,AA99) ->  | T99: 0 | V99: 0 | X99: Assistant Federal
I100: =IF(F100<>"",VLOOKUP(X100,AAAADonnées!$A$3:$B$100,2,0),"") ->  | L100: =IF(G100<>"",IF(V100<>0,AAAADonnées!$D$3*V100*2,""),"") ->  | N100: =IF(Y100<>"",Y100*AAAADonnées!$C$3,"") ->  | P100: =IF(Z100<>"",Z100*AAAADonnées!$E$3,AA100) ->  | T100: 0 | V100: 0 | X100: Assistant Federal
I101: =IF(F101<>"",VLOOKUP(X101,AAAADonnées!$A$3:$B$100,2,0),"") ->  | L101: =IF(G101<>"",IF(V101<>0,AAAADonnées!$D$3*V101*2,""),"") ->  | N101: =IF(Y101<>"",Y101*AAAADonnées!$C$3,"") ->  | P101: =IF(Z101<>"",Z101*AAAADonnées!$E$3,AA101) ->  | T101: 0 | V101: 0 | X101: Assistant Federal
I102: =IF(F102<>"",VLOOKUP(X102,AAAADonnées!$A$3:$B$100,2,0),"") ->  | L102: =IF(G102<>"",IF(V102<>0,AAAADonnées!$D$3*V102*2,""),"") ->  | N102: =IF(Y102<>"",Y102*AAAADonnées!$C$3,"") ->  | P102: =IF(Z102<>"",Z102*AAAADonnées!$E$3,AA102) ->  | T102: 0 | V102: 0 | X102: Assistant Federal
I103: =IF(F103<>"",VLOOKUP(X103,AAAADonnées!$A$3:$B$100,2,0),"") ->  | L103: =IF(G103<>"",IF(V103<>0,AAAADonnées!$D$3*V103*2,""),"") ->  | N103: =IF(Y103<>"",Y103*AAAADonnées!$C$3,"") ->  | P103: =IF(Z103<>"",Z103*AAAADonnées!$E$3,AA103) ->  | T103: 0 | V103: 0 | X103: Assistant Federal
I104: =IF(F104<>"",VLOOKUP(X104,AAAADonnées!$A$3:$B$100,2,0),"") ->  | L104: =IF(G104<>"",IF(V104<>0,AAAADonnées!$D$3*V104*2,""),"") ->  | N104: =IF(Y104<>"",Y104*AAAADonnées!$C$3,"") ->  | P104: =IF(Z104<>"",Z104*AAAADonnées!$E$3,AA104) ->  | T104: =SUM(I104:S104) -> 0 | V104: 0 | X104: Assistant Federal | Y104: =IF(V104<200,"",IF(V104<500,1,2)) ->  | Z104: =IF(Y104=1,3,IF(Y104=2,5,"")) -> 
I105: =SUM(I80:I104)+I68 -> 1500 | J105: =SUM(J80:K104)+J68 -> 0 | L105: =SUM(L80:M104)+L68 -> 910 | N105: =SUM(N80:O104)+N68 -> 0 | P105: =SUM(P80:Q104)+P68 -> 0 | R105: =SUM(R80:S104)+R68 -> 0 | T105: =T68+SUM(T80:T104) -> 2410
A107: Mode de règlement: | G107: Arrêté à la somme de: | I107: =IF(F80<>"",PROPER(CONCATENATE(ConvNumberLetter(T105)," Dinars")),"") -> 
H109: Le Président | M109: Le Trésorier | S109: l'Intéressé

Sheet CHAIB
C1: CHAIB Fethi | T1: FABB
A2: Nbr Match | C2: SIDI-BEL-ABBES | T2: TRÉSORERIE
A3: =COUNTA(D6:D30,D43:D67) -> 1 | B3: Ouest | H3: Arbitre | J3: National | S3: SAISON 2017/2018
A5: Journée | B5: Date | C5: Jour | D5: Rencontres | F5: Catégories | G5: Domiciliation | H5: Horaire | I5: Match | J5: Forfait | K5: Aéroport | L5: Transport | M5: par route 7 DA-Km | N5: Hébergement | O5: 2500 DA nuitée | P5: Restauration | Q5: 1000 DA | R5: Forfait suivant | S5: domiciliation | T5: Total | V5: Dist-Km | Y5: Heb. | Z5: Nbr. Repas | AA5: Repas
B6: 2018-10-12 | C6: =IF(B6<>"",LEFT(PROPER(TEXT(B6,"jjjj")),3),"") -> Ven | D6: CRBDB | E6: CSMBB | F6: SM | G6: ALGER | H6: 16:00:00 | I6: =IF(F6<>"",VLOOKUP(X6,AAAADonnées!$A$3:$B$100,2,0),"") -> 3500 | L6: =IF(G6<>"",IF(V6<>0,AAAADonnées!$D$3*V6*2,""),"") -> 6328 | N6: =IF(Y6<>"",Y6*AAAADonnées!$C$3,"") -> 2500 | P6: =IF(Z6<>"",Z6*AAAADonnées!$E$3,AA6) -> 3000 | R6: =IF(AND(G6<>"",V6=0),500,"") ->  | T6: =SUM(I6:S6) -> 15328 | V6: =IFERROR(INDEX(TABLEDist,MATCH($C$2,Depart,0),MATCH(G6,Arrivee,0)),0) -> 452 | W6: =IF(H6<>"",H6/24,"") -> 0.02777777778 | X6: =CONCATENATE(F6," ",$H$3," ",$J$3) -> SM Arbitre National | Y6: =IF(V6<200,"",IF(V6<500,1,2)) -> 1 | Z6: =IF(Y6=1,3,IF(Y6=2,5,"")) -> 3 | AA6: =IF(AND(AND(Y6="",V6<>0,W6<0.0261)),1000,"") ->  | AB6: =IF(B6>0,B6,"") -> 2018-10-12 | AC6: =IF(AND(AB6<>"",AB6=Recap!B4),SUMPRODUCT(($B$6:$B$30=AB6)*($T$6:$T$30)),"") -> 15328
C7: =IF(B7<>"",LEFT(PROPER(TEXT(B7,"jjjj")),3),"") ->  | I7: =IF(F7<>"",VLOOKUP(X7,AAAADonnées!$A$3:$B$100,2,0),"") ->  | L7: =IF(G7<>"",IF(V7<>0,AAAADonnées!$D$3*V7*2,""),"") ->  | N7: =IF(Y7<>"",Y7*AAAADonnées!$C$3,"") ->  | P7: =IF(Z7<>"",Z7*AAAADonnées!$E$3,AA7) ->  | R7: =IF(AND(G7<>"",V7=0),500,"") ->  | T7: =SUM(I7:S7) -> 0 | V7: 0 | W7: =IF(H7<>"",H7/24,"") ->  | X7: Arbitre National | Y7: =IF(V7<200,"",IF(V7<500,1,2)) ->  | Z7: =IF(Y7=1,3,IF(Y7=2,5,"")) ->  | AA7: =IF(AND(AND(Y7="",V7<>0,W7<0.0261)),1000,"") ->  | AB7: =IF(B7>0,B7,"") ->  | AC7: =IF(AND(AB7<>"",AB7=Recap!B5),SUMPRODUCT(($B$6:$B$30=AB7)*($T$6:$T$30)),"") -> 
I8: =IF(F8<>"",VLOOKUP(X8,AAAADonnées!$A$3:$B$100,2,0),"") ->  | L8: =IF(G8<>"",IF(V8<>0,AAAADonnées!$D$3*V8*2,""),"") ->  | N8: =IF(Y8<>"",Y8*AAAADonnées!$C$3,"") ->  | P8: =IF(Z8<>"",Z8*AAAADonnées!$E$3,AA8) ->  | T8: =SUM(I8:S8) -> 0 | V8: 0 | X8: Arbitre National | AC8: =IF(AND(AB8<>"",AB8=Recap!B6),SUMPRODUCT(($B$6:$B$30=AB8)*($T$6:$T$30)),"") -> 
I9: =IF(F9<>"",VLOOKUP(X9,AAAADonnées!$A$3:$B$100,2,0),"") ->  | L9: =IF(G9<>"",IF(V9<>0,AAAADonnées!$D$3*V9*2,""),"") ->  | N9: =IF(Y9<>"",Y9*AAAADonnées!$C$3,"") ->  | P9: =IF(Z9<>"",Z9*AAAADonnées!$E$3,AA9) ->  | T9: 0 | V9: 0 | X9: Arbitre National | AC9: =IF(AND(AB9<>"",AB9=Recap!B7),SUMPRODUCT(($B$6:$B$30=AB9)*($T$6:$T$30)),"") -> 
I10: =IF(F10<>"",VLOOKUP(X10,AAAADonnées!$A$3:$B$100,2,0),"") ->  | L10: =IF(G10<>"",IF(V10<>0,AAAADonnées!$D$3*V10*2,""),"") ->  | N10: =IF(Y10<>"",Y10*AAAADonnées!$C$3,"") ->  | P10: =IF(Z10<>"",Z10*AAAADonnées!$E$3,AA10) ->  | T10: 0 | V10: 0 | X10: Arbitre National | AC10: =IF(AND(AB10<>"",AB10=Recap!B8),SUMPRODUCT(($B$6:$B$30=AB10)*($T$6:$T$30)),"") -> 
I11: =IF(F11<>"",VLOOKUP(X11,AAAADonnées!$A$3:$B$100,2,0),"") ->  | L11: =IF(G11<>"",IF(V11<>0,AAAADonnées!$D$3*V11*2,""),"") ->  | N11: =IF(Y11<>"",Y11*AAAADonnées!$C$3,"") ->  | P11: =IF(Z11<>"",Z11*AAAADonnées!$E$3,AA11) ->  | T11: 0 | V11: 0 | X11: Arbitre National | AC11: =IF(AND(AB11<>"",AB11=Recap!B9),SUMPRODUCT(($B$6:$B$30=AB11)*($T$6:$T$30)),"") -> 
I12: =IF(F12<>"",VLOOKUP(X12,AAAADonnées!$A$3:$B$100,2,0),"") ->  | L12: =IF(G12<>"",IF(V12<>0,AAAADonnées!$D$3*V12*2,""),"") ->  | N12: =IF(Y12<>"",Y12*AAAADonnées!$C$3,"") ->  | P12: =IF(Z12<>"",Z12*AAAADonnées!$E$3,AA12) ->  | T12: 0 | V12: 0 | X12: Arbitre National | AC12: =IF(AND(AB12<>"",AB12=Recap!B10),SUMPRODUCT(($B$6:$B$30=AB12)*($T$6:$T$30)),"") -> 
I13: =IF(F13<>"",VLOOKUP(X13,AAAADonnées!$A$3:$B$100,2,0),"") ->  | L13: =IF(G13<>"",IF(V13<>0,AAAADonnées!$D$3*V13*2,""),"") ->  | N13: =IF(Y13<>"",Y13*AAAADonnées!$C$3,"") ->  | P13: =IF(Z13<>"",Z13*AAAADonnées!$E$3,AA13) ->  | T13: 0 | V13: 0 | X13: Arbitre National | AC13: =IF(AND(AB13<>"",AB13=Recap!B11),SUMPRODUCT(($B$6:$B$30=AB13)*($T$6:$T$30)),"") -> 
I14: =IF(F14<>"",VLOOKUP(X14,AAAADonnées!$A$3:$B$100,2,0),"") ->  | L14: =IF(G14<>"",IF(V14<>0,AAAADonnées!$D$3*V14*2,""),"") ->  | N14: =IF(Y14<>"",Y14*AAAADonnées!$C$3,"") ->  | P14: =IF(Z14<>"",Z14*AAAADonnées!$E$3,AA14) ->  | T14: 0 | V14: 0 | X14: Arbitre National | AC14: =IF(AND(AB14<>"",AB14=Recap!B12),SUMPRODUCT(($B$6:$B$30=AB14)*($T$6:$T$30)),"") -> 
I15: =IF(F15<>"",VLOOKUP(X15,AAAADonnées!$A$3:$B$100,2,0),"") ->  | L15: =IF(G15<>"",IF(V15<>0,AAAADonnées!$D$3*V15*2,""),"") ->  | N15: =IF(Y15<>"",Y15*AAAADonnées!$C$3,"") ->  | P15: =IF(Z15<>"",Z15*AAAADonnées!$E$3,AA15) ->  | T15: 0 | V15: 0 | X15: Arbitre National | AC15: =IF(AND(AB15<>"",AB15=Recap!B13),SUMPRODUCT(($B$6:$B$30=AB15)*($T$6:$T$30)),"") -> 
I16: =IF(F16<>"",VLOOKUP(X16,AAAADonnées!$A$3:$B$100,2,0),"") ->  | L16: =IF(G16<>"",IF(V16<>0,AAAADonnées!$D$3*V16*2,""),"") ->  | N16: =IF(Y16<>"",Y16*AAAADonnées!$C$3,"") ->  | P16: =IF(Z16<>"",Z16*AAAADonnées!$E$3,AA16) ->  | T16: 0 | V16: 0 | X16: Arbitre National | AC16: =IF(AND(AB16<>"",AB16=Recap!B14),SUMPRODUCT(($B$6:$B$30=AB16)*($T$6:$T$30)),"") -> 
I17: =IF(F17<>"",VLOOKUP(X17,AAAADonnées!$A$3:$B$100,2,0),"") ->  | L17: =IF(G17<>"",IF(V17<>0,AAAADonnées!$D$3*V17*2,""),"") ->  | N17: =IF(Y17<>"",Y17*AAAADonnées!$C$3,"") ->  | P17: =IF(Z17<>"",Z17*AAAADonnées!$E$3,AA17) ->  | T17: 0 | V17: 0 | X17: Arbitre National | AC17: =IF(AND(AB17<>"",AB17=Recap!B15),SUMPRODUCT(($B$6:$B$30=AB17)*($T$6:$T$30)),"") -> 
I18: =IF(F18<>"",VLOOKUP(X18,AAAADonnées!$A$3:$B$100,2,0),"") ->  | L18: =IF(G18<>"",IF(V18<>0,AAAADonnées!$D$3*V18*2,""),"") ->  | N18: =IF(Y18<>"",Y18*AAAADonnées!$C$3,"") ->  | P18: =IF(Z18<>"",Z18*AAAADonnées!$E$3,AA18) ->  | T18: 0 | V18: 0 | X18: Arbitre National | AC18: =IF(AND(AB18<>"",AB18=Recap!B16),SUMPRODUCT(($B$6:$B$30=AB18)*($T$6:$T$30)),"") -> 
I19: =IF(F19<>"",VLOOKUP(X19,AAAADonnées!$A$3:$B$100,2,0),"") ->  | L19: =IF(G19<>"",IF(V19<>0,AAAADonnées!$D$3*V19*2,""),"") ->  | N19: =IF(Y19<>"",Y19*AAAADonnées!$C$3,"") ->  | P19: =IF(Z19<>"",Z19*AAAADonnées!$E$3,AA19) ->  | T19: 0 | V19: 0 | X19: Arbitre National | AC19: =IF(AND(AB19<>"",AB19=Recap!B17),SUMPRODUCT(($B$6:$B$30=AB19)*($T$6:$T$30)),"") -> 
I20: =IF(F20<>"",VLOOKUP(X20,AAAADonnées!$A$3:$B$100,2,0),"") ->  | N20: =IF(Y20<>"",Y20*AAAADonnées!$C$3,"") ->  | P20: =IF(Z20<>"",Z20*AAAADonnées!$E$3,AA20) ->  | T20: 0 | V20: 0 | X20: Arbitre National | AC20: =IF(AND(AB20<>"",AB20=Recap!B18),SUMPRODUCT(($B$6:$B$30=AB20)*($T$6:$T$30)),"") -> 
I21: =IF(F21<>"",VLOOKUP(X21,AAAADonnées!$A$3:$B$100,2,0),"") ->  | L21: =IF(G21<>"",IF(V21<>0,AAAADonnées!$D$3*V21*2,""),"") ->  | N21: =IF(Y21<>"",Y21*AAAADonnées!$C$3,"") ->  | P21: =IF(Z21<>"",Z21*AAAADonnées!$E$3,AA21) ->  | T21: 0 | V21: 0 | X21: Arbitre National | AC21: =IF(AND(AB21<>"",AB21=Recap!B19),SUMPRODUCT(($B$6:$B$30=AB21)*($T$6:$T$30)),"") -> 
I22: =IF(F22<>"",VLOOKUP(X22,AAAADonnées!$A$3:$B$100,2,0),"") ->  | L22: =IF(G22<>"",IF(V22<>0,AAAADonnées!$D$3*V22*2,""),"") ->  | N22: =IF(Y22<>"",Y22*AAAADonnées!$C$3,"") ->  | P22: =IF(Z22<>"",Z22*AAAADonnées!$E$3,AA22) ->  | T22: 0 | V22: 0 | X22: Arbitre National | AC22: =IF(AND(AB22<>"",AB22=Recap!B20),SUMPRODUCT(($B$6:$B$30=AB22)*($T$6:$T$30)),"") -> 
I23: =IF(F23<>"",VLOOKUP(X23,AAAADonnées!$A$3:$B$100,2,0),"") ->  | L23: =IF(G23<>"",IF(V23<>0,AAAADonnées!$D$3*V23*2,""),"") ->  | N23: =IF(Y23<>"",Y23*AAAADonnées!$C$3,"") ->  | P23: =IF(Z23<>"",Z23*AAAADonnées!$E$3,AA23) ->  | T23: 0 | V23: 0 | X23: Arbitre National | AC23: =IF(AND(AB23<>"",AB23=Recap!B21),SUMPRODUCT(($B$6:$B$30=AB23)*($T$6:$T$30)),"") -> 
I24: =IF(F24<>"",VLOOKUP(X24,AAAADonnées!$A$3:$B$100,2,0),"") ->  | L24: =IF(G24<>"",IF(V24<>0,AAAADonnées!$D$3*V24*2,""),"") ->  | N24: =IF(Y24<>"",Y24*AAAADonnées!$C$3,"") ->  | P24: =IF(Z24<>"",Z24*AAAADonnées!$E$3,AA24) ->  | T24: 0 | V24: 0 | X24: Arbitre National | AC24: =IF(AND(AB24<>"",AB24=Recap!B22),SUMPRODUCT(($B$6:$B$30=AB24)*($T$6:$T$30)),"") -> 
I25: =IF(F25<>"",VLOOKUP(X25,AAAADonnées!$A$3:$B$100,2,0),"") ->  | L25: =IF(G25<>"",IF(V25<>0,AAAADonnées!$D$3*V25*2,""),"") ->  | N25: =IF(Y25<>"",Y25*AAAADonnées!$C$3,"") ->  | P25: =IF(Z25<>"",Z25*AAAADonnées!$E$3,AA25) ->  | T25: 0 | V25: 0 | X25: Arbitre National | AC25: =IF(AND(AB25<>"",AB25=Recap!B23),SUMPRODUCT(($B$6:$B$30=AB25)*($T$6:$T$30)),"") -> 
I26: =IF(F26<>"",VLOOKUP(X26,AAAADonnées!$A$3:$B$100,2,0),"") ->  | L26: =IF(G26<>"",IF(V26<>0,AAAADonnées!$D$3*V26*2,""),"") ->  | N26: =IF(Y26<>"",Y26*AAAADonnées!$C$3,"") ->  | P26: =IF(Z26<>"",Z26*AAAADonnées!$E$3,AA26) ->  | T26: 0 | V26: 0 | X26: Arbitre National | AC26: =IF(AND(AB26<>"",AB26=Recap!B24),SUMPRODUCT(($B$6:$B$30=AB26)*($T$6:$T$30)),"") -> 
I27: =IF(F27<>"",VLOOKUP(X27,AAAADonnées!$A$3:$B$100,2,0),"") ->  | L27: =IF(G27<>"",IF(V27<>0,AAAADonnées!$D$3*V27*2,""),"") ->  | N27: =IF(Y27<>"",Y27*AAAADonnées!$C$3,"") ->  | P27: =IF(Z27<>"",Z27*AAAADonnées!$E$3,AA27) ->  | T27: 0 | V27: 0 | X27: Arbitre National | AC27: =IF(AND(AB27<>"",AB27=Recap!B25),SUMPRODUCT(($B$6:$B$30=AB27)*($T$6:$T$30)),"") -> 
I28: =IF(F28<>"",VLOOKUP(X28,AAAADonnées!$A$3:$B$100,2,0),"") ->  | L28: =IF(G28<>"",IF(V28<>0,AAAADonnées!$D$3*V28*2,""),"") ->  | N28: =IF(Y28<>"",Y28*AAAADonnées!$C$3,"") ->  | P28: =IF(Z28<>"",Z28*AAAADonnées!$E$3,AA28) ->  | T28: 0 | V28: 0 | X28: Arbitre National | AC28: =IF(AND(AB28<>"",AB28=Recap!B26),SUMPRODUCT(($B$6:$B$30=AB28)*($T$6:$T$30)),"") -> 
C29: =IF(B29<>"",LEFT(PROPER(TEXT(B29,"jjjj")),3),"") ->  | I29: =IF(F29<>"",VLOOKUP(X29,AAAADonnées!$A$3:$B$100,2,0),"") ->  | L29: =IF(G29<>"",IF(V29<>0,AAAADonnées!$D$3*V29*2,""),"") ->  | N29: =IF(Y29<>"",Y29*AAAADonnées!$C$3,"") ->  | P29: =IF(Z29<>"",Z29*AAAADonnées!$E$3,AA29) ->  | T29: 0 | V29: 0 | X29: Arbitre National | AC29: =IF(AND(AB29<>"",AB29=Recap!B27),SUMPRODUCT(($B$6:$B$30=AB29)*($T$6:$T$30)),"") -> 
I30: =IF(F30<>"",VLOOKUP(X30,AAAADonnées!$A$3:$B$100,2,0),"") ->  | L30: =IF(G30<>"",IF(V30<>0,AAAADonnées!$D$3*V30*2,""),"") ->  | N30: =IF(Y30<>"",Y30*AAAADonnées!$C$3,"") ->  | P30: =IF(Z30<>"",Z30*AAAADonnées!$E$3,AA30) ->  | T30: =SUM(I30:S30) -> 0 | V30: 0 | X30: Arbitre National | AC30: =IF(AND(AB30<>"",AB30=Recap!B28),SUMPRODUCT(($B$6:$B$30=AB30)*($T$6:$T$30)),"") -> 
I31: =SUM(I6:I30) -> 3500 | J31: =SUM(J6:K30) -> 0 | L31: =SUM(L6:M30) -> 6328 | N31: =SUM(N6:O30) -> 2500 | P31: =SUM(P6:Q30) -> 3000 | R31: =SUM(R6:S30) -> 0 | T31: =SUM(T6:T30) -> 15328
A33: Mode de règlement: | F33: Arrêté à la somme de: | H33: =IF(F43="",IF(T31<>0,PROPER(CONCATENATE(ConvNumberLetter(T31)," Dinars")),""),"") -> Quinze Mille Trois Cent Vingt-Huit Dinars
H35: Le Président | M35: Le Trésorier | S35: l'Intéressé
C38: =C1 -> CHAIB Fethi | T38: FABB
C39: =C2 -> SIDI-BEL-ABBES | T39: TRÉSORERIE
H40: =H3 -> Arbitre | J40: =J3 -> National | S40: SAISON 2017/2018
A41: Report | I41: =I31 -> 3500 | J41: =J31 -> 0 | L41: =L31 -> 6328 | N41: =N31 -> 2500 | P41: =P31 -> 3000 | R41: =R31 -> 0 | T41: =T31 -> 15328
A42: Journée | B42: Date | C42: Jour | D42: Rencontres | F42: Catégories | G42: Domiciliation | H42: Horaire | I42: Match | J42: Forfait | K42: Aéroport | L42: Transport | M42: par route 7 DA-Km | N42: Hébergement | O42: 2500 DA nuitée | P42: Restauration | Q42: 1000 DA | R42: Forfait suivant | S42: domiciliation | T42: Total | V42: Dist - KM | Y42: Heb. | Z42: Nbr. Repas | AA42: Repas
C43: =IF(B43<>"",LEFT(PROPER(TEXT(B43,"jjjj")),3),"") ->  | I43: =IF(F43<>"",VLOOKUP(X43,AAAADonnées!$A$3:$B$100,2,0),"") ->  | L43: =IF(G43<>"",IF(V43<>0,AAAADonnées!$D$3*V43*2,""),"") ->  | N43: =IF(Y43<>"",Y43*AAAADonnées!$C$3,"") ->  | P43: =IF(Z43<>"",Z43*AAAADonnées!$E$3,AA43) ->  | R43: =IF(AND(G43<>"",V43=0),500,"") ->  | T43: =SUM(I43:S43) -> 0 | V43: =IFERROR(INDEX(TABLEDist,MATCH($C$2,Depart,0),MATCH(G43,Arrivee,0)),0) -> 0 | X43: =CONCATENATE(F43," ",$H$3," ",$J$3) -> Arbitre National | Y43: =IF(V43<200,"",IF(V43<500,1,2)) ->  | Z43: =IF(Y43=1,3,IF(Y43=2,5,"")) ->  | AA43: =IF(AND(AND(Y43="",V43<>0,W43<0.0261)),1000,"") -> 
C44: =IF(B44<>"",LEFT(PROPER(TEXT(B44,"jjjj")),3),"") ->  | I44: =IF(F44<>"",VLOOKUP(X44,AAAADonnées!$A$3:$B$100,2,0),"") ->  | L44: =IF(G44<>"",IF(V44<>0,AAAADonnées!$D$3*V44*2,""),"") ->  | N44: =IF(Y44<>"",Y44*AAAADonnées!$C$3,"") ->  | P44: =IF(Z44<>"",Z44*AAAADonnées!$E$3,AA44) ->  | R44: =IF(AND(G44<>"",V44=0),500,"") ->  | T44: =SUM(I44:S44) -> 0 | V44: 0 | X44: Arbitre National
I45: =IF(F45<>"",VLOOKUP(X45,AAAADonnées!$A$3:$B$100,2,0),"") ->  | L45: =IF(G45<>"",IF(V45<>0,AAAADonnées!$D$3*V45*2,""),"") ->  | N45: =IF(Y45<>"",Y45*AAAADonnées!$C$3,"") ->  | P45: =IF(Z45<>"",Z45*AAAADonnées!$E$3,AA45) ->  | T45: =SUM(I45:S45) -> 0 | V45: 0 | X45: Arbitre National
I46: =IF(F46<>"",VLOOKUP(X46,AAAADonnées!$A$3:$B$100,2,0),"") ->  | L46: =IF(G46<>"",IF(V46<>0,AAAADonnées!$D$3*V46*2,""),"") ->  | N46: =IF(Y46<>"",Y46*AAAADonnées!$C$3,"") ->  | P46: =IF(Z46<>"",Z46*AAAADonnées!$E$3,AA46) ->  | T46: 0 | V46: 0 | X46: Arbitre National
I47: =IF(F47<>"",VLOOKUP(X47,AAAADonnées!$A$3:$B$100,2,0),"") ->  | L47: =IF(G47<>"",IF(V47<>0,AAAADonnées!$D$3*V47*2,""),"") ->  | N47: =IF(Y47<>"",Y47*AAAADonnées!$C$3,"") ->  | P47: =IF(Z47<>"",Z47*AAAADonnées!$E$3,AA47) ->  | T47: 0 | V47: 0 | X47: Arbitre National
I48: =IF(F48<>"",VLOOKUP(X48,AAAADonnées!$A$3:$B$100,2,0),"") ->  | L48: =IF(G48<>"",IF(V48<>0,AAAADonnées!$D$3*V48*2,""),"") ->  | N48: =IF(Y48<>"",Y48*AAAADonnées!$C$3,"") ->  | P48: =IF(Z48<>"",Z48*AAAADonnées!$E$3,AA48) ->  | T48: 0 | V48: 0 | X48: Arbitre National
I49: =IF(F49<>"",VLOOKUP(X49,AAAADonnées!$A$3:$B$100,2,0),"") ->  | L49: =IF(G49<>"",IF(V49<>0,AAAADonnées!$D$3*V49*2,""),"") ->  | N49: =IF(Y49<>"",Y49*AAAADonnées!$C$3,"") ->  | P49: =IF(Z49<>"",Z49*AAAADonnées!$E$3,AA49) ->  | T49: 0 | V49: 0 | X49: Arbitre National
I50: =IF(F50<>"",VLOOKUP(X50,AAAADonnées!$A$3:$B$100,2,0),"") ->  | L50: =IF(G50<>"",IF(V50<>0,AAAADonnées!$D$3*V50*2,""),"") ->  | N50: =IF(Y50<>"",Y50*AAAADonnées!$C$3,"") ->  | P50: =IF(Z50<>"",Z50*AAAADonnées!$E$3,AA50) ->  | T50: 0 | V50: 0 | X50: Arbitre National
I51: =IF(F51<>"",VLOOKUP(X51,AAAADonnées!$A$3:$B$100,2,0),"") ->  | L51: =IF(G51<>"",IF(V51<>0,AAAADonnées!$D$3*V51*2,""),"") ->  | N51: =IF(Y51<>"",Y51*AAAADonnées!$C$3,"") ->  | P51: =IF(Z51<>"",Z51*AAAADonnées!$E$3,AA51) ->  | T51: 0 | V51: 0 | X51: Arbitre National
I52: =IF(F52<>"",VLOOKUP(X52,AAAADonnées!$A$3:$B$100,2,0),"") ->  | L52: =IF(G52<>"",IF(V52<>0,AAAADonnées!$D$3*V52*2,""),"") ->  | N52: =IF(Y52<>"",Y52*AAAADonnées!$C$3,"") ->  | P52: =IF(Z52<>"",Z52*AAAADonnées!$E$3,AA52) ->  | T52: 0 | V52: 0 | X52: Arbitre National
I53: =IF(F53<>"",VLOOKUP(X53,AAAADonnées!$A$3:$B$100,2,0),"") ->  | L53: =IF(G53<>"",IF(V53<>0,AAAADonnées!$D$3*V53*2,""),"") ->  | N53: =IF(Y53<>"",Y53*AAAADonnées!$C$3,"") ->  | P53: =IF(Z53<>"",Z53*AAAADonnées!$E$3,AA53) ->  | T53: 0 | V53: 0 | X53: Arbitre National
I54: =IF(F54<>"",VLOOKUP(X54,AAAADonnées!$A$3:$B$100,2,0),"") ->  | L54: =IF(G54<>"",IF(V54<>0,AAAADonnées!$D$3*V54*2,""),"") ->  | N54: =IF(Y54<>"",Y54*AAAADonnées!$C$3,"") ->  | P54: =IF(Z54<>"",Z54*AAAADonnées!$E$3,AA54) ->  | T54: 0 | V54: 0 | X54: Arbitre National
I55: =IF(F55<>"",VLOOKUP(X55,AAAADonnées!$A$3:$B$100,2,0),"") ->  | L55: =IF(G55<>"",IF(V55<>0,AAAADonnées!$D$3*V55*2,""),"") ->  | N55: =IF(Y55<>"",Y55*AAAADonnées!$C$3,"") ->  | P55: =IF(Z55<>"",Z55*AAAADonnées!$E$3,AA55) ->  | T55: 0 | V55: 0 | X55: Arbitre National
I56: =IF(F56<>"",VLOOKUP(X56,AAAADonnées!$A$3:$B$100,2,0),"") ->  | L56: =IF(G56<>"",IF(V56<>0,AAAADonnées!$D$3*V56*2,""),"") ->  | N56: =IF(Y56<>"",Y56*AAAADonnées!$C$3,"") ->  | P56: =IF(Z56<>"",Z56*AAAADonnées!$E$3,AA56) ->  | T56: 0 | V56: 0 | X56: Arbitre National
I57: =IF(F57<>"",VLOOKUP(X57,AAAADonnées!$A$3:$B$100,2,0),"") ->  | L57: =IF(G57<>"",IF(V57<>0,AAAADonnées!$D$3*V57*2,""),"") ->  | N57: =IF(Y57<>"",Y57*AAAADonnées!$C$3,"") ->  | P57: =IF(Z57<>"",Z57*AAAADonnées!$E$3,AA57) ->  | T57: 0 | V57: 0 | X57: Arbitre National
I58: =IF(F58<>"",VLOOKUP(X58,AAAADonnées!$A$3:$B$100,2,0),"") ->  | L58: =IF(G58<>"",IF(V58<>0,AAAADonnées!$D$3*V58*2,""),"") ->  | N58: =IF(Y58<>"",Y58*AAAADonnées!$C$3,"") ->  | P58: =IF(Z58<>"",Z58*AAAADonnées!$E$3,AA58) ->  | T58: 0 | V58: 0 | X58: Arbitre National
I59: =IF(F59<>"",VLOOKUP(X59,AAAADonnées!$A$3:$B$100,2,0),"") ->  | L59: =IF(G59<>"",IF(V59<>0,AAAADonnées!$D$3*V59*2,""),"") ->  | N59: =IF(Y59<>"",Y59*AAAADonnées!$C$3,"") ->  | P59: =IF(Z59<>"",Z59*AAAADonnées!$E$3,AA59) ->  | T59: 0 | V59: 0 | X59: Arbitre National
I60: =IF(F60<>"",VLOOKUP(X60,AAAADonnées!$A$3:$B$100,2,0),"") ->  | L60: =IF(G60<>"",IF(V60<>0,AAAADonnées!$D$3*V60*2,""),"") ->  | N60: =IF(Y60<>"",Y60*AAAADonnées!$C$3,"") ->  | P60: =IF(Z60<>"",Z60*AAAADonnées!$E$3,AA60) ->  | T60: 0 | V60: 0 | X60: Arbitre National
I61: =IF(F61<>"",VLOOKUP(X61,AAAADonnées!$A$3:$B$100,2,0),"") ->  | L61: =IF(G61<>"",IF(V61<>0,AAAADonnées!$D$3*V61*2,""),"") ->  | N61: =IF(Y61<>"",Y61*AAAADonnées!$C$3,"") ->  | P61: =IF(Z61<>"",Z61*AAAADonnées!$E$3,AA61) ->  | T61: 0 | V61: 0 | X61: Arbitre National
I62: =IF(F62<>"",VLOOKUP(X62,AAAADonnées!$A$3:$B$100,2,0),"") ->  | L62: =IF(G62<>"",IF(V62<>0,AAAADonnées!$D$3*V62*2,""),"") ->  | N62: =IF(Y62<>"",Y62*AAAADonnées!$C$3,"") ->  | P62: =IF(Z62<>"",Z62*AAAADonnées!$E$3,AA62) ->  | T62: 0 | V62: 0 | X62: Arbitre National
I63: =IF(F63<>"",VLOOKUP(X63,AAAADonnées!$A$3:$B$100,2,0),"") ->  | L63: =IF(G63<>"",IF(V63<>0,AAAADonnées!$D$3*V63*2,""),"") ->  | N63: =IF(Y63<>"",Y63*AAAADonnées!$C$3,"") ->  | P63: =IF(Z63<>"",Z63*AAAADonnées!$E$3,AA63) ->  | T63: 0 | V63: 0 | X63: Arbitre National
I64: =IF(F64<>"",VLOOKUP(X64,AAAADonnées!$A$3:$B$100,2,0),"") ->  | L64: =IF(G64<>"",IF(V64<>0,AAAADonnées!$D$3*V64*2,""),"") ->  | N64: =IF(Y64<>"",Y64*AAAADonnées!$C$3,"") ->  | P64: =IF(Z64<>"",Z64*AAAADonnées!$E$3,AA64) ->  | T64: 0 | V64: 0 | X64: Arbitre National
I65: =IF(F65<>"",VLOOKUP(X65,AAAADonnées!$A$3:$B$100,2,0),"") ->  | L65: =IF(G65<>"",IF(V65<>0,AAAADonnées!$D$3*V65*2,""),"") ->  | N65: =IF(Y65<>"",Y65*AAAADonnées!$C$3,"") ->  | P65: =IF(Z65<>"",Z65*AAAADonnées!$E$3,AA65) ->  | T65: 0 | V65: 0 | X65: Arbitre National
I66: =IF(F66<>"",VLOOKUP(X66,AAAADonnées!$A$3:$B$100,2,0),"") ->  | L66: =IF(G66<>"",IF(V66<>0,AAAADonnées!$D$3*V66*2,""),"") ->  | N66: =IF(Y66<>"",Y66*AAAADonnées!$C$3,"") ->  | P66: =IF(Z66<>"",Z66*AAAADonnées!$E$3,AA66) ->  | T66: 0 | V66: 0 | X66: Arbitre National
I67: =IF(F67<>"",VLOOKUP(X67,AAAADonnées!$A$3:$B$100,2,0),"") ->  | L67: =IF(G67<>"",IF(V67<>0,AAAADonnées!$D$3*V67*2,""),"") ->  | N67: =IF(Y67<>"",Y67*AAAADonnées!$C$3,"") ->  | P67: =IF(Z67<>"",Z67*AAAADonnées!$E$3,AA67) ->  | T67: =SUM(I67:S67) -> 0 | V67: 0 | X67: Arbitre National
I68: =SUM(I43:I67)+I31 -> 3500 | J68: =SUM(J43:K67)+J31 -> 0 | L68: =SUM(L43:M67)+L31 -> 6328 | N68: =SUM(N43:O67)+N31 -> 2500 | P68: =SUM(P43:Q67)+P31 -> 3000 | R68: =SUM(R43:S67)+R31 -> 0 | T68: =T31+SUM(T43:T67) -> 15328
A70: Mode de règlement: | G70: Arrêté à la somme de: | I70: =IF(F43<>"",PROPER(CONCATENATE(ConvNumberLetter(T68)," Dinars")),"") -> 
H72: Le Président | M72: Le Trésorier | S72: l'Intéressé
C75: =C38 -> CHAIB Fethi | T75: FABB
C76: =C39 -> SIDI-BEL-ABBES | T76: TRÉSORERIE
H77: =H40 -> Arbitre | J77: =J40 -> National | S77: SAISON 2017/2018
A78: Report | I78: =I68 -> 3500 | J78: =J68 -> 0 | L78: =L68 -> 6328 | N78: =N68 -> 2500 | P78: =P68 -> 3000 | R78: =R68 -> 0 | T78: =T68 -> 15328
A79: Journée | B79: Date | C79: Jour | D79: Rencontres | F79: Catégories | G79: Domiciliation | H79: Horaire | I79: Match | J79: Forfait | K79: Aéroport | L79: Transport | M79: par route 7 DA-Km | N79: Hébergement | O79: 2500 DA nuitée | P79: Restauration | Q79: 1000 DA | R79: Forfait suivant | S79: domiciliation | T79: Total | V79: Dist - KM | Y79: Heb. | Z79: Nbr. Repas | AA79: Repas
I80: =IF(F80<>"",VLOOKUP(X80,AAAADonnées!$A$3:$B$100,2,0),"") ->  | L80: =IF(G80<>"",IF(V80<>0,AAAADonnées!$D$3*V80*2,""),"") ->  | N80: =IF(Y80<>"",Y80*AAAADonnées!$C$3,"") ->  | P80: =IF(Z80<>"",Z80*AAAADonnées!$E$3,AA80) ->  | R80: =IF(AND(G80<>"",V80=0),500,"") ->  | T80: =SUM(I80:S80) -> 0 | V80: =IFERROR(INDEX(TABLEDist,MATCH($C$2,Depart,0),MATCH(G80,Arrivee,0)),0) -> 0 | W80: =IF(H80<>"",H80/24,"") ->  | X80: =CONCATENATE(F80," ",$H$3," ",$J$3) -> Arbitre National | Y80: =IF(V80<200,"",IF(V80<500,1,2)) ->  | Z80: =IF(Y80=1,3,IF(Y80=2,5,"")) ->  | AA80: =IF(AND(AND(Y80="",V80<>0,W80<0.0261)),1000,"") -> 
I81: =IF(F81<>"",VLOOKUP(X81,AAAADonnées!$A$3:$B$100,2,0),"") ->  | L81: =IF(G81<>"",IF(V81<>0,AAAADonnées!$D$3*V81*2,""),"") ->  | N81: =IF(Y81<>"",Y81*AAAADonnées!$C$3,"") ->  | P81: =IF(Z81<>"",Z81*AAAADonnées!$E$3,AA81) ->  | R81: =IF(AND(G81<>"",V81=0),500,"") ->  | T81: =SUM(I81:S81) -> 0 | V81: 0 | X81: Arbitre National | AA81: =IF(AND(AND(Y81="",V81<>0,W81<0.0261)),1000,"") -> 
I82: =IF(F82<>"",VLOOKUP(X82,AAAADonnées!$A$3:$B$100,2,0),"") ->  | L82: =IF(G82<>"",IF(V82<>0,AAAADonnées!$D$3*V82*2,""),"") ->  | N82: =IF(Y82<>"",Y82*AAAADonnées!$C$3,"") ->  | P82: =IF(Z82<>"",Z82*AAAADonnées!$E$3,AA82) ->  | T82: =SUM(I82:S82) -> 0 | V82: 0 | X82: Arbitre National
I83: =IF(F83<>"",VLOOKUP(X83,AAAADonnées!$A$3:$B$100,2,0),"") ->  | L83: =IF(G83<>"",IF(V83<>0,AAAADonnées!$D$3*V83*2,""),"") ->  | N83: =IF(Y83<>"",Y83*AAAADonnées!$C$3,"") ->  | P83: =IF(Z83<>"",Z83*AAAADonnées!$E$3,AA83) ->  | T83: 0 | V83: 0 | X83: Arbitre National
I84: =IF(F84<>"",VLOOKUP(X84,AAAADonnées!$A$3:$B$100,2,0),"") ->  | L84: =IF(G84<>"",IF(V84<>0,AAAADonnées!$D$3*V84*2,""),"") ->  | N84: =IF(Y84<>"",Y84*AAAADonnées!$C$3,"") ->  | P84: =IF(Z84<>"",Z84*AAAADonnées!$E$3,AA84) ->  | T84: 0 | V84: 0 | X84: Arbitre National
I85: =IF(F85<>"",VLOOKUP(X85,AAAADonnées!$A$3:$B$100,2,0),"") ->  | L85: =IF(G85<>"",IF(V85<>0,AAAADonnées!$D$3*V85*2,""),"") ->  | N85: =IF(Y85<>"",Y85*AAAADonnées!$C$3,"") ->  | P85: =IF(Z85<>"",Z85*AAAADonnées!$E$3,AA85) ->  | T85: 0 | V85: 0 | X85: Arbitre National
I86: =IF(F86<>"",VLOOKUP(X86,AAAADonnées!$A$3:$B$100,2,0),"") ->  | L86: =IF(G86<>"",IF(V86<>0,AAAADonnées!$D$3*V86*2,""),"") ->  | N86: =IF(Y86<>"",Y86*AAAADonnées!$C$3,"") ->  | P86: =IF(Z86<>"",Z86*AAAADonnées!$E$3,AA86) ->  | T86: 0 | V86: 0 | X86: Arbitre National
I87: =IF(F87<>"",VLOOKUP(X87,AAAADonnées!$A$3:$B$100,2,0),"") ->  | L87: =IF(G87<>"",IF(V87<>0,AAAADonnées!$D$3*V87*2,""),"") ->  | N87: =IF(Y87<>"",Y87*AAAADonnées!$C$3,"") ->  | P87: =IF(Z87<>"",Z87*AAAADonnées!$E$3,AA87) ->  | T87: 0 | V87: 0 | X87: Arbitre National
I88: =IF(F88<>"",VLOOKUP(X88,AAAADonnées!$A$3:$B$100,2,0),"") ->  | L88: =IF(G88<>"",IF(V88<>0,AAAADonnées!$D$3*V88*2,""),"") ->  | N88: =IF(Y88<>"",Y88*AAAADonnées!$C$3,"") ->  | P88: =IF(Z88<>"",Z88*AAAADonnées!$E$3,AA88) ->  | T88: 0 | V88: 0 | X88: Arbitre National
I89: =IF(F89<>"",VLOOKUP(X89,AAAADonnées!$A$3:$B$100,2,0),"") ->  | L89: =IF(G89<>"",IF(V89<>0,AAAADonnées!$D$3*V89*2,""),"") ->  | N89: =IF(Y89<>"",Y89*AAAADonnées!$C$3,"") ->  | P89: =IF(Z89<>"",Z89*AAAADonnées!$E$3,AA89) ->  | T89: 0 | V89: 0 | X89: Arbitre National
I90: =IF(F90<>"",VLOOKUP(X90,AAAADonnées!$A$3:$B$100,2,0),"") ->  | L90: =IF(G90<>"",IF(V90<>0,AAAADonnées!$D$3*V90*2,""),"") ->  | N90: =IF(Y90<>"",Y90*AAAADonnées!$C$3,"") ->  | P90: =IF(Z90<>"",Z90*AAAADonnées!$E$3,AA90) ->  | T90: 0 | V90: 0 | X90: Arbitre National
I91: =IF(F91<>"",VLOOKUP(X91,AAAADonnées!$A$3:$B$100,2,0),"") ->  | L91: =IF(G91<>"",IF(V91<>0,AAAADonnées!$D$3*V91*2,""),"") ->  | N91: =IF(Y91<>"",Y91*AAAADonnées!$C$3,"") ->  | P91: =IF(Z91<>"",Z91*AAAADonnées!$E$3,AA91) ->  | T91: 0 | V91: 0 | X91: Arbitre National
I92: =IF(F92<>"",VLOOKUP(X92,AAAADonnées!$A$3:$B$100,2,0),"") ->  | L92: =IF(G92<>"",IF(V92<>0,AAAADonnées!$D$3*V92*2,""),"") ->  | N92: =IF(Y92<>"",Y92*AAAADonnées!$C$3,"") ->  | P92: =IF(Z92<>"",Z92*AAAADonnées!$E$3,AA92) ->  | T92: 0 | V92: 0 | X92: Arbitre National
I93: =IF(F93<>"",VLOOKUP(X93,AAAADonnées!$A$3:$B$100,2,0),"") ->  | L93: =IF(G93<>"",IF(V93<>0,AAAADonnées!$D$3*V93*2,""),"") ->  | N93: =IF(Y93<>"",Y93*AAAADonnées!$C$3,"") ->  | P93: =IF(Z93<>"",Z93*AAAADonnées!$E$3,AA93) ->  | T93: 0 | V93: 0 | X93: Arbitre National
I94: =IF(F94<>"",VLOOKUP(X94,AAAADonnées!$A$3:$B$100,2,0),"") ->  | L94: =IF(G94<>"",IF(V94<>0,AAAADonnées!$D$3*V94*2,""),"") ->  | N94: =IF(Y94<>"",Y94*AAAADonnées!$C$3,"") ->  | P94: =IF(Z94<>"",Z94*AAAADonnées!$E$3,AA94) ->  | T94: 0 | V94: 0 | X94: Arbitre National
I95: =IF(F95<>"",VLOOKUP(X95,AAAADonnées!$A$3:$B$100,2,0),"") ->  | L95: =IF(G95<>"",IF(V95<>0,AAAADonnées!$D$3*V95*2,""),"") ->  | N95: =IF(Y95<>"",Y95*AAAADonnées!$C$3,"") ->  | P95: =IF(Z95<>"",Z95*AAAADonnées!$E$3,AA95) ->  | T95: 0 | V95: 0 | X95: Arbitre National
I96: =IF(F96<>"",VLOOKUP(X96,AAAADonnées!$A$3:$B$100,2,0),"") ->  | L96: =IF(G96<>"",IF(V96<>0,AAAADonnées!$D$3*V96*2,""),"") ->  | N96: =IF(Y96<>"",Y96*AAAADonnées!$C$3,"") ->  | P96: =IF(Z96<>"",Z96*AAAADonnées!$E$3,AA96) ->  | T96: 0 | V96: 0 | X96: Arbitre National
I97: =IF(F97<>"",VLOOKUP(X97,AAAADonnées!$A$3:$B$100,2,0),"") ->  | L97: =IF(G97<>"",IF(V97<>0,AAAADonnées!$D$3*V97*2,""),"") ->  | N97: =IF(Y97<>"",Y97*AAAADonnées!$C$3,"") ->  | P97: =IF(Z97<>"",Z97*AAAADonnées!$E$3,AA97) ->  | T97: 0 | V97: 0 | X97: Arbitre National
I98: =IF(F98<>"",VLOOKUP(X98,AAAADonnées!$A$3:$B$100,2,0),"") ->  | L98: =IF(G98<>"",IF(V98<>0,AAAADonnées!$D$3*V98*2,""),"") ->  | N98: =IF(Y98<>"",Y98*AAAADonnées!$C$3,"") ->  | P98: =IF(Z98<>"",Z98*AAAADonnées!$E$3,AA98) ->  | T98: 0 | V98: 0 | X98: Arbitre National
I99: =IF(F99<>"",VLOOKUP(X99,AAAADonnées!$A$3:$B$100,2,0),"") ->  | L99: =IF(G99<>"",IF(V99<>0,AAAADonnées!$D$3*V99*2,""),"") ->  | N99: =IF(Y99<>"",Y99*AAAADonnées!$C$3,"") ->  | P99: =IF(Z99<>"",Z99*AAAADonnées!$E$3,AA99) ->  | T99: 0 | V99: 0 | X99: Arbitre National
I100: =IF(F100<>"",VLOOKUP(X100,AAAADonnées!$A$3:$B$100,2,0),"") ->  | L100: =IF(G100<>"",IF(V100<>0,AAAADonnées!$D$3*V100*2,""),"") ->  | N100: =IF(Y100<>"",Y100*AAAADonnées!$C$3,"") ->  | P100: =IF(Z100<>"",Z100*AAAADonnées!$E$3,AA100) ->  | T100: 0 | V100: 0 | X100: Arbitre National
I101: =IF(F101<>"",VLOOKUP(X101,AAAADonnées!$A$3:$B$100,2,0),"") ->  | L101: =IF(G101<>"",IF(V101<>0,AAAADonnées!$D$3*V101*2,""),"") ->  | N101: =IF(Y101<>"",Y101*AAAADonnées!$C$3,"") ->  | P101: =IF(Z101<>"",Z101*AAAADonnées!$E$3,AA101) ->  | T101: 0 | V101: 0 | X101: Arbitre National
I102: =IF(F102<>"",VLOOKUP(X102,AAAADonnées!$A$3:$B$100,2,0),"") ->  | L102: =IF(G102<>"",IF(V102<>0,AAAADonnées!$D$3*V102*2,""),"") ->  | N102: =IF(Y102<>"",Y102*AAAADonnées!$C$3,"") ->  | P102: =IF(Z102<>"",Z102*AAAADonnées!$E$3,AA102) ->  | T102: 0 | V102: 0 | X102: Arbitre National
I103: =IF(F103<>"",VLOOKUP(X103,AAAADonnées!$A$3:$B$100,2,0),"") ->  | L103: =IF(G103<>"",IF(V103<>0,AAAADonnées!$D$3*V103*2,""),"") ->  | N103: =IF(Y103<>"",Y103*AAAADonnées!$C$3,"") ->  | P103: =IF(Z103<>"",Z103*AAAADonnées!$E$3,AA103) ->  | T103: 0 | V103: 0 | X103: Arbitre National
I104: =IF(F104<>"",VLOOKUP(X104,AAAADonnées!$A$3:$B$100,2,0),"") ->  | L104: =IF(G104<>"",IF(V104<>0,AAAADonnées!$D$3*V104*2,""),"") ->  | N104: =IF(Y104<>"",Y104*AAAADonnées!$C$3,"") ->  | P104: =IF(Z104<>"",Z104*AAAADonnées!$E$3,AA104) ->  | T104: =SUM(I104:S104) -> 0 | V104: 0 | X104: Arbitre National | Y104: =IF(V104<200,"",IF(V104<500,1,2)) ->  | Z104: =IF(Y104=1,3,IF(Y104=2,5,"")) -> 
I105: =SUM(I80:I104)+I68 -> 3500 | J105: =SUM(J80:K104)+J68 -> 0 | L105: =SUM(L80:M104)+L68 -> 6328 | N105: =SUM(N80:O104)+N68 -> 2500 | P105: =SUM(P80:Q104)+P68 -> 3000 | R105: =SUM(R80:S104)+R68 -> 0 | T105: =T68+SUM(T80:T104) -> 15328
A107: Mode de règlement: | G107: Arrêté à la somme de: | I107: =IF(F80<>"",PROPER(CONCATENATE(ConvNumberLetter(T105)," Dinars")),"") -> 
H109: Le Président | M109: Le Trésorier | S109: l'Intéressé

Sheet HEDDI
C1: HEDDI Ismail | T1: FABB
A2: Nbr Match | C2: BLIDA | T2: TRÉSORERIE
A3: =COUNTA(D6:D30,D43:D67) -> 1 | B3: Centre | H3: Arbitre | J3: National | S3: SAISON 2017/2018
A5: Journée | B5: Date | C5: Jour | D5: Rencontres | F5: Catégories | G5: Domiciliation | H5: Horaire | I5: Match | J5: Forfait | K5: Aéroport | L5: Transport | M5: par route 7 DA-Km | N5: Hébergement | O5: 2500 DA nuitée | P5: Restauration | Q5: 1000 DA | R5: Forfait suivant | S5: domiciliation | T5: Total | V5: Dist-Km | Y5: Heb. | Z5: Nbr. Repas | AA5: Repas
B6: 2018-10-12 | C6: =IF(B6<>"",LEFT(PROPER(TEXT(B6,"jjjj")),3),"") -> Ven | D6: CRBDB | E6: CSMBB | F6: SM | G6: ALGER | H6: 16:00:00 | I6: =IF(F6<>"",VLOOKUP(X6,AAAADonnées!$A$3:$B$100,2,0),"") -> 3500 | L6: =IF(G6<>"",IF(V6<>0,AAAADonnées!$D$3*V6*2,""),"") -> 700 | N6: =IF(Y6<>"",Y6*AAAADonnées!$C$3,"") ->  | P6: =IF(Z6<>"",Z6*AAAADonnées!$E$3,AA6) ->  | R6: =IF(AND(G6<>"",V6=0),500,"") ->  | T6: =SUM(I6:S6) -> 4200 | V6: =IFERROR(INDEX(TABLEDist,MATCH($C$2,Depart,0),MATCH(G6,Arrivee,0)),0) -> 50 | W6: =IF(H6<>"",H6/24,"") -> 0.02777777778 | X6: =CONCATENATE(F6," ",$H$3," ",$J$3) -> SM Arbitre National | Y6: =IF(V6<200,"",IF(V6<500,1,2)) ->  | Z6: =IF(Y6=1,3,IF(Y6=2,5,"")) ->  | AA6: =IF(AND(AND(Y6="",V6<>0,W6<0.0261)),1000,"") ->  | AB6: =IF(B6>0,B6,"") -> 2018-10-12 | AC6: =IF(AND(AB6<>"",AB6=Recap!B4),SUMPRODUCT(($B$6:$B$30=AB6)*($T$6:$T$30)),"") -> 4200
C7: =IF(B7<>"",LEFT(PROPER(TEXT(B7,"jjjj")),3),"") ->  | I7: =IF(F7<>"",VLOOKUP(X7,AAAADonnées!$A$3:$B$100,2,0),"") ->  | L7: =IF(G7<>"",IF(V7<>0,AAAADonnées!$D$3*V7*2,""),"") ->  | N7: =IF(Y7<>"",Y7*AAAADonnées!$C$3,"") ->  | P7: =IF(Z7<>"",Z7*AAAADonnées!$E$3,AA7) ->  | R7: =IF(AND(G7<>"",V7=0),500,"") ->  | T7: =SUM(I7:S7) -> 0 | V7: 0 | W7: =IF(H7<>"",H7/24,"") ->  | X7: Arbitre National | Y7: =IF(V7<200,"",IF(V7<500,1,2)) ->  | Z7: =IF(Y7=1,3,IF(Y7=2,5,"")) ->  | AA7: =IF(AND(AND(Y7="",V7<>0,W7<0.0261)),1000,"") ->  | AB7: =IF(B7>0,B7,"") ->  | AC7: =IF(AND(AB7<>"",AB7=Recap!B5),SUMPRODUCT(($B$6:$B$30=AB7)*($T$6:$T$30)),"") -> 
I8: =IF(F8<>"",VLOOKUP(X8,AAAADonnées!$A$3:$B$100,2,0),"") ->  | L8: =IF(G8<>"",IF(V8<>0,AAAADonnées!$D$3*V8*2,""),"") ->  | N8: =IF(Y8<>"",Y8*AAAADonnées!$C$3,"") ->  | P8: =IF(Z8<>"",Z8*AAAADonnées!$E$3,AA8) ->  | T8: =SUM(I8:S8) -> 0 | V8: 0 | X8: Arbitre National | AC8: =IF(AND(AB8<>"",AB8=Recap!B6),SUMPRODUCT(($B$6:$B$30=AB8)*($T$6:$T$30)),"") -> 
I9: =IF(F9<>"",VLOOKUP(X9,AAAADonnées!$A$3:$B$100,2,0),"") ->  | L9: =IF(G9<>"",IF(V9<>0,AAAADonnées!$D$3*V9*2,""),"") ->  | N9: =IF(Y9<>"",Y9*AAAADonnées!$C$3,"") ->  | P9: =IF(Z9<>"",Z9*AAAADonnées!$E$3,AA9) ->  | T9: 0 | V9: 0 | X9: Arbitre National | AC9: =IF(AND(AB9<>"",AB9=Recap!B7),SUMPRODUCT(($B$6:$B$30=AB9)*($T$6:$T$30)),"") -> 
I10: =IF(F10<>"",VLOOKUP(X10,AAAADonnées!$A$3:$B$100,2,0),"") ->  | L10: =IF(G10<>"",IF(V10<>0,AAAADonnées!$D$3*V10*2,""),"") ->  | N10: =IF(Y10<>"",Y10*AAAADonnées!$C$3,"") ->  | P10: =IF(Z10<>"",Z10*AAAADonnées!$E$3,AA10) ->  | T10: 0 | V10: 0 | X10: Arbitre National | AC10: =IF(AND(AB10<>"",AB10=Recap!B8),SUMPRODUCT(($B$6:$B$30=AB10)*($T$6:$T$30)),"") -> 
I11: =IF(F11<>"",VLOOKUP(X11,AAAADonnées!$A$3:$B$100,2,0),"") ->  | L11: =IF(G11<>"",IF(V11<>0,AAAADonnées!$D$3*V11*2,""),"") ->  | N11: =IF(Y11<>"",Y11*AAAADonnées!$C$3,"") ->  | P11: =IF(Z11<>"",Z11*AAAADonnées!$E$3,AA11) ->  | T11: 0 | V11: 0 | X11: Arbitre National | AC11: =IF(AND(AB11<>"",AB11=Recap!B9),SUMPRODUCT(($B$6:$B$30=AB11)*($T$6:$T$30)),"") -> 
I12: =IF(F12<>"",VLOOKUP(X12,AAAADonnées!$A$3:$B$100,2,0),"") ->  | L12: =IF(G12<>"",IF(V12<>0,AAAADonnées!$D$3*V12*2,""),"") ->  | N12: =IF(Y12<>"",Y12*AAAADonnées!$C$3,"") ->  | P12: =IF(Z12<>"",Z12*AAAADonnées!$E$3,AA12) ->  | T12: 0 | V12: 0 | X12: Arbitre National | AC12: =IF(AND(AB12<>"",AB12=Recap!B10),SUMPRODUCT(($B$6:$B$30=AB12)*($T$6:$T$30)),"") -> 
I13: =IF(F13<>"",VLOOKUP(X13,AAAADonnées!$A$3:$B$100,2,0),"") ->  | L13: =IF(G13<>"",IF(V13<>0,AAAADonnées!$D$3*V13*2,""),"") ->  | N13: =IF(Y13<>"",Y13*AAAADonnées!$C$3,"") ->  | P13: =IF(Z13<>"",Z13*AAAADonnées!$E$3,AA13) ->  | T13: 0 | V13: 0 | X13: Arbitre National | AC13: =IF(AND(AB13<>"",AB13=Recap!B11),SUMPRODUCT(($B$6:$B$30=AB13)*($T$6:$T$30)),"") -> 
I14: =IF(F14<>"",VLOOKUP(X14,AAAADonnées!$A$3:$B$100,2,0),"") ->  | L14: =IF(G14<>"",IF(V14<>0,AAAADonnées!$D$3*V14*2,""),"") ->  | N14: =IF(Y14<>"",Y14*AAAADonnées!$C$3,"") ->  | P14: =IF(Z14<>"",Z14*AAAADonnées!$E$3,AA14) ->  | T14: 0 | V14: 0 | X14: Arbitre National | AC14: =IF(AND(AB14<>"",AB14=Recap!B12),SUMPRODUCT(($B$6:$B$30=AB14)*($T$6:$T$30)),"") -> 
I15: =IF(F15<>"",VLOOKUP(X15,AAAADonnées!$A$3:$B$100,2,0),"") ->  | L15: =IF(G15<>"",IF(V15<>0,AAAADonnées!$D$3*V15*2,""),"") ->  | N15: =IF(Y15<>"",Y15*AAAADonnées!$C$3,"") ->  | P15: =IF(Z15<>"",Z15*AAAADonnées!$E$3,AA15) ->  | T15: 0 | V15: 0 | X15: Arbitre National | AC15: =IF(AND(AB15<>"",AB15=Recap!B13),SUMPRODUCT(($B$6:$B$30=AB15)*($T$6:$T$30)),"") -> 
I16: =IF(F16<>"",VLOOKUP(X16,AAAADonnées!$A$3:$B$100,2,0),"") ->  | L16: =IF(G16<>"",IF(V16<>0,AAAADonnées!$D$3*V16*2,""),"") ->  | N16: =IF(Y16<>"",Y16*AAAADonnées!$C$3,"") ->  | P16: =IF(Z16<>"",Z16*AAAADonnées!$E$3,AA16) ->  | T16: 0 | V16: 0 | X16: Arbitre National | AC16: =IF(AND(AB16<>"",AB16=Recap!B14),SUMPRODUCT(($B$6:$B$30=AB16)*($T$6:$T$30)),"") -> 
I17: =IF(F17<>"",VLOOKUP(X17,AAAADonnées!$A$3:$B$100,2,0),"") ->  | L17: =IF(G17<>"",IF(V17<>0,AAAADonnées!$D$3*V17*2,""),"") ->  | N17: =IF(Y17<>"",Y17*AAAADonnées!$C$3,"") ->  | P17: =IF(Z17<>"",Z17*AAAADonnées!$E$3,AA17) ->  | T17: 0 | V17: 0 | X17: Arbitre National | AC17: =IF(AND(AB17<>"",AB17=Recap!B15),SUMPRODUCT(($B$6:$B$30=AB17)*($T$6:$T$30)),"") -> 
I18: =IF(F18<>"",VLOOKUP(X18,AAAADonnées!$A$3:$B$100,2,0),"") ->  | L18: =IF(G18<>"",IF(V18<>0,AAAADonnées!$D$3*V18*2,""),"") ->  | N18: =IF(Y18<>"",Y18*AAAADonnées!$C$3,"") ->  | P18: =IF(Z18<>"",Z18*AAAADonnées!$E$3,AA18) ->  | T18: 0 | V18: 0 | X18: Arbitre National | AC18: =IF(AND(AB18<>"",AB18=Recap!B16),SUMPRODUCT(($B$6:$B$30=AB18)*($T$6:$T$30)),"") -> 
I19: =IF(F19<>"",VLOOKUP(X19,AAAADonnées!$A$3:$B$100,2,0),"") ->  | L19: =IF(G19<>"",IF(V19<>0,AAAADonnées!$D$3*V19*2,""),"") ->  | N19: =IF(Y19<>"",Y19*AAAADonnées!$C$3,"") ->  | P19: =IF(Z19<>"",Z19*AAAADonnées!$E$3,AA19) ->  | T19: 0 | V19: 0 | X19: Arbitre National | AC19: =IF(AND(AB19<>"",AB19=Recap!B17),SUMPRODUCT(($B$6:$B$30=AB19)*($T$6:$T$30)),"") -> 
I20: =IF(F20<>"",VLOOKUP(X20,AAAADonnées!$A$3:$B$100,2,0),"") ->  | N20: =IF(Y20<>"",Y20*AAAADonnées!$C$3,"") ->  | P20: =IF(Z20<>"",Z20*AAAADonnées!$E$3,AA20) ->  | T20: 0 | V20: 0 | X20: Arbitre National | AC20: =IF(AND(AB20<>"",AB20=Recap!B18),SUMPRODUCT(($B$6:$B$30=AB20)*($T$6:$T$30)),"") -> 
I21: =IF(F21<>"",VLOOKUP(X21,AAAADonnées!$A$3:$B$100,2,0),"") ->  | L21: =IF(G21<>"",IF(V21<>0,AAAADonnées!$D$3*V21*2,""),"") ->  | N21: =IF(Y21<>"",Y21*AAAADonnées!$C$3,"") ->  | P21: =IF(Z21<>"",Z21*AAAADonnées!$E$3,AA21) ->  | T21: 0 | V21: 0 | X21: Arbitre National | AC21: =IF(AND(AB21<>"",AB21=Recap!B19),SUMPRODUCT(($B$6:$B$30=AB21)*($T$6:$T$30)),"") -> 
I22: =IF(F22<>"",VLOOKUP(X22,AAAADonnées!$A$3:$B$100,2,0),"") ->  | L22: =IF(G22<>"",IF(V22<>0,AAAADonnées!$D$3*V22*2,""),"") ->  | N22: =IF(Y22<>"",Y22*AAAADonnées!$C$3,"") ->  | P22: =IF(Z22<>"",Z22*AAAADonnées!$E$3,AA22) ->  | T22: 0 | V22: 0 | X22: Arbitre National | AC22: =IF(AND(AB22<>"",AB22=Recap!B20),SUMPRODUCT(($B$6:$B$30=AB22)*($T$6:$T$30)),"") -> 
I23: =IF(F23<>"",VLOOKUP(X23,AAAADonnées!$A$3:$B$100,2,0),"") ->  | L23: =IF(G23<>"",IF(V23<>0,AAAADonnées!$D$3*V23*2,""),"") ->  | N23: =IF(Y23<>"",Y23*AAAADonnées!$C$3,"") ->  | P23: =IF(Z23<>"",Z23*AAAADonnées!$E$3,AA23) ->  | T23: 0 | V23: 0 | X23: Arbitre National | AC23: =IF(AND(AB23<>"",AB23=Recap!B21),SUMPRODUCT(($B$6:$B$30=AB23)*($T$6:$T$30)),"") -> 
I24: =IF(F24<>"",VLOOKUP(X24,AAAADonnées!$A$3:$B$100,2,0),"") ->  | L24: =IF(G24<>"",IF(V24<>0,AAAADonnées!$D$3*V24*2,""),"") ->  | N24: =IF(Y24<>"",Y24*AAAADonnées!$C$3,"") ->  | P24: =IF(Z24<>"",Z24*AAAADonnées!$E$3,AA24) ->  | T24: 0 | V24: 0 | X24: Arbitre National | AC24: =IF(AND(AB24<>"",AB24=Recap!B22),SUMPRODUCT(($B$6:$B$30=AB24)*($T$6:$T$30)),"") -> 
I25: =IF(F25<>"",VLOOKUP(X25,AAAADonnées!$A$3:$B$100,2,0),"") ->  | L25: =IF(G25<>"",IF(V25<>0,AAAADonnées!$D$3*V25*2,""),"") ->  | N25: =IF(Y25<>"",Y25*AAAADonnées!$C$3,"") ->  | P25: =IF(Z25<>"",Z25*AAAADonnées!$E$3,AA25) ->  | T25: 0 | V25: 0 | X25: Arbitre National | AC25: =IF(AND(AB25<>"",AB25=Recap!B23),SUMPRODUCT(($B$6:$B$30=AB25)*($T$6:$T$30)),"") -> 
I26: =IF(F26<>"",VLOOKUP(X26,AAAADonnées!$A$3:$B$100,2,0),"") ->  | L26: =IF(G26<>"",IF(V26<>0,AAAADonnées!$D$3*V26*2,""),"") ->  | N26: =IF(Y26<>"",Y26*AAAADonnées!$C$3,"") ->  | P26: =IF(Z26<>"",Z26*AAAADonnées!$E$3,AA26) ->  | T26: 0 | V26: 0 | X26: Arbitre National | AC26: =IF(AND(AB26<>"",AB26=Recap!B24),SUMPRODUCT(($B$6:$B$30=AB26)*($T$6:$T$30)),"") -> 
I27: =IF(F27<>"",VLOOKUP(X27,AAAADonnées!$A$3:$B$100,2,0),"") ->  | L27: =IF(G27<>"",IF(V27<>0,AAAADonnées!$D$3*V27*2,""),"") ->  | N27: =IF(Y27<>"",Y27*AAAADonnées!$C$3,"") ->  | P27: =IF(Z27<>"",Z27*AAAADonnées!$E$3,AA27) ->  | T27: 0 | V27: 0 | X27: Arbitre National | AC27: =IF(AND(AB27<>"",AB27=Recap!B25),SUMPRODUCT(($B$6:$B$30=AB27)*($T$6:$T$30)),"") -> 
I28: =IF(F28<>"",VLOOKUP(X28,AAAADonnées!$A$3:$B$100,2,0),"") ->  | L28: =IF(G28<>"",IF(V28<>0,AAAADonnées!$D$3*V28*2,""),"") ->  | N28: =IF(Y28<>"",Y28*AAAADonnées!$C$3,"") ->  | P28: =IF(Z28<>"",Z28*AAAADonnées!$E$3,AA28) ->  | T28: 0 | V28: 0 | X28: Arbitre National | AC28: =IF(AND(AB28<>"",AB28=Recap!B26),SUMPRODUCT(($B$6:$B$30=AB28)*($T$6:$T$30)),"") -> 
C29: =IF(B29<>"",LEFT(PROPER(TEXT(B29,"jjjj")),3),"") ->  | I29: =IF(F29<>"",VLOOKUP(X29,AAAADonnées!$A$3:$B$100,2,0),"") ->  | L29: =IF(G29<>"",IF(V29<>0,AAAADonnées!$D$3*V29*2,""),"") ->  | N29: =IF(Y29<>"",Y29*AAAADonnées!$C$3,"") ->  | P29: =IF(Z29<>"",Z29*AAAADonnées!$E$3,AA29) ->  | T29: 0 | V29: 0 | X29: Arbitre National | AC29: =IF(AND(AB29<>"",AB29=Recap!B27),SUMPRODUCT(($B$6:$B$30=AB29)*($T$6:$T$30)),"") -> 
I30: =IF(F30<>"",VLOOKUP(X30,AAAADonnées!$A$3:$B$100,2,0),"") ->  | L30: =IF(G30<>"",IF(V30<>0,AAAADonnées!$D$3*V30*2,""),"") ->  | N30: =IF(Y30<>"",Y30*AAAADonnées!$C$3,"") ->  | P30: =IF(Z30<>"",Z30*AAAADonnées!$E$3,AA30) ->  | T30: =SUM(I30:S30) -> 0 | V30: 0 | X30: Arbitre National | AC30: =IF(AND(AB30<>"",AB30=Recap!B28),SUMPRODUCT(($B$6:$B$30=AB30)*($T$6:$T$30)),"") -> 
I31: =SUM(I6:I30) -> 3500 | J31: =SUM(J6:K30) -> 0 | L31: =SUM(L6:M30) -> 700 | N31: =SUM(N6:O30) -> 0 | P31: =SUM(P6:Q30) -> 0 | R31: =SUM(R6:S30) -> 0 | T31: =SUM(T6:T30) -> 4200
A33: Mode de règlement: | F33: Arrêté à la somme de: | H33: =IF(F43="",IF(T31<>0,PROPER(CONCATENATE(ConvNumberLetter(T31)," Dinars")),""),"") -> Quatre Mille Deux Cents Dinars
H35: Le Président | M35: Le Trésorier | S35: l'Intéressé
C38: =C1 -> HEDDI Ismail | T38: FABB
C39: =C2 -> BLIDA | T39: TRÉSORERIE
H40: =H3 -> Arbitre | J40: =J3 -> National | S40: SAISON 2017/2018
A41: Report | I41: =I31 -> 3500 | J41: =J31 -> 0 | L41: =L31 -> 700 | N41: =N31 -> 0 | P41: =P31 -> 0 | R41: =R31 -> 0 | T41: =T31 -> 4200
A42: Journée | B42: Date | C42: Jour | D42: Rencontres | F42: Catégories | G42: Domiciliation | H42: Horaire | I42: Match | J42: Forfait | K42: Aéroport | L42: Transport | M42: par route 7 DA-Km | N42: Hébergement | O42: 2500 DA nuitée | P42: Restauration | Q42: 1000 DA | R42: Forfait suivant | S42: domiciliation | T42: Total | V42: Dist - KM | Y42: Heb. | Z42: Nbr. Repas | AA42: Repas
C43: =IF(B43<>"",LEFT(PROPER(TEXT(B43,"jjjj")),3),"") ->  | I43: =IF(F43<>"",VLOOKUP(X43,AAAADonnées!$A$3:$B$100,2,0),"") ->  | L43: =IF(G43<>"",IF(V43<>0,AAAADonnées!$D$3*V43*2,""),"") ->  | N43: =IF(Y43<>"",Y43*AAAADonnées!$C$3,"") ->  | P43: =IF(Z43<>"",Z43*AAAADonnées!$E$3,AA43) ->  | R43: =IF(AND(G43<>"",V43=0),500,"") ->  | T43: =SUM(I43:S43) -> 0 | V43: =IFERROR(INDEX(TABLEDist,MATCH($C$2,Depart,0),MATCH(G43,Arrivee,0)),0) -> 0 | X43: =CONCATENATE(F43," ",$H$3," ",$J$3) -> Arbitre National | Y43: =IF(V43<200,"",IF(V43<500,1,2)) ->  | Z43: =IF(Y43=1,3,IF(Y43=2,5,"")) ->  | AA43: =IF(AND(AND(Y43="",V43<>0,W43<0.0261)),1000,"") -> 
C44: =IF(B44<>"",LEFT(PROPER(TEXT(B44,"jjjj")),3),"") ->  | I44: =IF(F44<>"",VLOOKUP(X44,AAAADonnées!$A$3:$B$100,2,0),"") ->  | L44: =IF(G44<>"",IF(V44<>0,AAAADonnées!$D$3*V44*2,""),"") ->  | N44: =IF(Y44<>"",Y44*AAAADonnées!$C$3,"") ->  | P44: =IF(Z44<>"",Z44*AAAADonnées!$E$3,AA44) ->  | R44: =IF(AND(G44<>"",V44=0),500,"") ->  | T44: =SUM(I44:S44) -> 0 | V44: 0 | X44: Arbitre National
I45: =IF(F45<>"",VLOOKUP(X45,AAAADonnées!$A$3:$B$100,2,0),"") ->  | L45: =IF(G45<>"",IF(V45<>0,AAAADonnées!$D$3*V45*2,""),"") ->  | N45: =IF(Y45<>"",Y45*AAAADonnées!$C$3,"") ->  | P45: =IF(Z45<>"",Z45*AAAADonnées!$E$3,AA45) ->  | T45: =SUM(I45:S45) -> 0 | V45: 0 | X45: Arbitre National
I46: =IF(F46<>"",VLOOKUP(X46,AAAADonnées!$A$3:$B$100,2,0),"") ->  | L46: =IF(G46<>"",IF(V46<>0,AAAADonnées!$D$3*V46*2,""),"") ->  | N46: =IF(Y46<>"",Y46*AAAADonnées!$C$3,"") ->  | P46: =IF(Z46<>"",Z46*AAAADonnées!$E$3,AA46) ->  | T46: 0 | V46: 0 | X46: Arbitre National
I47: =IF(F47<>"",VLOOKUP(X47,AAAADonnées!$A$3:$B$100,2,0),"") ->  | L47: =IF(G47<>"",IF(V47<>0,AAAADonnées!$D$3*V47*2,""),"") ->  | N47: =IF(Y47<>"",Y47*AAAADonnées!$C$3,"") ->  | P47: =IF(Z47<>"",Z47*AAAADonnées!$E$3,AA47) ->  | T47: 0 | V47: 0 | X47: Arbitre National
I48: =IF(F48<>"",VLOOKUP(X48,AAAADonnées!$A$3:$B$100,2,0),"") ->  | L48: =IF(G48<>"",IF(V48<>0,AAAADonnées!$D$3*V48*2,""),"") ->  | N48: =IF(Y48<>"",Y48*AAAADonnées!$C$3,"") ->  | P48: =IF(Z48<>"",Z48*AAAADonnées!$E$3,AA48) ->  | T48: 0 | V48: 0 | X48: Arbitre National
I49: =IF(F49<>"",VLOOKUP(X49,AAAADonnées!$A$3:$B$100,2,0),"") ->  | L49: =IF(G49<>"",IF(V49<>0,AAAADonnées!$D$3*V49*2,""),"") ->  | N49: =IF(Y49<>"",Y49*AAAADonnées!$C$3,"") ->  | P49: =IF(Z49<>"",Z49*AAAADonnées!$E$3,AA49) ->  | T49: 0 | V49: 0 | X49: Arbitre National
I50: =IF(F50<>"",VLOOKUP(X50,AAAADonnées!$A$3:$B$100,2,0),"") ->  | L50: =IF(G50<>"",IF(V50<>0,AAAADonnées!$D$3*V50*2,""),"") ->  | N50: =IF(Y50<>"",Y50*AAAADonnées!$C$3,"") ->  | P50: =IF(Z50<>"",Z50*AAAADonnées!$E$3,AA50) ->  | T50: 0 | V50: 0 | X50: Arbitre National
I51: =IF(F51<>"",VLOOKUP(X51,AAAADonnées!$A$3:$B$100,2,0),"") ->  | L51: =IF(G51<>"",IF(V51<>0,AAAADonnées!$D$3*V51*2,""),"") ->  | N51: =IF(Y51<>"",Y51*AAAADonnées!$C$3,"") ->  | P51: =IF(Z51<>"",Z51*AAAADonnées!$E$3,AA51) ->  | T51: 0 | V51: 0 | X51: Arbitre National
I52: =IF(F52<>"",VLOOKUP(X52,AAAADonnées!$A$3:$B$100,2,0),"") ->  | L52: =IF(G52<>"",IF(V52<>0,AAAADonnées!$D$3*V52*2,""),"") ->  | N52: =IF(Y52<>"",Y52*AAAADonnées!$C$3,"") ->  | P52: =IF(Z52<>"",Z52*AAAADonnées!$E$3,AA52) ->  | T52: 0 | V52: 0 | X52: Arbitre National
I53: =IF(F53<>"",VLOOKUP(X53,AAAADonnées!$A$3:$B$100,2,0),"") ->  | L53: =IF(G53<>"",IF(V53<>0,AAAADonnées!$D$3*V53*2,""),"") ->  | N53: =IF(Y53<>"",Y53*AAAADonnées!$C$3,"") ->  | P53: =IF(Z53<>"",Z53*AAAADonnées!$E$3,AA53) ->  | T53: 0 | V53: 0 | X53: Arbitre National
I54: =IF(F54<>"",VLOOKUP(X54,AAAADonnées!$A$3:$B$100,2,0),"") ->  | L54: =IF(G54<>"",IF(V54<>0,AAAADonnées!$D$3*V54*2,""),"") ->  | N54: =IF(Y54<>"",Y54*AAAADonnées!$C$3,"") ->  | P54: =IF(Z54<>"",Z54*AAAADonnées!$E$3,AA54) ->  | T54: 0 | V54: 0 | X54: Arbitre National
I55: =IF(F55<>"",VLOOKUP(X55,AAAADonnées!$A$3:$B$100,2,0),"") ->  | L55: =IF(G55<>"",IF(V55<>0,AAAADonnées!$D$3*V55*2,""),"") ->  | N55: =IF(Y55<>"",Y55*AAAADonnées!$C$3,"") ->  | P55: =IF(Z55<>"",Z55*AAAADonnées!$E$3,AA55) ->  | T55: 0 | V55: 0 | X55: Arbitre National
I56: =IF(F56<>"",VLOOKUP(X56,AAAADonnées!$A$3:$B$100,2,0),"") ->  | L56: =IF(G56<>"",IF(V56<>0,AAAADonnées!$D$3*V56*2,""),"") ->  | N56: =IF(Y56<>"",Y56*AAAADonnées!$C$3,"") ->  | P56: =IF(Z56<>"",Z56*AAAADonnées!$E$3,AA56) ->  | T56: 0 | V56: 0 | X56: Arbitre National
I57: =IF(F57<>"",VLOOKUP(X57,AAAADonnées!$A$3:$B$100,2,0),"") ->  | L57: =IF(G57<>"",IF(V57<>0,AAAADonnées!$D$3*V57*2,""),"") ->  | N57: =IF(Y57<>"",Y57*AAAADonnées!$C$3,"") ->  | P57: =IF(Z57<>"",Z57*AAAADonnées!$E$3,AA57) ->  | T57: 0 | V57: 0 | X57: Arbitre National
I58: =IF(F58<>"",VLOOKUP(X58,AAAADonnées!$A$3:$B$100,2,0),"") ->  | L58: =IF(G58<>"",IF(V58<>0,AAAADonnées!$D$3*V58*2,""),"") ->  | N58: =IF(Y58<>"",Y58*AAAADonnées!$C$3,"") ->  | P58: =IF(Z58<>"",Z58*AAAADonnées!$E$3,AA58) ->  | T58: 0 | V58: 0 | X58: Arbitre National
I59: =IF(F59<>"",VLOOKUP(X59,AAAADonnées!$A$3:$B$100,2,0),"") ->  | L59: =IF(G59<>"",IF(V59<>0,AAAADonnées!$D$3*V59*2,""),"") ->  | N59: =IF(Y59<>"",Y59*AAAADonnées!$C$3,"") ->  | P59: =IF(Z59<>"",Z59*AAAADonnées!$E$3,AA59) ->  | T59: 0 | V59: 0 | X59: Arbitre National
I60: =IF(F60<>"",VLOOKUP(X60,AAAADonnées!$A$3:$B$100,2,0),"") ->  | L60: =IF(G60<>"",IF(V60<>0,AAAADonnées!$D$3*V60*2,""),"") ->  | N60: =IF(Y60<>"",Y60*AAAADonnées!$C$3,"") ->  | P60: =IF(Z60<>"",Z60*AAAADonnées!$E$3,AA60) ->  | T60: 0 | V60: 0 | X60: Arbitre National
I61: =IF(F61<>"",VLOOKUP(X61,AAAADonnées!$A$3:$B$100,2,0),"") ->  | L61: =IF(G61<>"",IF(V61<>0,AAAADonnées!$D$3*V61*2,""),"") ->  | N61: =IF(Y61<>"",Y61*AAAADonnées!$C$3,"") ->  | P61: =IF(Z61<>"",Z61*AAAADonnées!$E$3,AA61) ->  | T61: 0 | V61: 0 | X61: Arbitre National
I62: =IF(F62<>"",VLOOKUP(X62,AAAADonnées!$A$3:$B$100,2,0),"") ->  | L62: =IF(G62<>"",IF(V62<>0,AAAADonnées!$D$3*V62*2,""),"") ->  | N62: =IF(Y62<>"",Y62*AAAADonnées!$C$3,"") ->  | P62: =IF(Z62<>"",Z62*AAAADonnées!$E$3,AA62) ->  | T62: 0 | V62: 0 | X62: Arbitre National
I63: =IF(F63<>"",VLOOKUP(X63,AAAADonnées!$A$3:$B$100,2,0),"") ->  | L63: =IF(G63<>"",IF(V63<>0,AAAADonnées!$D$3*V63*2,""),"") ->  | N63: =IF(Y63<>"",Y63*AAAADonnées!$C$3,"") ->  | P63: =IF(Z63<>"",Z63*AAAADonnées!$E$3,AA63) ->  | T63: 0 | V63: 0 | X63: Arbitre National
I64: =IF(F64<>"",VLOOKUP(X64,AAAADonnées!$A$3:$B$100,2,0),"") ->  | L64: =IF(G64<>"",IF(V64<>0,AAAADonnées!$D$3*V64*2,""),"") ->  | N64: =IF(Y64<>"",Y64*AAAADonnées!$C$3,"") ->  | P64: =IF(Z64<>"",Z64*AAAADonnées!$E$3,AA64) ->  | T64: 0 | V64: 0 | X64: Arbitre National
I65: =IF(F65<>"",VLOOKUP(X65,AAAADonnées!$A$3:$B$100,2,0),"") ->  | L65: =IF(G65<>"",IF(V65<>0,AAAADonnées!$D$3*V65*2,""),"") ->  | N65: =IF(Y65<>"",Y65*AAAADonnées!$C$3,"") ->  | P65: =IF(Z65<>"",Z65*AAAADonnées!$E$3,AA65) ->  | T65: 0 | V65: 0 | X65: Arbitre National
I66: =IF(F66<>"",VLOOKUP(X66,AAAADonnées!$A$3:$B$100,2,0),"") ->  | L66: =IF(G66<>"",IF(V66<>0,AAAADonnées!$D$3*V66*2,""),"") ->  | N66: =IF(Y66<>"",Y66*AAAADonnées!$C$3,"") ->  | P66: =IF(Z66<>"",Z66*AAAADonnées!$E$3,AA66) ->  | T66: 0 | V66: 0 | X66: Arbitre National
I67: =IF(F67<>"",VLOOKUP(X67,AAAADonnées!$A$3:$B$100,2,0),"") ->  | L67: =IF(G67<>"",IF(V67<>0,AAAADonnées!$D$3*V67*2,""),"") ->  | N67: =IF(Y67<>"",Y67*AAAADonnées!$C$3,"") ->  | P67: =IF(Z67<>"",Z67*AAAADonnées!$E$3,AA67) ->  | T67: =SUM(I67:S67) -> 0 | V67: 0 | X67: Arbitre National
I68: =SUM(I43:I67)+I31 -> 3500 | J68: =SUM(J43:K67)+J31 -> 0 | L68: =SUM(L43:M67)+L31 -> 700 | N68: =SUM(N43:O67)+N31 -> 0 | P68: =SUM(P43:Q67)+P31 -> 0 | R68: =SUM(R43:S67)+R31 -> 0 | T68: =T31+SUM(T43:T67) -> 4200
A70: Mode de règlement: | G70: Arrêté à la somme de: | I70: =IF(F43<>"",PROPER(CONCATENATE(ConvNumberLetter(T68)," Dinars")),"") -> 
H72: Le Président | M72: Le Trésorier | S72: l'Intéressé
C75: =C38 -> HEDDI Ismail | T75: FABB
C76: =C39 -> BLIDA | T76: TRÉSORERIE
H77: =H40 -> Arbitre | J77: =J40 -> National | S77: SAISON 2017/2018
A78: Report | I78: =I68 -> 3500 | J78: =J68 -> 0 | L78: =L68 -> 700 | N78: =N68 -> 0 | P78: =P68 -> 0 | R78: =R68 -> 0 | T78: =T68 -> 4200
A79: Journée | B79: Date | C79: Jour | D79: Rencontres | F79: Catégories | G79: Domiciliation | H79: Horaire | I79: Match | J79: Forfait | K79: Aéroport | L79: Transport | M79: par route 7 DA-Km | N79: Hébergement | O79: 2500 DA nuitée | P79: Restauration | Q79: 1000 DA | R79: Forfait suivant | S79: domiciliation | T79: Total | V79: Dist - KM | Y79: Heb. | Z79: Nbr. Repas | AA79: Repas
I80: =IF(F80<>"",VLOOKUP(X80,AAAADonnées!$A$3:$B$100,2,0),"") ->  | L80: =IF(G80<>"",IF(V80<>0,AAAADonnées!$D$3*V80*2,""),"") ->  | N80: =IF(Y80<>"",Y80*AAAADonnées!$C$3,"") ->  | P80: =IF(Z80<>"",Z80*AAAADonnées!$E$3,AA80) ->  | R80: =IF(AND(G80<>"",V80=0),500,"") ->  | T80: =SUM(I80:S80) -> 0 | V80: =IFERROR(INDEX(TABLEDist,MATCH($C$2,Depart,0),MATCH(G80,Arrivee,0)),0) -> 0 | W80: =IF(H80<>"",H80/24,"") ->  | X80: =CONCATENATE(F80," ",$H$3," ",$J$3) -> Arbitre National | Y80: =IF(V80<200,"",IF(V80<500,1,2)) ->  | Z80: =IF(Y80=1,3,IF(Y80=2,5,"")) ->  | AA80: =IF(AND(AND(Y80="",V80<>0,W80<0.0261)),1000,"") -> 
I81: =IF(F81<>"",VLOOKUP(X81,AAAADonnées!$A$3:$B$100,2,0),"") ->  | L81: =IF(G81<>"",IF(V81<>0,AAAADonnées!$D$3*V81*2,""),"") ->  | N81: =IF(Y81<>"",Y81*AAAADonnées!$C$3,"") ->  | P81: =IF(Z81<>"",Z81*AAAADonnées!$E$3,AA81) ->  | R81: =IF(AND(G81<>"",V81=0),500,"") ->  | T81: =SUM(I81:S81) -> 0 | V81: 0 | X81: Arbitre National | AA81: =IF(AND(AND(Y81="",V81<>0,W81<0.0261)),1000,"") -> 
I82: =IF(F82<>"",VLOOKUP(X82,AAAADonnées!$A$3:$B$100,2,0),"") ->  | L82: =IF(G82<>"",IF(V82<>0,AAAADonnées!$D$3*V82*2,""),"") ->  | N82: =IF(Y82<>"",Y82*AAAADonnées!$C$3,"") ->  | P82: =IF(Z82<>"",Z82*AAAADonnées!$E$3,AA82) ->  | T82: =SUM(I82:S82) -> 0 | V82: 0 | X82: Arbitre National
I83: =IF(F83<>"",VLOOKUP(X83,AAAADonnées!$A$3:$B$100,2,0),"") ->  | L83: =IF(G83<>"",IF(V83<>0,AAAADonnées!$D$3*V83*2,""),"") ->  | N83: =IF(Y83<>"",Y83*AAAADonnées!$C$3,"") ->  | P83: =IF(Z83<>"",Z83*AAAADonnées!$E$3,AA83) ->  | T83: 0 | V83: 0 | X83: Arbitre National
I84: =IF(F84<>"",VLOOKUP(X84,AAAADonnées!$A$3:$B$100,2,0),"") ->  | L84: =IF(G84<>"",IF(V84<>0,AAAADonnées!$D$3*V84*2,""),"") ->  | N84: =IF(Y84<>"",Y84*AAAADonnées!$C$3,"") ->  | P84: =IF(Z84<>"",Z84*AAAADonnées!$E$3,AA84) ->  | T84: 0 | V84: 0 | X84: Arbitre National
I85: =IF(F85<>"",VLOOKUP(X85,AAAADonnées!$A$3:$B$100,2,0),"") ->  | L85: =IF(G85<>"",IF(V85<>0,AAAADonnées!$D$3*V85*2,""),"") ->  | N85: =IF(Y85<>"",Y85*AAAADonnées!$C$3,"") ->  | P85: =IF(Z85<>"",Z85*AAAADonnées!$E$3,AA85) ->  | T85: 0 | V85: 0 | X85: Arbitre National
I86: =IF(F86<>"",VLOOKUP(X86,AAAADonnées!$A$3:$B$100,2,0),"") ->  | L86: =IF(G86<>"",IF(V86<>0,AAAADonnées!$D$3*V86*2,""),"") ->  | N86: =IF(Y86<>"",Y86*AAAADonnées!$C$3,"") ->  | P86: =IF(Z86<>"",Z86*AAAADonnées!$E$3,AA86) ->  | T86: 0 | V86: 0 | X86: Arbitre National
I87: =IF(F87<>"",VLOOKUP(X87,AAAADonnées!$A$3:$B$100,2,0),"") ->  | L87: =IF(G87<>"",IF(V87<>0,AAAADonnées!$D$3*V87*2,""),"") ->  | N87: =IF(Y87<>"",Y87*AAAADonnées!$C$3,"") ->  | P87: =IF(Z87<>"",Z87*AAAADonnées!$E$3,AA87) ->  | T87: 0 | V87: 0 | X87: Arbitre National
I88: =IF(F88<>"",VLOOKUP(X88,AAAADonnées!$A$3:$B$100,2,0),"") ->  | L88: =IF(G88<>"",IF(V88<>0,AAAADonnées!$D$3*V88*2,""),"") ->  | N88: =IF(Y88<>"",Y88*AAAADonnées!$C$3,"") ->  | P88: =IF(Z88<>"",Z88*AAAADonnées!$E$3,AA88) ->  | T88: 0 | V88: 0 | X88: Arbitre National
I89: =IF(F89<>"",VLOOKUP(X89,AAAADonnées!$A$3:$B$100,2,0),"") ->  | L89: =IF(G89<>"",IF(V89<>0,AAAADonnées!$D$3*V89*2,""),"") ->  | N89: =IF(Y89<>"",Y89*AAAADonnées!$C$3,"") ->  | P89: =IF(Z89<>"",Z89*AAAADonnées!$E$3,AA89) ->  | T89: 0 | V89: 0 | X89: Arbitre National
I90: =IF(F90<>"",VLOOKUP(X90,AAAADonnées!$A$3:$B$100,2,0),"") ->  | L90: =IF(G90<>"",IF(V90<>0,AAAADonnées!$D$3*V90*2,""),"") ->  | N90: =IF(Y90<>"",Y90*AAAADonnées!$C$3,"") ->  | P90: =IF(Z90<>"",Z90*AAAADonnées!$E$3,AA90) ->  | T90: 0 | V90: 0 | X90: Arbitre National
I91: =IF(F91<>"",VLOOKUP(X91,AAAADonnées!$A$3:$B$100,2,0),"") ->  | L91: =IF(G91<>"",IF(V91<>0,AAAADonnées!$D$3*V91*2,""),"") ->  | N91: =IF(Y91<>"",Y91*AAAADonnées!$C$3,"") ->  | P91: =IF(Z91<>"",Z91*AAAADonnées!$E$3,AA91) ->  | T91: 0 | V91: 0 | X91: Arbitre National
I92: =IF(F92<>"",VLOOKUP(X92,AAAADonnées!$A$3:$B$100,2,0),"") ->  | L92: =IF(G92<>"",IF(V92<>0,AAAADonnées!$D$3*V92*2,""),"") ->  | N92: =IF(Y92<>"",Y92*AAAADonnées!$C$3,"") ->  | P92: =IF(Z92<>"",Z92*AAAADonnées!$E$3,AA92) ->  | T92: 0 | V92: 0 | X92: Arbitre National
I93: =IF(F93<>"",VLOOKUP(X93,AAAADonnées!$A$3:$B$100,2,0),"") ->  | L93: =IF(G93<>"",IF(V93<>0,AAAADonnées!$D$3*V93*2,""),"") ->  | N93: =IF(Y93<>"",Y93*AAAADonnées!$C$3,"") ->  | P93: =IF(Z93<>"",Z93*AAAADonnées!$E$3,AA93) ->  | T93: 0 | V93: 0 | X93: Arbitre National
I94: =IF(F94<>"",VLOOKUP(X94,AAAADonnées!$A$3:$B$100,2,0),"") ->  | L94: =IF(G94<>"",IF(V94<>0,AAAADonnées!$D$3*V94*2,""),"") ->  | N94: =IF(Y94<>"",Y94*AAAADonnées!$C$3,"") ->  | P94: =IF(Z94<>"",Z94*AAAADonnées!$E$3,AA94) ->  | T94: 0 | V94: 0 | X94: Arbitre National
I95: =IF(F95<>"",VLOOKUP(X95,AAAADonnées!$A$3:$B$100,2,0),"") ->  | L95: =IF(G95<>"",IF(V95<>0,AAAADonnées!$D$3*V95*2,""),"") ->  | N95: =IF(Y95<>"",Y95*AAAADonnées!$C$3,"") ->  | P95: =IF(Z95<>"",Z95*AAAADonnées!$E$3,AA95) ->  | T95: 0 | V95: 0 | X95: Arbitre National
I96: =IF(F96<>"",VLOOKUP(X96,AAAADonnées!$A$3:$B$100,2,0),"") ->  | L96: =IF(G96<>"",IF(V96<>0,AAAADonnées!$D$3*V96*2,""),"") ->  | N96: =IF(Y96<>"",Y96*AAAADonnées!$C$3,"") ->  | P96: =IF(Z96<>"",Z96*AAAADonnées!$E$3,AA96) ->  | T96: 0 | V96: 0 | X96: Arbitre National
I97: =IF(F97<>"",VLOOKUP(X97,AAAADonnées!$A$3:$B$100,2,0),"") ->  | L97: =IF(G97<>"",IF(V97<>0,AAAADonnées!$D$3*V97*2,""),"") ->  | N97: =IF(Y97<>"",Y97*AAAADonnées!$C$3,"") ->  | P97: =IF(Z97<>"",Z97*AAAADonnées!$E$3,AA97) ->  | T97: 0 | V97: 0 | X97: Arbitre National
I98: =IF(F98<>"",VLOOKUP(X98,AAAADonnées!$A$3:$B$100,2,0),"") ->  | L98: =IF(G98<>"",IF(V98<>0,AAAADonnées!$D$3*V98*2,""),"") ->  | N98: =IF(Y98<>"",Y98*AAAADonnées!$C$3,"") ->  | P98: =IF(Z98<>"",Z98*AAAADonnées!$E$3,AA98) ->  | T98: 0 | V98: 0 | X98: Arbitre National
I99: =IF(F99<>"",VLOOKUP(X99,AAAADonnées!$A$3:$B$100,2,0),"") ->  | L99: =IF(G99<>"",IF(V99<>0,AAAADonnées!$D$3*V99*2,""),"") ->  | N99: =IF(Y99<>"",Y99*AAAADonnées!$C$3,"") ->  | P99: =IF(Z99<>"",Z99*AAAADonnées!$E$3,AA99) ->  | T99: 0 | V99: 0 | X99: Arbitre National
I100: =IF(F100<>"",VLOOKUP(X100,AAAADonnées!$A$3:$B$100,2,0),"") ->  | L100: =IF(G100<>"",IF(V100<>0,AAAADonnées!$D$3*V100*2,""),"") ->  | N100: =IF(Y100<>"",Y100*AAAADonnées!$C$3,"") ->  | P100: =IF(Z100<>"",Z100*AAAADonnées!$E$3,AA100) ->  | T100: 0 | V100: 0 | X100: Arbitre National
I101: =IF(F101<>"",VLOOKUP(X101,AAAADonnées!$A$3:$B$100,2,0),"") ->  | L101: =IF(G101<>"",IF(V101<>0,AAAADonnées!$D$3*V101*2,""),"") ->  | N101: =IF(Y101<>"",Y101*AAAADonnées!$C$3,"") ->  | P101: =IF(Z101<>"",Z101*AAAADonnées!$E$3,AA101) ->  | T101: 0 | V101: 0 | X101: Arbitre National
I102: =IF(F102<>"",VLOOKUP(X102,AAAADonnées!$A$3:$B$100,2,0),"") ->  | L102: =IF(G102<>"",IF(V102<>0,AAAADonnées!$D$3*V102*2,""),"") ->  | N102: =IF(Y102<>"",Y102*AAAADonnées!$C$3,"") ->  | P102: =IF(Z102<>"",Z102*AAAADonnées!$E$3,AA102) ->  | T102: 0 | V102: 0 | X102: Arbitre National
I103: =IF(F103<>"",VLOOKUP(X103,AAAADonnées!$A$3:$B$100,2,0),"") ->  | L103: =IF(G103<>"",IF(V103<>0,AAAADonnées!$D$3*V103*2,""),"") ->  | N103: =IF(Y103<>"",Y103*AAAADonnées!$C$3,"") ->  | P103: =IF(Z103<>"",Z103*AAAADonnées!$E$3,AA103) ->  | T103: 0 | V103: 0 | X103: Arbitre National
I104: =IF(F104<>"",VLOOKUP(X104,AAAADonnées!$A$3:$B$100,2,0),"") ->  | L104: =IF(G104<>"",IF(V104<>0,AAAADonnées!$D$3*V104*2,""),"") ->  | N104: =IF(Y104<>"",Y104*AAAADonnées!$C$3,"") ->  | P104: =IF(Z104<>"",Z104*AAAADonnées!$E$3,AA104) ->  | T104: =SUM(I104:S104) -> 0 | V104: 0 | X104: Arbitre National | Y104: =IF(V104<200,"",IF(V104<500,1,2)) ->  | Z104: =IF(Y104=1,3,IF(Y104=2,5,"")) -> 
I105: =SUM(I80:I104)+I68 -> 3500 | J105: =SUM(J80:K104)+J68 -> 0 | L105: =SUM(L80:M104)+L68 -> 700 | N105: =SUM(N80:O104)+N68 -> 0 | P105: =SUM(P80:Q104)+P68 -> 0 | R105: =SUM(R80:S104)+R68 -> 0 | T105: =T68+SUM(T80:T104) -> 4200
A107: Mode de règlement: | G107: Arrêté à la somme de: | I107: =IF(F80<>"",PROPER(CONCATENATE(ConvNumberLetter(T105)," Dinars")),"") -> 
H109: Le Président | M109: Le Trésorier | S109: l'Intéressé

Sheet ZERMANI
C1: ZERMANI Azzeddine | T1: FABB
A2: Nbr Match | C2: ALGER | T2: TRÉSORERIE
A3: =COUNTA(D6:D30,D43:D67) -> 1 | B3: Centre | H3: Arbitre | J3: National | S3: SAISON 2017/2018
A5: Journée | B5: Date | C5: Jour | D5: Rencontres | F5: Catégories | G5: Domiciliation | H5: Horaire | I5: Match | J5: Forfait | K5: Aéroport | L5: Transport | M5: par route 7 DA-Km | N5: Hébergement | O5: 2500 DA nuitée | P5: Restauration | Q5: 1000 DA | R5: Forfait suivant | S5: domiciliation | T5: Total | V5: Dist-Km | Y5: Heb. | Z5: Nbr. Repas | AA5: Repas
B6: 2018-10-12 | C6: =IF(B6<>"",LEFT(PROPER(TEXT(B6,"jjjj")),3),"") -> Ven | D6: CRBDB | E6: CSMBB | F6: SM | G6: ALGER | H6: 16:00:00 | I6: =IF(F6<>"",VLOOKUP(X6,AAAADonnées!$A$3:$B$100,2,0),"") -> 3500 | L6: =IF(G6<>"",IF(V6<>0,AAAADonnées!$D$3*V6*2,""),"") ->  | N6: =IF(Y6<>"",Y6*AAAADonnées!$C$3,"") ->  | P6: =IF(Z6<>"",Z6*AAAADonnées!$E$3,AA6) ->  | R6: =IF(AND(G6<>"",V6=0),500,"") -> 500 | T6: =SUM(I6:S6) -> 4000 | V6: =IFERROR(INDEX(TABLEDist,MATCH($C$2,Depart,0),MATCH(G6,Arrivee,0)),0) -> 0 | W6: =IF(H6<>"",H6/24,"") -> 0.02777777778 | X6: =CONCATENATE(F6," ",$H$3," ",$J$3) -> SM Arbitre National | Y6: =IF(V6<200,"",IF(V6<500,1,2)) ->  | Z6: =IF(Y6=1,3,IF(Y6=2,5,"")) ->  | AA6: =IF(AND(AND(Y6="",V6<>0,W6<0.0261)),1000,"") ->  | AB6: =IF(B6>0,B6,"") -> 2018-10-12 | AC6: =IF(AND(AB6<>"",AB6=Recap!B4),SUMPRODUCT(($B$6:$B$30=AB6)*($T$6:$T$30)),"") -> 4000
C7: =IF(B7<>"",LEFT(PROPER(TEXT(B7,"jjjj")),3),"") ->  | I7: =IF(F7<>"",VLOOKUP(X7,AAAADonnées!$A$3:$B$100,2,0),"") ->  | L7: =IF(G7<>"",IF(V7<>0,AAAADonnées!$D$3*V7*2,""),"") ->  | N7: =IF(Y7<>"",Y7*AAAADonnées!$C$3,"") ->  | P7: =IF(Z7<>"",Z7*AAAADonnées!$E$3,AA7) ->  | R7: =IF(AND(G7<>"",V7=0),500,"") ->  | T7: =SUM(I7:S7) -> 0 | V7: 0 | W7: =IF(H7<>"",H7/24,"") ->  | X7: Arbitre National | Y7: =IF(V7<200,"",IF(V7<500,1,2)) ->  | Z7: =IF(Y7=1,3,IF(Y7=2,5,"")) ->  | AA7: =IF(AND(AND(Y7="",V7<>0,W7<0.0261)),1000,"") ->  | AB7: =IF(B7>0,B7,"") ->  | AC7: =IF(AND(AB7<>"",AB7=Recap!B5),SUMPRODUCT(($B$6:$B$30=AB7)*($T$6:$T$30)),"") -> 
I8: =IF(F8<>"",VLOOKUP(X8,AAAADonnées!$A$3:$B$100,2,0),"") ->  | L8: =IF(G8<>"",IF(V8<>0,AAAADonnées!$D$3*V8*2,""),"") ->  | N8: =IF(Y8<>"",Y8*AAAADonnées!$C$3,"") ->  | P8: =IF(Z8<>"",Z8*AAAADonnées!$E$3,AA8) ->  | T8: =SUM(I8:S8) -> 0 | V8: 0 | X8: Arbitre National | AC8: =IF(AND(AB8<>"",AB8=Recap!B6),SUMPRODUCT(($B$6:$B$30=AB8)*($T$6:$T$30)),"") -> 
I9: =IF(F9<>"",VLOOKUP(X9,AAAADonnées!$A$3:$B$100,2,0),"") ->  | L9: =IF(G9<>"",IF(V9<>0,AAAADonnées!$D$3*V9*2,""),"") ->  | N9: =IF(Y9<>"",Y9*AAAADonnées!$C$3,"") ->  | P9: =IF(Z9<>"",Z9*AAAADonnées!$E$3,AA9) ->  | T9: 0 | V9: 0 | X9: Arbitre National | AC9: =IF(AND(AB9<>"",AB9=Recap!B7),SUMPRODUCT(($B$6:$B$30=AB9)*($T$6:$T$30)),"") -> 
I10: =IF(F10<>"",VLOOKUP(X10,AAAADonnées!$A$3:$B$100,2,0),"") ->  | L10: =IF(G10<>"",IF(V10<>0,AAAADonnées!$D$3*V10*2,""),"") ->  | N10: =IF(Y10<>"",Y10*AAAADonnées!$C$3,"") ->  | P10: =IF(Z10<>"",Z10*AAAADonnées!$E$3,AA10) ->  | T10: 0 | V10: 0 | X10: Arbitre National | AC10: =IF(AND(AB10<>"",AB10=Recap!B8),SUMPRODUCT(($B$6:$B$30=AB10)*($T$6:$T$30)),"") -> 
I11: =IF(F11<>"",VLOOKUP(X11,AAAADonnées!$A$3:$B$100,2,0),"") ->  | L11: =IF(G11<>"",IF(V11<>0,AAAADonnées!$D$3*V11*2,""),"") ->  | N11: =IF(Y11<>"",Y11*AAAADonnées!$C$3,"") ->  | P11: =IF(Z11<>"",Z11*AAAADonnées!$E$3,AA11) ->  | T11: 0 | V11: 0 | X11: Arbitre National | AC11: =IF(AND(AB11<>"",AB11=Recap!B9),SUMPRODUCT(($B$6:$B$30=AB11)*($T$6:$T$30)),"") -> 
I12: =IF(F12<>"",VLOOKUP(X12,AAAADonnées!$A$3:$B$100,2,0),"") ->  | L12: =IF(G12<>"",IF(V12<>0,AAAADonnées!$D$3*V12*2,""),"") ->  | N12: =IF(Y12<>"",Y12*AAAADonnées!$C$3,"") ->  | P12: =IF(Z12<>"",Z12*AAAADonnées!$E$3,AA12) ->  | T12: 0 | V12: 0 | X12: Arbitre National | AC12: =IF(AND(AB12<>"",AB12=Recap!B10),SUMPRODUCT(($B$6:$B$30=AB12)*($T$6:$T$30)),"") -> 
I13: =IF(F13<>"",VLOOKUP(X13,AAAADonnées!$A$3:$B$100,2,0),"") ->  | L13: =IF(G13<>"",IF(V13<>0,AAAADonnées!$D$3*V13*2,""),"") ->  | N13: =IF(Y13<>"",Y13*AAAADonnées!$C$3,"") ->  | P13: =IF(Z13<>"",Z13*AAAADonnées!$E$3,AA13) ->  | T13: 0 | V13: 0 | X13: Arbitre National | AC13: =IF(AND(AB13<>"",AB13=Recap!B11),SUMPRODUCT(($B$6:$B$30=AB13)*($T$6:$T$30)),"") -> 
I14: =IF(F14<>"",VLOOKUP(X14,AAAADonnées!$A$3:$B$100,2,0),"") ->  | L14: =IF(G14<>"",IF(V14<>0,AAAADonnées!$D$3*V14*2,""),"") ->  | N14: =IF(Y14<>"",Y14*AAAADonnées!$C$3,"") ->  | P14: =IF(Z14<>"",Z14*AAAADonnées!$E$3,AA14) ->  | T14: 0 | V14: 0 | X14: Arbitre National | AC14: =IF(AND(AB14<>"",AB14=Recap!B12),SUMPRODUCT(($B$6:$B$30=AB14)*($T$6:$T$30)),"") -> 
I15: =IF(F15<>"",VLOOKUP(X15,AAAADonnées!$A$3:$B$100,2,0),"") ->  | L15: =IF(G15<>"",IF(V15<>0,AAAADonnées!$D$3*V15*2,""),"") ->  | N15: =IF(Y15<>"",Y15*AAAADonnées!$C$3,"") ->  | P15: =IF(Z15<>"",Z15*AAAADonnées!$E$3,AA15) ->  | T15: 0 | V15: 0 | X15: Arbitre National | AC15: =IF(AND(AB15<>"",AB15=Recap!B13),SUMPRODUCT(($B$6:$B$30=AB15)*($T$6:$T$30)),"") -> 
I16: =IF(F16<>"",VLOOKUP(X16,AAAADonnées!$A$3:$B$100,2,0),"") ->  | L16: =IF(G16<>"",IF(V16<>0,AAAADonnées!$D$3*V16*2,""),"") ->  | N16: =IF(Y16<>"",Y16*AAAADonnées!$C$3,"") ->  | P16: =IF(Z16<>"",Z16*AAAADonnées!$E$3,AA16) ->  | T16: 0 | V16: 0 | X16: Arbitre National | AC16: =IF(AND(AB16<>"",AB16=Recap!B14),SUMPRODUCT(($B$6:$B$30=AB16)*($T$6:$T$30)),"") -> 
I17: =IF(F17<>"",VLOOKUP(X17,AAAADonnées!$A$3:$B$100,2,0),"") ->  | L17: =IF(G17<>"",IF(V17<>0,AAAADonnées!$D$3*V17*2,""),"") ->  | N17: =IF(Y17<>"",Y17*AAAADonnées!$C$3,"") ->  | P17: =IF(Z17<>"",Z17*AAAADonnées!$E$3,AA17) ->  | T17: 0 | V17: 0 | X17: Arbitre National | AC17: =IF(AND(AB17<>"",AB17=Recap!B15),SUMPRODUCT(($B$6:$B$30=AB17)*($T$6:$T$30)),"") -> 
I18: =IF(F18<>"",VLOOKUP(X18,AAAADonnées!$A$3:$B$100,2,0),"") ->  | L18: =IF(G18<>"",IF(V18<>0,AAAADonnées!$D$3*V18*2,""),"") ->  | N18: =IF(Y18<>"",Y18*AAAADonnées!$C$3,"") ->  | P18: =IF(Z18<>"",Z18*AAAADonnées!$E$3,AA18) ->  | T18: 0 | V18: 0 | X18: Arbitre National | AC18: =IF(AND(AB18<>"",AB18=Recap!B16),SUMPRODUCT(($B$6:$B$30=AB18)*($T$6:$T$30)),"") -> 
I19: =IF(F19<>"",VLOOKUP(X19,AAAADonnées!$A$3:$B$100,2,0),"") ->  | L19: =IF(G19<>"",IF(V19<>0,AAAADonnées!$D$3*V19*2,""),"") ->  | N19: =IF(Y19<>"",Y19*AAAADonnées!$C$3,"") ->  | P19: =IF(Z19<>"",Z19*AAAADonnées!$E$3,AA19) ->  | T19: 0 | V19: 0 | X19: Arbitre National | AC19: =IF(AND(AB19<>"",AB19=Recap!B17),SUMPRODUCT(($B$6:$B$30=AB19)*($T$6:$T$30)),"") -> 
I20: =IF(F20<>"",VLOOKUP(X20,AAAADonnées!$A$3:$B$100,2,0),"") ->  | N20: =IF(Y20<>"",Y20*AAAADonnées!$C$3,"") ->  | P20: =IF(Z20<>"",Z20*AAAADonnées!$E$3,AA20) ->  | T20: 0 | V20: 0 | X20: Arbitre National | AC20: =IF(AND(AB20<>"",AB20=Recap!B18),SUMPRODUCT(($B$6:$B$30=AB20)*($T$6:$T$30)),"") -> 
I21: =IF(F21<>"",VLOOKUP(X21,AAAADonnées!$A$3:$B$100,2,0),"") ->  | L21: =IF(G21<>"",IF(V21<>0,AAAADonnées!$D$3*V21*2,""),"") ->  | N21: =IF(Y21<>"",Y21*AAAADonnées!$C$3,"") ->  | P21: =IF(Z21<>"",Z21*AAAADonnées!$E$3,AA21) ->  | T21: 0 | V21: 0 | X21: Arbitre National | AC21: =IF(AND(AB21<>"",AB21=Recap!B19),SUMPRODUCT(($B$6:$B$30=AB21)*($T$6:$T$30)),"") -> 
I22: =IF(F22<>"",VLOOKUP(X22,AAAADonnées!$A$3:$B$100,2,0),"") ->  | L22: =IF(G22<>"",IF(V22<>0,AAAADonnées!$D$3*V22*2,""),"") ->  | N22: =IF(Y22<>"",Y22*AAAADonnées!$C$3,"") ->  | P22: =IF(Z22<>"",Z22*AAAADonnées!$E$3,AA22) ->  | T22: 0 | V22: 0 | X22: Arbitre National | AC22: =IF(AND(AB22<>"",AB22=Recap!B20),SUMPRODUCT(($B$6:$B$30=AB22)*($T$6:$T$30)),"") -> 
I23: =IF(F23<>"",VLOOKUP(X23,AAAADonnées!$A$3:$B$100,2,0),"") ->  | L23: =IF(G23<>"",IF(V23<>0,AAAADonnées!$D$3*V23*2,""),"") ->  | N23: =IF(Y23<>"",Y23*AAAADonnées!$C$3,"") ->  | P23: =IF(Z23<>"",Z23*AAAADonnées!$E$3,AA23) ->  | T23: 0 | V23: 0 | X23: Arbitre National | AC23: =IF(AND(AB23<>"",AB23=Recap!B21),SUMPRODUCT(($B$6:$B$30=AB23)*($T$6:$T$30)),"") -> 
I24: =IF(F24<>"",VLOOKUP(X24,AAAADonnées!$A$3:$B$100,2,0),"") ->  | L24: =IF(G24<>"",IF(V24<>0,AAAADonnées!$D$3*V24*2,""),"") ->  | N24: =IF(Y24<>"",Y24*AAAADonnées!$C$3,"") ->  | P24: =IF(Z24<>"",Z24*AAAADonnées!$E$3,AA24) ->  | T24: 0 | V24: 0 | X24: Arbitre National | AC24: =IF(AND(AB24<>"",AB24=Recap!B22),SUMPRODUCT(($B$6:$B$30=AB24)*($T$6:$T$30)),"") -> 
I25: =IF(F25<>"",VLOOKUP(X25,AAAADonnées!$A$3:$B$100,2,0),"") ->  | L25: =IF(G25<>"",IF(V25<>0,AAAADonnées!$D$3*V25*2,""),"") ->  | N25: =IF(Y25<>"",Y25*AAAADonnées!$C$3,"") ->  | P25: =IF(Z25<>"",Z25*AAAADonnées!$E$3,AA25) ->  | T25: 0 | V25: 0 | X25: Arbitre National | AC25: =IF(AND(AB25<>"",AB25=Recap!B23),SUMPRODUCT(($B$6:$B$30=AB25)*($T$6:$T$30)),"") -> 
I26: =IF(F26<>"",VLOOKUP(X26,AAAADonnées!$A$3:$B$100,2,0),"") ->  | L26: =IF(G26<>"",IF(V26<>0,AAAADonnées!$D$3*V26*2,""),"") ->  | N26: =IF(Y26<>"",Y26*AAAADonnées!$C$3,"") ->  | P26: =IF(Z26<>"",Z26*AAAADonnées!$E$3,AA26) ->  | T26: 0 | V26: 0 | X26: Arbitre National | AC26: =IF(AND(AB26<>"",AB26=Recap!B24),SUMPRODUCT(($B$6:$B$30=AB26)*($T$6:$T$30)),"") -> 
I27: =IF(F27<>"",VLOOKUP(X27,AAAADonnées!$A$3:$B$100,2,0),"") ->  | L27: =IF(G27<>"",IF(V27<>0,AAAADonnées!$D$3*V27*2,""),"") ->  | N27: =IF(Y27<>"",Y27*AAAADonnées!$C$3,"") ->  | P27: =IF(Z27<>"",Z27*AAAADonnées!$E$3,AA27) ->  | T27: 0 | V27: 0 | X27: Arbitre National | AC27: =IF(AND(AB27<>"",AB27=Recap!B25),SUMPRODUCT(($B$6:$B$30=AB27)*($T$6:$T$30)),"") -> 
I28: =IF(F28<>"",VLOOKUP(X28,AAAADonnées!$A$3:$B$100,2,0),"") ->  | L28: =IF(G28<>"",IF(V28<>0,AAAADonnées!$D$3*V28*2,""),"") ->  | N28: =IF(Y28<>"",Y28*AAAADonnées!$C$3,"") ->  | P28: =IF(Z28<>"",Z28*AAAADonnées!$E$3,AA28) ->  | T28: 0 | V28: 0 | X28: Arbitre National | AC28: =IF(AND(AB28<>"",AB28=Recap!B26),SUMPRODUCT(($B$6:$B$30=AB28)*($T$6:$T$30)),"") -> 
C29: =IF(B29<>"",LEFT(PROPER(TEXT(B29,"jjjj")),3),"") ->  | I29: =IF(F29<>"",VLOOKUP(X29,AAAADonnées!$A$3:$B$100,2,0),"") ->  | L29: =IF(G29<>"",IF(V29<>0,AAAADonnées!$D$3*V29*2,""),"") ->  | N29: =IF(Y29<>"",Y29*AAAADonnées!$C$3,"") ->  | P29: =IF(Z29<>"",Z29*AAAADonnées!$E$3,AA29) ->  | T29: 0 | V29: 0 | X29: Arbitre National | AC29: =IF(AND(AB29<>"",AB29=Recap!B27),SUMPRODUCT(($B$6:$B$30=AB29)*($T$6:$T$30)),"") -> 
I30: =IF(F30<>"",VLOOKUP(X30,AAAADonnées!$A$3:$B$100,2,0),"") ->  | L30: =IF(G30<>"",IF(V30<>0,AAAADonnées!$D$3*V30*2,""),"") ->  | N30: =IF(Y30<>"",Y30*AAAADonnées!$C$3,"") ->  | P30: =IF(Z30<>"",Z30*AAAADonnées!$E$3,AA30) ->  | T30: =SUM(I30:S30) -> 0 | V30: 0 | X30: Arbitre National | AC30: =IF(AND(AB30<>"",AB30=Recap!B28),SUMPRODUCT(($B$6:$B$30=AB30)*($T$6:$T$30)),"") -> 
I31: =SUM(I6:I30) -> 3500 | J31: =SUM(J6:K30) -> 0 | L31: =SUM(L6:M30) -> 0 | N31: =SUM(N6:O30) -> 0 | P31: =SUM(P6:Q30) -> 0 | R31: =SUM(R6:S30) -> 500 | T31: =SUM(T6:T30) -> 4000
A33: Mode de règlement: | F33: Arrêté à la somme de: | H33: =IF(F43="",IF(T31<>0,PROPER(CONCATENATE(ConvNumberLetter(T31)," Dinars")),""),"") -> Quatre Mille Dinars
H35: Le Président | M35: Le Trésorier | S35: l'Intéressé
C38: =C1 -> ZERMANI Azzeddine | T38: FABB
C39: =C2 -> ALGER | T39: TRÉSORERIE
H40: =H3 -> Arbitre | J40: =J3 -> National | S40: SAISON 2017/2018
A41: Report | I41: =I31 -> 3500 | J41: =J31 -> 0 | L41: =L31 -> 0 | N41: =N31 -> 0 | P41: =P31 -> 0 | R41: =R31 -> 500 | T41: =T31 -> 4000
A42: Journée | B42: Date | C42: Jour | D42: Rencontres | F42: Catégories | G42: Domiciliation | H42: Horaire | I42: Match | J42: Forfait | K42: Aéroport | L42: Transport | M42: par route 7 DA-Km | N42: Hébergement | O42: 2500 DA nuitée | P42: Restauration | Q42: 1000 DA | R42: Forfait suivant | S42: domiciliation | T42: Total | V42: Dist - KM | Y42: Heb. | Z42: Nbr. Repas | AA42: Repas
C43: =IF(B43<>"",LEFT(PROPER(TEXT(B43,"jjjj")),3),"") ->  | I43: =IF(F43<>"",VLOOKUP(X43,AAAADonnées!$A$3:$B$100,2,0),"") ->  | L43: =IF(G43<>"",IF(V43<>0,AAAADonnées!$D$3*V43*2,""),"") ->  | N43: =IF(Y43<>"",Y43*AAAADonnées!$C$3,"") ->  | P43: =IF(Z43<>"",Z43*AAAADonnées!$E$3,AA43) ->  | R43: =IF(AND(G43<>"",V43=0),500,"") ->  | T43: =SUM(I43:S43) -> 0 | V43: =IFERROR(INDEX(TABLEDist,MATCH($C$2,Depart,0),MATCH(G43,Arrivee,0)),0) -> 0 | X43: =CONCATENATE(F43," ",$H$3," ",$J$3) -> Arbitre National | Y43: =IF(V43<200,"",IF(V43<500,1,2)) ->  | Z43: =IF(Y43=1,3,IF(Y43=2,5,"")) ->  | AA43: =IF(AND(AND(Y43="",V43<>0,W43<0.0261)),1000,"") -> 
C44: =IF(B44<>"",LEFT(PROPER(TEXT(B44,"jjjj")),3),"") ->  | I44: =IF(F44<>"",VLOOKUP(X44,AAAADonnées!$A$3:$B$100,2,0),"") ->  | L44: =IF(G44<>"",IF(V44<>0,AAAADonnées!$D$3*V44*2,""),"") ->  | N44: =IF(Y44<>"",Y44*AAAADonnées!$C$3,"") ->  | P44: =IF(Z44<>"",Z44*AAAADonnées!$E$3,AA44) ->  | R44: =IF(AND(G44<>"",V44=0),500,"") ->  | T44: =SUM(I44:S44) -> 0 | V44: 0 | X44: Arbitre National
I45: =IF(F45<>"",VLOOKUP(X45,AAAADonnées!$A$3:$B$100,2,0),"") ->  | L45: =IF(G45<>"",IF(V45<>0,AAAADonnées!$D$3*V45*2,""),"") ->  | N45: =IF(Y45<>"",Y45*AAAADonnées!$C$3,"") ->  | P45: =IF(Z45<>"",Z45*AAAADonnées!$E$3,AA45) ->  | T45: =SUM(I45:S45) -> 0 | V45: 0 | X45: Arbitre National
I46: =IF(F46<>"",VLOOKUP(X46,AAAADonnées!$A$3:$B$100,2,0),"") ->  | L46: =IF(G46<>"",IF(V46<>0,AAAADonnées!$D$3*V46*2,""),"") ->  | N46: =IF(Y46<>"",Y46*AAAADonnées!$C$3,"") ->  | P46: =IF(Z46<>"",Z46*AAAADonnées!$E$3,AA46) ->  | T46: 0 | V46: 0 | X46: Arbitre National
I47: =IF(F47<>"",VLOOKUP(X47,AAAADonnées!$A$3:$B$100,2,0),"") ->  | L47: =IF(G47<>"",IF(V47<>0,AAAADonnées!$D$3*V47*2,""),"") ->  | N47: =IF(Y47<>"",Y47*AAAADonnées!$C$3,"") ->  | P47: =IF(Z47<>"",Z47*AAAADonnées!$E$3,AA47) ->  | T47: 0 | V47: 0 | X47: Arbitre National
I48: =IF(F48<>"",VLOOKUP(X48,AAAADonnées!$A$3:$B$100,2,0),"") ->  | L48: =IF(G48<>"",IF(V48<>0,AAAADonnées!$D$3*V48*2,""),"") ->  | N48: =IF(Y48<>"",Y48*AAAADonnées!$C$3,"") ->  | P48: =IF(Z48<>"",Z48*AAAADonnées!$E$3,AA48) ->  | T48: 0 | V48: 0 | X48: Arbitre National
I49: =IF(F49<>"",VLOOKUP(X49,AAAADonnées!$A$3:$B$100,2,0),"") ->  | L49: =IF(G49<>"",IF(V49<>0,AAAADonnées!$D$3*V49*2,""),"") ->  | N49: =IF(Y49<>"",Y49*AAAADonnées!$C$3,"") ->  | P49: =IF(Z49<>"",Z49*AAAADonnées!$E$3,AA49) ->  | T49: 0 | V49: 0 | X49: Arbitre National
I50: =IF(F50<>"",VLOOKUP(X50,AAAADonnées!$A$3:$B$100,2,0),"") ->  | L50: =IF(G50<>"",IF(V50<>0,AAAADonnées!$D$3*V50*2,""),"") ->  | N50: =IF(Y50<>"",Y50*AAAADonnées!$C$3,"") ->  | P50: =IF(Z50<>"",Z50*AAAADonnées!$E$3,AA50) ->  | T50: 0 | V50: 0 | X50: Arbitre National
I51: =IF(F51<>"",VLOOKUP(X51,AAAADonnées!$A$3:$B$100,2,0),"") ->  | L51: =IF(G51<>"",IF(V51<>0,AAAADonnées!$D$3*V51*2,""),"") ->  | N51: =IF(Y51<>"",Y51*AAAADonnées!$C$3,"") ->  | P51: =IF(Z51<>"",Z51*AAAADonnées!$E$3,AA51) ->  | T51: 0 | V51: 0 | X51: Arbitre National
I52: =IF(F52<>"",VLOOKUP(X52,AAAADonnées!$A$3:$B$100,2,0),"") ->  | L52: =IF(G52<>"",IF(V52<>0,AAAADonnées!$D$3*V52*2,""),"") ->  | N52: =IF(Y52<>"",Y52*AAAADonnées!$C$3,"") ->  | P52: =IF(Z52<>"",Z52*AAAADonnées!$E$3,AA52) ->  | T52: 0 | V52: 0 | X52: Arbitre National
I53: =IF(F53<>"",VLOOKUP(X53,AAAADonnées!$A$3:$B$100,2,0),"") ->  | L53: =IF(G53<>"",IF(V53<>0,AAAADonnées!$D$3*V53*2,""),"") ->  | N53: =IF(Y53<>"",Y53*AAAADonnées!$C$3,"") ->  | P53: =IF(Z53<>"",Z53*AAAADonnées!$E$3,AA53) ->  | T53: 0 | V53: 0 | X53: Arbitre National
I54: =IF(F54<>"",VLOOKUP(X54,AAAADonnées!$A$3:$B$100,2,0),"") ->  | L54: =IF(G54<>"",IF(V54<>0,AAAADonnées!$D$3*V54*2,""),"") ->  | N54: =IF(Y54<>"",Y54*AAAADonnées!$C$3,"") ->  | P54: =IF(Z54<>"",Z54*AAAADonnées!$E$3,AA54) ->  | T54: 0 | V54: 0 | X54: Arbitre National
I55: =IF(F55<>"",VLOOKUP(X55,AAAADonnées!$A$3:$B$100,2,0),"") ->  | L55: =IF(G55<>"",IF(V55<>0,AAAADonnées!$D$3*V55*2,""),"") ->  | N55: =IF(Y55<>"",Y55*AAAADonnées!$C$3,"") ->  | P55: =IF(Z55<>"",Z55*AAAADonnées!$E$3,AA55) ->  | T55: 0 | V55: 0 | X55: Arbitre National
I56: =IF(F56<>"",VLOOKUP(X56,AAAADonnées!$A$3:$B$100,2,0),"") ->  | L56: =IF(G56<>"",IF(V56<>0,AAAADonnées!$D$3*V56*2,""),"") ->  | N56: =IF(Y56<>"",Y56*AAAADonnées!$C$3,"") ->  | P56: =IF(Z56<>"",Z56*AAAADonnées!$E$3,AA56) ->  | T56: 0 | V56: 0 | X56: Arbitre National
I57: =IF(F57<>"",VLOOKUP(X57,AAAADonnées!$A$3:$B$100,2,0),"") ->  | L57: =IF(G57<>"",IF(V57<>0,AAAADonnées!$D$3*V57*2,""),"") ->  | N57: =IF(Y57<>"",Y57*AAAADonnées!$C$3,"") ->  | P57: =IF(Z57<>"",Z57*AAAADonnées!$E$3,AA57) ->  | T57: 0 | V57: 0 | X57: Arbitre National
I58: =IF(F58<>"",VLOOKUP(X58,AAAADonnées!$A$3:$B$100,2,0),"") ->  | L58: =IF(G58<>"",IF(V58<>0,AAAADonnées!$D$3*V58*2,""),"") ->  | N58: =IF(Y58<>"",Y58*AAAADonnées!$C$3,"") ->  | P58: =IF(Z58<>"",Z58*AAAADonnées!$E$3,AA58) ->  | T58: 0 | V58: 0 | X58: Arbitre National
I59: =IF(F59<>"",VLOOKUP(X59,AAAADonnées!$A$3:$B$100,2,0),"") ->  | L59: =IF(G59<>"",IF(V59<>0,AAAADonnées!$D$3*V59*2,""),"") ->  | N59: =IF(Y59<>"",Y59*AAAADonnées!$C$3,"") ->  | P59: =IF(Z59<>"",Z59*AAAADonnées!$E$3,AA59) ->  | T59: 0 | V59: 0 | X59: Arbitre National
I60: =IF(F60<>"",VLOOKUP(X60,AAAADonnées!$A$3:$B$100,2,0),"") ->  | L60: =IF(G60<>"",IF(V60<>0,AAAADonnées!$D$3*V60*2,""),"") ->  | N60: =IF(Y60<>"",Y60*AAAADonnées!$C$3,"") ->  | P60: =IF(Z60<>"",Z60*AAAADonnées!$E$3,AA60) ->  | T60: 0 | V60: 0 | X60: Arbitre National
I61: =IF(F61<>"",VLOOKUP(X61,AAAADonnées!$A$3:$B$100,2,0),"") ->  | L61: =IF(G61<>"",IF(V61<>0,AAAADonnées!$D$3*V61*2,""),"") ->  | N61: =IF(Y61<>"",Y61*AAAADonnées!$C$3,"") ->  | P61: =IF(Z61<>"",Z61*AAAADonnées!$E$3,AA61) ->  | T61: 0 | V61: 0 | X61: Arbitre National
I62: =IF(F62<>"",VLOOKUP(X62,AAAADonnées!$A$3:$B$100,2,0),"") ->  | L62: =IF(G62<>"",IF(V62<>0,AAAADonnées!$D$3*V62*2,""),"") ->  | N62: =IF(Y62<>"",Y62*AAAADonnées!$C$3,"") ->  | P62: =IF(Z62<>"",Z62*AAAADonnées!$E$3,AA62) ->  | T62: 0 | V62: 0 | X62: Arbitre National
I63: =IF(F63<>"",VLOOKUP(X63,AAAADonnées!$A$3:$B$100,2,0),"") ->  | L63: =IF(G63<>"",IF(V63<>0,AAAADonnées!$D$3*V63*2,""),"") ->  | N63: =IF(Y63<>"",Y63*AAAADonnées!$C$3,"") ->  | P63: =IF(Z63<>"",Z63*AAAADonnées!$E$3,AA63) ->  | T63: 0 | V63: 0 | X63: Arbitre National
I64: =IF(F64<>"",VLOOKUP(X64,AAAADonnées!$A$3:$B$100,2,0),"") ->  | L64: =IF(G64<>"",IF(V64<>0,AAAADonnées!$D$3*V64*2,""),"") ->  | N64: =IF(Y64<>"",Y64*AAAADonnées!$C$3,"") ->  | P64: =IF(Z64<>"",Z64*AAAADonnées!$E$3,AA64) ->  | T64: 0 | V64: 0 | X64: Arbitre National
I65: =IF(F65<>"",VLOOKUP(X65,AAAADonnées!$A$3:$B$100,2,0),"") ->  | L65: =IF(G65<>"",IF(V65<>0,AAAADonnées!$D$3*V65*2,""),"") ->  | N65: =IF(Y65<>"",Y65*AAAADonnées!$C$3,"") ->  | P65: =IF(Z65<>"",Z65*AAAADonnées!$E$3,AA65) ->  | T65: 0 | V65: 0 | X65: Arbitre National
I66: =IF(F66<>"",VLOOKUP(X66,AAAADonnées!$A$3:$B$100,2,0),"") ->  | L66: =IF(G66<>"",IF(V66<>0,AAAADonnées!$D$3*V66*2,""),"") ->  | N66: =IF(Y66<>"",Y66*AAAADonnées!$C$3,"") ->  | P66: =IF(Z66<>"",Z66*AAAADonnées!$E$3,AA66) ->  | T66: 0 | V66: 0 | X66: Arbitre National
I67: =IF(F67<>"",VLOOKUP(X67,AAAADonnées!$A$3:$B$100,2,0),"") ->  | L67: =IF(G67<>"",IF(V67<>0,AAAADonnées!$D$3*V67*2,""),"") ->  | N67: =IF(Y67<>"",Y67*AAAADonnées!$C$3,"") ->  | P67: =IF(Z67<>"",Z67*AAAADonnées!$E$3,AA67) ->  | T67: =SUM(I67:S67) -> 0 | V67: 0 | X67: Arbitre National
I68: =SUM(I43:I67)+I31 -> 3500 | J68: =SUM(J43:K67)+J31 -> 0 | L68: =SUM(L43:M67)+L31 -> 0 | N68: =SUM(N43:O67)+N31 -> 0 | P68: =SUM(P43:Q67)+P31 -> 0 | R68: =SUM(R43:S67)+R31 -> 500 | T68: =T31+SUM(T43:T67) -> 4000
A70: Mode de règlement: | G70: Arrêté à la somme de: | I70: =IF(F43<>"",PROPER(CONCATENATE(ConvNumberLetter(T68)," Dinars")),"") -> 
H72: Le Président | M72: Le Trésorier | S72: l'Intéressé
C75: =C38 -> ZERMANI Azzeddine | T75: FABB
C76: =C39 -> ALGER | T76: TRÉSORERIE
H77: =H40 -> Arbitre | J77: =J40 -> National | S77: SAISON 2017/2018
A78: Report | I78: =I68 -> 3500 | J78: =J68 -> 0 | L78: =L68 -> 0 | N78: =N68 -> 0 | P78: =P68 -> 0 | R78: =R68 -> 500 | T78: =T68 -> 4000
A79: Journée | B79: Date | C79: Jour | D79: Rencontres | F79: Catégories | G79: Domiciliation | H79: Horaire | I79: Match | J79: Forfait | K79: Aéroport | L79: Transport | M79: par route 7 DA-Km | N79: Hébergement | O79: 2500 DA nuitée | P79: Restauration | Q79: 1000 DA | R79: Forfait suivant | S79: domiciliation | T79: Total | V79: Dist - KM | Y79: Heb. | Z79: Nbr. Repas | AA79: Repas
I80: =IF(F80<>"",VLOOKUP(X80,AAAADonnées!$A$3:$B$100,2,0),"") ->  | L80: =IF(G80<>"",IF(V80<>0,AAAADonnées!$D$3*V80*2,""),"") ->  | N80: =IF(Y80<>"",Y80*AAAADonnées!$C$3,"") ->  | P80: =IF(Z80<>"",Z80*AAAADonnées!$E$3,AA80) ->  | R80: =IF(AND(G80<>"",V80=0),500,"") ->  | T80: =SUM(I80:S80) -> 0 | V80: =IFERROR(INDEX(TABLEDist,MATCH($C$2,Depart,0),MATCH(G80,Arrivee,0)),0) -> 0 | W80: =IF(H80<>"",H80/24,"") ->  | X80: =CONCATENATE(F80," ",$H$3," ",$J$3) -> Arbitre National | Y80: =IF(V80<200,"",IF(V80<500,1,2)) ->  | Z80: =IF(Y80=1,3,IF(Y80=2,5,"")) ->  | AA80: =IF(AND(AND(Y80="",V80<>0,W80<0.0261)),1000,"") -> 
I81: =IF(F81<>"",VLOOKUP(X81,AAAADonnées!$A$3:$B$100,2,0),"") ->  | L81: =IF(G81<>"",IF(V81<>0,AAAADonnées!$D$3*V81*2,""),"") ->  | N81: =IF(Y81<>"",Y81*AAAADonnées!$C$3,"") ->  | P81: =IF(Z81<>"",Z81*AAAADonnées!$E$3,AA81) ->  | R81: =IF(AND(G81<>"",V81=0),500,"") ->  | T81: =SUM(I81:S81) -> 0 | V81: 0 | X81: Arbitre National | AA81: =IF(AND(AND(Y81="",V81<>0,W81<0.0261)),1000,"") -> 
I82: =IF(F82<>"",VLOOKUP(X82,AAAADonnées!$A$3:$B$100,2,0),"") ->  | L82: =IF(G82<>"",IF(V82<>0,AAAADonnées!$D$3*V82*2,""),"") ->  | N82: =IF(Y82<>"",Y82*AAAADonnées!$C$3,"") ->  | P82: =IF(Z82<>"",Z82*AAAADonnées!$E$3,AA82) ->  | T82: =SUM(I82:S82) -> 0 | V82: 0 | X82: Arbitre National
I83: =IF(F83<>"",VLOOKUP(X83,AAAADonnées!$A$3:$B$100,2,0),"") ->  | L83: =IF(G83<>"",IF(V83<>0,AAAADonnées!$D$3*V83*2,""),"") ->  | N83: =IF(Y83<>"",Y83*AAAADonnées!$C$3,"") ->  | P83: =IF(Z83<>"",Z83*AAAADonnées!$E$3,AA83) ->  | T83: 0 | V83: 0 | X83: Arbitre National
I84: =IF(F84<>"",VLOOKUP(X84,AAAADonnées!$A$3:$B$100,2,0),"") ->  | L84: =IF(G84<>"",IF(V84<>0,AAAADonnées!$D$3*V84*2,""),"") ->  | N84: =IF(Y84<>"",Y84*AAAADonnées!$C$3,"") ->  | P84: =IF(Z84<>"",Z84*AAAADonnées!$E$3,AA84) ->  | T84: 0 | V84: 0 | X84: Arbitre National
I85: =IF(F85<>"",VLOOKUP(X85,AAAADonnées!$A$3:$B$100,2,0),"") ->  | L85: =IF(G85<>"",IF(V85<>0,AAAADonnées!$D$3*V85*2,""),"") ->  | N85: =IF(Y85<>"",Y85*AAAADonnées!$C$3,"") ->  | P85: =IF(Z85<>"",Z85*AAAADonnées!$E$3,AA85) ->  | T85: 0 | V85: 0 | X85: Arbitre National
I86: =IF(F86<>"",VLOOKUP(X86,AAAADonnées!$A$3:$B$100,2,0),"") ->  | L86: =IF(G86<>"",IF(V86<>0,AAAADonnées!$D$3*V86*2,""),"") ->  | N86: =IF(Y86<>"",Y86*AAAADonnées!$C$3,"") ->  | P86: =IF(Z86<>"",Z86*AAAADonnées!$E$3,AA86) ->  | T86: 0 | V86: 0 | X86: Arbitre National
I87: =IF(F87<>"",VLOOKUP(X87,AAAADonnées!$A$3:$B$100,2,0),"") ->  | L87: =IF(G87<>"",IF(V87<>0,AAAADonnées!$D$3*V87*2,""),"") ->  | N87: =IF(Y87<>"",Y87*AAAADonnées!$C$3,"") ->  | P87: =IF(Z87<>"",Z87*AAAADonnées!$E$3,AA87) ->  | T87: 0 | V87: 0 | X87: Arbitre National
I88: =IF(F88<>"",VLOOKUP(X88,AAAADonnées!$A$3:$B$100,2,0),"") ->  | L88: =IF(G88<>"",IF(V88<>0,AAAADonnées!$D$3*V88*2,""),"") ->  | N88: =IF(Y88<>"",Y88*AAAADonnées!$C$3,"") ->  | P88: =IF(Z88<>"",Z88*AAAADonnées!$E$3,AA88) ->  | T88: 0 | V88: 0 | X88: Arbitre National
I89: =IF(F89<>"",VLOOKUP(X89,AAAADonnées!$A$3:$B$100,2,0),"") ->  | L89: =IF(G89<>"",IF(V89<>0,AAAADonnées!$D$3*V89*2,""),"") ->  | N89: =IF(Y89<>"",Y89*AAAADonnées!$C$3,"") ->  | P89: =IF(Z89<>"",Z89*AAAADonnées!$E$3,AA89) ->  | T89: 0 | V89: 0 | X89: Arbitre National
I90: =IF(F90<>"",VLOOKUP(X90,AAAADonnées!$A$3:$B$100,2,0),"") ->  | L90: =IF(G90<>"",IF(V90<>0,AAAADonnées!$D$3*V90*2,""),"") ->  | N90: =IF(Y90<>"",Y90*AAAADonnées!$C$3,"") ->  | P90: =IF(Z90<>"",Z90*AAAADonnées!$E$3,AA90) ->  | T90: 0 | V90: 0 | X90: Arbitre National
I91: =IF(F91<>"",VLOOKUP(X91,AAAADonnées!$A$3:$B$100,2,0),"") ->  | L91: =IF(G91<>"",IF(V91<>0,AAAADonnées!$D$3*V91*2,""),"") ->  | N91: =IF(Y91<>"",Y91*AAAADonnées!$C$3,"") ->  | P91: =IF(Z91<>"",Z91*AAAADonnées!$E$3,AA91) ->  | T91: 0 | V91: 0 | X91: Arbitre National
I92: =IF(F92<>"",VLOOKUP(X92,AAAADonnées!$A$3:$B$100,2,0),"") ->  | L92: =IF(G92<>"",IF(V92<>0,AAAADonnées!$D$3*V92*2,""),"") ->  | N92: =IF(Y92<>"",Y92*AAAADonnées!$C$3,"") ->  | P92: =IF(Z92<>"",Z92*AAAADonnées!$E$3,AA92) ->  | T92: 0 | V92: 0 | X92: Arbitre National
I93: =IF(F93<>"",VLOOKUP(X93,AAAADonnées!$A$3:$B$100,2,0),"") ->  | L93: =IF(G93<>"",IF(V93<>0,AAAADonnées!$D$3*V93*2,""),"") ->  | N93: =IF(Y93<>"",Y93*AAAADonnées!$C$3,"") ->  | P93: =IF(Z93<>"",Z93*AAAADonnées!$E$3,AA93) ->  | T93: 0 | V93: 0 | X93: Arbitre National
I94: =IF(F94<>"",VLOOKUP(X94,AAAADonnées!$A$3:$B$100,2,0),"") ->  | L94: =IF(G94<>"",IF(V94<>0,AAAADonnées!$D$3*V94*2,""),"") ->  | N94: =IF(Y94<>"",Y94*AAAADonnées!$C$3,"") ->  | P94: =IF(Z94<>"",Z94*AAAADonnées!$E$3,AA94) ->  | T94: 0 | V94: 0 | X94: Arbitre National
I95: =IF(F95<>"",VLOOKUP(X95,AAAADonnées!$A$3:$B$100,2,0),"") ->  | L95: =IF(G95<>"",IF(V95<>0,AAAADonnées!$D$3*V95*2,""),"") ->  | N95: =IF(Y95<>"",Y95*AAAADonnées!$C$3,"") ->  | P95: =IF(Z95<>"",Z95*AAAADonnées!$E$3,AA95) ->  | T95: 0 | V95: 0 | X95: Arbitre National
I96: =IF(F96<>"",VLOOKUP(X96,AAAADonnées!$A$3:$B$100,2,0),"") ->  | L96: =IF(G96<>"",IF(V96<>0,AAAADonnées!$D$3*V96*2,""),"") ->  | N96: =IF(Y96<>"",Y96*AAAADonnées!$C$3,"") ->  | P96: =IF(Z96<>"",Z96*AAAADonnées!$E$3,AA96) ->  | T96: 0 | V96: 0 | X96: Arbitre National
I97: =IF(F97<>"",VLOOKUP(X97,AAAADonnées!$A$3:$B$100,2,0),"") ->  | L97: =IF(G97<>"",IF(V97<>0,AAAADonnées!$D$3*V97*2,""),"") ->  | N97: =IF(Y97<>"",Y97*AAAADonnées!$C$3,"") ->  | P97: =IF(Z97<>"",Z97*AAAADonnées!$E$3,AA97) ->  | T97: 0 | V97: 0 | X97: Arbitre National
I98: =IF(F98<>"",VLOOKUP(X98,AAAADonnées!$A$3:$B$100,2,0),"") ->  | L98: =IF(G98<>"",IF(V98<>0,AAAADonnées!$D$3*V98*2,""),"") ->  | N98: =IF(Y98<>"",Y98*AAAADonnées!$C$3,"") ->  | P98: =IF(Z98<>"",Z98*AAAADonnées!$E$3,AA98) ->  | T98: 0 | V98: 0 | X98: Arbitre National
I99: =IF(F99<>"",VLOOKUP(X99,AAAADonnées!$A$3:$B$100,2,0),"") ->  | L99: =IF(G99<>"",IF(V99<>0,AAAADonnées!$D$3*V99*2,""),"") ->  | N99: =IF(Y99<>"",Y99*AAAADonnées!$C$3,"") ->  | P99: =IF(Z99<>"",Z99*AAAADonnées!$E$3,AA99) ->  | T99: 0 | V99: 0 | X99: Arbitre National
I100: =IF(F100<>"",VLOOKUP(X100,AAAADonnées!$A$3:$B$100,2,0),"") ->  | L100: =IF(G100<>"",IF(V100<>0,AAAADonnées!$D$3*V100*2,""),"") ->  | N100: =IF(Y100<>"",Y100*AAAADonnées!$C$3,"") ->  | P100: =IF(Z100<>"",Z100*AAAADonnées!$E$3,AA100) ->  | T100: 0 | V100: 0 | X100: Arbitre National
I101: =IF(F101<>"",VLOOKUP(X101,AAAADonnées!$A$3:$B$100,2,0),"") ->  | L101: =IF(G101<>"",IF(V101<>0,AAAADonnées!$D$3*V101*2,""),"") ->  | N101: =IF(Y101<>"",Y101*AAAADonnées!$C$3,"") ->  | P101: =IF(Z101<>"",Z101*AAAADonnées!$E$3,AA101) ->  | T101: 0 | V101: 0 | X101: Arbitre National
I102: =IF(F102<>"",VLOOKUP(X102,AAAADonnées!$A$3:$B$100,2,0),"") ->  | L102: =IF(G102<>"",IF(V102<>0,AAAADonnées!$D$3*V102*2,""),"") ->  | N102: =IF(Y102<>"",Y102*AAAADonnées!$C$3,"") ->  | P102: =IF(Z102<>"",Z102*AAAADonnées!$E$3,AA102) ->  | T102: 0 | V102: 0 | X102: Arbitre National
I103: =IF(F103<>"",VLOOKUP(X103,AAAADonnées!$A$3:$B$100,2,0),"") ->  | L103: =IF(G103<>"",IF(V103<>0,AAAADonnées!$D$3*V103*2,""),"") ->  | N103: =IF(Y103<>"",Y103*AAAADonnées!$C$3,"") ->  | P103: =IF(Z103<>"",Z103*AAAADonnées!$E$3,AA103) ->  | T103: 0 | V103: 0 | X103: Arbitre National
I104: =IF(F104<>"",VLOOKUP(X104,AAAADonnées!$A$3:$B$100,2,0),"") ->  | L104: =IF(G104<>"",IF(V104<>0,AAAADonnées!$D$3*V104*2,""),"") ->  | N104: =IF(Y104<>"",Y104*AAAADonnées!$C$3,"") ->  | P104: =IF(Z104<>"",Z104*AAAADonnées!$E$3,AA104) ->  | T104: =SUM(I104:S104) -> 0 | V104: 0 | X104: Arbitre National | Y104: =IF(V104<200,"",IF(V104<500,1,2)) ->  | Z104: =IF(Y104=1,3,IF(Y104=2,5,"")) -> 
I105: =SUM(I80:I104)+I68 -> 3500 | J105: =SUM(J80:K104)+J68 -> 0 | L105: =SUM(L80:M104)+L68 -> 0 | N105: =SUM(N80:O104)+N68 -> 0 | P105: =SUM(P80:Q104)+P68 -> 0 | R105: =SUM(R80:S104)+R68 -> 500 | T105: =T68+SUM(T80:T104) -> 4000
A107: Mode de règlement: | G107: Arrêté à la somme de: | I107: =IF(F80<>"",PROPER(CONCATENATE(ConvNumberLetter(T105)," Dinars")),"") -> 
H109: Le Président | M109: Le Trésorier | S109: l'Intéressé

Sheet MAHMOUDI
C1: MAHMOUDI Abdelhamid | T1: FABB
A2: Nbr Match | C2: BOUMERDES | T2: TRÉSORERIE
A3: =COUNTA(D6:D30,D43:D67) -> 1 | B3: Centre | H3: Commissaire | J3: Technique | S3: SAISON 2017/2018
A5: Journée | B5: Date | C5: Jour | D5: Rencontres | F5: Catégories | G5: Domiciliation | H5: Horaire | I5: Match | J5: Forfait | K5: Aéroport | L5: Transport | M5: par route 7 DA-Km | N5: Hébergement | O5: 2500 DA nuitée | P5: Restauration | Q5: 1000 DA | R5: Forfait suivant | S5: domiciliation | T5: Total | V5: Dist-Km | Y5: Heb. | Z5: Nbr. Repas | AA5: Repas
B6: 2018-10-12 | C6: =IF(B6<>"",LEFT(PROPER(TEXT(B6,"jjjj")),3),"") -> Ven | D6: CRBDB | E6: CSMBB | F6: SM | G6: ALGER | H6: 16:00:00 | I6: =IF(F6<>"",VLOOKUP(X6,AAAADonnées!$A$3:$B$100,2,0),"") -> 1800 | L6: =IF(G6<>"",IF(V6<>0,AAAADonnées!$D$3*V6*2,""),"") -> 686 | N6: =IF(Y6<>"",Y6*AAAADonnées!$C$3,"") ->  | P6: =IF(Z6<>"",Z6*AAAADonnées!$E$3,AA6) ->  | R6: =IF(AND(G6<>"",V6=0),500,"") ->  | T6: =SUM(I6:S6) -> 2486 | V6: =IFERROR(INDEX(TABLEDist,MATCH($C$2,Depart,0),MATCH(G6,Arrivee,0)),0) -> 49 | W6: =IF(H6<>"",H6/24,"") -> 0.02777777778 | X6: =CONCATENATE(F6," ",$H$3," ",$J$3) -> SM Commissaire Technique | Y6: =IF(V6<200,"",IF(V6<500,1,2)) ->  | Z6: =IF(Y6=1,3,IF(Y6=2,5,"")) ->  | AA6: =IF(AND(AND(Y6="",V6<>0,W6<0.0261)),1000,"") ->  | AB6: =IF(B6>0,B6,"") -> 2018-10-12 | AC6: =IF(AND(AB6<>"",AB6=Recap!B4),SUMPRODUCT(($B$6:$B$30=AB6)*($T$6:$T$30)),"") -> 2486
C7: =IF(B7<>"",LEFT(PROPER(TEXT(B7,"jjjj")),3),"") ->  | I7: =IF(F7<>"",VLOOKUP(X7,AAAADonnées!$A$3:$B$100,2,0),"") ->  | L7: =IF(G7<>"",IF(V7<>0,AAAADonnées!$D$3*V7*2,""),"") ->  | N7: =IF(Y7<>"",Y7*AAAADonnées!$C$3,"") ->  | P7: =IF(Z7<>"",Z7*AAAADonnées!$E$3,AA7) ->  | R7: =IF(AND(G7<>"",V7=0),500,"") ->  | T7: =SUM(I7:S7) -> 0 | V7: 0 | W7: =IF(H7<>"",H7/24,"") ->  | X7: Commissaire Technique | Y7: =IF(V7<200,"",IF(V7<500,1,2)) ->  | Z7: =IF(Y7=1,3,IF(Y7=2,5,"")) ->  | AA7: =IF(AND(AND(Y7="",V7<>0,W7<0.0261)),1000,"") ->  | AB7: =IF(B7>0,B7,"") ->  | AC7: =IF(AND(AB7<>"",AB7=Recap!B5),SUMPRODUCT(($B$6:$B$30=AB7)*($T$6:$T$30)),"") -> 
I8: =IF(F8<>"",VLOOKUP(X8,AAAADonnées!$A$3:$B$100,2,0),"") ->  | L8: =IF(G8<>"",IF(V8<>0,AAAADonnées!$D$3*V8*2,""),"") ->  | N8: =IF(Y8<>"",Y8*AAAADonnées!$C$3,"") ->  | P8: =IF(Z8<>"",Z8*AAAADonnées!$E$3,AA8) ->  | T8: =SUM(I8:S8) -> 0 | V8: 0 | X8: Commissaire Technique | AC8: =IF(AND(AB8<>"",AB8=Recap!B6),SUMPRODUCT(($B$6:$B$30=AB8)*($T$6:$T$30)),"") -> 
I9: =IF(F9<>"",VLOOKUP(X9,AAAADonnées!$A$3:$B$100,2,0),"") ->  | L9: =IF(G9<>"",IF(V9<>0,AAAADonnées!$D$3*V9*2,""),"") ->  | N9: =IF(Y9<>"",Y9*AAAADonnées!$C$3,"") ->  | P9: =IF(Z9<>"",Z9*AAAADonnées!$E$3,AA9) ->  | T9: 0 | V9: 0 | X9: Commissaire Technique | AC9: =IF(AND(AB9<>"",AB9=Recap!B7),SUMPRODUCT(($B$6:$B$30=AB9)*($T$6:$T$30)),"") -> 
I10: =IF(F10<>"",VLOOKUP(X10,AAAADonnées!$A$3:$B$100,2,0),"") ->  | L10: =IF(G10<>"",IF(V10<>0,AAAADonnées!$D$3*V10*2,""),"") ->  | N10: =IF(Y10<>"",Y10*AAAADonnées!$C$3,"") ->  | P10: =IF(Z10<>"",Z10*AAAADonnées!$E$3,AA10) ->  | T10: 0 | V10: 0 | X10: Commissaire Technique | AC10: =IF(AND(AB10<>"",AB10=Recap!B8),SUMPRODUCT(($B$6:$B$30=AB10)*($T$6:$T$30)),"") -> 
I11: =IF(F11<>"",VLOOKUP(X11,AAAADonnées!$A$3:$B$100,2,0),"") ->  | L11: =IF(G11<>"",IF(V11<>0,AAAADonnées!$D$3*V11*2,""),"") ->  | N11: =IF(Y11<>"",Y11*AAAADonnées!$C$3,"") ->  | P11: =IF(Z11<>"",Z11*AAAADonnées!$E$3,AA11) ->  | T11: 0 | V11: 0 | X11: Commissaire Technique | AC11: =IF(AND(AB11<>"",AB11=Recap!B9),SUMPRODUCT(($B$6:$B$30=AB11)*($T$6:$T$30)),"") -> 
I12: =IF(F12<>"",VLOOKUP(X12,AAAADonnées!$A$3:$B$100,2,0),"") ->  | L12: =IF(G12<>"",IF(V12<>0,AAAADonnées!$D$3*V12*2,""),"") ->  | N12: =IF(Y12<>"",Y12*AAAADonnées!$C$3,"") ->  | P12: =IF(Z12<>"",Z12*AAAADonnées!$E$3,AA12) ->  | T12: 0 | V12: 0 | X12: Commissaire Technique | AC12: =IF(AND(AB12<>"",AB12=Recap!B10),SUMPRODUCT(($B$6:$B$30=AB12)*($T$6:$T$30)),"") -> 
I13: =IF(F13<>"",VLOOKUP(X13,AAAADonnées!$A$3:$B$100,2,0),"") ->  | L13: =IF(G13<>"",IF(V13<>0,AAAADonnées!$D$3*V13*2,""),"") ->  | N13: =IF(Y13<>"",Y13*AAAADonnées!$C$3,"") ->  | P13: =IF(Z13<>"",Z13*AAAADonnées!$E$3,AA13) ->  | T13: 0 | V13: 0 | X13: Commissaire Technique | AC13: =IF(AND(AB13<>"",AB13=Recap!B11),SUMPRODUCT(($B$6:$B$30=AB13)*($T$6:$T$30)),"") -> 
I14: =IF(F14<>"",VLOOKUP(X14,AAAADonnées!$A$3:$B$100,2,0),"") ->  | L14: =IF(G14<>"",IF(V14<>0,AAAADonnées!$D$3*V14*2,""),"") ->  | N14: =IF(Y14<>"",Y14*AAAADonnées!$C$3,"") ->  | P14: =IF(Z14<>"",Z14*AAAADonnées!$E$3,AA14) ->  | T14: 0 | V14: 0 | X14: Commissaire Technique | AC14: =IF(AND(AB14<>"",AB14=Recap!B12),SUMPRODUCT(($B$6:$B$30=AB14)*($T$6:$T$30)),"") -> 
I15: =IF(F15<>"",VLOOKUP(X15,AAAADonnées!$A$3:$B$100,2,0),"") ->  | L15: =IF(G15<>"",IF(V15<>0,AAAADonnées!$D$3*V15*2,""),"") ->  | N15: =IF(Y15<>"",Y15*AAAADonnées!$C$3,"") ->  | P15: =IF(Z15<>"",Z15*AAAADonnées!$E$3,AA15) ->  | T15: 0 | V15: 0 | X15: Commissaire Technique | AC15: =IF(AND(AB15<>"",AB15=Recap!B13),SUMPRODUCT(($B$6:$B$30=AB15)*($T$6:$T$30)),"") -> 
I16: =IF(F16<>"",VLOOKUP(X16,AAAADonnées!$A$3:$B$100,2,0),"") ->  | L16: =IF(G16<>"",IF(V16<>0,AAAADonnées!$D$3*V16*2,""),"") ->  | N16: =IF(Y16<>"",Y16*AAAADonnées!$C$3,"") ->  | P16: =IF(Z16<>"",Z16*AAAADonnées!$E$3,AA16) ->  | T16: 0 | V16: 0 | X16: Commissaire Technique | AC16: =IF(AND(AB16<>"",AB16=Recap!B14),SUMPRODUCT(($B$6:$B$30=AB16)*($T$6:$T$30)),"") -> 
I17: =IF(F17<>"",VLOOKUP(X17,AAAADonnées!$A$3:$B$100,2,0),"") ->  | L17: =IF(G17<>"",IF(V17<>0,AAAADonnées!$D$3*V17*2,""),"") ->  | N17: =IF(Y17<>"",Y17*AAAADonnées!$C$3,"") ->  | P17: =IF(Z17<>"",Z17*AAAADonnées!$E$3,AA17) ->  | T17: 0 | V17: 0 | X17: Commissaire Technique | AC17: =IF(AND(AB17<>"",AB17=Recap!B15),SUMPRODUCT(($B$6:$B$30=AB17)*($T$6:$T$30)),"") -> 
I18: =IF(F18<>"",VLOOKUP(X18,AAAADonnées!$A$3:$B$100,2,0),"") ->  | L18: =IF(G18<>"",IF(V18<>0,AAAADonnées!$D$3*V18*2,""),"") ->  | N18: =IF(Y18<>"",Y18*AAAADonnées!$C$3,"") ->  | P18: =IF(Z18<>"",Z18*AAAADonnées!$E$3,AA18) ->  | T18: 0 | V18: 0 | X18: Commissaire Technique | AC18: =IF(AND(AB18<>"",AB18=Recap!B16),SUMPRODUCT(($B$6:$B$30=AB18)*($T$6:$T$30)),"") -> 
I19: =IF(F19<>"",VLOOKUP(X19,AAAADonnées!$A$3:$B$100,2,0),"") ->  | L19: =IF(G19<>"",IF(V19<>0,AAAADonnées!$D$3*V19*2,""),"") ->  | N19: =IF(Y19<>"",Y19*AAAADonnées!$C$3,"") ->  | P19: =IF(Z19<>"",Z19*AAAADonnées!$E$3,AA19) ->  | T19: 0 | V19: 0 | X19: Commissaire Technique | AC19: =IF(AND(AB19<>"",AB19=Recap!B17),SUMPRODUCT(($B$6:$B$30=AB19)*($T$6:$T$30)),"") -> 
I20: =IF(F20<>"",VLOOKUP(X20,AAAADonnées!$A$3:$B$100,2,0),"") ->  | N20: =IF(Y20<>"",Y20*AAAADonnées!$C$3,"") ->  | P20: =IF(Z20<>"",Z20*AAAADonnées!$E$3,AA20) ->  | T20: 0 | V20: 0 | X20: Commissaire Technique | AC20: =IF(AND(AB20<>"",AB20=Recap!B18),SUMPRODUCT(($B$6:$B$30=AB20)*($T$6:$T$30)),"") -> 
I21: =IF(F21<>"",VLOOKUP(X21,AAAADonnées!$A$3:$B$100,2,0),"") ->  | L21: =IF(G21<>"",IF(V21<>0,AAAADonnées!$D$3*V21*2,""),"") ->  | N21: =IF(Y21<>"",Y21*AAAADonnées!$C$3,"") ->  | P21: =IF(Z21<>"",Z21*AAAADonnées!$E$3,AA21) ->  | T21: 0 | V21: 0 | X21: Commissaire Technique | AC21: =IF(AND(AB21<>"",AB21=Recap!B19),SUMPRODUCT(($B$6:$B$30=AB21)*($T$6:$T$30)),"") -> 
I22: =IF(F22<>"",VLOOKUP(X22,AAAADonnées!$A$3:$B$100,2,0),"") ->  | L22: =IF(G22<>"",IF(V22<>0,AAAADonnées!$D$3*V22*2,""),"") ->  | N22: =IF(Y22<>"",Y22*AAAADonnées!$C$3,"") ->  | P22: =IF(Z22<>"",Z22*AAAADonnées!$E$3,AA22) ->  | T22: 0 | V22: 0 | X22: Commissaire Technique | AC22: =IF(AND(AB22<>"",AB22=Recap!B20),SUMPRODUCT(($B$6:$B$30=AB22)*($T$6:$T$30)),"") -> 
I23: =IF(F23<>"",VLOOKUP(X23,AAAADonnées!$A$3:$B$100,2,0),"") ->  | L23: =IF(G23<>"",IF(V23<>0,AAAADonnées!$D$3*V23*2,""),"") ->  | N23: =IF(Y23<>"",Y23*AAAADonnées!$C$3,"") ->  | P23: =IF(Z23<>"",Z23*AAAADonnées!$E$3,AA23) ->  | T23: 0 | V23: 0 | X23: Commissaire Technique | AC23: =IF(AND(AB23<>"",AB23=Recap!B21),SUMPRODUCT(($B$6:$B$30=AB23)*($T$6:$T$30)),"") -> 
I24: =IF(F24<>"",VLOOKUP(X24,AAAADonnées!$A$3:$B$100,2,0),"") ->  | L24: =IF(G24<>"",IF(V24<>0,AAAADonnées!$D$3*V24*2,""),"") ->  | N24: =IF(Y24<>"",Y24*AAAADonnées!$C$3,"") ->  | P24: =IF(Z24<>"",Z24*AAAADonnées!$E$3,AA24) ->  | T24: 0 | V24: 0 | X24: Commissaire Technique | AC24: =IF(AND(AB24<>"",AB24=Recap!B22),SUMPRODUCT(($B$6:$B$30=AB24)*($T$6:$T$30)),"") -> 
I25: =IF(F25<>"",VLOOKUP(X25,AAAADonnées!$A$3:$B$100,2,0),"") ->  | L25: =IF(G25<>"",IF(V25<>0,AAAADonnées!$D$3*V25*2,""),"") ->  | N25: =IF(Y25<>"",Y25*AAAADonnées!$C$3,"") ->  | P25: =IF(Z25<>"",Z25*AAAADonnées!$E$3,AA25) ->  | T25: 0 | V25: 0 | X25: Commissaire Technique | AC25: =IF(AND(AB25<>"",AB25=Recap!B23),SUMPRODUCT(($B$6:$B$30=AB25)*($T$6:$T$30)),"") -> 
I26: =IF(F26<>"",VLOOKUP(X26,AAAADonnées!$A$3:$B$100,2,0),"") ->  | L26: =IF(G26<>"",IF(V26<>0,AAAADonnées!$D$3*V26*2,""),"") ->  | N26: =IF(Y26<>"",Y26*AAAADonnées!$C$3,"") ->  | P26: =IF(Z26<>"",Z26*AAAADonnées!$E$3,AA26) ->  | T26: 0 | V26: 0 | X26: Commissaire Technique | AC26: =IF(AND(AB26<>"",AB26=Recap!B24),SUMPRODUCT(($B$6:$B$30=AB26)*($T$6:$T$30)),"") -> 
I27: =IF(F27<>"",VLOOKUP(X27,AAAADonnées!$A$3:$B$100,2,0),"") ->  | L27: =IF(G27<>"",IF(V27<>0,AAAADonnées!$D$3*V27*2,""),"") ->  | N27: =IF(Y27<>"",Y27*AAAADonnées!$C$3,"") ->  | P27: =IF(Z27<>"",Z27*AAAADonnées!$E$3,AA27) ->  | T27: 0 | V27: 0 | X27: Commissaire Technique | AC27: =IF(AND(AB27<>"",AB27=Recap!B25),SUMPRODUCT(($B$6:$B$30=AB27)*($T$6:$T$30)),"") -> 
I28: =IF(F28<>"",VLOOKUP(X28,AAAADonnées!$A$3:$B$100,2,0),"") ->  | L28: =IF(G28<>"",IF(V28<>0,AAAADonnées!$D$3*V28*2,""),"") ->  | N28: =IF(Y28<>"",Y28*AAAADonnées!$C$3,"") ->  | P28: =IF(Z28<>"",Z28*AAAADonnées!$E$3,AA28) ->  | T28: 0 | V28: 0 | X28: Commissaire Technique | AC28: =IF(AND(AB28<>"",AB28=Recap!B26),SUMPRODUCT(($B$6:$B$30=AB28)*($T$6:$T$30)),"") -> 
C29: =IF(B29<>"",LEFT(PROPER(TEXT(B29,"jjjj")),3),"") ->  | I29: =IF(F29<>"",VLOOKUP(X29,AAAADonnées!$A$3:$B$100,2,0),"") ->  | L29: =IF(G29<>"",IF(V29<>0,AAAADonnées!$D$3*V29*2,""),"") ->  | N29: =IF(Y29<>"",Y29*AAAADonnées!$C$3,"") ->  | P29: =IF(Z29<>"",Z29*AAAADonnées!$E$3,AA29) ->  | T29: 0 | V29: 0 | X29: Commissaire Technique | AC29: =IF(AND(AB29<>"",AB29=Recap!B27),SUMPRODUCT(($B$6:$B$30=AB29)*($T$6:$T$30)),"") -> 
I30: =IF(F30<>"",VLOOKUP(X30,AAAADonnées!$A$3:$B$100,2,0),"") ->  | L30: =IF(G30<>"",IF(V30<>0,AAAADonnées!$D$3*V30*2,""),"") ->  | N30: =IF(Y30<>"",Y30*AAAADonnées!$C$3,"") ->  | P30: =IF(Z30<>"",Z30*AAAADonnées!$E$3,AA30) ->  | T30: =SUM(I30:S30) -> 0 | V30: 0 | X30: Commissaire Technique | AC30: =IF(AND(AB30<>"",AB30=Recap!B28),SUMPRODUCT(($B$6:$B$30=AB30)*($T$6:$T$30)),"") -> 
I31: =SUM(I6:I30) -> 1800 | J31: =SUM(J6:K30) -> 0 | L31: =SUM(L6:M30) -> 686 | N31: =SUM(N6:O30) -> 0 | P31: =SUM(P6:Q30) -> 0 | R31: =SUM(R6:S30) -> 0 | T31: =SUM(T6:T30) -> 2486
A33: Mode de règlement: | F33: Arrêté à la somme de: | H33: =IF(F43="",IF(T31<>0,PROPER(CONCATENATE(ConvNumberLetter(T31)," Dinars")),""),"") -> Deux Mille Quatre Cent Quatre-Vingt-Six Dinars
H35: Le Président | M35: Le Trésorier | S35: l'Intéressé
C38: =C1 -> MAHMOUDI Abdelhamid | T38: FABB
C39: =C2 -> BOUMERDES | T39: TRÉSORERIE
H40: =H3 -> Commissaire | J40: =J3 -> Technique | S40: SAISON 2017/2018
A41: Report | I41: =I31 -> 1800 | J41: =J31 -> 0 | L41: =L31 -> 686 | N41: =N31 -> 0 | P41: =P31 -> 0 | R41: =R31 -> 0 | T41: =T31 -> 2486
A42: Journée | B42: Date | C42: Jour | D42: Rencontres | F42: Catégories | G42: Domiciliation | H42: Horaire | I42: Match | J42: Forfait | K42: Aéroport | L42: Transport | M42: par route 7 DA-Km | N42: Hébergement | O42: 2500 DA nuitée | P42: Restauration | Q42: 1000 DA | R42: Forfait suivant | S42: domiciliation | T42: Total | V42: Dist - KM | Y42: Heb. | Z42: Nbr. Repas | AA42: Repas
C43: =IF(B43<>"",LEFT(PROPER(TEXT(B43,"jjjj")),3),"") ->  | I43: =IF(F43<>"",VLOOKUP(X43,AAAADonnées!$A$3:$B$100,2,0),"") ->  | L43: =IF(G43<>"",IF(V43<>0,AAAADonnées!$D$3*V43*2,""),"") ->  | N43: =IF(Y43<>"",Y43*AAAADonnées!$C$3,"") ->  | P43: =IF(Z43<>"",Z43*AAAADonnées!$E$3,AA43) ->  | R43: =IF(AND(G43<>"",V43=0),500,"") ->  | T43: =SUM(I43:S43) -> 0 | V43: =IFERROR(INDEX(TABLEDist,MATCH($C$2,Depart,0),MATCH(G43,Arrivee,0)),0) -> 0 | X43: =CONCATENATE(F43," ",$H$3," ",$J$3) -> Commissaire Technique | Y43: =IF(V43<200,"",IF(V43<500,1,2)) ->  | Z43: =IF(Y43=1,3,IF(Y43=2,5,"")) ->  | AA43: =IF(AND(AND(Y43="",V43<>0,W43<0.0261)),1000,"") -> 
C44: =IF(B44<>"",LEFT(PROPER(TEXT(B44,"jjjj")),3),"") ->  | I44: =IF(F44<>"",VLOOKUP(X44,AAAADonnées!$A$3:$B$100,2,0),"") ->  | L44: =IF(G44<>"",IF(V44<>0,AAAADonnées!$D$3*V44*2,""),"") ->  | N44: =IF(Y44<>"",Y44*AAAADonnées!$C$3,"") ->  | P44: =IF(Z44<>"",Z44*AAAADonnées!$E$3,AA44) ->  | R44: =IF(AND(G44<>"",V44=0),500,"") ->  | T44: =SUM(I44:S44) -> 0 | V44: 0 | X44: Commissaire Technique
I45: =IF(F45<>"",VLOOKUP(X45,AAAADonnées!$A$3:$B$100,2,0),"") ->  | L45: =IF(G45<>"",IF(V45<>0,AAAADonnées!$D$3*V45*2,""),"") ->  | N45: =IF(Y45<>"",Y45*AAAADonnées!$C$3,"") ->  | P45: =IF(Z45<>"",Z45*AAAADonnées!$E$3,AA45) ->  | T45: =SUM(I45:S45) -> 0 | V45: 0 | X45: Commissaire Technique
I46: =IF(F46<>"",VLOOKUP(X46,AAAADonnées!$A$3:$B$100,2,0),"") ->  | L46: =IF(G46<>"",IF(V46<>0,AAAADonnées!$D$3*V46*2,""),"") ->  | N46: =IF(Y46<>"",Y46*AAAADonnées!$C$3,"") ->  | P46: =IF(Z46<>"",Z46*AAAADonnées!$E$3,AA46) ->  | T46: 0 | V46: 0 | X46: Commissaire Technique
I47: =IF(F47<>"",VLOOKUP(X47,AAAADonnées!$A$3:$B$100,2,0),"") ->  | L47: =IF(G47<>"",IF(V47<>0,AAAADonnées!$D$3*V47*2,""),"") ->  | N47: =IF(Y47<>"",Y47*AAAADonnées!$C$3,"") ->  | P47: =IF(Z47<>"",Z47*AAAADonnées!$E$3,AA47) ->  | T47: 0 | V47: 0 | X47: Commissaire Technique
I48: =IF(F48<>"",VLOOKUP(X48,AAAADonnées!$A$3:$B$100,2,0),"") ->  | L48: =IF(G48<>"",IF(V48<>0,AAAADonnées!$D$3*V48*2,""),"") ->  | N48: =IF(Y48<>"",Y48*AAAADonnées!$C$3,"") ->  | P48: =IF(Z48<>"",Z48*AAAADonnées!$E$3,AA48) ->  | T48: 0 | V48: 0 | X48: Commissaire Technique
I49: =IF(F49<>"",VLOOKUP(X49,AAAADonnées!$A$3:$B$100,2,0),"") ->  | L49: =IF(G49<>"",IF(V49<>0,AAAADonnées!$D$3*V49*2,""),"") ->  | N49: =IF(Y49<>"",Y49*AAAADonnées!$C$3,"") ->  | P49: =IF(Z49<>"",Z49*AAAADonnées!$E$3,AA49) ->  | T49: 0 | V49: 0 | X49: Commissaire Technique
I50: =IF(F50<>"",VLOOKUP(X50,AAAADonnées!$A$3:$B$100,2,0),"") ->  | L50: =IF(G50<>"",IF(V50<>0,AAAADonnées!$D$3*V50*2,""),"") ->  | N50: =IF(Y50<>"",Y50*AAAADonnées!$C$3,"") ->  | P50: =IF(Z50<>"",Z50*AAAADonnées!$E$3,AA50) ->  | T50: 0 | V50: 0 | X50: Commissaire Technique
I51: =IF(F51<>"",VLOOKUP(X51,AAAADonnées!$A$3:$B$100,2,0),"") ->  | L51: =IF(G51<>"",IF(V51<>0,AAAADonnées!$D$3*V51*2,""),"") ->  | N51: =IF(Y51<>"",Y51*AAAADonnées!$C$3,"") ->  | P51: =IF(Z51<>"",Z51*AAAADonnées!$E$3,AA51) ->  | T51: 0 | V51: 0 | X51: Commissaire Technique
I52: =IF(F52<>"",VLOOKUP(X52,AAAADonnées!$A$3:$B$100,2,0),"") ->  | L52: =IF(G52<>"",IF(V52<>0,AAAADonnées!$D$3*V52*2,""),"") ->  | N52: =IF(Y52<>"",Y52*AAAADonnées!$C$3,"") ->  | P52: =IF(Z52<>"",Z52*AAAADonnées!$E$3,AA52) ->  | T52: 0 | V52: 0 | X52: Commissaire Technique
I53: =IF(F53<>"",VLOOKUP(X53,AAAADonnées!$A$3:$B$100,2,0),"") ->  | L53: =IF(G53<>"",IF(V53<>0,AAAADonnées!$D$3*V53*2,""),"") ->  | N53: =IF(Y53<>"",Y53*AAAADonnées!$C$3,"") ->  | P53: =IF(Z53<>"",Z53*AAAADonnées!$E$3,AA53) ->  | T53: 0 | V53: 0 | X53: Commissaire Technique
I54: =IF(F54<>"",VLOOKUP(X54,AAAADonnées!$A$3:$B$100,2,0),"") ->  | L54: =IF(G54<>"",IF(V54<>0,AAAADonnées!$D$3*V54*2,""),"") ->  | N54: =IF(Y54<>"",Y54*AAAADonnées!$C$3,"") ->  | P54: =IF(Z54<>"",Z54*AAAADonnées!$E$3,AA54) ->  | T54: 0 | V54: 0 | X54: Commissaire Technique
I55: =IF(F55<>"",VLOOKUP(X55,AAAADonnées!$A$3:$B$100,2,0),"") ->  | L55: =IF(G55<>"",IF(V55<>0,AAAADonnées!$D$3*V55*2,""),"") ->  | N55: =IF(Y55<>"",Y55*AAAADonnées!$C$3,"") ->  | P55: =IF(Z55<>"",Z55*AAAADonnées!$E$3,AA55) ->  | T55: 0 | V55: 0 | X55: Commissaire Technique
I56: =IF(F56<>"",VLOOKUP(X56,AAAADonnées!$A$3:$B$100,2,0),"") ->  | L56: =IF(G56<>"",IF(V56<>0,AAAADonnées!$D$3*V56*2,""),"") ->  | N56: =IF(Y56<>"",Y56*AAAADonnées!$C$3,"") ->  | P56: =IF(Z56<>"",Z56*AAAADonnées!$E$3,AA56) ->  | T56: 0 | V56: 0 | X56: Commissaire Technique
I57: =IF(F57<>"",VLOOKUP(X57,AAAADonnées!$A$3:$B$100,2,0),"") ->  | L57: =IF(G57<>"",IF(V57<>0,AAAADonnées!$D$3*V57*2,""),"") ->  | N57: =IF(Y57<>"",Y57*AAAADonnées!$C$3,"") ->  | P57: =IF(Z57<>"",Z57*AAAADonnées!$E$3,AA57) ->  | T57: 0 | V57: 0 | X57: Commissaire Technique
I58: =IF(F58<>"",VLOOKUP(X58,AAAADonnées!$A$3:$B$100,2,0),"") ->  | L58: =IF(G58<>"",IF(V58<>0,AAAADonnées!$D$3*V58*2,""),"") ->  | N58: =IF(Y58<>"",Y58*AAAADonnées!$C$3,"") ->  | P58: =IF(Z58<>"",Z58*AAAADonnées!$E$3,AA58) ->  | T58: 0 | V58: 0 | X58: Commissaire Technique
I59: =IF(F59<>"",VLOOKUP(X59,AAAADonnées!$A$3:$B$100,2,0),"") ->  | L59: =IF(G59<>"",IF(V59<>0,AAAADonnées!$D$3*V59*2,""),"") ->  | N59: =IF(Y59<>"",Y59*AAAADonnées!$C$3,"") ->  | P59: =IF(Z59<>"",Z59*AAAADonnées!$E$3,AA59) ->  | T59: 0 | V59: 0 | X59: Commissaire Technique
I60: =IF(F60<>"",VLOOKUP(X60,AAAADonnées!$A$3:$B$100,2,0),"") ->  | L60: =IF(G60<>"",IF(V60<>0,AAAADonnées!$D$3*V60*2,""),"") ->  | N60: =IF(Y60<>"",Y60*AAAADonnées!$C$3,"") ->  | P60: =IF(Z60<>"",Z60*AAAADonnées!$E$3,AA60) ->  | T60: 0 | V60: 0 | X60: Commissaire Technique
I61: =IF(F61<>"",VLOOKUP(X61,AAAADonnées!$A$3:$B$100,2,0),"") ->  | L61: =IF(G61<>"",IF(V61<>0,AAAADonnées!$D$3*V61*2,""),"") ->  | N61: =IF(Y61<>"",Y61*AAAADonnées!$C$3,"") ->  | P61: =IF(Z61<>"",Z61*AAAADonnées!$E$3,AA61) ->  | T61: 0 | V61: 0 | X61: Commissaire Technique
I62: =IF(F62<>"",VLOOKUP(X62,AAAADonnées!$A$3:$B$100,2,0),"") ->  | L62: =IF(G62<>"",IF(V62<>0,AAAADonnées!$D$3*V62*2,""),"") ->  | N62: =IF(Y62<>"",Y62*AAAADonnées!$C$3,"") ->  | P62: =IF(Z62<>"",Z62*AAAADonnées!$E$3,AA62) ->  | T62: 0 | V62: 0 | X62: Commissaire Technique
I63: =IF(F63<>"",VLOOKUP(X63,AAAADonnées!$A$3:$B$100,2,0),"") ->  | L63: =IF(G63<>"",IF(V63<>0,AAAADonnées!$D$3*V63*2,""),"") ->  | N63: =IF(Y63<>"",Y63*AAAADonnées!$C$3,"") ->  | P63: =IF(Z63<>"",Z63*AAAADonnées!$E$3,AA63) ->  | T63: 0 | V63: 0 | X63: Commissaire Technique
I64: =IF(F64<>"",VLOOKUP(X64,AAAADonnées!$A$3:$B$100,2,0),"") ->  | L64: =IF(G64<>"",IF(V64<>0,AAAADonnées!$D$3*V64*2,""),"") ->  | N64: =IF(Y64<>"",Y64*AAAADonnées!$C$3,"") ->  | P64: =IF(Z64<>"",Z64*AAAADonnées!$E$3,AA64) ->  | T64: 0 | V64: 0 | X64: Commissaire Technique
I65: =IF(F65<>"",VLOOKUP(X65,AAAADonnées!$A$3:$B$100,2,0),"") ->  | L65: =IF(G65<>"",IF(V65<>0,AAAADonnées!$D$3*V65*2,""),"") ->  | N65: =IF(Y65<>"",Y65*AAAADonnées!$C$3,"") ->  | P65: =IF(Z65<>"",Z65*AAAADonnées!$E$3,AA65) ->  | T65: 0 | V65: 0 | X65: Commissaire Technique
I66: =IF(F66<>"",VLOOKUP(X66,AAAADonnées!$A$3:$B$100,2,0),"") ->  | L66: =IF(G66<>"",IF(V66<>0,AAAADonnées!$D$3*V66*2,""),"") ->  | N66: =IF(Y66<>"",Y66*AAAADonnées!$C$3,"") ->  | P66: =IF(Z66<>"",Z66*AAAADonnées!$E$3,AA66) ->  | T66: 0 | V66: 0 | X66: Commissaire Technique
I67: =IF(F67<>"",VLOOKUP(X67,AAAADonnées!$A$3:$B$100,2,0),"") ->  | L67: =IF(G67<>"",IF(V67<>0,AAAADonnées!$D$3*V67*2,""),"") ->  | N67: =IF(Y67<>"",Y67*AAAADonnées!$C$3,"") ->  | P67: =IF(Z67<>"",Z67*AAAADonnées!$E$3,AA67) ->  | T67: =SUM(I67:S67) -> 0 | V67: 0 | X67: Commissaire Technique
I68: =SUM(I43:I67)+I31 -> 1800 | J68: =SUM(J43:K67)+J31 -> 0 | L68: =SUM(L43:M67)+L31 -> 686 | N68: =SUM(N43:O67)+N31 -> 0 | P68: =SUM(P43:Q67)+P31 -> 0 | R68: =SUM(R43:S67)+R31 -> 0 | T68: =T31+SUM(T43:T67) -> 2486
A70: Mode de règlement: | G70: Arrêté à la somme de: | I70: =IF(F43<>"",PROPER(CONCATENATE(ConvNumberLetter(T68)," Dinars")),"") -> 
H72: Le Président | M72: Le Trésorier | S72: l'Intéressé
C75: =C38 -> MAHMOUDI Abdelhamid | T75: FABB
C76: =C39 -> BOUMERDES | T76: TRÉSORERIE
H77: =H40 -> Commissaire | J77: =J40 -> Technique | S77: SAISON 2017/2018
A78: Report | I78: =I68 -> 1800 | J78: =J68 -> 0 | L78: =L68 -> 686 | N78: =N68 -> 0 | P78: =P68 -> 0 | R78: =R68 -> 0 | T78: =T68 -> 2486
A79: Journée | B79: Date | C79: Jour | D79: Rencontres | F79: Catégories | G79: Domiciliation | H79: Horaire | I79: Match | J79: Forfait | K79: Aéroport | L79: Transport | M79: par route 7 DA-Km | N79: Hébergement | O79: 2500 DA nuitée | P79: Restauration | Q79: 1000 DA | R79: Forfait suivant | S79: domiciliation | T79: Total | V79: Dist - KM | Y79: Heb. | Z79: Nbr. Repas | AA79: Repas
I80: =IF(F80<>"",VLOOKUP(X80,AAAADonnées!$A$3:$B$100,2,0),"") ->  | L80: =IF(G80<>"",IF(V80<>0,AAAADonnées!$D$3*V80*2,""),"") ->  | N80: =IF(Y80<>"",Y80*AAAADonnées!$C$3,"") ->  | P80: =IF(Z80<>"",Z80*AAAADonnées!$E$3,AA80) ->  | R80: =IF(AND(G80<>"",V80=0),500,"") ->  | T80: =SUM(I80:S80) -> 0 | V80: =IFERROR(INDEX(TABLEDist,MATCH($C$2,Depart,0),MATCH(G80,Arrivee,0)),0) -> 0 | W80: =IF(H80<>"",H80/24,"") ->  | X80: =CONCATENATE(F80," ",$H$3," ",$J$3) -> Commissaire Technique | Y80: =IF(V80<200,"",IF(V80<500,1,2)) ->  | Z80: =IF(Y80=1,3,IF(Y80=2,5,"")) ->  | AA80: =IF(AND(AND(Y80="",V80<>0,W80<0.0261)),1000,"") -> 
I81: =IF(F81<>"",VLOOKUP(X81,AAAADonnées!$A$3:$B$100,2,0),"") ->  | L81: =IF(G81<>"",IF(V81<>0,AAAADonnées!$D$3*V81*2,""),"") ->  | N81: =IF(Y81<>"",Y81*AAAADonnées!$C$3,"") ->  | P81: =IF(Z81<>"",Z81*AAAADonnées!$E$3,AA81) ->  | R81: =IF(AND(G81<>"",V81=0),500,"") ->  | T81: =SUM(I81:S81) -> 0 | V81: 0 | X81: Commissaire Technique | AA81: =IF(AND(AND(Y81="",V81<>0,W81<0.0261)),1000,"") -> 
I82: =IF(F82<>"",VLOOKUP(X82,AAAADonnées!$A$3:$B$100,2,0),"") ->  | L82: =IF(G82<>"",IF(V82<>0,AAAADonnées!$D$3*V82*2,""),"") ->  | N82: =IF(Y82<>"",Y82*AAAADonnées!$C$3,"") ->  | P82: =IF(Z82<>"",Z82*AAAADonnées!$E$3,AA82) ->  | T82: =SUM(I82:S82) -> 0 | V82: 0 | X82: Commissaire Technique
I83: =IF(F83<>"",VLOOKUP(X83,AAAADonnées!$A$3:$B$100,2,0),"") ->  | L83: =IF(G83<>"",IF(V83<>0,AAAADonnées!$D$3*V83*2,""),"") ->  | N83: =IF(Y83<>"",Y83*AAAADonnées!$C$3,"") ->  | P83: =IF(Z83<>"",Z83*AAAADonnées!$E$3,AA83) ->  | T83: 0 | V83: 0 | X83: Commissaire Technique
I84: =IF(F84<>"",VLOOKUP(X84,AAAADonnées!$A$3:$B$100,2,0),"") ->  | L84: =IF(G84<>"",IF(V84<>0,AAAADonnées!$D$3*V84*2,""),"") ->  | N84: =IF(Y84<>"",Y84*AAAADonnées!$C$3,"") ->  | P84: =IF(Z84<>"",Z84*AAAADonnées!$E$3,AA84) ->  | T84: 0 | V84: 0 | X84: Commissaire Technique
I85: =IF(F85<>"",VLOOKUP(X85,AAAADonnées!$A$3:$B$100,2,0),"") ->  | L85: =IF(G85<>"",IF(V85<>0,AAAADonnées!$D$3*V85*2,""),"") ->  | N85: =IF(Y85<>"",Y85*AAAADonnées!$C$3,"") ->  | P85: =IF(Z85<>"",Z85*AAAADonnées!$E$3,AA85) ->  | T85: 0 | V85: 0 | X85: Commissaire Technique
I86: =IF(F86<>"",VLOOKUP(X86,AAAADonnées!$A$3:$B$100,2,0),"") ->  | L86: =IF(G86<>"",IF(V86<>0,AAAADonnées!$D$3*V86*2,""),"") ->  | N86: =IF(Y86<>"",Y86*AAAADonnées!$C$3,"") ->  | P86: =IF(Z86<>"",Z86*AAAADonnées!$E$3,AA86) ->  | T86: 0 | V86: 0 | X86: Commissaire Technique
I87: =IF(F87<>"",VLOOKUP(X87,AAAADonnées!$A$3:$B$100,2,0),"") ->  | L87: =IF(G87<>"",IF(V87<>0,AAAADonnées!$D$3*V87*2,""),"") ->  | N87: =IF(Y87<>"",Y87*AAAADonnées!$C$3,"") ->  | P87: =IF(Z87<>"",Z87*AAAADonnées!$E$3,AA87) ->  | T87: 0 | V87: 0 | X87: Commissaire Technique
I88: =IF(F88<>"",VLOOKUP(X88,AAAADonnées!$A$3:$B$100,2,0),"") ->  | L88: =IF(G88<>"",IF(V88<>0,AAAADonnées!$D$3*V88*2,""),"") ->  | N88: =IF(Y88<>"",Y88*AAAADonnées!$C$3,"") ->  | P88: =IF(Z88<>"",Z88*AAAADonnées!$E$3,AA88) ->  | T88: 0 | V88: 0 | X88: Commissaire Technique
I89: =IF(F89<>"",VLOOKUP(X89,AAAADonnées!$A$3:$B$100,2,0),"") ->  | L89: =IF(G89<>"",IF(V89<>0,AAAADonnées!$D$3*V89*2,""),"") ->  | N89: =IF(Y89<>"",Y89*AAAADonnées!$C$3,"") ->  | P89: =IF(Z89<>"",Z89*AAAADonnées!$E$3,AA89) ->  | T89: 0 | V89: 0 | X89: Commissaire Technique
I90: =IF(F90<>"",VLOOKUP(X90,AAAADonnées!$A$3:$B$100,2,0),"") ->  | L90: =IF(G90<>"",IF(V90<>0,AAAADonnées!$D$3*V90*2,""),"") ->  | N90: =IF(Y90<>"",Y90*AAAADonnées!$C$3,"") ->  | P90: =IF(Z90<>"",Z90*AAAADonnées!$E$3,AA90) ->  | T90: 0 | V90: 0 | X90: Commissaire Technique
I91: =IF(F91<>"",VLOOKUP(X91,AAAADonnées!$A$3:$B$100,2,0),"") ->  | L91: =IF(G91<>"",IF(V91<>0,AAAADonnées!$D$3*V91*2,""),"") ->  | N91: =IF(Y91<>"",Y91*AAAADonnées!$C$3,"") ->  | P91: =IF(Z91<>"",Z91*AAAADonnées!$E$3,AA91) ->  | T91: 0 | V91: 0 | X91: Commissaire Technique
I92: =IF(F92<>"",VLOOKUP(X92,AAAADonnées!$A$3:$B$100,2,0),"") ->  | L92: =IF(G92<>"",IF(V92<>0,AAAADonnées!$D$3*V92*2,""),"") ->  | N92: =IF(Y92<>"",Y92*AAAADonnées!$C$3,"") ->  | P92: =IF(Z92<>"",Z92*AAAADonnées!$E$3,AA92) ->  | T92: 0 | V92: 0 | X92: Commissaire Technique
I93: =IF(F93<>"",VLOOKUP(X93,AAAADonnées!$A$3:$B$100,2,0),"") ->  | L93: =IF(G93<>"",IF(V93<>0,AAAADonnées!$D$3*V93*2,""),"") ->  | N93: =IF(Y93<>"",Y93*AAAADonnées!$C$3,"") ->  | P93: =IF(Z93<>"",Z93*AAAADonnées!$E$3,AA93) ->  | T93: 0 | V93: 0 | X93: Commissaire Technique
I94: =IF(F94<>"",VLOOKUP(X94,AAAADonnées!$A$3:$B$100,2,0),"") ->  | L94: =IF(G94<>"",IF(V94<>0,AAAADonnées!$D$3*V94*2,""),"") ->  | N94: =IF(Y94<>"",Y94*AAAADonnées!$C$3,"") ->  | P94: =IF(Z94<>"",Z94*AAAADonnées!$E$3,AA94) ->  | T94: 0 | V94: 0 | X94: Commissaire Technique
I95: =IF(F95<>"",VLOOKUP(X95,AAAADonnées!$A$3:$B$100,2,0),"") ->  | L95: =IF(G95<>"",IF(V95<>0,AAAADonnées!$D$3*V95*2,""),"") ->  | N95: =IF(Y95<>"",Y95*AAAADonnées!$C$3,"") ->  | P95: =IF(Z95<>"",Z95*AAAADonnées!$E$3,AA95) ->  | T95: 0 | V95: 0 | X95: Commissaire Technique
I96: =IF(F96<>"",VLOOKUP(X96,AAAADonnées!$A$3:$B$100,2,0),"") ->  | L96: =IF(G96<>"",IF(V96<>0,AAAADonnées!$D$3*V96*2,""),"") ->  | N96: =IF(Y96<>"",Y96*AAAADonnées!$C$3,"") ->  | P96: =IF(Z96<>"",Z96*AAAADonnées!$E$3,AA96) ->  | T96: 0 | V96: 0 | X96: Commissaire Technique
I97: =IF(F97<>"",VLOOKUP(X97,AAAADonnées!$A$3:$B$100,2,0),"") ->  | L97: =IF(G97<>"",IF(V97<>0,AAAADonnées!$D$3*V97*2,""),"") ->  | N97: =IF(Y97<>"",Y97*AAAADonnées!$C$3,"") ->  | P97: =IF(Z97<>"",Z97*AAAADonnées!$E$3,AA97) ->  | T97: 0 | V97: 0 | X97: Commissaire Technique
I98: =IF(F98<>"",VLOOKUP(X98,AAAADonnées!$A$3:$B$100,2,0),"") ->  | L98: =IF(G98<>"",IF(V98<>0,AAAADonnées!$D$3*V98*2,""),"") ->  | N98: =IF(Y98<>"",Y98*AAAADonnées!$C$3,"") ->  | P98: =IF(Z98<>"",Z98*AAAADonnées!$E$3,AA98) ->  | T98: 0 | V98: 0 | X98: Commissaire Technique
I99: =IF(F99<>"",VLOOKUP(X99,AAAADonnées!$A$3:$B$100,2,0),"") ->  | L99: =IF(G99<>"",IF(V99<>0,AAAADonnées!$D$3*V99*2,""),"") ->  | N99: =IF(Y99<>"",Y99*AAAADonnées!$C$3,"") ->  | P99: =IF(Z99<>"",Z99*AAAADonnées!$E$3,AA99) ->  | T99: 0 | V99: 0 | X99: Commissaire Technique
I100: =IF(F100<>"",VLOOKUP(X100,AAAADonnées!$A$3:$B$100,2,0),"") ->  | L100: =IF(G100<>"",IF(V100<>0,AAAADonnées!$D$3*V100*2,""),"") ->  | N100: =IF(Y100<>"",Y100*AAAADonnées!$C$3,"") ->  | P100: =IF(Z100<>"",Z100*AAAADonnées!$E$3,AA100) ->  | T100: 0 | V100: 0 | X100: Commissaire Technique
I101: =IF(F101<>"",VLOOKUP(X101,AAAADonnées!$A$3:$B$100,2,0),"") ->  | L101: =IF(G101<>"",IF(V101<>0,AAAADonnées!$D$3*V101*2,""),"") ->  | N101: =IF(Y101<>"",Y101*AAAADonnées!$C$3,"") ->  | P101: =IF(Z101<>"",Z101*AAAADonnées!$E$3,AA101) ->  | T101: 0 | V101: 0 | X101: Commissaire Technique
I102: =IF(F102<>"",VLOOKUP(X102,AAAADonnées!$A$3:$B$100,2,0),"") ->  | L102: =IF(G102<>"",IF(V102<>0,AAAADonnées!$D$3*V102*2,""),"") ->  | N102: =IF(Y102<>"",Y102*AAAADonnées!$C$3,"") ->  | P102: =IF(Z102<>"",Z102*AAAADonnées!$E$3,AA102) ->  | T102: 0 | V102: 0 | X102: Commissaire Technique
I103: =IF(F103<>"",VLOOKUP(X103,AAAADonnées!$A$3:$B$100,2,0),"") ->  | L103: =IF(G103<>"",IF(V103<>0,AAAADonnées!$D$3*V103*2,""),"") ->  | N103: =IF(Y103<>"",Y103*AAAADonnées!$C$3,"") ->  | P103: =IF(Z103<>"",Z103*AAAADonnées!$E$3,AA103) ->  | T103: 0 | V103: 0 | X103: Commissaire Technique
I104: =IF(F104<>"",VLOOKUP(X104,AAAADonnées!$A$3:$B$100,2,0),"") ->  | L104: =IF(G104<>"",IF(V104<>0,AAAADonnées!$D$3*V104*2,""),"") ->  | N104: =IF(Y104<>"",Y104*AAAADonnées!$C$3,"") ->  | P104: =IF(Z104<>"",Z104*AAAADonnées!$E$3,AA104) ->  | T104: =SUM(I104:S104) -> 0 | V104: 0 | X104: Commissaire Technique | Y104: =IF(V104<200,"",IF(V104<500,1,2)) ->  | Z104: =IF(Y104=1,3,IF(Y104=2,5,"")) -> 
I105: =SUM(I80:I104)+I68 -> 1800 | J105: =SUM(J80:K104)+J68 -> 0 | L105: =SUM(L80:M104)+L68 -> 686 | N105: =SUM(N80:O104)+N68 -> 0 | P105: =SUM(P80:Q104)+P68 -> 0 | R105: =SUM(R80:S104)+R68 -> 0 | T105: =T68+SUM(T80:T104) -> 2486
A107: Mode de règlement: | G107: Arrêté à la somme de: | I107: =IF(F80<>"",PROPER(CONCATENATE(ConvNumberLetter(T105)," Dinars")),"") -> 
H109: Le Président | M109: Le Trésorier | S109: l'Intéressé

Sheet BOURAS
C1: BOURAS Djamel Abdelnacer | T1: FABB
A2: Nbr Match | C2: ALGER | T2: TRÉSORERIE
A3: =COUNTA(D6:D30,D43:D67) -> 1 | B3: Centre | H3: Assistant | J3: Federal | S3: SAISON 2017/2018
A5: Journée | B5: Date | C5: Jour | D5: Rencontres | F5: Catégories | G5: Domiciliation | H5: Horaire | I5: Match | J5: Forfait | K5: Aéroport | L5: Transport | M5: par route 7 DA-Km | N5: Hébergement | O5: 2500 DA nuitée | P5: Restauration | Q5: 1000 DA | R5: Forfait suivant | S5: domiciliation | T5: Total | V5: Dist-Km | Y5: Heb. | Z5: Nbr. Repas | AA5: Repas
B6: 2018-10-12 | C6: =IF(B6<>"",LEFT(PROPER(TEXT(B6,"jjjj")),3),"") -> Ven | D6: CRBDB | E6: CSMBB | F6: SM | G6: ALGER | H6: 16:00:00 | I6: =IF(F6<>"",VLOOKUP(X6,AAAADonnées!$A$3:$B$100,2,0),"") -> 1500 | L6: =IF(G6<>"",IF(V6<>0,AAAADonnées!$D$3*V6*2,""),"") ->  | N6: =IF(Y6<>"",Y6*AAAADonnées!$C$3,"") ->  | P6: =IF(Z6<>"",Z6*AAAADonnées!$E$3,AA6) ->  | R6: =IF(AND(G6<>"",V6=0),500,"") -> 500 | T6: =SUM(I6:S6) -> 2000 | V6: =IFERROR(INDEX(TABLEDist,MATCH($C$2,Depart,0),MATCH(G6,Arrivee,0)),0) -> 0 | W6: =IF(H6<>"",H6/24,"") -> 0.02777777778 | X6: =CONCATENATE(F6," ",$H$3," ",$J$3) -> SM Assistant Federal | Y6: =IF(V6<200,"",IF(V6<500,1,2)) ->  | Z6: =IF(Y6=1,3,IF(Y6=2,5,"")) ->  | AA6: =IF(AND(AND(Y6="",V6<>0,W6<0.0261)),1000,"") ->  | AB6: =IF(B6>0,B6,"") -> 2018-10-12 | AC6: =IF(AND(AB6<>"",AB6=Recap!B4),SUMPRODUCT(($B$6:$B$30=AB6)*($T$6:$T$30)),"") -> 2000
